Workbook

Sheet Info (hidden)
A1: John Hancock MQP 2012-2013
A2: Universal Variable Life Model
A3: Andrew St. Jean, Hairan Li, Sergey Tsitlenko
A5: Summary of workbook
A6: 1. Random Walk - this sheet is the primary area where the simulation is run. The user controls the parameters of the model.
B7: a. Parameters:
C8: Timespan - the number of years over which the simulation takes place (max = 60 years)
D9: - cells in every column are set to null string if they go beyond the given timespan
C10: Mean - the mean used to calculate the market's random return. Dependent on expected stock performance
C11: Volatility - the volatility used to calculate the market's random return. Dependent on "Expected stock performance"
C12: Iterations - the number of projections
C13: Bin size - the size of the "bins" used to graph the results of all the simulations
C14: Expected stock performance - determines the mean and the volatility of the stock return based on the expectations of the market conditions ("Poor", "Average", or "Great")
C15: Customer type - determines the pattern of cash flows based on customer behavior ("Saver", "Spender", or "Lottery Winner")
C16: Floor - the guaranteed minimum annual return for the policy
C17: Ceiling - the maximum annual return for the policy
B18: b. Columns:
C19: Time - each row represents 1 month. Dependent on the given timespan.
D20: - t = 0 represents January 1st of the issue year. T = 12 represents January 1st of the next year after issue.
C21: Monthly return - calculates a random return based on the normal distribution with the given mean and volatility
C22: Annual return - annualizes the monthly returns for the previous 12 months. Used to compare to floor and ceiling
C23: Adjusted annual return - compares the actual annual return with the floor and ceiling; activates floor or ceiling if necessary
C24: Guarantee adjustment - amount added to or taken away from the fund to satisfy the 12-month guarantee
D25: -the amount is added to the bin that corresponds to the current month
C26: Deposits - each monthly deposit is based on the customer type ("Saver", "Spender", or "Lottery Winner")
C27: Withdrawals - each monthly withdrawal is based on the customer type ("Saver", "Spender", or "Lottery Winner")
C28: % Withdrawal - if the withdrawal is larger than the funds available in the current bin, funds are withdrawn from each of the remaining 11 bins based on this rate
C29: Fund value (month) - the fund is divided into 12 bins to facilitate the 12-month guarantee; each bin corresponds to a month. Each bin is subject to the monthly return, the guarantee adjustment, deposits, withdrawals, and the % withdrawal.
C30: Pre-Withdrawal total fund value - the total value of the fund before withdrawals. Used to calculate the % Withdrawal.
C31: Cash flow - the difference between deposits and withdrawals. The final cash flow includes a withdrawal of the final fund value
C32: Total fund value - the total value of the fund after withdrawals
B33: c. Results:
C34: Annual IRR - calculates the annual internal rate of return based on the cash flow pattern of the fund
B35: d. Simulation Macro:
C36: - this macro runs the simulation in "Random Walk" multiple times based on the input number of iterations. It stores the IRR for each simulation in "Output", groups the IRR's into bins (based on the given bin size), and creates a Histogram, Probability Distribution graph, and Cumulative Distribution graph of the IRR's.
A38: 2. Output - stores the annual IRR for each iteration and the bins
A39: 3. Histogram - contains a chart and a graph of the frequency of each bin
A40: 4. P(x) - contains a chart and graph of the probability distribution of the bins
A41: 5. F(x) - contains a chart and graph of the cumulative distribution of the bins
A42: 6. Data - contains the means and volatilies for each type of expected stock performance as well as the deposits/withdrawals for each type of customer

Sheet Model
F1: Timespan (years) | G1: Mean | H1: Volatility | I1: Iterations | J1: Interval Length | K1: Expected Stock Performance | L1: Premium Type | M1: =$L$5 & " Amount" -> Monthly Premiums Amount | N1: Withdrawal Starting Age | O1: Withdrawal Duration (years)
K2: Poor
K3: Average | L3: Monthly Premiums
K4: Great | L4: Single Premium
F5: =121 - $H$25 -> 81 | G5: =VLOOKUP($K$5,'Stock Performance Data'!$A$2:$C$5,2,FALSE) -> 0.0060258124 | H5: =VLOOKUP($K$5,'Stock Performance Data'!$A$2:$C$5,3,FALSE) -> 0.04343240566 | I5: 100000 | J5: 0.0025 | K5: Average | L5: Monthly Premiums | M5: 2000 | N5: 60 | O5: 30
G7: January
G8: February
G9: March
G10: April
G11: May
G12: June
G13: July
G14: August
G15: September
G16: October
G17: November
G18: December
F19: Floor | G19: Cap | H19: Initial Death Benefit | I19: Premium Load | J19: Issue Charge | K19: Unit Charge | L19: Indexing Charge | M19: Mortality Adjustment Factor | N19: Monthly Discount Rate (for charges) | O19: ="Present value of future charges (at age " &$N$5+$O$5 & ")" -> Present value of future charges (at age 90)
F20: 0 | G20: 0.13 | H20: 1000000 | I20: 0.05 | J20: 10 | K20: =0.1/1000*$H$20 -> 100 | L20: 0.0001 | M20: 0.9 | N20: =2.5/1200 -> 0.002083333333 | O20: =-(NPV($N$20,INDIRECT("$L$" & MATCH($N$5+$O$5, $C$1:$C$1479,0) & ":$L$" & MATCH($N$25, $D$1:$D$1479, 0))) + NPV($N$20,INDIRECT("$M$" & MATCH($N$5+$O$5, $C$1:$C$1479,0) & ":$M$" & MATCH($N$25, $D$1:$D$1479, 0))) + NPV($N$20, INDIRECT("$U$" & MATCH($N$5+$O$5, $C$1:$C$1479,0) & ":$U$" & MATCH($N$25, $D$1:$D$1479, 0)))) -> 0
F22: Male | G22: Smoker | K22: Mortality Table Cell Location
F23: Female | G23: Nonsmoker | K23: $A$4:$DR$105
F24: Customer Gender | G24: Smoking Preference | H24: Issue Age | I24: Issue Month | J24: Mortality Table | L24: Annual IRR | N24: Death Time | O24: Death Age
F25: Male | G25: Nonsmoker | H25: 40 | I25: January | J25: ="2001 CSO S&U ANB " &$F$25 &" " &IF($G$25="Smoker", "S", "NS") -> 2001 CSO S&U ANB Male NS | L25: =MIN((1+IRR(Model!$AM$28:$AM$1479,0))^12 - 1, 0.5) -> 0.06453417672 | N25: =VLOOKUP("Yes", $P$27:$R$1480, 2,FALSE) -> 589 | O25: =VLOOKUP("Yes", $P$27:$R$1480, 3,FALSE) -> 89
A26: Last simulation: | D26: 4/24/2013; 8:59:13 PM
B27: Year | C27: Age | D27: Time | E27: Month | F27: Monthly Return | G27: Annual Return | H27: Annual Return (Adjusted) | I27: Interest Credited | J27: Premiums | K27: Issue Charge | L27: Premium Load Charge | M27: Unit Charge | N27: Index Charge | O27: Mortality Rate | P27: Died during Current Year? | Q27: Time | R27: Age | S27: Death Benefit | T27: Net Amount at Risk | U27: Mortality Charge | V27: Total Charges | W27: Withdrawals | X27: % Withdrawal | Y27: ="Fund Value - "&$E$28 -> Fund Value - Jan | Z27: ="Fund Value - "&$E$29 -> Fund Value - Feb | AA27: ="Fund Value - "&$E$30 -> Fund Value - Mar | AB27: ="Fund Value - "&$E$31 -> Fund Value - Apr | AC27: ="Fund Value - "&$E$32 -> Fund Value - May | AD27: ="Fund Value - "&$E$33 -> Fund Value - Jun | AE27: ="Fund Value - "&$E$34 -> Fund Value - Jul | AF27: ="Fund Value - "&$E$35 -> Fund Value - Aug | AG27: ="Fund Value - "&$E$36 -> Fund Value - Sep | AH27: ="Fund Value - "&$E$37 -> Fund Value - Oct | AI27: ="Fund Value - "&$E$38 -> Fund Value - Nov | AJ27: ="Fund Value - "&$E$39 -> Fund Value - Dec | AK27: Pre-Cash Flow Total Account Value | AL27: Interest Credited | AM27: Cash Flow | AN27: Total Charges | AO27: Total Fund Value | AP27: Check
B28: 1 | C28: =$H$25 -> 40 | D28: 1 | E28: =IF($D28 = "", "", LEFT($I$25,3)) -> Jan | F28: =IF($D28 = "", "",IF(D28>=$N$25, 0,_xlfn.NORM.INV(RAND(), $G$5,$H$5))) -> 0.02868374426 | I28: 0 | J28: =IF(D28="","",IF(D28>=$N$25, 0, IF($L$5="Single Premium",$M$5,IF(C28<$N$5,$M$5,0)))) -> 2000 | K28: =IF(D28="","",IF(D28>=$N$25, 0,-$J$20)) -> -10 | L28: =IF(D28="","",IF(D28>=$N$25, 0,-$I$20*J28)) -> -100 | M28: =IF(D28="","",-$K$20) -> -100 | N28: =IF(D28="","",IF(D28>=$N$25, 0,-$L$20*(AK28+AL28))) -> 0 | O28: =IF(D28="","",VLOOKUP($H$25,INDIRECT("'"&$J$25&"'!"&$K$23),Model!B28+1)) -> 0.00059 | P28: =IF(D28="","",IF(RANDBETWEEN(0, 10000)/10000>O28, "No", "Yes")) -> No | Q28: =D28 -> 1 | R28: =C28 -> 40 | S28: =IF(D28="","",IF(D28>$N$25, 0,$H$20+AK28)) -> 1000000 | T28: =IF(D28="","",IF(D28>$N$25, 0,$H$20)) -> 1000000 | U28: =IF(D28="","",IF(D28>=$N$25, 0,-$M$20*O28*T28/12)) -> -44.25 | V28: =IF(D28="","",IF(D28>=$N$25, 0,SUM(L28:N28)+U28)) -> -244.25 | W28: =IF(D28="","",IF(D28=$N$25,-(AK28+AL28+J28+V28),IF(OR(C28<$N$5,C28>=$N$5+$O$5),0,MIN(0,MIN(0,-1/(VLOOKUP($N$5+$O$5,$C$28:$D$1479,2,FALSE)-D28+120))*(AK28+AL28+V28-$O$20))))) -> 0 | X28: =IF($D28="","",IFERROR(MIN(MAX(-(J28+W28+V28)/AO27,0),1),0)) -> 0 | Y28: =MAX($J28+$W28 + $V28, 0) -> 1755.75 | Z28: 0 | AA28: 0 | AB28: 0 | AC28: 0 | AD28: 0 | AE28: 0 | AF28: 0 | AG28: 0 | AH28: 0 | AI28: 0 | AJ28: 0 | AK28: 0 | AL28: =I28 -> 0 | AM28: =IF($D28="","",IF(D28=$N$25,$J28+$W28-$AO28-$H$20,$J28+$W28)) -> 2000 | AN28: =V28 -> -244.25 | AO28: =SUM(Y28:AJ28) -> 1755.75 | AP28: =IF(D28="","",IF(D28=$N$25,AO28-SUM(AK28:AN28)-$H$20,AO28-SUM(AK28:AN28))) -> 0
B29: 1 | C29: 40 | D29: =IF($C29="", "", $D28+1) -> 2 | E29: =IF($D29="","",LEFT(OFFSET($A$1,IF(4 + D29 + MATCH($I$25,$G$7:$G$18,0)<=17,4 + D29+MATCH($I$25,$G$7:$G$18,0),4 + D29 + MATCH($I$25,$G$7:$G$18,0) - 12),6),3)) -> Feb | F29: =IF($D29 = "", "",IF(D29>=$N$25, 0,_xlfn.NORM.INV(RAND(), $G$5,$H$5))) -> -0.07389071986 | I29: 0 | J29: =IF(D29="","",IF(D29>=$N$25, 0, IF($L$5="Single Premium",0,IF(C29<$N$5,$M$5,0)))) -> 2000 | K29: -10 | L29: -100 | M29: =IF(D29="","", IF(D29>=$N$25, 0, -$K$20)) -> -100 | N29: -0.175575 | O29: =IF(D29="","",VLOOKUP($H$25,INDIRECT("'"&$J$25&"'!"&$K$23),Model!B29+1)) -> 0.00059 | Q29: 2 | R29: 40 | S29: 1001755.75 | T29: 1000000 | U29: -44.25 | V29: -244.425575 | W29: 0 | X29: 0 | Y29: =IF($D29="", "", MAX(Y28*(1-$X29),0)) -> 1755.75 | Z29: =MAX($J29+$W29 + $V29, 0) -> 1755.574425 | AA29: 0 | AB29: 0 | AC29: 0 | AD29: 0 | AE29: 0 | AF29: 0 | AG29: 0 | AH29: 0 | AI29: 0 | AJ29: 0 | AK29: =IF(D29 = "", "", $Y28) -> 1755.75 | AL29: 0 | AM29: =IF($D29="","",IF(D29=$N$25,$J29+$W29-$AO29-$H$20,$J29+$W29)) -> 2000 | AN29: -244.425575 | AO29: =IF(D29 = "", "", SUM(Y29:AJ29)) -> 3511.324425 | AP29: 0
B30: 1 | C30: 40 | D30: =IF($C30="", "", $D29+1) -> 3 | E30: Mar | F30: 0.04886576651 | I30: 0 | J30: 2000 | K30: -10 | L30: -100 | M30: -100 | N30: -0.3511324425 | O30: =IF(D30="","",VLOOKUP($H$25,INDIRECT("'"&$J$25&"'!"&$K$23),Model!B30+1)) -> 0.00059 | Q30: 3 | R30: 40 | S30: 1003511.324 | T30: 1000000 | U30: -44.25 | V30: -244.6011324 | W30: 0 | X30: 0 | Y30: 1755.75 | Z30: =IF($D30="", "", MAX(Z29*(1-$X30),0)) -> 1755.574425 | AA30: =MAX($J30+$W30+$V30, 0) -> 1755.398868 | AB30: 0 | AC30: 0 | AD30: 0 | AE30: 0 | AF30: 0 | AG30: 0 | AH30: 0 | AI30: 0 | AJ30: 0 | AK30: =IF(D30 = "", "",Y29+Z29) -> 3511.324425 | AL30: 0 | AM30: 2000 | AN30: -244.6011324 | AO30: 5266.723293 | AP30: 0
B31: 1 | C31: 40 | D31: 4 | E31: Apr | F31: -0.004095112327 | I31: 0 | J31: 2000 | K31: -10 | L31: -100 | M31: -100 | N31: -0.5266723293 | O31: =IF(D31="","",VLOOKUP($H$25,INDIRECT("'"&$J$25&"'!"&$K$23),Model!B31+1)) -> 0.00059 | Q31: 4 | R31: 40 | S31: 1005266.723 | T31: 1000000 | U31: -44.25 | V31: -244.7766723 | W31: 0 | X31: 0 | Y31: 1755.75 | Z31: 1755.574425 | AA31: =IF($D31="", "", MAX(AA30*(1-$X31),0)) -> 1755.398868 | AB31: =MAX($J31+$W31+$V31, 0) -> 1755.223328 | AC31: 0 | AD31: 0 | AE31: 0 | AF31: 0 | AG31: 0 | AH31: 0 | AI31: 0 | AJ31: 0 | AK31: =IF(D31 = "", "",Y30 + Z30+AA30 ) -> 5266.723293 | AL31: 0 | AM31: 2000 | AN31: -244.7766723 | AO31: 7021.94662 | AP31: 0
B32: 1 | C32: 40 | D32: 5 | E32: May | F32: -0.007355066918 | I32: 0 | J32: 2000 | K32: -10 | L32: -100 | M32: -100 | N32: -0.702194662 | O32: =IF(D32="","",VLOOKUP($H$25,INDIRECT("'"&$J$25&"'!"&$K$23),Model!B32+1)) -> 0.00059 | Q32: 5 | R32: 40 | S32: 1007021.947 | T32: 1000000 | U32: -44.25 | V32: -244.9521947 | W32: 0 | X32: 0 | Y32: 1755.75 | Z32: 1755.574425 | AA32: 1755.398868 | AB32: =IF($D32="", "", MAX(AB31*(1-$X32),0)) -> 1755.223328 | AC32: =MAX($J32+$W32+$V32, 0) -> 1755.047805 | AD32: 0 | AE32: 0 | AF32: 0 | AG32: 0 | AH32: 0 | AI32: 0 | AJ32: 0 | AK32: =IF(D32 = "", "",Y31 + Z31+AA31 + AB31) -> 7021.94662 | AL32: 0 | AM32: 2000 | AN32: -244.9521947 | AO32: 8776.994426 | AP32: 0
B33: 1 | C33: 40 | D33: 6 | E33: Jun | F33: 0.02790754869 | I33: 0 | J33: 2000 | K33: -10 | L33: -100 | M33: -100 | N33: -0.8776994426 | O33: =IF(D33="","",VLOOKUP($H$25,INDIRECT("'"&$J$25&"'!"&$K$23),Model!B33+1)) -> 0.00059 | Q33: 6 | R33: 40 | S33: 1008776.994 | T33: 1000000 | U33: -44.25 | V33: -245.1276994 | W33: 0 | X33: 0 | Y33: 1755.75 | Z33: 1755.574425 | AA33: 1755.398868 | AB33: 1755.223328 | AC33: =IF($D33="", "", MAX(AC32*(1-$X33),0)) -> 1755.047805 | AD33: =MAX($J33+$W33+$V33, 0) -> 1754.872301 | AE33: 0 | AF33: 0 | AG33: 0 | AH33: 0 | AI33: 0 | AJ33: 0 | AK33: =IF(D33 = "", "",Y32 + Z32+AA32 + AB32+ AC32) -> 8776.994426 | AL33: 0 | AM33: 2000 | AN33: -245.1276994 | AO33: 10531.86673 | AP33: 0
B34: 1 | C34: 40 | D34: 7 | E34: Jul | F34: -0.05390159775 | I34: 0 | J34: 2000 | K34: -10 | L34: -100 | M34: -100 | N34: -1.053186673 | O34: =IF(D34="","",VLOOKUP($H$25,INDIRECT("'"&$J$25&"'!"&$K$23),Model!B34+1)) -> 0.00059 | Q34: 7 | R34: 40 | S34: 1010531.867 | T34: 1000000 | U34: -44.25 | V34: -245.3031867 | W34: 0 | X34: 0 | Y34: 1755.75 | Z34: 1755.574425 | AA34: 1755.398868 | AB34: 1755.223328 | AC34: 1755.047805 | AD34: =IF($D34="", "", MAX(AD33*(1-$X34),0)) -> 1754.872301 | AE34: =MAX($J34+$W34+$V34, 0) -> 1754.696813 | AF34: 0 | AG34: 0 | AH34: 0 | AI34: 0 | AJ34: 0 | AK34: =IF(D34 = "", "",Y33+ Z33+AA33 + AB33+ AC33+AD33) -> 10531.86673 | AL34: 0 | AM34: 2000 | AN34: -245.3031867 | AO34: 12286.56354 | AP34: 0
B35: 1 | C35: 40 | D35: 8 | E35: Aug | F35: 0.04209853326 | I35: 0 | J35: 2000 | K35: -10 | L35: -100 | M35: -100 | N35: -1.228656354 | O35: =IF(D35="","",VLOOKUP($H$25,INDIRECT("'"&$J$25&"'!"&$K$23),Model!B35+1)) -> 0.00059 | Q35: 8 | R35: 40 | S35: 1012286.564 | T35: 1000000 | U35: -44.25 | V35: -245.4786564 | W35: 0 | X35: 0 | Y35: 1755.75 | Z35: 1755.574425 | AA35: 1755.398868 | AB35: 1755.223328 | AC35: 1755.047805 | AD35: 1754.872301 | AE35: =IF($D35="", "", MAX(AE34*(1-$X35),0)) -> 1754.696813 | AF35: =MAX($J35+$W35+$V35, 0) -> 1754.521344 | AG35: 0 | AH35: 0 | AI35: 0 | AJ35: 0 | AK35: =IF(D35 = "", "",Y34 + Z34+AA34 + AB34+ AC34+AD34+AE34) -> 12286.56354 | AL35: 0 | AM35: 2000 | AN35: -245.4786564 | AO35: 14041.08488 | AP35: 0
B36: 1 | C36: 40 | D36: 9 | E36: Sep | F36: -0.03759600195 | I36: 0 | J36: 2000 | K36: -10 | L36: -100 | M36: -100 | N36: -1.404108488 | O36: =IF(D36="","",VLOOKUP($H$25,INDIRECT("'"&$J$25&"'!"&$K$23),Model!B36+1)) -> 0.00059 | Q36: 9 | R36: 40 | S36: 1014041.085 | T36: 1000000 | U36: -44.25 | V36: -245.6541085 | W36: 0 | X36: 0 | Y36: 1755.75 | Z36: 1755.574425 | AA36: 1755.398868 | AB36: 1755.223328 | AC36: 1755.047805 | AD36: 1754.872301 | AE36: 1754.696813 | AF36: =IF($D36="", "", MAX(AF35*(1-$X36),0)) -> 1754.521344 | AG36: =MAX($J36+$W36+$V36, 0) -> 1754.345892 | AH36: 0 | AI36: 0 | AJ36: 0 | AK36: =IF(D36 = "", "",Y35 + Z35+AA35 + AB35+ AC35+AD35+AE35+AF35) -> 14041.08488 | AL36: 0 | AM36: 2000 | AN36: -245.6541085 | AO36: 15795.43077 | AP36: 0
B37: 1 | C37: 40 | D37: 10 | E37: Oct | F37: -0.0153232965 | I37: 0 | J37: 2000 | K37: -10 | L37: -100 | M37: -100 | N37: -1.579543077 | O37: =IF(D37="","",VLOOKUP($H$25,INDIRECT("'"&$J$25&"'!"&$K$23),Model!B37+1)) -> 0.00059 | Q37: 10 | R37: 40 | S37: 1015795.431 | T37: 1000000 | U37: -44.25 | V37: -245.8295431 | W37: 0 | X37: 0 | Y37: 1755.75 | Z37: 1755.574425 | AA37: 1755.398868 | AB37: 1755.223328 | AC37: 1755.047805 | AD37: 1754.872301 | AE37: 1754.696813 | AF37: 1754.521344 | AG37: =IF($D37="", "", MAX(AG36*(1-$X37),0)) -> 1754.345892 | AH37: =MAX($J37+$W37+$V37, 0) -> 1754.170457 | AI37: 0 | AJ37: 0 | AK37: =IF(D37 = "", "",Y36 + Z36+AA36 + AB36+ AC36+AD36+AE36+AF36+AG36) -> 15795.43077 | AL37: 0 | AM37: 2000 | AN37: -245.8295431 | AO37: 17549.60123 | AP37: 0
B38: 1 | C38: 40 | D38: 11 | E38: Nov | F38: -0.007165284182 | I38: 0 | J38: 2000 | K38: -10 | L38: -100 | M38: -100 | N38: -1.754960123 | O38: =IF(D38="","",VLOOKUP($H$25,INDIRECT("'"&$J$25&"'!"&$K$23),Model!B38+1)) -> 0.00059 | Q38: 11 | R38: 40 | S38: 1017549.601 | T38: 1000000 | U38: -44.25 | V38: -246.0049601 | W38: 0 | X38: 0 | Y38: 1755.75 | Z38: 1755.574425 | AA38: 1755.398868 | AB38: 1755.223328 | AC38: 1755.047805 | AD38: 1754.872301 | AE38: 1754.696813 | AF38: 1754.521344 | AG38: 1754.345892 | AH38: =IF($D38="", "", MAX(AH37*(1-$X38),0)) -> 1754.170457 | AI38: =MAX($J38+$W38+$V38, 0) -> 1753.99504 | AJ38: 0 | AK38: =IF(D38 = "", "",Y37 + Z37+AA37 + AB37+ AC37+AD37+AE37+AF37+AG37+AH37 + AI37) -> 17549.60123 | AL38: 0 | AM38: 2000 | AN38: -246.0049601 | AO38: 19303.59627 | AP38: 3.637978807e-12
B39: 1 | C39: 40 | D39: 12 | E39: Dec | F39: 0.03257442355 | I39: 0 | J39: 2000 | K39: -10 | L39: -100 | M39: -100 | N39: -1.930359627 | O39: =IF(D39="","",VLOOKUP($H$25,INDIRECT("'"&$J$25&"'!"&$K$23),Model!B39+1)) -> 0.00059 | Q39: 12 | R39: 40 | S39: 1019303.596 | T39: 1000000 | U39: -44.25 | V39: -246.1803596 | W39: 0 | X39: 0 | Y39: 1755.75 | Z39: 1755.574425 | AA39: 1755.398868 | AB39: 1755.223328 | AC39: 1755.047805 | AD39: 1754.872301 | AE39: 1754.696813 | AF39: 1754.521344 | AG39: 1754.345892 | AH39: 1754.170457 | AI39: =IF($D39="", "", MAX(AI38*(1-$X39),0)) -> 1753.99504 | AJ39: =MAX($J39+$W39+$V39, 0) -> 1753.81964 | AK39: =IF(D39 = "", "",Y38 + Z38+AA38 + AB38+ AC38+AD38+AE38+AF38+AG38+AH38 + AI38) -> 19303.59627 | AL39: 0 | AM39: 2000 | AN39: -246.1803596 | AO39: 21057.41591 | AP39: 0
B40: =IF(D40="","", B39+1) -> 2 | C40: =IF(C39="","",IF(C28+1<=120, C28 + 1, "")) -> 41 | D40: =IF($C40="", "", $D39+1) -> 13 | E40: =IF($D40 = "", "",E28) -> Jan | F40: -0.04518165953 | G40: =IF($D40 = "", "",IF(D40>=$N$25, 0,((1+F28)*(1+F29)*(1+F30)*(1+F31)*(1+F32)*(1+F33)*(1+F34)*(1+F35)*(1+F36)*(1+F37)*(1+F38)*(1+F39))-1)) -> -0.02742216793 | H40: =IF($D40 = "", "", IF(D40>=$N$25, 0,IF(G40<$G$20, IF(G40>$F$20, G40, $F$20), $G$20))) -> 0 | I40: =IF(D40="", "", IF(D40>=$N$25,0, H40*AVERAGE(Y28:Y39))) -> 0 | J40: =IF(D40="","",IF(D40>=$N$25, 0, IF($L$5="Single Premium",0,IF(C40<$N$5,$M$5,0)))) -> 2000 | K40: -10 | L40: -100 | M40: =IF(D40="","",IF(D40>=$N$25, 0,-$K$20)) -> -100 | N40: -2.105741591 | O40: =IF(D40="","",VLOOKUP($H$25,INDIRECT("'"&$J$25&"'!"&$K$23),Model!B40+1)) -> 0.00072 | P40: =IF(D40="","",IF(RANDBETWEEN(0, 10000)/10000>O40, "No", "Yes")) -> No | Q40: 13 | R40: 41 | S40: 1021057.416 | T40: 1000000 | U40: -54 | V40: -256.1057416 | W40: 0 | X40: =IF($D40="","",IFERROR(MIN(MAX(-(Y39+J40+I40+W40+V40)/(AO39-Y39),0),1),0)) -> 0 | Y40: =IF($D40="", "", MAX($Y39 + $I40 + $J40 + $W40+ $V40, 0)) -> 3499.644258 | Z40: 1755.574425 | AA40: 1755.398868 | AB40: 1755.223328 | AC40: 1755.047805 | AD40: 1754.872301 | AE40: 1754.696813 | AF40: 1754.521344 | AG40: 1754.345892 | AH40: 1754.170457 | AI40: 1753.99504 | AJ40: =IF($D40="", "", MAX(AJ39*(1-$X40),0)) -> 1753.81964 | AK40: =IF(D40 = "", "",Y39 + Z39+AA39 + AB39+ AC39+AD39+AE39+AF39+AG39+AH39 + AI39+AJ39) -> 21057.41591 | AL40: 0 | AM40: 2000 | AN40: -256.1057416 | AO40: 22801.31017 | AP40: 0
B41: =IF(D41="","",B40) -> 2 | C41: =IF(C40="","",IF(C29+1<=120, C29 + 1, "")) -> 41 | D41: 14 | E41: =IF($D41 = "", "",E29) -> Feb | F41: 0.03581928033 | G41: =IF($D41 = "", "",IF(D41>=$N$25, 0,((1+F29)*(1+F30)*(1+F31)*(1+F32)*(1+F33)*(1+F34)*(1+F35)*(1+F36)*(1+F37)*(1+F38)*(1+F39)*(1+F40))-1)) -> -0.09725884483 | H41: 0 | I41: =IF(D41="", "", IF(D41>=$N$25,0, H41*AVERAGE(Z29:Z40))) -> 0 | J41: =IF(D41="","",IF(D41>=$N$25, 0, IF($L$5="Single Premium",0,IF(C41<$N$5,$M$5,0)))) -> 2000 | K41: -10 | L41: -100 | M41: -100 | N41: -2.280131017 | O41: =IF(D41="","",VLOOKUP($H$25,INDIRECT("'"&$J$25&"'!"&$K$23),Model!B41+1)) -> 0.00072 | Q41: 14 | R41: 41 | S41: 1022801.31 | T41: 1000000 | U41: -54 | V41: -256.280131 | W41: 0 | X41: =IF($D41="","",IFERROR(MIN(MAX(-(Z40+J41+I41+W41+V41)/(AO40-Z40),0),1),0)) -> 0 | Y41: =IF($D41="", "", MAX(Y40*(1-$X41),0)) -> 3499.644258 | Z41: =IF($D41="", "", MAX(Z40 + $I41 + $J41 + $W41 +$V41, 0)) -> 3499.294294 | AA41: 1755.398868 | AB41: 1755.223328 | AC41: 1755.047805 | AD41: 1754.872301 | AE41: 1754.696813 | AF41: 1754.521344 | AG41: 1754.345892 | AH41: 1754.170457 | AI41: 1753.99504 | AJ41: 1753.81964 | AK41: 22801.31017 | AL41: 0 | AM41: 2000 | AN41: -256.280131 | AO41: 24545.03004 | AP41: 0
B42: =IF(D42="","",B41) -> 2 | C42: 41 | D42: 15 | E42: Mar | F42: 0.05435627363 | G42: 0.009682889178 | H42: 0.009682889178 | I42: =IF(D42="", "", IF(D42>=$N$25,0, H42*AVERAGE(AA30:AA41))) -> 16.9973327 | J42: 2000 | K42: -10 | L42: -100 | M42: -100 | N42: -2.456202737 | O42: =IF(D42="","",VLOOKUP($H$25,INDIRECT("'"&$J$25&"'!"&$K$23),Model!B42+1)) -> 0.00072 | Q42: 15 | R42: 41 | S42: 1024545.03 | T42: 1000000 | U42: -54 | V42: -256.4562027 | W42: 0 | X42: =IF($D42="","",IFERROR(MIN(MAX(-(AA41+J42+I42+W42+V42)/(AO41-AA41),0),1),0)) -> 0 | Y42: 3499.644258 | Z42: =IF($D42="", "", MAX(Z41*(1-$X42),0)) -> 3499.294294 | AA42: =IF($D42="", "", MAX(AA41 + $I42 + $J42 + $W42+$V42, 0)) -> 3515.939998 | AB42: 1755.223328 | AC42: 1755.047805 | AD42: 1754.872301 | AE42: 1754.696813 | AF42: 1754.521344 | AG42: 1754.345892 | AH42: 1754.170457 | AI42: 1753.99504 | AJ42: 1753.81964 | AK42: 24545.03004 | AL42: 16.9973327 | AM42: 2000 | AN42: -256.4562027 | AO42: 26305.57117 | AP42: -3.637978807e-12
B43: 2 | C43: 41 | D43: 16 | E43: Apr | F43: 0.0306123277 | G43: 0.01496828534 | H43: 0.01496828534 | I43: =IF(D43="", "", IF(D43>=$N$25,0, H43*AVERAGE(AB31:AB42))) -> 26.2726836 | J43: 2000 | K43: -10 | L43: -100 | M43: -100 | N43: -2.633184385 | O43: =IF(D43="","",VLOOKUP($H$25,INDIRECT("'"&$J$25&"'!"&$K$23),Model!B43+1)) -> 0.00072 | Q43: 16 | R43: 41 | S43: 1026305.571 | T43: 1000000 | U43: -54 | V43: -256.6331844 | W43: 0 | X43: =IF($D43="","",IFERROR(MIN(MAX(-(AB42+J43+I43+W43+V43)/(AO42-AB42),0),1),0)) -> 0 | Y43: 3499.644258 | Z43: 3499.294294 | AA43: =IF($D43="", "", MAX(AA42*(1-$X43),0)) -> 3515.939998 | AB43: =IF($D43="", "", MAX(AB42 + $I43 + $J43 + $W43+$V43, 0)) -> 3524.862827 | AC43: 1755.047805 | AD43: 1754.872301 | AE43: 1754.696813 | AF43: 1754.521344 | AG43: 1754.345892 | AH43: 1754.170457 | AI43: 1753.99504 | AJ43: 1753.81964 | AK43: 26305.57117 | AL43: 26.2726836 | AM43: 2000 | AN43: -256.6331844 | AO43: 28075.21067 | AP43: 3.637978807e-12
B44: 2 | C44: 41 | D44: 17 | E44: May | F44: 0.00983845576 | G44: 0.05034008774 | H44: 0.05034008774 | I44: =IF(D44="", "", IF(D44>=$N$25,0, H44*AVERAGE(AC32:AC43))) -> 88.34926051 | J44: 2000 | K44: -10 | L44: -100 | M44: -100 | N44: -2.816355993 | O44: =IF(D44="","",VLOOKUP($H$25,INDIRECT("'"&$J$25&"'!"&$K$23),Model!B44+1)) -> 0.00072 | Q44: 17 | R44: 41 | S44: 1028075.211 | T44: 1000000 | U44: -54 | V44: -256.816356 | W44: 0 | X44: =IF($D44="","",IFERROR(MIN(MAX(-(AC43+J44+I44+W44+V44)/(AO43-AC43),0),1),0)) -> 0 | Y44: 3499.644258 | Z44: 3499.294294 | AA44: 3515.939998 | AB44: =IF($D44="", "", MAX(AB43*(1-$X44),0)) -> 3524.862827 | AC44: =IF($D44="", "", MAX(AC43 + $I44 + $J44 +$W44+$V44, 0)) -> 3586.58071 | AD44: 1754.872301 | AE44: 1754.696813 | AF44: 1754.521344 | AG44: 1754.345892 | AH44: 1754.170457 | AI44: 1753.99504 | AJ44: 1753.81964 | AK44: 28075.21067 | AL44: 88.34926051 | AM44: 2000 | AN44: -256.816356 | AO44: 29906.74357 | AP44: 3.637978807e-12
B45: 2 | C45: 41 | D45: 18 | E45: Jun | F45: 0.02741469583 | G45: 0.06853294353 | H45: 0.06853294353 | I45: =IF(D45="", "", IF(D45>=$N$25,0, H45*AVERAGE(AD33:AD44))) -> 120.2665643 | J45: 2000 | K45: -10 | L45: -100 | M45: -100 | N45: -3.002701014 | O45: =IF(D45="","",VLOOKUP($H$25,INDIRECT("'"&$J$25&"'!"&$K$23),Model!B45+1)) -> 0.00072 | Q45: 18 | R45: 41 | S45: 1029906.744 | T45: 1000000 | U45: -54 | V45: -257.002701 | W45: 0 | X45: =IF($D45="","",IFERROR(MIN(MAX(-(AD44+J45+I45+W45+V45)/(AO44-AD44),0),1),0)) -> 0 | Y45: 3499.644258 | Z45: 3499.294294 | AA45: 3515.939998 | AB45: 3524.862827 | AC45: =IF($D45="", "", MAX(AC44*(1-$X45),0)) -> 3586.58071 | AD45: =IF($D45="", "", MAX(AD44+ $I45 + $J45 + $W45 +$V45, 0)) -> 3618.136164 | AE45: 1754.696813 | AF45: 1754.521344 | AG45: 1754.345892 | AH45: 1754.170457 | AI45: 1753.99504 | AJ45: 1753.81964 | AK45: 29906.74357 | AL45: 120.2665643 | AM45: 2000 | AN45: -257.002701 | AO45: 31770.00744 | AP45: 0
B46: 2 | C46: 41 | D46: 19 | E46: Jul | F46: 0.02283840706 | G46: 0.06802061193 | H46: 0.06802061193 | I46: =IF(D46="", "", IF(D46>=$N$25,0, H46*AVERAGE(AE34:AE45))) -> 119.355551 | J46: 2000 | K46: -10 | L46: -100 | M46: -100 | N46: -3.188936299 | O46: =IF(D46="","",VLOOKUP($H$25,INDIRECT("'"&$J$25&"'!"&$K$23),Model!B46+1)) -> 0.00072 | Q46: 19 | R46: 41 | S46: 1031770.007 | T46: 1000000 | U46: -54 | V46: -257.1889363 | W46: 0 | X46: =IF($D46="","",IFERROR(MIN(MAX(-(AE45+J46+I46+W46+V46)/(AO45-AE45),0),1),0)) -> 0 | Y46: 3499.644258 | Z46: 3499.294294 | AA46: 3515.939998 | AB46: 3524.862827 | AC46: 3586.58071 | AD46: =IF($D46="", "", MAX(AD45*(1-$X46),0)) -> 3618.136164 | AE46: =IF($D46="", "", MAX(AE45 + $I46 + $J46 + $W46+$V46, 0)) -> 3616.863428 | AF46: 1754.521344 | AG46: 1754.345892 | AH46: 1754.170457 | AI46: 1753.99504 | AJ46: 1753.81964 | AK46: 31770.00744 | AL46: 119.355551 | AM46: 2000 | AN46: -257.1889363 | AO46: 33632.17405 | AP46: 0
B47: 2 | C47: 41 | D47: 20 | E47: Aug | F47: -0.005498811136 | G47: 0.1546499802 | H47: 0.13 | I47: =IF(D47="", "", IF(D47>=$N$25,0, H47*AVERAGE(AF35:AF46))) -> 228.0877747 | J47: 2000 | K47: -10 | L47: -100 | M47: -100 | N47: -3.386026183 | O47: =IF(D47="","",VLOOKUP($H$25,INDIRECT("'"&$J$25&"'!"&$K$23),Model!B47+1)) -> 0.00072 | Q47: 20 | R47: 41 | S47: 1033632.174 | T47: 1000000 | U47: -54 | V47: -257.3860262 | W47: 0 | X47: =IF($D47="","",IFERROR(MIN(MAX(-(AF46+J47+I47+W47+V47)/(AO46-AF46),0),1),0)) -> 0 | Y47: 3499.644258 | Z47: 3499.294294 | AA47: 3515.939998 | AB47: 3524.862827 | AC47: 3586.58071 | AD47: 3618.136164 | AE47: =IF($D47="", "", MAX(AE46*(1-$X47),0)) -> 3616.863428 | AF47: =IF($D47="", "", MAX(AF46 + $I47 + $J47 + $W47 +$V47, 0)) -> 3725.223092 | AG47: 1754.345892 | AH47: 1754.170457 | AI47: 1753.99504 | AJ47: 1753.81964 | AK47: 33632.17405 | AL47: 228.0877747 | AM47: 2000 | AN47: -257.3860262 | AO47: 35602.8758 | AP47: 0
B48: 2 | C48: 41 | D48: 21 | E48: Sep | F48: 0.08733587375 | G48: 0.1019119031 | H48: 0.1019119031 | I48: =IF(D48="", "", IF(D48>=$N$25,0, H48*AVERAGE(AG36:AG47))) -> 178.7887285 | J48: 2000 | K48: -10 | L48: -100 | M48: -100 | N48: -3.578166453 | O48: =IF(D48="","",VLOOKUP($H$25,INDIRECT("'"&$J$25&"'!"&$K$23),Model!B48+1)) -> 0.00072 | Q48: 21 | R48: 41 | S48: 1035602.876 | T48: 1000000 | U48: -54 | V48: -257.5781665 | W48: 0 | X48: =IF($D48="","",IFERROR(MIN(MAX(-(AG47+J48+I48+W48+V48)/(AO47-AG47),0),1),0)) -> 0 | Y48: 3499.644258 | Z48: 3499.294294 | AA48: 3515.939998 | AB48: 3524.862827 | AC48: 3586.58071 | AD48: 3618.136164 | AE48: 3616.863428 | AF48: =IF($D48="", "", MAX(AF47*(1-$X48),0)) -> 3725.223092 | AG48: =IF($D48="", "", MAX(AG47 + $I48 + $J48 + $W48+$V48, 0)) -> 3675.556454 | AH48: 1754.170457 | AI48: 1753.99504 | AJ48: 1753.81964 | AK48: 35602.8758 | AL48: 178.7887285 | AM48: 2000 | AN48: -257.5781665 | AO48: 37524.08636 | AP48: 0
B49: 2 | C49: 41 | D49: 22 | E49: Oct | F49: 0.06363059722 | G49: 0.2449536207 | H49: 0.13 | I49: =IF(D49="", "", IF(D49>=$N$25,0, H49*AVERAGE(AH37:AH48))) -> 228.0421594 | J49: 2000 | K49: -10 | L49: -100 | M49: -100 | N49: -3.775212852 | O49: =IF(D49="","",VLOOKUP($H$25,INDIRECT("'"&$J$25&"'!"&$K$23),Model!B49+1)) -> 0.00072 | Q49: 22 | R49: 41 | S49: 1037524.086 | T49: 1000000 | U49: -54 | V49: -257.7752129 | W49: 0 | X49: =IF($D49="","",IFERROR(MIN(MAX(-(AH48+J49+I49+W49+V49)/(AO48-AH48),0),1),0)) -> 0 | Y49: 3499.644258 | Z49: 3499.294294 | AA49: 3515.939998 | AB49: 3524.862827 | AC49: 3586.58071 | AD49: 3618.136164 | AE49: 3616.863428 | AF49: 3725.223092 | AG49: =IF($D49="", "", MAX(AG48*(1-$X49),0)) -> 3675.556454 | AH49: =IF($D49="", "", MAX(AH48 + $I49 + $J49 + $W49+$V49, 0)) -> 3724.437403 | AI49: 1753.99504 | AJ49: 1753.81964 | AK49: 37524.08636 | AL49: 228.0421594 | AM49: 2000 | AN49: -257.7752129 | AO49: 39494.35331 | AP49: 0
B50: 2 | C50: 41 | D50: 23 | E50: Nov | F50: 0.02728086813 | G50: 0.3447771826 | H50: 0.13 | I50: =IF(D50="", "", IF(D50>=$N$25,0, H50*AVERAGE(AI38:AI49))) -> 228.0193552 | J50: 2000 | K50: -10 | L50: -100 | M50: -100 | N50: -3.972237266 | O50: =IF(D50="","",VLOOKUP($H$25,INDIRECT("'"&$J$25&"'!"&$K$23),Model!B50+1)) -> 0.00072 | Q50: 23 | R50: 41 | S50: 1039494.353 | T50: 1000000 | U50: -54 | V50: -257.9722373 | W50: 0 | X50: =IF($D50="","",IFERROR(MIN(MAX(-(AI49+J50+I50+W50+V50)/(AO49-AI49),0),1),0)) -> 0 | Y50: 3499.644258 | Z50: 3499.294294 | AA50: 3515.939998 | AB50: 3524.862827 | AC50: 3586.58071 | AD50: 3618.136164 | AE50: 3616.863428 | AF50: 3725.223092 | AG50: 3675.556454 | AH50: =IF($D50="", "", MAX(AH49*(1-$X50),0)) -> 3724.437403 | AI50: =IF($D50="", "", MAX(AI49 + $I50 + $J50 + $W50 +$V50, 0)) -> 3724.042158 | AJ50: 1753.81964 | AK50: 39494.35331 | AL50: 228.0193552 | AM50: 2000 | AN50: -257.9722373 | AO50: 41464.40043 | AP50: -7.275957614e-12
B51: 2 | C51: 41 | D51: 24 | E51: Dec | F51: -0.03576362631 | G51: 0.3914338909 | H51: 0.13 | I51: =IF(D51="", "", IF(D51>=$N$25,0, H51*AVERAGE(AJ39:AJ50))) -> 227.9965532 | J51: 2000 | K51: -10 | L51: -100 | M51: -100 | N51: -4.169239698 | O51: =IF(D51="","",VLOOKUP($H$25,INDIRECT("'"&$J$25&"'!"&$K$23),Model!B51+1)) -> 0.00072 | Q51: 24 | R51: 41 | S51: 1041464.4 | T51: 1000000 | U51: -54 | V51: -258.1692397 | W51: 0 | X51: =IF($D51="","",IFERROR(MIN(MAX(-(AJ50+J51+I51+W51+V51)/(AO50-AJ50),0),1),0)) -> 0 | Y51: 3499.644258 | Z51: 3499.294294 | AA51: 3515.939998 | AB51: 3524.862827 | AC51: 3586.58071 | AD51: 3618.136164 | AE51: 3616.863428 | AF51: 3725.223092 | AG51: 3675.556454 | AH51: 3724.437403 | AI51: =IF($D51="", "", MAX(AI50*(1-$X51),0)) -> 3724.042158 | AJ51: =IF($D51="", "", MAX(AJ50 + $I51 + $J51 + $W51+$V51, 0)) -> 3723.646954 | AK51: 41464.40043 | AL51: 227.9965532 | AM51: 2000 | AN51: -258.1692397 | AO51: 43434.22774 | AP51: 0
B52: =IF(D52="","", B51+1) -> 3 | C52: 42 | D52: 25 | E52: Jan | F52: -0.05676676886 | G52: 0.299345731 | H52: 0.13 | I52: =IF(D52="", "", IF(D52>=$N$25,0, H52*AVERAGE(Y40:Y51))) -> 454.9537536 | J52: 2000 | K52: -10 | L52: -100 | M52: -100 | N52: -4.388918149 | O52: =IF(D52="","",VLOOKUP($H$25,INDIRECT("'"&$J$25&"'!"&$K$23),Model!B52+1)) -> 0.00083 | P52: =IF(D52="","",IF(RANDBETWEEN(0, 10000)/10000>O52, "No", "Yes")) -> No | Q52: 25 | R52: 42 | S52: 1043434.228 | T52: 1000000 | U52: -62.25 | V52: -266.6389181 | W52: 0 | X52: =IF($D52="","",IFERROR(MIN(MAX(-(Y51+J52+I52+W52+V52)/(AO51-Y51),0),1),0)) -> 0 | Y52: =IF($D52="", "", MAX($Y51 + $I52 + $J52 + $W52+ $V52, 0)) -> 5687.959094 | Z52: 3499.294294 | AA52: 3515.939998 | AB52: 3524.862827 | AC52: 3586.58071 | AD52: 3618.136164 | AE52: 3616.863428 | AF52: 3725.223092 | AG52: 3675.556454 | AH52: 3724.437403 | AI52: 3724.042158 | AJ52: =IF($D52="", "", MAX(AJ51*(1-$X52),0)) -> 3723.646954 | AK52: 43434.22774 | AL52: 454.9537536 | AM52: 2000 | AN52: -266.6389181 | AO52: 45622.54257 | AP52: 0
B53: =IF(D53="","",B52) -> 3 | C53: 42 | D53: 26 | E53: Feb | F53: 0.02275608434 | G53: 0.2835803631 | H53: 0.13 | I53: =IF(D53="", "", IF(D53>=$N$25,0, H53*AVERAGE(Z41:Z52))) -> 454.9082582 | J53: 2000 | K53: -10 | L53: -100 | M53: -100 | N53: -4.607745083 | O53: =IF(D53="","",VLOOKUP($H$25,INDIRECT("'"&$J$25&"'!"&$K$23),Model!B53+1)) -> 0.00083 | Q53: 26 | R53: 42 | S53: 1045622.543 | T53: 1000000 | U53: -62.25 | V53: -266.8577451 | W53: 0 | X53: =IF($D53="","",IFERROR(MIN(MAX(-(Z52+J53+I53+W53+V53)/(AO52-Z52),0),1),0)) -> 0 | Y53: =IF($D53="", "", MAX(Y52*(1-$X53),0)) -> 5687.959094 | Z53: =IF($D53="", "", MAX(Z52 + $I53 + $J53 + $W53 +$V53, 0)) -> 5687.344807 | AA53: 3515.939998 | AB53: 3524.862827 | AC53: 3586.58071 | AD53: 3618.136164 | AE53: 3616.863428 | AF53: 3725.223092 | AG53: 3675.556454 | AH53: 3724.437403 | AI53: 3724.042158 | AJ53: 3723.646954 | AK53: 45622.54257 | AL53: 454.9082582 | AM53: 2000 | AN53: -266.8577451 | AO53: 47810.59309 | AP53: 0
B54: 3 | C54: 42 | D54: 27 | E54: Mar | F54: 0.1382502723 | G54: 0.2673925375 | H54: 0.13 | I54: =IF(D54="", "", IF(D54>=$N$25,0, H54*AVERAGE(AA42:AA53))) -> 457.0721997 | J54: 2000 | K54: -10 | L54: -100 | M54: -100 | N54: -4.826766529 | O54: =IF(D54="","",VLOOKUP($H$25,INDIRECT("'"&$J$25&"'!"&$K$23),Model!B54+1)) -> 0.00083 | Q54: 27 | R54: 42 | S54: 1047810.593 | T54: 1000000 | U54: -62.25 | V54: -267.0767665 | W54: 0 | X54: =IF($D54="","",IFERROR(MIN(MAX(-(AA53+J54+I54+W54+V54)/(AO53-AA53),0),1),0)) -> 0 | Y54: 5687.959094 | Z54: =IF($D54="", "", MAX(Z53*(1-$X54),0)) -> 5687.344807 | AA54: =IF($D54="", "", MAX(AA53 + $I54 + $J54 + $W54+$V54, 0)) -> 5705.935431 | AB54: 3524.862827 | AC54: 3586.58071 | AD54: 3618.136164 | AE54: 3616.863428 | AF54: 3725.223092 | AG54: 3675.556454 | AH54: 3724.437403 | AI54: 3724.042158 | AJ54: 3723.646954 | AK54: 47810.59309 | AL54: 457.0721997 | AM54: 2000 | AN54: -267.0767665 | AO54: 50000.58852 | AP54: -1.455191523e-11
B55: 3 | C55: 42 | D55: 28 | E55: Apr | F55: 0.03078339333 | G55: 0.3682376034 | H55: 0.13 | I55: =IF(D55="", "", IF(D55>=$N$25,0, H55*AVERAGE(AB43:AB54))) -> 458.2321675 | J55: 2000 | K55: -10 | L55: -100 | M55: -100 | N55: -5.045882069 | O55: =IF(D55="","",VLOOKUP($H$25,INDIRECT("'"&$J$25&"'!"&$K$23),Model!B55+1)) -> 0.00083 | Q55: 28 | R55: 42 | S55: 1050000.589 | T55: 1000000 | U55: -62.25 | V55: -267.2958821 | W55: 0 | X55: =IF($D55="","",IFERROR(MIN(MAX(-(AB54+J55+I55+W55+V55)/(AO54-AB54),0),1),0)) -> 0 | Y55: 5687.959094 | Z55: 5687.344807 | AA55: =IF($D55="", "", MAX(AA54*(1-$X55),0)) -> 5705.935431 | AB55: =IF($D55="", "", MAX(AB54 + $I55 + $J55 + $W55+$V55, 0)) -> 5715.799112 | AC55: 3586.58071 | AD55: 3618.136164 | AE55: 3616.863428 | AF55: 3725.223092 | AG55: 3675.556454 | AH55: 3724.437403 | AI55: 3724.042158 | AJ55: 3723.646954 | AK55: 50000.58852 | AL55: 458.2321675 | AM55: 2000 | AN55: -267.2958821 | AO55: 52191.52481 | AP55: 1.455191523e-11
B56: 3 | C56: 42 | D56: 29 | E56: May | F56: -0.06634880252 | G56: 0.3684647096 | H56: 0.13 | I56: =IF(D56="", "", IF(D56>=$N$25,0, H56*AVERAGE(AC44:AC55))) -> 466.2554923 | J56: 2000 | K56: -10 | L56: -100 | M56: -100 | N56: -5.26577803 | O56: =IF(D56="","",VLOOKUP($H$25,INDIRECT("'"&$J$25&"'!"&$K$23),Model!B56+1)) -> 0.00083 | Q56: 29 | R56: 42 | S56: 1052191.525 | T56: 1000000 | U56: -62.25 | V56: -267.515778 | W56: 0 | X56: =IF($D56="","",IFERROR(MIN(MAX(-(AC55+J56+I56+W56+V56)/(AO55-AC55),0),1),0)) -> 0 | Y56: 5687.959094 | Z56: 5687.344807 | AA56: 5705.935431 | AB56: =IF($D56="", "", MAX(AB55*(1-$X56),0)) -> 5715.799112 | AC56: =IF($D56="", "", MAX(AC55 + $I56 + $J56 +$W56+$V56, 0)) -> 5785.320424 | AD56: 3618.136164 | AE56: 3616.863428 | AF56: 3725.223092 | AG56: 3675.556454 | AH56: 3724.437403 | AI56: 3724.042158 | AJ56: 3723.646954 | AK56: 52191.52481 | AL56: 466.2554923 | AM56: 2000 | AN56: -267.515778 | AO56: 54390.26452 | AP56: -7.275957614e-12
B57: 3 | C57: 42 | D57: 30 | E57: Jun | F57: 0.02939815489 | G57: 0.265220895 | H57: 0.13 | I57: =IF(D57="", "", IF(D57>=$N$25,0, H57*AVERAGE(AD45:AD56))) -> 470.3577013 | J57: 2000 | K57: -10 | L57: -100 | M57: -100 | N57: -5.486062222 | O57: =IF(D57="","",VLOOKUP($H$25,INDIRECT("'"&$J$25&"'!"&$K$23),Model!B57+1)) -> 0.00083 | Q57: 30 | R57: 42 | S57: 1054390.265 | T57: 1000000 | U57: -62.25 | V57: -267.7360622 | W57: 0 | X57: =IF($D57="","",IFERROR(MIN(MAX(-(AD56+J57+I57+W57+V57)/(AO56-AD56),0),1),0)) -> 0 | Y57: 5687.959094 | Z57: 5687.344807 | AA57: 5705.935431 | AB57: 5715.799112 | AC57: =IF($D57="", "", MAX(AC56*(1-$X57),0)) -> 5785.320424 | AD57: =IF($D57="", "", MAX(AD56+ $I57 + $J57 + $W57 +$V57, 0)) -> 5820.757803 | AE57: 3616.863428 | AF57: 3725.223092 | AG57: 3675.556454 | AH57: 3724.437403 | AI57: 3724.042158 | AJ57: 3723.646954 | AK57: 54390.26452 | AL57: 470.3577013 | AM57: 2000 | AN57: -267.7360622 | AO57: 56592.88616 | AP57: 1.455191523e-11
B58: 3 | C58: 42 | D58: 31 | E58: Jul | F58: -0.03817373983 | G58: 0.267663447 | H58: 0.13 | I58: =IF(D58="", "", IF(D58>=$N$25,0, H58*AVERAGE(AE46:AE57))) -> 470.1922456 | J58: 2000 | K58: -10 | L58: -100 | M58: -100 | N58: -5.706307841 | O58: =IF(D58="","",VLOOKUP($H$25,INDIRECT("'"&$J$25&"'!"&$K$23),Model!B58+1)) -> 0.00083 | Q58: 31 | R58: 42 | S58: 1056592.886 | T58: 1000000 | U58: -62.25 | V58: -267.9563078 | W58: 0 | X58: =IF($D58="","",IFERROR(MIN(MAX(-(AE57+J58+I58+W58+V58)/(AO57-AE57),0),1),0)) -> 0 | Y58: 5687.959094 | Z58: 5687.344807 | AA58: 5705.935431 | AB58: 5715.799112 | AC58: 5785.320424 | AD58: =IF($D58="", "", MAX(AD57*(1-$X58),0)) -> 5820.757803 | AE58: =IF($D58="", "", MAX(AE57 + $I58 + $J58 + $W58+$V58, 0)) -> 5819.099366 | AF58: 3725.223092 | AG58: 3675.556454 | AH58: 3724.437403 | AI58: 3724.042158 | AJ58: 3723.646954 | AK58: 56592.88616 | AL58: 470.1922456 | AM58: 2000 | AN58: -267.9563078 | AO58: 58795.1221 | AP58: -7.275957614e-12
B59: 3 | C59: 42 | D59: 32 | E59: Aug | F59: 0.03942680421 | G59: 0.1920475258 | H59: 0.13 | I59: =IF(D59="", "", IF(D59>=$N$25,0, H59*AVERAGE(AF47:AF58))) -> 484.279002 | J59: 2000 | K59: -10 | L59: -100 | M59: -100 | N59: -5.92794011 | O59: =IF(D59="","",VLOOKUP($H$25,INDIRECT("'"&$J$25&"'!"&$K$23),Model!B59+1)) -> 0.00083 | Q59: 32 | R59: 42 | S59: 1058795.122 | T59: 1000000 | U59: -62.25 | V59: -268.1779401 | W59: 0 | X59: =IF($D59="","",IFERROR(MIN(MAX(-(AF58+J59+I59+W59+V59)/(AO58-AF58),0),1),0)) -> 0 | Y59: 5687.959094 | Z59: 5687.344807 | AA59: 5705.935431 | AB59: 5715.799112 | AC59: 5785.320424 | AD59: 5820.757803 | AE59: =IF($D59="", "", MAX(AE58*(1-$X59),0)) -> 5819.099366 | AF59: =IF($D59="", "", MAX(AF58 + $I59 + $J59 + $W59 +$V59, 0)) -> 5941.324154 | AG59: 3675.556454 | AH59: 3724.437403 | AI59: 3724.042158 | AJ59: 3723.646954 | AK59: 58795.1221 | AL59: 484.279002 | AM59: 2000 | AN59: -268.1779401 | AO59: 61011.22316 | AP59: 7.275957614e-12
B60: 3 | C60: 42 | D60: 33 | E60: Sep | F60: -0.01011246516 | G60: 0.245897103 | H60: 0.13 | I60: =IF(D60="", "", IF(D60>=$N$25,0, H60*AVERAGE(AG48:AG59))) -> 477.822339 | J60: 2000 | K60: -10 | L60: -100 | M60: -100 | N60: -6.14890455 | O60: =IF(D60="","",VLOOKUP($H$25,INDIRECT("'"&$J$25&"'!"&$K$23),Model!B60+1)) -> 0.00083 | Q60: 33 | R60: 42 | S60: 1061011.223 | T60: 1000000 | U60: -62.25 | V60: -268.3989045 | W60: =IF(D60="","",IF(D60=$N$25,-(AK60+AL60+J60+V60),IF(OR(C60<$N$5,C60>=$N$5+$O$5),0,MIN(0,MIN(0,-1/(VLOOKUP($N$5+$O$5,$C$28:$D$1479,2,FALSE)-D60+120))*(AK60+AL60+V60-$O$20))))) -> 0 | X60: =IF($D60="","",IFERROR(MIN(MAX(-(AG59+J60+I60+W60+V60)/(AO59-AG59),0),1),0)) -> 0 | Y60: 5687.959094 | Z60: 5687.344807 | AA60: 5705.935431 | AB60: 5715.799112 | AC60: 5785.320424 | AD60: 5820.757803 | AE60: 5819.099366 | AF60: =IF($D60="", "", MAX(AF59*(1-$X60),0)) -> 5941.324154 | AG60: =IF($D60="", "", MAX(AG59 + $I60 + $J60 + $W60+$V60, 0)) -> 5884.979888 | AH60: 3724.437403 | AI60: 3724.042158 | AJ60: 3723.646954 | AK60: 61011.22316 | AL60: 477.822339 | AM60: 2000 | AN60: -268.3989045 | AO60: 63220.64659 | AP60: 0
B61: 3 | C61: 42 | D61: 34 | E61: Oct | F61: 0.04448313955 | G61: 0.1342383175 | H61: 0.13 | I61: =IF(D61="", "", IF(D61>=$N$25,0, H61*AVERAGE(AH49:AH60))) -> 484.1768625 | J61: 2000 | K61: -10 | L61: -100 | M61: -100 | N61: -6.370482346 | O61: =IF(D61="","",VLOOKUP($H$25,INDIRECT("'"&$J$25&"'!"&$K$23),Model!B61+1)) -> 0.00083 | Q61: 34 | R61: 42 | S61: 1063220.647 | T61: 1000000 | U61: -62.25 | V61: -268.6204823 | W61: 0 | X61: =IF($D61="","",IFERROR(MIN(MAX(-(AH60+J61+I61+W61+V61)/(AO60-AH60),0),1),0)) -> 0 | Y61: 5687.959094 | Z61: 5687.344807 | AA61: 5705.935431 | AB61: 5715.799112 | AC61: 5785.320424 | AD61: 5820.757803 | AE61: 5819.099366 | AF61: 5941.324154 | AG61: =IF($D61="", "", MAX(AG60*(1-$X61),0)) -> 5884.979888 | AH61: =IF($D61="", "", MAX(AH60 + $I61 + $J61 + $W61+$V61, 0)) -> 5939.993784 | AI61: 3724.042158 | AJ61: 3723.646954 | AK61: 63220.64659 | AL61: 484.1768625 | AM61: 2000 | AN61: -268.6204823 | AO61: 65436.20297 | AP61: -7.275957614e-12
B62: 3 | C62: 42 | D62: 35 | E62: Nov | F62: -0.001152750689 | G62: 0.113819781 | H62: 0.113819781 | I62: =IF(D62="", "", IF(D62>=$N$25,0, H62*AVERAGE(AI50:AI61))) -> 423.8696628 | J62: 2000 | K62: -10 | L62: -100 | M62: -100 | N62: -6.586007264 | O62: =IF(D62="","",VLOOKUP($H$25,INDIRECT("'"&$J$25&"'!"&$K$23),Model!B62+1)) -> 0.00083 | Q62: 35 | R62: 42 | S62: 1065436.203 | T62: 1000000 | U62: -62.25 | V62: -268.8360073 | W62: 0 | X62: =IF($D62="","",IFERROR(MIN(MAX(-(AI61+J62+I62+W62+V62)/(AO61-AI61),0),1),0)) -> 0 | Y62: 5687.959094 | Z62: 5687.344807 | AA62: 5705.935431 | AB62: 5715.799112 | AC62: 5785.320424 | AD62: 5820.757803 | AE62: 5819.099366 | AF62: 5941.324154 | AG62: 5884.979888 | AH62: =IF($D62="", "", MAX(AH61*(1-$X62),0)) -> 5939.993784 | AI62: =IF($D62="", "", MAX(AI61 + $I62 + $J62 + $W62 +$V62, 0)) -> 5879.075813 | AJ62: 3723.646954 | AK62: 65436.20297 | AL62: 423.8696628 | AM62: 2000 | AN62: -268.8360073 | AO62: 67591.23663 | AP62: 0
B63: 3 | C63: 42 | D63: 36 | E63: Dec | F63: 0.0006306198992 | G63: 0.08299089274 | H63: 0.08299089274 | I63: =IF(D63="", "", IF(D63>=$N$25,0, H63*AVERAGE(AJ51:AJ62))) -> 309.028785 | J63: 2000 | K63: -10 | L63: -100 | M63: -100 | N63: -6.790026541 | O63: =IF(D63="","",VLOOKUP($H$25,INDIRECT("'"&$J$25&"'!"&$K$23),Model!B63+1)) -> 0.00083 | Q63: 36 | R63: 42 | S63: 1067591.237 | T63: 1000000 | U63: -62.25 | V63: -269.0400265 | W63: 0 | X63: =IF($D63="","",IFERROR(MIN(MAX(-(AJ62+J63+I63+W63+V63)/(AO62-AJ62),0),1),0)) -> 0 | Y63: 5687.959094 | Z63: 5687.344807 | AA63: 5705.935431 | AB63: 5715.799112 | AC63: 5785.320424 | AD63: 5820.757803 | AE63: 5819.099366 | AF63: 5941.324154 | AG63: 5884.979888 | AH63: 5939.993784 | AI63: =IF($D63="", "", MAX(AI62*(1-$X63),0)) -> 5879.075813 | AJ63: =IF($D63="", "", MAX(AJ62 + $I63 + $J63 + $W63+$V63, 0)) -> 5763.635712 | AK63: 67591.23663 | AL63: 309.028785 | AM63: 2000 | AN63: -269.0400265 | AO63: 69631.22539 | AP63: 0
B64: =IF(D64="","", B63+1) -> 4 | C64: 43 | D64: 37 | E64: Jan | F64: 0.09752982075 | G64: 0.1238674229 | H64: 0.1238674229 | I64: =IF(D64="", "", IF(D64>=$N$25,0, H64*AVERAGE(Y52:Y63))) -> 704.5528344 | J64: 2000 | K64: -10 | L64: -100 | M64: -100 | N64: -7.033577822 | O64: =IF(D64="","",VLOOKUP($H$25,INDIRECT("'"&$J$25&"'!"&$K$23),Model!B64+1)) -> 0.00093 | P64: =IF(D64="","",IF(RANDBETWEEN(0, 10000)/10000>O64, "No", "Yes")) -> No | Q64: 37 | R64: 43 | S64: 1069631.225 | T64: 1000000 | U64: -69.75 | V64: -276.7835778 | W64: 0 | X64: =IF($D64="","",IFERROR(MIN(MAX(-(Y63+J64+I64+W64+V64)/(AO63-Y63),0),1),0)) -> 0 | Y64: =IF($D64="", "", MAX($Y63 + $I64 + $J64 + $W64+ $V64, 0)) -> 8115.72835 | Z64: 5687.344807 | AA64: 5705.935431 | AB64: 5715.799112 | AC64: 5785.320424 | AD64: 5820.757803 | AE64: 5819.099366 | AF64: 5941.324154 | AG64: 5884.979888 | AH64: 5939.993784 | AI64: 5879.075813 | AJ64: =IF($D64="", "", MAX(AJ63*(1-$X64),0)) -> 5763.635712 | AK64: 69631.22539 | AL64: 704.5528344 | AM64: 2000 | AN64: -276.7835778 | AO64: 72058.99464 | AP64: -1.455191523e-11
B65: =IF(D65="","",B64) -> 4 | C65: 43 | D65: 38 | E65: Feb | F65: -0.08890437889 | G65: 0.3077126319 | H65: 0.13 | I65: =IF(D65="", "", IF(D65>=$N$25,0, H65*AVERAGE(Z53:Z64))) -> 739.3548249 | J65: 2000 | K65: -10 | L65: -100 | M65: -100 | N65: -7.279834947 | O65: =IF(D65="","",VLOOKUP($H$25,INDIRECT("'"&$J$25&"'!"&$K$23),Model!B65+1)) -> 0.00093 | Q65: 38 | R65: 43 | S65: 1072058.995 | T65: 1000000 | U65: -69.75 | V65: -277.0298349 | W65: 0 | X65: =IF($D65="","",IFERROR(MIN(MAX(-(Z64+J65+I65+W65+V65)/(AO64-Z64),0),1),0)) -> 0 | Y65: =IF($D65="", "", MAX(Y64*(1-$X65),0)) -> 8115.72835 | Z65: =IF($D65="", "", MAX(Z64 + $I65 + $J65 + $W65 +$V65, 0)) -> 8149.669797 | AA65: 5705.935431 | AB65: 5715.799112 | AC65: 5785.320424 | AD65: 5820.757803 | AE65: 5819.099366 | AF65: 5941.324154 | AG65: 5884.979888 | AH65: 5939.993784 | AI65: 5879.075813 | AJ65: 5763.635712 | AK65: 72058.99464 | AL65: 739.3548249 | AM65: 2000 | AN65: -277.0298349 | AO65: 74521.31963 | AP65: 0
B66: 4 | C66: 43 | D66: 39 | E66: Mar | F66: -0.03950578876 | G66: 0.1649417401 | H66: 0.13 | I66: =IF(D66="", "", IF(D66>=$N$25,0, H66*AVERAGE(AA54:AA65))) -> 741.771606 | J66: 2000 | K66: -10 | L66: -100 | M66: -100 | N66: -7.526309124 | O66: =IF(D66="","",VLOOKUP($H$25,INDIRECT("'"&$J$25&"'!"&$K$23),Model!B66+1)) -> 0.00093 | Q66: 39 | R66: 43 | S66: 1074521.32 | T66: 1000000 | U66: -69.75 | V66: -277.2763091 | W66: 0 | X66: =IF($D66="","",IFERROR(MIN(MAX(-(AA65+J66+I66+W66+V66)/(AO65-AA65),0),1),0)) -> 0 | Y66: 8115.72835 | Z66: =IF($D66="", "", MAX(Z65*(1-$X66),0)) -> 8149.669797 | AA66: =IF($D66="", "", MAX(AA65 + $I66 + $J66 + $W66+$V66, 0)) -> 8170.430728 | AB66: 5715.799112 | AC66: 5785.320424 | AD66: 5820.757803 | AE66: 5819.099366 | AF66: 5941.324154 | AG66: 5884.979888 | AH66: 5939.993784 | AI66: 5879.075813 | AJ66: 5763.635712 | AK66: 74521.31963 | AL66: 741.771606 | AM66: 2000 | AN66: -277.2763091 | AO66: 76985.81493 | AP66: 0
B67: 4 | C67: 43 | D67: 40 | E67: Apr | F67: 0.05990899993 | G67: -0.01698262231 | H67: 0 | I67: =IF(D67="", "", IF(D67>=$N$25,0, H67*AVERAGE(AB55:AB66))) -> 0 | J67: 2000 | K67: -10 | L67: -100 | M67: -100 | N67: -7.698581493 | O67: =IF(D67="","",VLOOKUP($H$25,INDIRECT("'"&$J$25&"'!"&$K$23),Model!B67+1)) -> 0.00093 | Q67: 40 | R67: 43 | S67: 1076985.815 | T67: 1000000 | U67: -69.75 | V67: -277.4485815 | W67: 0 | X67: =IF($D67="","",IFERROR(MIN(MAX(-(AB66+J67+I67+W67+V67)/(AO66-AB66),0),1),0)) -> 0 | Y67: 8115.72835 | Z67: 8149.669797 | AA67: =IF($D67="", "", MAX(AA66*(1-$X67),0)) -> 8170.430728 | AB67: =IF($D67="", "", MAX(AB66 + $I67 + $J67 + $W67+$V67, 0)) -> 7438.350531 | AC67: 5785.320424 | AD67: 5820.757803 | AE67: 5819.099366 | AF67: 5941.324154 | AG67: 5884.979888 | AH67: 5939.993784 | AI67: 5879.075813 | AJ67: 5763.635712 | AK67: 76985.81493 | AL67: 0 | AM67: 2000 | AN67: -277.4485815 | AO67: 78708.36635 | AP67: 1.455191523e-11
B68: 4 | C68: 43 | D68: 41 | E68: May | F68: -0.009736048216 | G68: 0.01079331744 | H68: 0.01079331744 | I68: =IF(D68="", "", IF(D68>=$N$25,0, H68*AVERAGE(AC56:AC67))) -> 62.44279982 | J68: 2000 | K68: -10 | L68: -100 | M68: -100 | N68: -7.877080915 | O68: =IF(D68="","",VLOOKUP($H$25,INDIRECT("'"&$J$25&"'!"&$K$23),Model!B68+1)) -> 0.00093 | Q68: 41 | R68: 43 | S68: 1078708.366 | T68: 1000000 | U68: -69.75 | V68: -277.6270809 | W68: 0 | X68: =IF($D68="","",IFERROR(MIN(MAX(-(AC67+J68+I68+W68+V68)/(AO67-AC67),0),1),0)) -> 0 | Y68: 8115.72835 | Z68: 8149.669797 | AA68: 8170.430728 | AB68: =IF($D68="", "", MAX(AB67*(1-$X68),0)) -> 7438.350531 | AC68: =IF($D68="", "", MAX(AC67 + $I68 + $J68 +$W68+$V68, 0)) -> 7570.136143 | AD68: 5820.757803 | AE68: 5819.099366 | AF68: 5941.324154 | AG68: 5884.979888 | AH68: 5939.993784 | AI68: 5879.075813 | AJ68: 5763.635712 | AK68: 78708.36635 | AL68: 62.44279982 | AM68: 2000 | AN68: -277.6270809 | AO68: 80493.18207 | AP68: 0
B69: 4 | C69: 43 | D69: 42 | E69: Jun | F69: 0.03990879655 | G69: 0.07208365143 | H69: 0.07208365143 | I69: =IF(D69="", "", IF(D69>=$N$25,0, H69*AVERAGE(AD57:AD68))) -> 419.5814765 | J69: 2000 | K69: -10 | L69: -100 | M69: -100 | N69: -8.091276355 | O69: =IF(D69="","",VLOOKUP($H$25,INDIRECT("'"&$J$25&"'!"&$K$23),Model!B69+1)) -> 0.00093 | Q69: 42 | R69: 43 | S69: 1080493.182 | T69: 1000000 | U69: -69.75 | V69: -277.8412764 | W69: 0 | X69: =IF($D69="","",IFERROR(MIN(MAX(-(AD68+J69+I69+W69+V69)/(AO68-AD68),0),1),0)) -> 0 | Y69: 8115.72835 | Z69: 8149.669797 | AA69: 8170.430728 | AB69: 7438.350531 | AC69: =IF($D69="", "", MAX(AC68*(1-$X69),0)) -> 7570.136143 | AD69: =IF($D69="", "", MAX(AD68+ $I69 + $J69 + $W69 +$V69, 0)) -> 7962.498003 | AE69: 5819.099366 | AF69: 5941.324154 | AG69: 5884.979888 | AH69: 5939.993784 | AI69: 5879.075813 | AJ69: 5763.635712 | AK69: 80493.18207 | AL69: 419.5814765 | AM69: 2000 | AN69: -277.8412764 | AO69: 82634.92227 | AP69: 1.455191523e-11
B70: 4 | C70: 43 | D70: 43 | E70: Jul | F70: -0.03118533565 | G70: 0.08303013219 | H70: 0.08303013219 | I70: =IF(D70="", "", IF(D70>=$N$25,0, H70*AVERAGE(AE58:AE69))) -> 483.1605896 | J70: 2000 | K70: -10 | L70: -100 | M70: -100 | N70: -8.311808286 | O70: =IF(D70="","",VLOOKUP($H$25,INDIRECT("'"&$J$25&"'!"&$K$23),Model!B70+1)) -> 0.00093 | Q70: 43 | R70: 43 | S70: 1082634.922 | T70: 1000000 | U70: -69.75 | V70: -278.0618083 | W70: 0 | X70: =IF($D70="","",IFERROR(MIN(MAX(-(AE69+J70+I70+W70+V70)/(AO69-AE69),0),1),0)) -> 0 | Y70: 8115.72835 | Z70: 8149.669797 | AA70: 8170.430728 | AB70: 7438.350531 | AC70: 7570.136143 | AD70: =IF($D70="", "", MAX(AD69*(1-$X70),0)) -> 7962.498003 | AE70: =IF($D70="", "", MAX(AE69 + $I70 + $J70 + $W70+$V70, 0)) -> 8024.198147 | AF70: 5941.324154 | AG70: 5884.979888 | AH70: 5939.993784 | AI70: 5879.075813 | AJ70: 5763.635712 | AK70: 82634.92227 | AL70: 483.1605896 | AM70: 2000 | AN70: -278.0618083 | AO70: 84840.02105 | AP70: 1.455191523e-11
B71: 4 | C71: 43 | D71: 44 | E71: Aug | F71: -0.02930770174 | G71: 0.09089917529 | H71: 0.09089917529 | I71: =IF(D71="", "", IF(D71>=$N$25,0, H71*AVERAGE(AF59:AF70))) -> 540.0614657 | J71: 2000 | K71: -10 | L71: -100 | M71: -100 | N71: -8.538008252 | O71: =IF(D71="","",VLOOKUP($H$25,INDIRECT("'"&$J$25&"'!"&$K$23),Model!B71+1)) -> 0.00093 | Q71: 44 | R71: 43 | S71: 1084840.021 | T71: 1000000 | U71: -69.75 | V71: -278.2880083 | W71: 0 | X71: =IF($D71="","",IFERROR(MIN(MAX(-(AF70+J71+I71+W71+V71)/(AO70-AF70),0),1),0)) -> 0 | Y71: 8115.72835 | Z71: 8149.669797 | AA71: 8170.430728 | AB71: 7438.350531 | AC71: 7570.136143 | AD71: 7962.498003 | AE71: =IF($D71="", "", MAX(AE70*(1-$X71),0)) -> 8024.198147 | AF71: =IF($D71="", "", MAX(AF70 + $I71 + $J71 + $W71 +$V71, 0)) -> 8203.097611 | AG71: 5884.979888 | AH71: 5939.993784 | AI71: 5879.075813 | AJ71: 5763.635712 | AK71: 84840.02105 | AL71: 540.0614657 | AM71: 2000 | AN71: -278.2880083 | AO71: 87101.79451 | AP71: 0
B72: 4 | C72: 43 | D72: 45 | E72: Sep | F72: -0.03656964605 | G72: 0.01876093953 | H72: 0.01876093953 | I72: =IF(D72="", "", IF(D72>=$N$25,0, H72*AVERAGE(AG60:AG71))) -> 110.4077518 | J72: 2000 | K72: -10 | L72: -100 | M72: -100 | N72: -8.721220226 | O72: =IF(D72="","",VLOOKUP($H$25,INDIRECT("'"&$J$25&"'!"&$K$23),Model!B72+1)) -> 0.00093 | Q72: 45 | R72: 43 | S72: 1087101.795 | T72: 1000000 | U72: -69.75 | V72: -278.4712202 | W72: 0 | X72: =IF($D72="","",IFERROR(MIN(MAX(-(AG71+J72+I72+W72+V72)/(AO71-AG71),0),1),0)) -> 0 | Y72: 8115.72835 | Z72: 8149.669797 | AA72: 8170.430728 | AB72: 7438.350531 | AC72: 7570.136143 | AD72: 7962.498003 | AE72: 8024.198147 | AF72: =IF($D72="", "", MAX(AF71*(1-$X72),0)) -> 8203.097611 | AG72: =IF($D72="", "", MAX(AG71 + $I72 + $J72 + $W72+$V72, 0)) -> 7716.91642 | AH72: 5939.993784 | AI72: 5879.075813 | AJ72: 5763.635712 | AK72: 87101.79451 | AL72: 110.4077518 | AM72: 2000 | AN72: -278.4712202 | AO72: 88933.73104 | AP72: -1.455191523e-11
B73: 4 | C73: 43 | D73: 46 | E73: Oct | F73: -0.03585296899 | G73: -0.008467954168 | H73: 0 | I73: =IF(D73="", "", IF(D73>=$N$25,0, H73*AVERAGE(AH61:AH72))) -> 0 | J73: 2000 | K73: -10 | L73: -100 | M73: -100 | N73: -8.893373104 | O73: =IF(D73="","",VLOOKUP($H$25,INDIRECT("'"&$J$25&"'!"&$K$23),Model!B73+1)) -> 0.00093 | Q73: 46 | R73: 43 | S73: 1088933.731 | T73: 1000000 | U73: -69.75 | V73: -278.6433731 | W73: 0 | X73: =IF($D73="","",IFERROR(MIN(MAX(-(AH72+J73+I73+W73+V73)/(AO72-AH72),0),1),0)) -> 0 | Y73: 8115.72835 | Z73: 8149.669797 | AA73: 8170.430728 | AB73: 7438.350531 | AC73: 7570.136143 | AD73: 7962.498003 | AE73: 8024.198147 | AF73: 8203.097611 | AG73: =IF($D73="", "", MAX(AG72*(1-$X73),0)) -> 7716.91642 | AH73: =IF($D73="", "", MAX(AH72 + $I73 + $J73 + $W73+$V73, 0)) -> 7661.35041 | AI73: 5879.075813 | AJ73: 5763.635712 | AK73: 88933.73104 | AL73: 0 | AM73: 2000 | AN73: -278.6433731 | AO73: 90655.08767 | AP73: -1.455191523e-11
B74: 4 | C74: 43 | D74: 47 | E74: Nov | F74: 0.09514594715 | G74: -0.08473134517 | H74: 0 | I74: =IF(D74="", "", IF(D74>=$N$25,0, H74*AVERAGE(AI62:AI73))) -> 0 | J74: 2000 | K74: -10 | L74: -100 | M74: -100 | N74: -9.065508767 | O74: =IF(D74="","",VLOOKUP($H$25,INDIRECT("'"&$J$25&"'!"&$K$23),Model!B74+1)) -> 0.00093 | Q74: 47 | R74: 43 | S74: 1090655.088 | T74: 1000000 | U74: -69.75 | V74: -278.8155088 | W74: 0 | X74: =IF($D74="","",IFERROR(MIN(MAX(-(AI73+J74+I74+W74+V74)/(AO73-AI73),0),1),0)) -> 0 | Y74: 8115.72835 | Z74: 8149.669797 | AA74: 8170.430728 | AB74: 7438.350531 | AC74: 7570.136143 | AD74: 7962.498003 | AE74: 8024.198147 | AF74: 8203.097611 | AG74: 7716.91642 | AH74: =IF($D74="", "", MAX(AH73*(1-$X74),0)) -> 7661.35041 | AI74: =IF($D74="", "", MAX(AI73 + $I74 + $J74 + $W74 +$V74, 0)) -> 7600.260305 | AJ74: 5763.635712 | AK74: 90655.08767 | AL74: 0 | AM74: 2000 | AN74: -278.8155088 | AO74: 92376.27216 | AP74: 0
B75: 4 | C75: 43 | D75: 48 | E75: Dec | F75: 0.06812280626 | G75: 0.003509554223 | H75: 0.003509554223 | I75: =IF(D75="", "", IF(D75>=$N$25,0, H75*AVERAGE(AJ63:AJ74))) -> 20.22779206 | J75: 2000 | K75: -10 | L75: -100 | M75: -100 | N75: -9.239649995 | O75: =IF(D75="","",VLOOKUP($H$25,INDIRECT("'"&$J$25&"'!"&$K$23),Model!B75+1)) -> 0.00093 | Q75: 48 | R75: 43 | S75: 1092376.272 | T75: 1000000 | U75: -69.75 | V75: -278.98965 | W75: 0 | X75: =IF($D75="","",IFERROR(MIN(MAX(-(AJ74+J75+I75+W75+V75)/(AO74-AJ74),0),1),0)) -> 0 | Y75: 8115.72835 | Z75: 8149.669797 | AA75: 8170.430728 | AB75: 7438.350531 | AC75: 7570.136143 | AD75: 7962.498003 | AE75: 8024.198147 | AF75: 8203.097611 | AG75: 7716.91642 | AH75: 7661.35041 | AI75: =IF($D75="", "", MAX(AI74*(1-$X75),0)) -> 7600.260305 | AJ75: =IF($D75="", "", MAX(AJ74 + $I75 + $J75 + $W75+$V75, 0)) -> 7504.873854 | AK75: 92376.27216 | AL75: 20.22779206 | AM75: 2000 | AN75: -278.98965 | AO75: 94117.5103 | AP75: 1.455191523e-11
B76: =IF(D76="","", B75+1) -> 5 | C76: 44 | D76: 49 | E76: Jan | F76: -0.02835161843 | G76: 0.0711959237 | H76: 0.0711959237 | I76: =IF(D76="", "", IF(D76>=$N$25,0, H76*AVERAGE(Y64:Y75))) -> 577.8067764 | J76: 2000 | K76: -10 | L76: -100 | M76: -100 | N76: -9.469531708 | O76: =IF(D76="","",VLOOKUP($H$25,INDIRECT("'"&$J$25&"'!"&$K$23),Model!B76+1)) -> 0.00106 | P76: =IF(D76="","",IF(RANDBETWEEN(0, 10000)/10000>O76, "No", "Yes")) -> No | Q76: 49 | R76: 44 | S76: 1094117.51 | T76: 1000000 | U76: -79.5 | V76: -288.9695317 | W76: 0 | X76: =IF($D76="","",IFERROR(MIN(MAX(-(Y75+J76+I76+W76+V76)/(AO75-Y75),0),1),0)) -> 0 | Y76: =IF($D76="", "", MAX($Y75 + $I76 + $J76 + $W76+ $V76, 0)) -> 10404.5656 | Z76: 8149.669797 | AA76: 8170.430728 | AB76: 7438.350531 | AC76: 7570.136143 | AD76: 7962.498003 | AE76: 8024.198147 | AF76: 8203.097611 | AG76: 7716.91642 | AH76: 7661.35041 | AI76: 7600.260305 | AJ76: =IF($D76="", "", MAX(AJ75*(1-$X76),0)) -> 7504.873854 | AK76: 94117.5103 | AL76: 577.8067764 | AM76: 2000 | AN76: -288.9695317 | AO76: 96406.34754 | AP76: 1.455191523e-11
B77: =IF(D77="","",B76) -> 5 | C77: 44 | D77: 50 | E77: Feb | F77: -0.09330494649 | G77: -0.05166514301 | H77: 0 | I77: =IF(D77="", "", IF(D77>=$N$25,0, H77*AVERAGE(Z65:Z76))) -> 0 | J77: 2000 | K77: -10 | L77: -100 | M77: -100 | N77: -9.640634754 | O77: =IF(D77="","",VLOOKUP($H$25,INDIRECT("'"&$J$25&"'!"&$K$23),Model!B77+1)) -> 0.00106 | Q77: 50 | R77: 44 | S77: 1096406.348 | T77: 1000000 | U77: -79.5 | V77: -289.1406348 | W77: 0 | X77: =IF($D77="","",IFERROR(MIN(MAX(-(Z76+J77+I77+W77+V77)/(AO76-Z76),0),1),0)) -> 0 | Y77: =IF($D77="", "", MAX(Y76*(1-$X77),0)) -> 10404.5656 | Z77: =IF($D77="", "", MAX(Z76 + $I77 + $J77 + $W77 +$V77, 0)) -> 9860.529162 | AA77: 8170.430728 | AB77: 7438.350531 | AC77: 7570.136143 | AD77: 7962.498003 | AE77: 8024.198147 | AF77: 8203.097611 | AG77: 7716.91642 | AH77: 7661.35041 | AI77: 7600.260305 | AJ77: 7504.873854 | AK77: 96406.34754 | AL77: 0 | AM77: 2000 | AN77: -289.1406348 | AO77: 98117.20691 | AP77: 1.455191523e-11
B78: 5 | C78: 44 | D78: 51 | E78: Mar | F78: -0.024155618 | G78: -0.05624557512 | H78: 0 | I78: =IF(D78="", "", IF(D78>=$N$25,0, H78*AVERAGE(AA66:AA77))) -> 0 | J78: 2000 | K78: -10 | L78: -100 | M78: -100 | N78: -9.811720691 | O78: =IF(D78="","",VLOOKUP($H$25,INDIRECT("'"&$J$25&"'!"&$K$23),Model!B78+1)) -> 0.00106 | Q78: 51 | R78: 44 | S78: 1098117.207 | T78: 1000000 | U78: -79.5 | V78: -289.3117207 | W78: 0 | X78: =IF($D78="","",IFERROR(MIN(MAX(-(AA77+J78+I78+W78+V78)/(AO77-AA77),0),1),0)) -> 0 | Y78: 10404.5656 | Z78: =IF($D78="", "", MAX(Z77*(1-$X78),0)) -> 9860.529162 | AA78: =IF($D78="", "", MAX(AA77 + $I78 + $J78 + $W78+$V78, 0)) -> 9881.119007 | AB78: 7438.350531 | AC78: 7570.136143 | AD78: 7962.498003 | AE78: 8024.198147 | AF78: 8203.097611 | AG78: 7716.91642 | AH78: 7661.35041 | AI78: 7600.260305 | AJ78: 7504.873854 | AK78: 98117.20691 | AL78: 0 | AM78: 2000 | AN78: -289.3117207 | AO78: 99827.89519 | AP78: 0
B79: 5 | C79: 44 | D79: 52 | E79: Apr | F79: -0.003644022772 | G79: -0.04116293182 | H79: 0 | I79: =IF(D79="", "", IF(D79>=$N$25,0, H79*AVERAGE(AB67:AB78))) -> 0 | J79: 2000 | K79: -10 | L79: -100 | M79: -100 | N79: -9.982789519 | O79: =IF(D79="","",VLOOKUP($H$25,INDIRECT("'"&$J$25&"'!"&$K$23),Model!B79+1)) -> 0.00106 | Q79: 52 | R79: 44 | S79: 1099827.895 | T79: 1000000 | U79: -79.5 | V79: -289.4827895 | W79: 0 | X79: =IF($D79="","",IFERROR(MIN(MAX(-(AB78+J79+I79+W79+V79)/(AO78-AB78),0),1),0)) -> 0 | Y79: 10404.5656 | Z79: 9860.529162 | AA79: =IF($D79="", "", MAX(AA78*(1-$X79),0)) -> 9881.119007 | AB79: =IF($D79="", "", MAX(AB78 + $I79 + $J79 + $W79+$V79, 0)) -> 9148.867741 | AC79: 7570.136143 | AD79: 7962.498003 | AE79: 8024.198147 | AF79: 8203.097611 | AG79: 7716.91642 | AH79: 7661.35041 | AI79: 7600.260305 | AJ79: 7504.873854 | AK79: 99827.89519 | AL79: 0 | AM79: 2000 | AN79: -289.4827895 | AO79: 101538.4124 | AP79: 0
B80: 5 | C80: 44 | D80: 53 | E80: May | F80: -0.02056651121 | G80: -0.09865559767 | H80: 0 | I80: =IF(D80="", "", IF(D80>=$N$25,0, H80*AVERAGE(AC68:AC79))) -> 0 | J80: 2000 | K80: -10 | L80: -100 | M80: -100 | N80: -10.15384124 | O80: =IF(D80="","",VLOOKUP($H$25,INDIRECT("'"&$J$25&"'!"&$K$23),Model!B80+1)) -> 0.00106 | Q80: 53 | R80: 44 | S80: 1101538.412 | T80: 1000000 | U80: -79.5 | V80: -289.6538412 | W80: 0 | X80: =IF($D80="","",IFERROR(MIN(MAX(-(AC79+J80+I80+W80+V80)/(AO79-AC79),0),1),0)) -> 0 | Y80: 10404.5656 | Z80: 9860.529162 | AA80: 9881.119007 | AB80: =IF($D80="", "", MAX(AB79*(1-$X80),0)) -> 9148.867741 | AC80: =IF($D80="", "", MAX(AC79 + $I80 + $J80 +$W80+$V80, 0)) -> 9280.482302 | AD80: 7962.498003 | AE80: 8024.198147 | AF80: 8203.097611 | AG80: 7716.91642 | AH80: 7661.35041 | AI80: 7600.260305 | AJ80: 7504.873854 | AK80: 101538.4124 | AL80: 0 | AM80: 2000 | AN80: -289.6538412 | AO80: 103248.7586 | AP80: 0
B81: 5 | C81: 44 | D81: 54 | E81: Jun | F81: -0.04056993137 | G81: -0.1085135524 | H81: 0 | I81: =IF(D81="", "", IF(D81>=$N$25,0, H81*AVERAGE(AD69:AD80))) -> 0 | J81: 2000 | K81: -10 | L81: -100 | M81: -100 | N81: -10.32487586 | O81: =IF(D81="","",VLOOKUP($H$25,INDIRECT("'"&$J$25&"'!"&$K$23),Model!B81+1)) -> 0.00106 | Q81: 54 | R81: 44 | S81: 1103248.759 | T81: 1000000 | U81: -79.5 | V81: -289.8248759 | W81: 0 | X81: =IF($D81="","",IFERROR(MIN(MAX(-(AD80+J81+I81+W81+V81)/(AO80-AD80),0),1),0)) -> 0 | Y81: 10404.5656 | Z81: 9860.529162 | AA81: 9881.119007 | AB81: 9148.867741 | AC81: =IF($D81="", "", MAX(AC80*(1-$X81),0)) -> 9280.482302 | AD81: =IF($D81="", "", MAX(AD80+ $I81 + $J81 + $W81 +$V81, 0)) -> 9672.673127 | AE81: 8024.198147 | AF81: 8203.097611 | AG81: 7716.91642 | AH81: 7661.35041 | AI81: 7600.260305 | AJ81: 7504.873854 | AK81: 103248.7586 | AL81: 0 | AM81: 2000 | AN81: -289.8248759 | AO81: 104958.9337 | AP81: 0
B82: 5 | C82: 44 | D82: 55 | E82: Jul | F82: -0.03059466647 | G82: -0.1775058481 | H82: 0 | I82: =IF(D82="", "", IF(D82>=$N$25,0, H82*AVERAGE(AE70:AE81))) -> 0 | J82: 2000 | K82: -10 | L82: -100 | M82: -100 | N82: -10.49589337 | O82: =IF(D82="","",VLOOKUP($H$25,INDIRECT("'"&$J$25&"'!"&$K$23),Model!B82+1)) -> 0.00106 | Q82: 55 | R82: 44 | S82: 1104958.934 | T82: 1000000 | U82: -79.5 | V82: -289.9958934 | W82: 0 | X82: =IF($D82="","",IFERROR(MIN(MAX(-(AE81+J82+I82+W82+V82)/(AO81-AE81),0),1),0)) -> 0 | Y82: 10404.5656 | Z82: 9860.529162 | AA82: 9881.119007 | AB82: 9148.867741 | AC82: 9280.482302 | AD82: =IF($D82="", "", MAX(AD81*(1-$X82),0)) -> 9672.673127 | AE82: =IF($D82="", "", MAX(AE81 + $I82 + $J82 + $W82+$V82, 0)) -> 9734.202254 | AF82: 8203.097611 | AG82: 7716.91642 | AH82: 7661.35041 | AI82: 7600.260305 | AJ82: 7504.873854 | AK82: 104958.9337 | AL82: 0 | AM82: 2000 | AN82: -289.9958934 | AO82: 106668.9378 | AP82: 0
B83: 5 | C83: 44 | D83: 56 | E83: Aug | F83: -0.02344862203 | G83: -0.177004388 | H83: 0 | I83: =IF(D83="", "", IF(D83>=$N$25,0, H83*AVERAGE(AF71:AF82))) -> 0 | J83: 2000 | K83: -10 | L83: -100 | M83: -100 | N83: -10.66689378 | O83: =IF(D83="","",VLOOKUP($H$25,INDIRECT("'"&$J$25&"'!"&$K$23),Model!B83+1)) -> 0.00106 | Q83: 56 | R83: 44 | S83: 1106668.938 | T83: 1000000 | U83: -79.5 | V83: -290.1668938 | W83: 0 | X83: =IF($D83="","",IFERROR(MIN(MAX(-(AF82+J83+I83+W83+V83)/(AO82-AF82),0),1),0)) -> 0 | Y83: 10404.5656 | Z83: 9860.529162 | AA83: 9881.119007 | AB83: 9148.867741 | AC83: 9280.482302 | AD83: 9672.673127 | AE83: =IF($D83="", "", MAX(AE82*(1-$X83),0)) -> 9734.202254 | AF83: =IF($D83="", "", MAX(AF82 + $I83 + $J83 + $W83 +$V83, 0)) -> 9912.930718 | AG83: 7716.91642 | AH83: 7661.35041 | AI83: 7600.260305 | AJ83: 7504.873854 | AK83: 106668.9378 | AL83: 0 | AM83: 2000 | AN83: -290.1668938 | AO83: 108378.7709 | AP83: 0
B84: 5 | C84: 44 | D84: 57 | E84: Sep | F84: 0.05059552653 | G84: -0.1720368026 | H84: 0 | I84: =IF(D84="", "", IF(D84>=$N$25,0, H84*AVERAGE(AG72:AG83))) -> 0 | J84: 2000 | K84: -10 | L84: -100 | M84: -100 | N84: -10.83787709 | O84: =IF(D84="","",VLOOKUP($H$25,INDIRECT("'"&$J$25&"'!"&$K$23),Model!B84+1)) -> 0.00106 | Q84: 57 | R84: 44 | S84: 1108378.771 | T84: 1000000 | U84: -79.5 | V84: -290.3378771 | W84: 0 | X84: =IF($D84="","",IFERROR(MIN(MAX(-(AG83+J84+I84+W84+V84)/(AO83-AG83),0),1),0)) -> 0 | Y84: 10404.5656 | Z84: 9860.529162 | AA84: 9881.119007 | AB84: 9148.867741 | AC84: 9280.482302 | AD84: 9672.673127 | AE84: 9734.202254 | AF84: =IF($D84="", "", MAX(AF83*(1-$X84),0)) -> 9912.930718 | AG84: =IF($D84="", "", MAX(AG83 + $I84 + $J84 + $W84+$V84, 0)) -> 9426.578543 | AH84: 7661.35041 | AI84: 7600.260305 | AJ84: 7504.873854 | AK84: 108378.7709 | AL84: 0 | AM84: 2000 | AN84: -290.3378771 | AO84: 110088.433 | AP84: 0
B85: 5 | C85: 44 | D85: 58 | E85: Oct | F85: 0.007671436318 | G85: -0.09712785386 | H85: 0 | I85: =IF(D85="", "", IF(D85>=$N$25,0, H85*AVERAGE(AH73:AH84))) -> 0 | J85: 2000 | K85: -10 | L85: -100 | M85: -100 | N85: -11.0088433 | O85: =IF(D85="","",VLOOKUP($H$25,INDIRECT("'"&$J$25&"'!"&$K$23),Model!B85+1)) -> 0.00106 | Q85: 58 | R85: 44 | S85: 1110088.433 | T85: 1000000 | U85: -79.5 | V85: -290.5088433 | W85: 0 | X85: =IF($D85="","",IFERROR(MIN(MAX(-(AH84+J85+I85+W85+V85)/(AO84-AH84),0),1),0)) -> 0 | Y85: 10404.5656 | Z85: 9860.529162 | AA85: 9881.119007 | AB85: 9148.867741 | AC85: 9280.482302 | AD85: 9672.673127 | AE85: 9734.202254 | AF85: 9912.930718 | AG85: =IF($D85="", "", MAX(AG84*(1-$X85),0)) -> 9426.578543 | AH85: =IF($D85="", "", MAX(AH84 + $I85 + $J85 + $W85+$V85, 0)) -> 9370.841567 | AI85: 7600.260305 | AJ85: 7504.873854 | AK85: 110088.433 | AL85: 0 | AM85: 2000 | AN85: -290.5088433 | AO85: 111797.9242 | AP85: 1.455191523e-11
B86: 5 | C86: 44 | D86: 59 | E86: Nov | F86: 0.01194400366 | G86: -0.05636957533 | H86: 0 | I86: =IF(D86="", "", IF(D86>=$N$25,0, H86*AVERAGE(AI74:AI85))) -> 0 | J86: 2000 | K86: -10 | L86: -100 | M86: -100 | N86: -11.17979242 | O86: =IF(D86="","",VLOOKUP($H$25,INDIRECT("'"&$J$25&"'!"&$K$23),Model!B86+1)) -> 0.00106 | Q86: 59 | R86: 44 | S86: 1111797.924 | T86: 1000000 | U86: -79.5 | V86: -290.6797924 | W86: 0 | X86: =IF($D86="","",IFERROR(MIN(MAX(-(AI85+J86+I86+W86+V86)/(AO85-AI85),0),1),0)) -> 0 | Y86: 10404.5656 | Z86: 9860.529162 | AA86: 9881.119007 | AB86: 9148.867741 | AC86: 9280.482302 | AD86: 9672.673127 | AE86: 9734.202254 | AF86: 9912.930718 | AG86: 9426.578543 | AH86: =IF($D86="", "", MAX(AH85*(1-$X86),0)) -> 9370.841567 | AI86: =IF($D86="", "", MAX(AI85 + $I86 + $J86 + $W86 +$V86, 0)) -> 9309.580512 | AJ86: 7504.873854 | AK86: 111797.9242 | AL86: 0 | AM86: 2000 | AN86: -290.6797924 | AO86: 113507.2444 | AP86: 0
B87: 5 | C87: 44 | D87: 60 | E87: Dec | F87: 0.04161802395 | G87: -0.1280603719 | H87: 0 | I87: =IF(D87="", "", IF(D87>=$N$25,0, H87*AVERAGE(AJ75:AJ86))) -> 0 | J87: 2000 | K87: -10 | L87: -100 | M87: -100 | N87: -11.35072444 | O87: =IF(D87="","",VLOOKUP($H$25,INDIRECT("'"&$J$25&"'!"&$K$23),Model!B87+1)) -> 0.00106 | Q87: 60 | R87: 44 | S87: 1113507.244 | T87: 1000000 | U87: -79.5 | V87: -290.8507244 | W87: 0 | X87: =IF($D87="","",IFERROR(MIN(MAX(-(AJ86+J87+I87+W87+V87)/(AO86-AJ86),0),1),0)) -> 0 | Y87: 10404.5656 | Z87: 9860.529162 | AA87: 9881.119007 | AB87: 9148.867741 | AC87: 9280.482302 | AD87: 9672.673127 | AE87: 9734.202254 | AF87: 9912.930718 | AG87: 9426.578543 | AH87: 9370.841567 | AI87: =IF($D87="", "", MAX(AI86*(1-$X87),0)) -> 9309.580512 | AJ87: =IF($D87="", "", MAX(AJ86 + $I87 + $J87 + $W87+$V87, 0)) -> 9214.02313 | AK87: 113507.2444 | AL87: 0 | AM87: 2000 | AN87: -290.8507244 | AO87: 115216.3937 | AP87: 0
B88: =IF(D88="","", B87+1) -> 6 | C88: 45 | D88: 61 | E88: Jan | F88: -0.008222931305 | G88: -0.1496969944 | H88: 0 | I88: =IF(D88="", "", IF(D88>=$N$25,0, H88*AVERAGE(Y76:Y87))) -> 0 | J88: 2000 | K88: -10 | L88: -100 | M88: -100 | N88: -11.52163937 | O88: =IF(D88="","",VLOOKUP($H$25,INDIRECT("'"&$J$25&"'!"&$K$23),Model!B88+1)) -> 0.00125 | P88: =IF(D88="","",IF(RANDBETWEEN(0, 10000)/10000>O88, "No", "Yes")) -> No | Q88: 61 | R88: 45 | S88: 1115216.394 | T88: 1000000 | U88: -93.75 | V88: -305.2716394 | W88: 0 | X88: =IF($D88="","",IFERROR(MIN(MAX(-(Y87+J88+I88+W88+V88)/(AO87-Y87),0),1),0)) -> 0 | Y88: =IF($D88="", "", MAX($Y87 + $I88 + $J88 + $W88+ $V88, 0)) -> 12099.29396 | Z88: 9860.529162 | AA88: 9881.119007 | AB88: 9148.867741 | AC88: 9280.482302 | AD88: 9672.673127 | AE88: 9734.202254 | AF88: 9912.930718 | AG88: 9426.578543 | AH88: 9370.841567 | AI88: 9309.580512 | AJ88: =IF($D88="", "", MAX(AJ87*(1-$X88),0)) -> 9214.02313 | AK88: 115216.3937 | AL88: 0 | AM88: 2000 | AN88: -305.2716394 | AO88: 116911.122 | AP88: 0
B89: =IF(D89="","",B88) -> 6 | C89: 45 | D89: 62 | E89: Feb | F89: -0.05789175289 | G89: -0.1320821005 | H89: 0 | I89: =IF(D89="", "", IF(D89>=$N$25,0, H89*AVERAGE(Z77:Z88))) -> 0 | J89: 2000 | K89: -10 | L89: -100 | M89: -100 | N89: -11.6911122 | O89: =IF(D89="","",VLOOKUP($H$25,INDIRECT("'"&$J$25&"'!"&$K$23),Model!B89+1)) -> 0.00125 | Q89: 62 | R89: 45 | S89: 1116911.122 | T89: 1000000 | U89: -93.75 | V89: -305.4411122 | W89: 0 | X89: =IF($D89="","",IFERROR(MIN(MAX(-(Z88+J89+I89+W89+V89)/(AO88-Z88),0),1),0)) -> 0 | Y89: =IF($D89="", "", MAX(Y88*(1-$X89),0)) -> 12099.29396 | Z89: =IF($D89="", "", MAX(Z88 + $I89 + $J89 + $W89 +$V89, 0)) -> 11555.08805 | AA89: 9881.119007 | AB89: 9148.867741 | AC89: 9280.482302 | AD89: 9672.673127 | AE89: 9734.202254 | AF89: 9912.930718 | AG89: 9426.578543 | AH89: 9370.841567 | AI89: 9309.580512 | AJ89: 9214.02313 | AK89: 116911.122 | AL89: 0 | AM89: 2000 | AN89: -305.4411122 | AO89: 118605.6809 | AP89: 0
B90: 6 | C90: 45 | D90: 63 | E90: Mar | F90: -0.002936117598 | G90: -0.09818344355 | H90: 0 | I90: =IF(D90="", "", IF(D90>=$N$25,0, H90*AVERAGE(AA78:AA89))) -> 0 | J90: 2000 | K90: -10 | L90: -100 | M90: -100 | N90: -11.86056809 | O90: =IF(D90="","",VLOOKUP($H$25,INDIRECT("'"&$J$25&"'!"&$K$23),Model!B90+1)) -> 0.00125 | Q90: 63 | R90: 45 | S90: 1118605.681 | T90: 1000000 | U90: -93.75 | V90: -305.6105681 | W90: 0 | X90: =IF($D90="","",IFERROR(MIN(MAX(-(AA89+J90+I90+W90+V90)/(AO89-AA89),0),1),0)) -> 0 | Y90: 12099.29396 | Z90: =IF($D90="", "", MAX(Z89*(1-$X90),0)) -> 11555.08805 | AA90: =IF($D90="", "", MAX(AA89 + $I90 + $J90 + $W90+$V90, 0)) -> 11575.50844 | AB90: 9148.867741 | AC90: 9280.482302 | AD90: 9672.673127 | AE90: 9734.202254 | AF90: 9912.930718 | AG90: 9426.578543 | AH90: 9370.841567 | AI90: 9309.580512 | AJ90: 9214.02313 | AK90: 118605.6809 | AL90: 0 | AM90: 2000 | AN90: -305.6105681 | AO90: 120300.0703 | AP90: 0
B91: 6 | C91: 45 | D91: 64 | E91: Apr | F91: 0.0550371975 | G91: -0.07857366034 | H91: 0 | I91: =IF(D91="", "", IF(D91>=$N$25,0, H91*AVERAGE(AB79:AB90))) -> 0 | J91: 2000 | K91: -10 | L91: -100 | M91: -100 | N91: -12.03000703 | O91: =IF(D91="","",VLOOKUP($H$25,INDIRECT("'"&$J$25&"'!"&$K$23),Model!B91+1)) -> 0.00125 | Q91: 64 | R91: 45 | S91: 1120300.07 | T91: 1000000 | U91: -93.75 | V91: -305.780007 | W91: 0 | X91: =IF($D91="","",IFERROR(MIN(MAX(-(AB90+J91+I91+W91+V91)/(AO90-AB90),0),1),0)) -> 0 | Y91: 12099.29396 | Z91: 11555.08805 | AA91: =IF($D91="", "", MAX(AA90*(1-$X91),0)) -> 11575.50844 | AB91: =IF($D91="", "", MAX(AB90 + $I91 + $J91 + $W91+$V91, 0)) -> 10843.08773 | AC91: 9280.482302 | AD91: 9672.673127 | AE91: 9734.202254 | AF91: 9912.930718 | AG91: 9426.578543 | AH91: 9370.841567 | AI91: 9309.580512 | AJ91: 9214.02313 | AK91: 120300.0703 | AL91: 0 | AM91: 2000 | AN91: -305.780007 | AO91: 121994.2903 | AP91: 0
B92: 6 | C92: 45 | D92: 65 | E92: May | F92: -0.03664284683 | G92: -0.02430548387 | H92: 0 | I92: =IF(D92="", "", IF(D92>=$N$25,0, H92*AVERAGE(AC80:AC91))) -> 0 | J92: 2000 | K92: =IF(D92="","",IF(D92>=$N$25, 0,-$J$20)) -> -10 | L92: =IF(D92="","",IF(D92>=$N$25, 0,-$I$20*J92)) -> -100 | M92: -100 | N92: =IF(D92="","",IF(D92>=$N$25, 0,-$L$20*(AK92+AL92))) -> -12.19942903 | O92: =IF(D92="","",VLOOKUP($H$25,INDIRECT("'"&$J$25&"'!"&$K$23),Model!B92+1)) -> 0.00125 | Q92: =D92 -> 65 | R92: =C92 -> 45 | S92: =IF(D92="","",IF(D92>$N$25, 0,$H$20+AK92)) -> 1121994.29 | T92: =IF(D92="","",IF(D92>$N$25, 0,$H$20)) -> 1000000 | U92: =IF(D92="","",IF(D92>=$N$25, 0,-$M$20*O92*T92/12)) -> -93.75 | V92: =IF(D92="","",IF(D92>=$N$25, 0,SUM(L92:N92)+U92)) -> -305.949429 | W92: =IF(D92="","",IF(D92=$N$25,-(AK92+AL92+J92+V92),IF(OR(C92<$N$5,C92>=$N$5+$O$5),0,MIN(0,MIN(0,-1/(VLOOKUP($N$5+$O$5,$C$28:$D$1479,2,FALSE)-D92+120))*(AK92+AL92+V92-$O$20))))) -> 0 | X92: =IF($D92="","",IFERROR(MIN(MAX(-(AC91+J92+I92+W92+V92)/(AO91-AC91),0),1),0)) -> 0 | Y92: 12099.29396 | Z92: 11555.08805 | AA92: 11575.50844 | AB92: =IF($D92="", "", MAX(AB91*(1-$X92),0)) -> 10843.08773 | AC92: =IF($D92="", "", MAX(AC91 + $I92 + $J92 +$W92+$V92, 0)) -> 10974.53287 | AD92: 9672.673127 | AE92: 9734.202254 | AF92: 9912.930718 | AG92: 9426.578543 | AH92: 9370.841567 | AI92: 9309.580512 | AJ92: 9214.02313 | AK92: 121994.2903 | AL92: =I92 -> 0 | AM92: 2000 | AN92: =V92 -> -305.949429 | AO92: 123688.3409 | AP92: =IF(D92="","",IF(D92=$N$25,AO92-SUM(AK92:AN92)-$H$20,AO92-SUM(AK92:AN92))) -> 1.455191523e-11
B93: 6 | C93: 45 | D93: 66 | E93: Jun | F93: =IF($D93 = "", "",IF(D93>=$N$25, 0,_xlfn.NORM.INV(RAND(), $G$5,$H$5))) -> 0.06649205755 | G93: -0.04032044833 | H93: 0 | I93: =IF(D93="", "", IF(D93>=$N$25,0, H93*AVERAGE(AD81:AD92))) -> 0 | J93: 2000 | K93: -10 | L93: -100 | M93: -100 | N93: -12.36883409 | O93: =IF(D93="","",VLOOKUP($H$25,INDIRECT("'"&$J$25&"'!"&$K$23),Model!B93+1)) -> 0.00125 | Q93: 66 | R93: 45 | S93: 1123688.341 | T93: 1000000 | U93: -93.75 | V93: -306.1188341 | W93: 0 | X93: =IF($D93="","",IFERROR(MIN(MAX(-(AD92+J93+I93+W93+V93)/(AO92-AD92),0),1),0)) -> 0 | Y93: 12099.29396 | Z93: 11555.08805 | AA93: 11575.50844 | AB93: 10843.08773 | AC93: =IF($D93="", "", MAX(AC92*(1-$X93),0)) -> 10974.53287 | AD93: =IF($D93="", "", MAX(AD92+ $I93 + $J93 + $W93 +$V93, 0)) -> 11366.55429 | AE93: 9734.202254 | AF93: 9912.930718 | AG93: 9426.578543 | AH93: 9370.841567 | AI93: 9309.580512 | AJ93: 9214.02313 | AK93: 123688.3409 | AL93: 0 | AM93: =IF($D93="","",IF(D93=$N$25,$J93+$W93-$AO93-$H$20,$J93+$W93)) -> 2000 | AN93: -306.1188341 | AO93: =IF(D93 = "", "", SUM(Y93:AJ93)) -> 125382.2221 | AP93: 0
B94: 6 | C94: 45 | D94: =IF($C94="", "", $D93+1) -> 67 | E94: Jul | F94: 0.0370512035 | G94: 0.06676938018 | H94: 0.06676938018 | I94: =IF(D94="", "", IF(D94>=$N$25,0, H94*AVERAGE(AE82:AE93))) -> 649.946651 | J94: 2000 | K94: -10 | L94: -100 | M94: -100 | N94: -12.60321687 | O94: =IF(D94="","",VLOOKUP($H$25,INDIRECT("'"&$J$25&"'!"&$K$23),Model!B94+1)) -> 0.00125 | Q94: 67 | R94: 45 | S94: 1125382.222 | T94: 1000000 | U94: -93.75 | V94: -306.3532169 | W94: 0 | X94: =IF($D94="","",IFERROR(MIN(MAX(-(AE93+J94+I94+W94+V94)/(AO93-AE93),0),1),0)) -> 0 | Y94: 12099.29396 | Z94: 11555.08805 | AA94: 11575.50844 | AB94: 10843.08773 | AC94: 10974.53287 | AD94: =IF($D94="", "", MAX(AD93*(1-$X94),0)) -> 11366.55429 | AE94: =IF($D94="", "", MAX(AE93 + $I94 + $J94 + $W94+$V94, 0)) -> 12077.79569 | AF94: 9912.930718 | AG94: 9426.578543 | AH94: 9370.841567 | AI94: 9309.580512 | AJ94: 9214.02313 | AK94: 125382.2221 | AL94: 649.946651 | AM94: 2000 | AN94: -306.3532169 | AO94: 127725.8155 | AP94: -1.455191523e-11
B95: 6 | C95: 45 | D95: 68 | E95: Aug | F95: -0.00633214617 | G95: 0.1412093902 | H95: 0.13 | I95: =IF(D95="", "", IF(D95>=$N$25,0, H95*AVERAGE(AF83:AF94))) -> 1288.680993 | J95: 2000 | K95: -10 | L95: -100 | M95: -100 | N95: -12.90144965 | O95: =IF(D95="","",VLOOKUP($H$25,INDIRECT("'"&$J$25&"'!"&$K$23),Model!B95+1)) -> 0.00125 | Q95: 68 | R95: 45 | S95: 1127725.816 | T95: 1000000 | U95: -93.75 | V95: -306.6514496 | W95: 0 | X95: =IF($D95="","",IFERROR(MIN(MAX(-(AF94+J95+I95+W95+V95)/(AO94-AF94),0),1),0)) -> 0 | Y95: 12099.29396 | Z95: 11555.08805 | AA95: 11575.50844 | AB95: 10843.08773 | AC95: 10974.53287 | AD95: 11366.55429 | AE95: =IF($D95="", "", MAX(AE94*(1-$X95),0)) -> 12077.79569 | AF95: =IF($D95="", "", MAX(AF94 + $I95 + $J95 + $W95 +$V95, 0)) -> 12894.96026 | AG95: 9426.578543 | AH95: 9370.841567 | AI95: 9309.580512 | AJ95: 9214.02313 | AK95: 127725.8155 | AL95: 1288.680993 | AM95: 2000 | AN95: -306.6514496 | AO95: 130707.845 | AP95: -1.455191523e-11
B96: 6 | C96: 45 | D96: 69 | E96: Sep | F96: -0.001720353935 | G96: 0.1612119046 | H96: 0.13 | I96: =IF(D96="", "", IF(D96>=$N$25,0, H96*AVERAGE(AG84:AG95))) -> 1225.455211 | J96: 2000 | K96: -10 | L96: -100 | M96: -100 | N96: -13.19333003 | O96: =IF(D96="","",VLOOKUP($H$25,INDIRECT("'"&$J$25&"'!"&$K$23),Model!B96+1)) -> 0.00125 | Q96: 69 | R96: 45 | S96: 1130707.845 | T96: 1000000 | U96: -93.75 | V96: -306.94333 | W96: 0 | X96: =IF($D96="","",IFERROR(MIN(MAX(-(AG95+J96+I96+W96+V96)/(AO95-AG95),0),1),0)) -> 0 | Y96: 12099.29396 | Z96: 11555.08805 | AA96: 11575.50844 | AB96: 10843.08773 | AC96: 10974.53287 | AD96: 11366.55429 | AE96: 12077.79569 | AF96: =IF($D96="", "", MAX(AF95*(1-$X96),0)) -> 12894.96026 | AG96: =IF($D96="", "", MAX(AG95 + $I96 + $J96 + $W96+$V96, 0)) -> 12345.09042 | AH96: 9370.841567 | AI96: 9309.580512 | AJ96: 9214.02313 | AK96: 130707.845 | AL96: 1225.455211 | AM96: 2000 | AN96: -306.94333 | AO96: 133626.3569 | AP96: 0
B97: 6 | C97: 45 | D97: 70 | E97: Oct | F97: 0.01111429004 | G97: 0.1033877262 | H97: 0.1033877262 | I97: =IF(D97="", "", IF(D97>=$N$25,0, H97*AVERAGE(AH85:AH96))) -> 968.8300021 | J97: 2000 | K97: -10 | L97: -100 | M97: -100 | N97: -13.45951869 | O97: =IF(D97="","",VLOOKUP($H$25,INDIRECT("'"&$J$25&"'!"&$K$23),Model!B97+1)) -> 0.00125 | Q97: 70 | R97: 45 | S97: 1133626.357 | T97: 1000000 | U97: -93.75 | V97: -307.2095187 | W97: 0 | X97: =IF($D97="","",IFERROR(MIN(MAX(-(AH96+J97+I97+W97+V97)/(AO96-AH96),0),1),0)) -> 0 | Y97: 12099.29396 | Z97: 11555.08805 | AA97: 11575.50844 | AB97: 10843.08773 | AC97: 10974.53287 | AD97: 11366.55429 | AE97: 12077.79569 | AF97: 12894.96026 | AG97: =IF($D97="", "", MAX(AG96*(1-$X97),0)) -> 12345.09042 | AH97: =IF($D97="", "", MAX(AH96 + $I97 + $J97 + $W97+$V97, 0)) -> 12032.46205 | AI97: 9309.580512 | AJ97: 9214.02313 | AK97: 133626.3569 | AL97: 968.8300021 | AM97: 2000 | AN97: -307.2095187 | AO97: 136287.9774 | AP97: 0
B98: 6 | C98: 45 | D98: 71 | E98: Nov | F98: -0.01525259921 | G98: 0.1071576083 | H98: 0.1071576083 | I98: =IF(D98="", "", IF(D98>=$N$25,0, H98*AVERAGE(AI86:AI97))) -> 997.5923821 | J98: 2000 | K98: -10 | L98: -100 | M98: -100 | N98: -13.72855698 | O98: =IF(D98="","",VLOOKUP($H$25,INDIRECT("'"&$J$25&"'!"&$K$23),Model!B98+1)) -> 0.00125 | Q98: 71 | R98: 45 | S98: 1136287.977 | T98: 1000000 | U98: -93.75 | V98: -307.478557 | W98: 0 | X98: =IF($D98="","",IFERROR(MIN(MAX(-(AI97+J98+I98+W98+V98)/(AO97-AI97),0),1),0)) -> 0 | Y98: 12099.29396 | Z98: 11555.08805 | AA98: 11575.50844 | AB98: 10843.08773 | AC98: 10974.53287 | AD98: 11366.55429 | AE98: 12077.79569 | AF98: 12894.96026 | AG98: 12345.09042 | AH98: =IF($D98="", "", MAX(AH97*(1-$X98),0)) -> 12032.46205 | AI98: =IF($D98="", "", MAX(AI97 + $I98 + $J98 + $W98 +$V98, 0)) -> 11999.69434 | AJ98: 9214.02313 | AK98: 136287.9774 | AL98: 997.5923821 | AM98: 2000 | AN98: -307.478557 | AO98: 138978.0912 | AP98: 0
B99: 6 | C99: 45 | D99: 72 | E99: Dec | F99: -0.006560834781 | G99: 0.07740208264 | H99: 0.07740208264 | I99: =IF(D99="", "", IF(D99>=$N$25,0, H99*AVERAGE(AJ87:AJ98))) -> 713.1845798 | J99: 2000 | K99: -10 | L99: -100 | M99: -100 | N99: -13.96912758 | O99: =IF(D99="","",VLOOKUP($H$25,INDIRECT("'"&$J$25&"'!"&$K$23),Model!B99+1)) -> 0.00125 | Q99: 72 | R99: 45 | S99: 1138978.091 | T99: 1000000 | U99: -93.75 | V99: -307.7191276 | W99: 0 | X99: =IF($D99="","",IFERROR(MIN(MAX(-(AJ98+J99+I99+W99+V99)/(AO98-AJ98),0),1),0)) -> 0 | Y99: 12099.29396 | Z99: 11555.08805 | AA99: 11575.50844 | AB99: 10843.08773 | AC99: 10974.53287 | AD99: 11366.55429 | AE99: 12077.79569 | AF99: 12894.96026 | AG99: 12345.09042 | AH99: 12032.46205 | AI99: =IF($D99="", "", MAX(AI98*(1-$X99),0)) -> 11999.69434 | AJ99: =IF($D99="", "", MAX(AJ98 + $I99 + $J99 + $W99+$V99, 0)) -> 11619.48858 | AK99: 138978.0912 | AL99: 713.1845798 | AM99: 2000 | AN99: -307.7191276 | AO99: 141383.5567 | AP99: 0
B100: =IF(D100="","", B99+1) -> 7 | C100: 46 | D100: 73 | E100: Jan | F100: -0.008411610102 | G100: 0.02756807291 | H100: 0.02756807291 | I100: =IF(D100="", "", IF(D100>=$N$25,0, H100*AVERAGE(Y88:Y99))) -> 333.554218 | J100: 2000 | K100: -10 | L100: -100 | M100: -100 | N100: -14.17171109 | O100: =IF(D100="","",VLOOKUP($H$25,INDIRECT("'"&$J$25&"'!"&$K$23),Model!B100+1)) -> 0.00144 | P100: =IF(D100="","",IF(RANDBETWEEN(0, 10000)/10000>O100, "No", "Yes")) -> No | Q100: 73 | R100: 46 | S100: 1141383.557 | T100: 1000000 | U100: -108 | V100: -322.1717111 | W100: 0 | X100: =IF($D100="","",IFERROR(MIN(MAX(-(Y99+J100+I100+W100+V100)/(AO99-Y99),0),1),0)) -> 0 | Y100: =IF($D100="", "", MAX($Y99 + $I100 + $J100 + $W100+ $V100, 0)) -> 14110.67646 | Z100: 11555.08805 | AA100: 11575.50844 | AB100: 10843.08773 | AC100: 10974.53287 | AD100: 11366.55429 | AE100: 12077.79569 | AF100: 12894.96026 | AG100: 12345.09042 | AH100: 12032.46205 | AI100: 11999.69434 | AJ100: =IF($D100="", "", MAX(AJ99*(1-$X100),0)) -> 11619.48858 | AK100: 141383.5567 | AL100: 333.554218 | AM100: 2000 | AN100: -322.1717111 | AO100: 143394.9392 | AP100: 0
B101: =IF(D101="","",B100) -> 7 | C101: 46 | D101: 74 | E101: Feb | F101: -0.0340136567 | G101: 0.02737258512 | H101: 0.02737258512 | I101: =IF(D101="", "", IF(D101>=$N$25,0, H101*AVERAGE(Z89:Z100))) -> 316.2926312 | J101: 2000 | K101: -10 | L101: -100 | M101: -100 | N101: -14.37112318 | O101: =IF(D101="","",VLOOKUP($H$25,INDIRECT("'"&$J$25&"'!"&$K$23),Model!B101+1)) -> 0.00144 | Q101: 74 | R101: 46 | S101: 1143394.939 | T101: 1000000 | U101: -108 | V101: -322.3711232 | W101: 0 | X101: =IF($D101="","",IFERROR(MIN(MAX(-(Z100+J101+I101+W101+V101)/(AO100-Z100),0),1),0)) -> 0 | Y101: =IF($D101="", "", MAX(Y100*(1-$X101),0)) -> 14110.67646 | Z101: =IF($D101="", "", MAX(Z100 + $I101 + $J101 + $W101 +$V101, 0)) -> 13549.00956 | AA101: 11575.50844 | AB101: 10843.08773 | AC101: 10974.53287 | AD101: 11366.55429 | AE101: 12077.79569 | AF101: 12894.96026 | AG101: 12345.09042 | AH101: 12032.46205 | AI101: 11999.69434 | AJ101: 11619.48858 | AK101: 143394.9392 | AL101: 316.2926312 | AM101: 2000 | AN101: -322.3711232 | AO101: 145388.8607 | AP101: 0
B102: 7 | C102: 46 | D102: 75 | E102: Mar | F102: 0.01171476051 | G102: 0.05341173878 | H102: 0.05341173878 | I102: =IF(D102="", "", IF(D102>=$N$25,0, H102*AVERAGE(AA90:AA101))) -> 618.268033 | J102: 2000 | K102: -10 | L102: -100 | M102: -100 | N102: -14.60071287 | O102: =IF(D102="","",VLOOKUP($H$25,INDIRECT("'"&$J$25&"'!"&$K$23),Model!B102+1)) -> 0.00144 | Q102: 75 | R102: 46 | S102: 1145388.861 | T102: 1000000 | U102: -108 | V102: -322.6007129 | W102: 0 | X102: =IF($D102="","",IFERROR(MIN(MAX(-(AA101+J102+I102+W102+V102)/(AO101-AA101),0),1),0)) -> 0 | Y102: 14110.67646 | Z102: =IF($D102="", "", MAX(Z101*(1-$X102),0)) -> 13549.00956 | AA102: =IF($D102="", "", MAX(AA101 + $I102 + $J102 + $W102+$V102, 0)) -> 13871.17576 | AB102: 10843.08773 | AC102: 10974.53287 | AD102: 11366.55429 | AE102: 12077.79569 | AF102: 12894.96026 | AG102: 12345.09042 | AH102: 12032.46205 | AI102: 11999.69434 | AJ102: 11619.48858 | AK102: 145388.8607 | AL102: 618.268033 | AM102: 2000 | AN102: -322.6007129 | AO102: 147684.528 | AP102: 2.910383046e-11
B103: 7 | C103: 46 | D103: 76 | E103: Apr | F103: -0.02907377461 | G103: 0.0688905935 | H103: 0.0688905935 | I103: =IF(D103="", "", IF(D103>=$N$25,0, H103*AVERAGE(AB91:AB102))) -> 746.9867494 | J103: 2000 | K103: -10 | L103: -100 | M103: -100 | N103: -14.84315148 | O103: =IF(D103="","",VLOOKUP($H$25,INDIRECT("'"&$J$25&"'!"&$K$23),Model!B103+1)) -> 0.00144 | Q103: 76 | R103: 46 | S103: 1147684.528 | T103: 1000000 | U103: -108 | V103: -322.8431515 | W103: 0 | X103: =IF($D103="","",IFERROR(MIN(MAX(-(AB102+J103+I103+W103+V103)/(AO102-AB102),0),1),0)) -> 0 | Y103: 14110.67646 | Z103: 13549.00956 | AA103: =IF($D103="", "", MAX(AA102*(1-$X103),0)) -> 13871.17576 | AB103: =IF($D103="", "", MAX(AB102 + $I103 + $J103 + $W103+$V103, 0)) -> 13267.23133 | AC103: 10974.53287 | AD103: 11366.55429 | AE103: 12077.79569 | AF103: 12894.96026 | AG103: 12345.09042 | AH103: 12032.46205 | AI103: 11999.69434 | AJ103: 11619.48858 | AK103: 147684.528 | AL103: 746.9867494 | AM103: 2000 | AN103: -322.8431515 | AO103: 150108.6716 | AP103: 0
B104: 7 | C104: 46 | D104: 77 | E104: May | F104: 0.02663330609 | G104: -0.01632481606 | H104: =IF($D104 = "", "", IF(D104>=$N$25, 0,IF(G104<$G$20, IF(G104>$F$20, G104, $F$20), $G$20))) -> 0 | I104: =IF(D104="", "", IF(D104>=$N$25,0, H104*AVERAGE(AC92:AC103))) -> 0 | J104: 2000 | K104: -10 | L104: -100 | M104: =IF(D104="","",IF(D104>=$N$25, 0,-$K$20)) -> -100 | N104: -15.01086716 | O104: =IF(D104="","",VLOOKUP($H$25,INDIRECT("'"&$J$25&"'!"&$K$23),Model!B104+1)) -> 0.00144 | Q104: 77 | R104: 46 | S104: 1150108.672 | T104: 1000000 | U104: -108 | V104: -323.0108672 | W104: 0 | X104: =IF($D104="","",IFERROR(MIN(MAX(-(AC103+J104+I104+W104+V104)/(AO103-AC103),0),1),0)) -> 0 | Y104: 14110.67646 | Z104: 13549.00956 | AA104: 13871.17576 | AB104: =IF($D104="", "", MAX(AB103*(1-$X104),0)) -> 13267.23133 | AC104: =IF($D104="", "", MAX(AC103 + $I104 + $J104 +$W104+$V104, 0)) -> 12651.52201 | AD104: 11366.55429 | AE104: 12077.79569 | AF104: 12894.96026 | AG104: 12345.09042 | AH104: 12032.46205 | AI104: 11999.69434 | AJ104: 11619.48858 | AK104: =IF(D104 = "", "",Y103 + Z103+AA103 + AB103+ AC103+AD103+AE103+AF103+AG103+AH103 + AI103+AJ103) -> 150108.6716 | AL104: 0 | AM104: 2000 | AN104: -323.0108672 | AO104: 151785.6608 | AP104: 0
B105: 7 | C105: =IF(C104="","",IF(C93+1<=120, C93 + 1, "")) -> 46 | D105: 78 | E105: =IF($D105 = "", "",E93) -> Jun | F105: 0.02173488804 | G105: =IF($D105 = "", "",IF(D105>=$N$25, 0,((1+F93)*(1+F94)*(1+F95)*(1+F96)*(1+F97)*(1+F98)*(1+F99)*(1+F100)*(1+F101)*(1+F102)*(1+F103)*(1+F104))-1)) -> 0.04828588533 | H105: 0.04828588533 | I105: =IF(D105="", "", IF(D105>=$N$25,0, H105*AVERAGE(AD93:AD104))) -> 548.8441373 | J105: =IF(D105="","",IF(D105>=$N$25, 0, IF($L$5="Single Premium",0,IF(C105<$N$5,$M$5,0)))) -> 2000 | K105: -10 | L105: -100 | M105: -100 | N105: -15.23345049 | O105: =IF(D105="","",VLOOKUP($H$25,INDIRECT("'"&$J$25&"'!"&$K$23),Model!B105+1)) -> 0.00144 | Q105: 78 | R105: 46 | S105: 1151785.661 | T105: 1000000 | U105: -108 | V105: -323.2334505 | W105: 0 | X105: =IF($D105="","",IFERROR(MIN(MAX(-(AD104+J105+I105+W105+V105)/(AO104-AD104),0),1),0)) -> 0 | Y105: 14110.67646 | Z105: 13549.00956 | AA105: 13871.17576 | AB105: 13267.23133 | AC105: =IF($D105="", "", MAX(AC104*(1-$X105),0)) -> 12651.52201 | AD105: =IF($D105="", "", MAX(AD104+ $I105 + $J105 + $W105 +$V105, 0)) -> 13592.16498 | AE105: 12077.79569 | AF105: 12894.96026 | AG105: 12345.09042 | AH105: 12032.46205 | AI105: 11999.69434 | AJ105: 11619.48858 | AK105: 151785.6608 | AL105: 548.8441373 | AM105: 2000 | AN105: -323.2334505 | AO105: 154011.2714 | AP105: -2.910383046e-11
B106: 7 | C106: 46 | D106: 79 | E106: Jul | F106: 0.007803813547 | G106: 0.004292769089 | H106: 0.004292769089 | I106: =IF(D106="", "", IF(D106>=$N$25,0, H106*AVERAGE(AE94:AE105))) -> 51.84718799 | J106: 2000 | K106: -10 | L106: -100 | M106: -100 | N106: -15.40631186 | O106: =IF(D106="","",VLOOKUP($H$25,INDIRECT("'"&$J$25&"'!"&$K$23),Model!B106+1)) -> 0.00144 | Q106: 79 | R106: 46 | S106: 1154011.271 | T106: 1000000 | U106: -108 | V106: -323.4063119 | W106: 0 | X106: =IF($D106="","",IFERROR(MIN(MAX(-(AE105+J106+I106+W106+V106)/(AO105-AE105),0),1),0)) -> 0 | Y106: 14110.67646 | Z106: 13549.00956 | AA106: 13871.17576 | AB106: 13267.23133 | AC106: 12651.52201 | AD106: =IF($D106="", "", MAX(AD105*(1-$X106),0)) -> 13592.16498 | AE106: =IF($D106="", "", MAX(AE105 + $I106 + $J106 + $W106+$V106, 0)) -> 13806.23656 | AF106: 12894.96026 | AG106: 12345.09042 | AH106: 12032.46205 | AI106: 11999.69434 | AJ106: 11619.48858 | AK106: 154011.2714 | AL106: 51.84718799 | AM106: 2000 | AN106: -323.4063119 | AO106: 155739.7123 | AP106: -2.910383046e-11
B107: 7 | C107: 46 | D107: 80 | E107: Aug | F107: 0.04930767427 | G107: -0.02403075259 | H107: 0 | I107: =IF(D107="", "", IF(D107>=$N$25,0, H107*AVERAGE(AF95:AF106))) -> 0 | J107: 2000 | K107: -10 | L107: -100 | M107: -100 | N107: -15.57397123 | O107: =IF(D107="","",VLOOKUP($H$25,INDIRECT("'"&$J$25&"'!"&$K$23),Model!B107+1)) -> 0.00144 | Q107: 80 | R107: 46 | S107: 1155739.712 | T107: 1000000 | U107: -108 | V107: -323.5739712 | W107: 0 | X107: =IF($D107="","",IFERROR(MIN(MAX(-(AF106+J107+I107+W107+V107)/(AO106-AF106),0),1),0)) -> 0 | Y107: 14110.67646 | Z107: 13549.00956 | AA107: 13871.17576 | AB107: 13267.23133 | AC107: 12651.52201 | AD107: 13592.16498 | AE107: =IF($D107="", "", MAX(AE106*(1-$X107),0)) -> 13806.23656 | AF107: =IF($D107="", "", MAX(AF106 + $I107 + $J107 + $W107 +$V107, 0)) -> 14571.38629 | AG107: 12345.09042 | AH107: 12032.46205 | AI107: 11999.69434 | AJ107: 11619.48858 | AK107: 155739.7123 | AL107: 0 | AM107: 2000 | AN107: -323.5739712 | AO107: 157416.1383 | AP107: 0
B108: 7 | C108: 46 | D108: 81 | E108: Sep | F108: 0.02415117757 | G108: 0.03061804527 | H108: 0.03061804527 | I108: =IF(D108="", "", IF(D108>=$N$25,0, H108*AVERAGE(AG96:AG107))) -> 377.9825374 | J108: 2000 | K108: -10 | L108: -100 | M108: -100 | N108: -15.77941209 | O108: =IF(D108="","",VLOOKUP($H$25,INDIRECT("'"&$J$25&"'!"&$K$23),Model!B108+1)) -> 0.00144 | Q108: 81 | R108: 46 | S108: 1157416.138 | T108: 1000000 | U108: -108 | V108: -323.7794121 | W108: 0 | X108: =IF($D108="","",IFERROR(MIN(MAX(-(AG107+J108+I108+W108+V108)/(AO107-AG107),0),1),0)) -> 0 | Y108: 14110.67646 | Z108: 13549.00956 | AA108: 13871.17576 | AB108: 13267.23133 | AC108: 12651.52201 | AD108: 13592.16498 | AE108: 13806.23656 | AF108: =IF($D108="", "", MAX(AF107*(1-$X108),0)) -> 14571.38629 | AG108: =IF($D108="", "", MAX(AG107 + $I108 + $J108 + $W108+$V108, 0)) -> 14399.29355 | AH108: 12032.46205 | AI108: 11999.69434 | AJ108: 11619.48858 | AK108: 157416.1383 | AL108: 377.9825374 | AM108: 2000 | AN108: -323.7794121 | AO108: 159470.3415 | AP108: 0
B109: 7 | C109: 46 | D109: 82 | E109: Oct | F109: 0.04442918569 | G109: 0.05732766249 | H109: 0.05732766249 | I109: =IF(D109="", "", IF(D109>=$N$25,0, H109*AVERAGE(AH97:AH108))) -> 689.7929233 | J109: 2000 | K109: -10 | L109: -100 | M109: -100 | N109: -16.01601344 | O109: =IF(D109="","",VLOOKUP($H$25,INDIRECT("'"&$J$25&"'!"&$K$23),Model!B109+1)) -> 0.00144 | Q109: 82 | R109: 46 | S109: 1159470.341 | T109: 1000000 | U109: -108 | V109: -324.0160134 | W109: 0 | X109: =IF($D109="","",IFERROR(MIN(MAX(-(AH108+J109+I109+W109+V109)/(AO108-AH108),0),1),0)) -> 0 | Y109: 14110.67646 | Z109: 13549.00956 | AA109: 13871.17576 | AB109: 13267.23133 | AC109: 12651.52201 | AD109: 13592.16498 | AE109: 13806.23656 | AF109: 14571.38629 | AG109: =IF($D109="", "", MAX(AG108*(1-$X109),0)) -> 14399.29355 | AH109: =IF($D109="", "", MAX(AH108 + $I109 + $J109 + $W109+$V109, 0)) -> 14398.23896 | AI109: 11999.69434 | AJ109: 11619.48858 | AK109: 159470.3415 | AL109: 689.7929233 | AM109: 2000 | AN109: -324.0160134 | AO109: 161836.1184 | AP109: 0
B110: 7 | C110: 46 | D110: 83 | E110: Nov | F110: -0.05491412819 | G110: 0.09216522841 | H110: 0.09216522841 | I110: =IF(D110="", "", IF(D110>=$N$25,0, H110*AVERAGE(AI98:AI109))) -> 1105.954569 | J110: 2000 | K110: -10 | L110: -100 | M110: -100 | N110: -16.29420729 | O110: =IF(D110="","",VLOOKUP($H$25,INDIRECT("'"&$J$25&"'!"&$K$23),Model!B110+1)) -> 0.00144 | Q110: 83 | R110: 46 | S110: 1161836.118 | T110: 1000000 | U110: -108 | V110: -324.2942073 | W110: 0 | X110: =IF($D110="","",IFERROR(MIN(MAX(-(AI109+J110+I110+W110+V110)/(AO109-AI109),0),1),0)) -> 0 | Y110: 14110.67646 | Z110: 13549.00956 | AA110: 13871.17576 | AB110: 13267.23133 | AC110: 12651.52201 | AD110: 13592.16498 | AE110: 13806.23656 | AF110: 14571.38629 | AG110: 14399.29355 | AH110: =IF($D110="", "", MAX(AH109*(1-$X110),0)) -> 14398.23896 | AI110: =IF($D110="", "", MAX(AI109 + $I110 + $J110 + $W110 +$V110, 0)) -> 14781.3547 | AJ110: 11619.48858 | AK110: 161836.1184 | AL110: 1105.954569 | AM110: 2000 | AN110: -324.2942073 | AO110: 164617.7787 | AP110: 0
B111: 7 | C111: 46 | D111: 84 | E111: Dec | F111: -0.0714573154 | G111: 0.04817735617 | H111: 0.04817735617 | I111: =IF(D111="", "", IF(D111>=$N$25,0, H111*AVERAGE(AJ99:AJ110))) -> 559.7962399 | J111: 2000 | K111: -10 | L111: -100 | M111: -100 | N111: -16.5177575 | O111: =IF(D111="","",VLOOKUP($H$25,INDIRECT("'"&$J$25&"'!"&$K$23),Model!B111+1)) -> 0.00144 | Q111: 84 | R111: 46 | S111: 1164617.779 | T111: 1000000 | U111: -108 | V111: -324.5177575 | W111: 0 | X111: =IF($D111="","",IFERROR(MIN(MAX(-(AJ110+J111+I111+W111+V111)/(AO110-AJ110),0),1),0)) -> 0 | Y111: 14110.67646 | Z111: 13549.00956 | AA111: 13871.17576 | AB111: 13267.23133 | AC111: 12651.52201 | AD111: 13592.16498 | AE111: 13806.23656 | AF111: 14571.38629 | AG111: 14399.29355 | AH111: 14398.23896 | AI111: =IF($D111="", "", MAX(AI110*(1-$X111),0)) -> 14781.3547 | AJ111: =IF($D111="", "", MAX(AJ110 + $I111 + $J111 + $W111+$V111, 0)) -> 13854.76706 | AK111: 164617.7787 | AL111: 559.7962399 | AM111: 2000 | AN111: -324.5177575 | AO111: 166853.0572 | AP111: 0
B112: =IF(D112="","", B111+1) -> 8 | C112: 47 | D112: 85 | E112: Jan | F112: 0.004382775722 | G112: -0.02029490048 | H112: 0 | I112: =IF(D112="", "", IF(D112>=$N$25,0, H112*AVERAGE(Y100:Y111))) -> 0 | J112: 2000 | K112: -10 | L112: -100 | M112: -100 | N112: -16.68530572 | O112: =IF(D112="","",VLOOKUP($H$25,INDIRECT("'"&$J$25&"'!"&$K$23),Model!B112+1)) -> 0.00164 | P112: =IF(D112="","",IF(RANDBETWEEN(0, 10000)/10000>O112, "No", "Yes")) -> No | Q112: 85 | R112: 47 | S112: 1166853.057 | T112: 1000000 | U112: -123 | V112: -339.6853057 | W112: =IF(D112="","",IF(D112=$N$25,-(AK112+AL112+J112+V112),IF(OR(C112<$N$5,C112>=$N$5+$O$5),0,MIN(0,MIN(0,-1/(VLOOKUP($N$5+$O$5,$C$28:$D$1479,2,FALSE)-D112+120))*(AK112+AL112+V112-$O$20))))) -> 0 | X112: =IF($D112="","",IFERROR(MIN(MAX(-(Y111+J112+I112+W112+V112)/(AO111-Y111),0),1),0)) -> 0 | Y112: =IF($D112="", "", MAX($Y111 + $I112 + $J112 + $W112+ $V112, 0)) -> 15770.99116 | Z112: 13549.00956 | AA112: 13871.17576 | AB112: 13267.23133 | AC112: 12651.52201 | AD112: 13592.16498 | AE112: 13806.23656 | AF112: 14571.38629 | AG112: 14399.29355 | AH112: 14398.23896 | AI112: 14781.3547 | AJ112: =IF($D112="", "", MAX(AJ111*(1-$X112),0)) -> 13854.76706 | AK112: 166853.0572 | AL112: 0 | AM112: 2000 | AN112: -339.6853057 | AO112: 168513.3719 | AP112: 0
B113: =IF(D113="","",B112) -> 8 | C113: 47 | D113: 86 | E113: Feb | F113: -0.02174374922 | G113: -0.007653843801 | H113: 0 | I113: =IF(D113="", "", IF(D113>=$N$25,0, H113*AVERAGE(Z101:Z112))) -> 0 | J113: 2000 | K113: -10 | L113: -100 | M113: -100 | N113: -16.85133719 | O113: =IF(D113="","",VLOOKUP($H$25,INDIRECT("'"&$J$25&"'!"&$K$23),Model!B113+1)) -> 0.00164 | Q113: 86 | R113: 47 | S113: 1168513.372 | T113: 1000000 | U113: -123 | V113: -339.8513372 | W113: 0 | X113: =IF($D113="","",IFERROR(MIN(MAX(-(Z112+J113+I113+W113+V113)/(AO112-Z112),0),1),0)) -> 0 | Y113: =IF($D113="", "", MAX(Y112*(1-$X113),0)) -> 15770.99116 | Z113: =IF($D113="", "", MAX(Z112 + $I113 + $J113 + $W113 +$V113, 0)) -> 15209.15822 | AA113: 13871.17576 | AB113: 13267.23133 | AC113: 12651.52201 | AD113: 13592.16498 | AE113: 13806.23656 | AF113: 14571.38629 | AG113: 14399.29355 | AH113: 14398.23896 | AI113: 14781.3547 | AJ113: 13854.76706 | AK113: 168513.3719 | AL113: 0 | AM113: 2000 | AN113: -339.8513372 | AO113: 170173.5206 | AP113: 0
B114: 8 | C114: 47 | D114: 87 | E114: Mar | F114: 0.008189889051 | G114: 0.004950884626 | H114: 0.004950884626 | I114: =IF(D114="", "", IF(D114>=$N$25,0, H114*AVERAGE(AA102:AA113))) -> 68.6745908 | J114: 2000 | K114: -10 | L114: -100 | M114: -100 | N114: -17.02421952 | O114: =IF(D114="","",VLOOKUP($H$25,INDIRECT("'"&$J$25&"'!"&$K$23),Model!B114+1)) -> 0.00164 | Q114: 87 | R114: 47 | S114: 1170173.521 | T114: 1000000 | U114: -123 | V114: -340.0242195 | W114: 0 | X114: =IF($D114="","",IFERROR(MIN(MAX(-(AA113+J114+I114+W114+V114)/(AO113-AA113),0),1),0)) -> 0 | Y114: 15770.99116 | Z114: =IF($D114="", "", MAX(Z113*(1-$X114),0)) -> 15209.15822 | AA114: =IF($D114="", "", MAX(AA113 + $I114 + $J114 + $W114+$V114, 0)) -> 15599.82613 | AB114: 13267.23133 | AC114: 12651.52201 | AD114: 13592.16498 | AE114: 13806.23656 | AF114: 14571.38629 | AG114: 14399.29355 | AH114: 14398.23896 | AI114: 14781.3547 | AJ114: 13854.76706 | AK114: 170173.5206 | AL114: 68.6745908 | AM114: 2000 | AN114: -340.0242195 | AO114: 171902.171 | AP114: 0
B115: 8 | C115: 47 | D115: 88 | E115: Apr | F115: 0.08818492861 | G115: 0.001449578894 | H115: 0.001449578894 | I115: =IF(D115="", "", IF(D115>=$N$25,0, H115*AVERAGE(AB103:AB114))) -> 19.23189852 | J115: 2000 | K115: -10 | L115: -100 | M115: -100 | N115: -17.19214029 | O115: =IF(D115="","",VLOOKUP($H$25,INDIRECT("'"&$J$25&"'!"&$K$23),Model!B115+1)) -> 0.00164 | Q115: 88 | R115: 47 | S115: 1171902.171 | T115: 1000000 | U115: -123 | V115: -340.1921403 | W115: 0 | X115: =IF($D115="","",IFERROR(MIN(MAX(-(AB114+J115+I115+W115+V115)/(AO114-AB114),0),1),0)) -> 0 | Y115: 15770.99116 | Z115: 15209.15822 | AA115: =IF($D115="", "", MAX(AA114*(1-$X115),0)) -> 15599.82613 | AB115: =IF($D115="", "", MAX(AB114 + $I115 + $J115 + $W115+$V115, 0)) -> 14946.27109 | AC115: 12651.52201 | AD115: 13592.16498 | AE115: 13806.23656 | AF115: 14571.38629 | AG115: 14399.29355 | AH115: 14398.23896 | AI115: 14781.3547 | AJ115: 13854.76706 | AK115: 171902.171 | AL115: 19.23189852 | AM115: 2000 | AN115: -340.1921403 | AO115: 173581.2107 | AP115: 2.910383046e-11
B116: 8 | C116: 47 | D116: 89 | E116: May | F116: 0.0126027292 | G116: 0.1223945857 | H116: 0.1223945857 | I116: =IF(D116="", "", IF(D116>=$N$25,0, H116*AVERAGE(AC104:AC115))) -> 1548.477795 | J116: 2000 | K116: -10 | L116: -100 | M116: -100 | N116: -17.51296885 | O116: =IF(D116="","",VLOOKUP($H$25,INDIRECT("'"&$J$25&"'!"&$K$23),Model!B116+1)) -> 0.00164 | Q116: 89 | R116: 47 | S116: 1173581.211 | T116: 1000000 | U116: -123 | V116: -340.5129689 | W116: 0 | X116: =IF($D116="","",IFERROR(MIN(MAX(-(AC115+J116+I116+W116+V116)/(AO115-AC115),0),1),0)) -> 0 | Y116: 15770.99116 | Z116: 15209.15822 | AA116: 15599.82613 | AB116: =IF($D116="", "", MAX(AB115*(1-$X116),0)) -> 14946.27109 | AC116: =IF($D116="", "", MAX(AC115 + $I116 + $J116 +$W116+$V116, 0)) -> 15859.48683 | AD116: 13592.16498 | AE116: 13806.23656 | AF116: 14571.38629 | AG116: 14399.29355 | AH116: 14398.23896 | AI116: 14781.3547 | AJ116: 13854.76706 | AK116: 173581.2107 | AL116: 1548.477795 | AM116: 2000 | AN116: -340.5129689 | AO116: 176789.1755 | AP116: 0
B117: =IF(D117="","",B116) -> 8 | C117: 47 | D117: 90 | E117: Jun | F117: -0.006933524651 | G117: 0.1070552786 | H117: 0.1070552786 | I117: =IF(D117="", "", IF(D117>=$N$25,0, H117*AVERAGE(AD105:AD116))) -> 1455.113009 | J117: 2000 | K117: -10 | L117: -100 | M117: -100 | N117: -17.82442885 | O117: =IF(D117="","",VLOOKUP($H$25,INDIRECT("'"&$J$25&"'!"&$K$23),Model!B117+1)) -> 0.00164 | Q117: 90 | R117: 47 | S117: 1176789.176 | T117: 1000000 | U117: -123 | V117: -340.8244289 | W117: 0 | X117: =IF($D117="","",IFERROR(MIN(MAX(-(AD116+J117+I117+W117+V117)/(AO116-AD116),0),1),0)) -> 0 | Y117: 15770.99116 | Z117: 15209.15822 | AA117: 15599.82613 | AB117: 14946.27109 | AC117: =IF($D117="", "", MAX(AC116*(1-$X117),0)) -> 15859.48683 | AD117: =IF($D117="", "", MAX(AD116+ $I117 + $J117 + $W117 +$V117, 0)) -> 16706.45356 | AE117: 13806.23656 | AF117: 14571.38629 | AG117: 14399.29355 | AH117: 14398.23896 | AI117: 14781.3547 | AJ117: 13854.76706 | AK117: 176789.1755 | AL117: 1455.113009 | AM117: 2000 | AN117: -340.8244289 | AO117: 179903.4641 | AP117: 0
B118: 8 | C118: 47 | D118: 91 | E118: Jul | F118: -0.04353430285 | G118: 0.0759928984 | H118: 0.0759928984 | I118: =IF(D118="", "", IF(D118>=$N$25,0, H118*AVERAGE(AE106:AE117))) -> 1049.175933 | J118: 2000 | K118: -10 | L118: -100 | M118: -100 | N118: -18.095264 | O118: =IF(D118="","",VLOOKUP($H$25,INDIRECT("'"&$J$25&"'!"&$K$23),Model!B118+1)) -> 0.00164 | Q118: 91 | R118: 47 | S118: 1179903.464 | T118: 1000000 | U118: -123 | V118: -341.095264 | W118: 0 | X118: =IF($D118="","",IFERROR(MIN(MAX(-(AE117+J118+I118+W118+V118)/(AO117-AE117),0),1),0)) -> 0 | Y118: 15770.99116 | Z118: 15209.15822 | AA118: 15599.82613 | AB118: 14946.27109 | AC118: 15859.48683 | AD118: =IF($D118="", "", MAX(AD117*(1-$X118),0)) -> 16706.45356 | AE118: =IF($D118="", "", MAX(AE117 + $I118 + $J118 + $W118+$V118, 0)) -> 16514.31723 | AF118: 14571.38629 | AG118: 14399.29355 | AH118: 14398.23896 | AI118: 14781.3547 | AJ118: 13854.76706 | AK118: 179903.4641 | AL118: 1049.175933 | AM118: 2000 | AN118: -341.095264 | AO118: 182611.5448 | AP118: 0
B119: 8 | C119: 47 | D119: 92 | E119: Aug | F119: 0.06390932871 | G119: 0.0211811901 | H119: 0.0211811901 | I119: =IF(D119="", "", IF(D119>=$N$25,0, H119*AVERAGE(AF107:AF118))) -> 308.639303 | J119: 2000 | K119: -10 | L119: -100 | M119: -100 | N119: -18.29201841 | O119: =IF(D119="","",VLOOKUP($H$25,INDIRECT("'"&$J$25&"'!"&$K$23),Model!B119+1)) -> 0.00164 | Q119: 92 | R119: 47 | S119: 1182611.545 | T119: 1000000 | U119: -123 | V119: -341.2920184 | W119: 0 | X119: =IF($D119="","",IFERROR(MIN(MAX(-(AF118+J119+I119+W119+V119)/(AO118-AF118),0),1),0)) -> 0 | Y119: 15770.99116 | Z119: 15209.15822 | AA119: 15599.82613 | AB119: 14946.27109 | AC119: 15859.48683 | AD119: 16706.45356 | AE119: =IF($D119="", "", MAX(AE118*(1-$X119),0)) -> 16514.31723 | AF119: =IF($D119="", "", MAX(AF118 + $I119 + $J119 + $W119 +$V119, 0)) -> 16538.73357 | AG119: 14399.29355 | AH119: 14398.23896 | AI119: 14781.3547 | AJ119: 13854.76706 | AK119: 182611.5448 | AL119: 308.639303 | AM119: 2000 | AN119: -341.2920184 | AO119: 184578.8921 | AP119: 0
B120: 8 | C120: 47 | D120: 93 | E120: Sep | F120: 0.02382418984 | G120: 0.03539145008 | H120: 0.03539145008 | I120: =IF(D120="", "", IF(D120>=$N$25,0, H120*AVERAGE(AG108:AG119))) -> 509.6118789 | J120: 2000 | K120: -10 | L120: -100 | M120: -100 | N120: -18.50885039 | O120: =IF(D120="","",VLOOKUP($H$25,INDIRECT("'"&$J$25&"'!"&$K$23),Model!B120+1)) -> 0.00164 | Q120: 93 | R120: 47 | S120: 1184578.892 | T120: 1000000 | U120: -123 | V120: -341.5088504 | W120: 0 | X120: =IF($D120="","",IFERROR(MIN(MAX(-(AG119+J120+I120+W120+V120)/(AO119-AG119),0),1),0)) -> 0 | Y120: 15770.99116 | Z120: 15209.15822 | AA120: 15599.82613 | AB120: 14946.27109 | AC120: 15859.48683 | AD120: 16706.45356 | AE120: 16514.31723 | AF120: =IF($D120="", "", MAX(AF119*(1-$X120),0)) -> 16538.73357 | AG120: =IF($D120="", "", MAX(AG119 + $I120 + $J120 + $W120+$V120, 0)) -> 16567.39658 | AH120: 14398.23896 | AI120: 14781.3547 | AJ120: 13854.76706 | AK120: 184578.8921 | AL120: 509.6118789 | AM120: 2000 | AN120: -341.5088504 | AO120: 186746.9951 | AP120: 0
B121: 8 | C121: 47 | D121: 94 | E121: Oct | F121: -0.09333801815 | G121: 0.0350608736 | H121: 0.0350608736 | I121: =IF(D121="", "", IF(D121>=$N$25,0, H121*AVERAGE(AH109:AH120))) -> 504.8148362 | J121: 2000 | K121: -10 | L121: -100 | M121: -100 | N121: -18.72518099 | O121: =IF(D121="","",VLOOKUP($H$25,INDIRECT("'"&$J$25&"'!"&$K$23),Model!B121+1)) -> 0.00164 | Q121: 94 | R121: 47 | S121: 1186746.995 | T121: 1000000 | U121: -123 | V121: -341.725181 | W121: 0 | X121: =IF($D121="","",IFERROR(MIN(MAX(-(AH120+J121+I121+W121+V121)/(AO120-AH120),0),1),0)) -> 0 | Y121: 15770.99116 | Z121: 15209.15822 | AA121: 15599.82613 | AB121: 14946.27109 | AC121: 15859.48683 | AD121: 16706.45356 | AE121: 16514.31723 | AF121: 16538.73357 | AG121: =IF($D121="", "", MAX(AG120*(1-$X121),0)) -> 16567.39658 | AH121: =IF($D121="", "", MAX(AH120 + $I121 + $J121 + $W121+$V121, 0)) -> 16561.32862 | AI121: 14781.3547 | AJ121: 13854.76706 | AK121: 186746.9951 | AL121: 504.8148362 | AM121: 2000 | AN121: -341.725181 | AO121: 188910.0848 | AP121: 0
B122: 8 | C122: 47 | D122: 95 | E122: Nov | F122: -0.02797397693 | G122: -0.1014705871 | H122: 0 | I122: =IF(D122="", "", IF(D122>=$N$25,0, H122*AVERAGE(AI110:AI121))) -> 0 | J122: 2000 | K122: -10 | L122: -100 | M122: -100 | N122: -18.89100848 | O122: =IF(D122="","",VLOOKUP($H$25,INDIRECT("'"&$J$25&"'!"&$K$23),Model!B122+1)) -> 0.00164 | Q122: 95 | R122: 47 | S122: 1188910.085 | T122: 1000000 | U122: -123 | V122: -341.8910085 | W122: 0 | X122: =IF($D122="","",IFERROR(MIN(MAX(-(AI121+J122+I122+W122+V122)/(AO121-AI121),0),1),0)) -> 0 | Y122: 15770.99116 | Z122: 15209.15822 | AA122: 15599.82613 | AB122: 14946.27109 | AC122: 15859.48683 | AD122: 16706.45356 | AE122: 16514.31723 | AF122: 16538.73357 | AG122: 16567.39658 | AH122: =IF($D122="", "", MAX(AH121*(1-$X122),0)) -> 16561.32862 | AI122: =IF($D122="", "", MAX(AI121 + $I122 + $J122 + $W122 +$V122, 0)) -> 16439.46369 | AJ122: 13854.76706 | AK122: 188910.0848 | AL122: 0 | AM122: 2000 | AN122: -341.8910085 | AO122: 190568.1937 | AP122: 0
B123: 8 | C123: 47 | D123: 96 | E123: Dec | F123: -0.04119672256 | G123: -0.07585755131 | H123: 0 | I123: =IF(D123="", "", IF(D123>=$N$25,0, H123*AVERAGE(AJ111:AJ122))) -> 0 | J123: 2000 | K123: -10 | L123: -100 | M123: -100 | N123: -19.05681937 | O123: =IF(D123="","",VLOOKUP($H$25,INDIRECT("'"&$J$25&"'!"&$K$23),Model!B123+1)) -> 0.00164 | Q123: 96 | R123: 47 | S123: 1190568.194 | T123: 1000000 | U123: -123 | V123: -342.0568194 | W123: 0 | X123: =IF($D123="","",IFERROR(MIN(MAX(-(AJ122+J123+I123+W123+V123)/(AO122-AJ122),0),1),0)) -> 0 | Y123: 15770.99116 | Z123: 15209.15822 | AA123: 15599.82613 | AB123: 14946.27109 | AC123: 15859.48683 | AD123: 16706.45356 | AE123: 16514.31723 | AF123: 16538.73357 | AG123: 16567.39658 | AH123: 16561.32862 | AI123: =IF($D123="", "", MAX(AI122*(1-$X123),0)) -> 16439.46369 | AJ123: =IF($D123="", "", MAX(AJ122 + $I123 + $J123 + $W123+$V123, 0)) -> 15512.71025 | AK123: 190568.1937 | AL123: 0 | AM123: 2000 | AN123: -342.0568194 | AO123: 192226.1369 | AP123: 0
B124: =IF(D124="","", B123+1) -> 9 | C124: 48 | D124: 97 | E124: Jan | F124: 0.03108324166 | G124: -0.04574035925 | H124: 0 | I124: =IF(D124="", "", IF(D124>=$N$25,0, H124*AVERAGE(Y112:Y123))) -> 0 | J124: 2000 | K124: -10 | L124: -100 | M124: -100 | N124: -19.22261369 | O124: =IF(D124="","",VLOOKUP($H$25,INDIRECT("'"&$J$25&"'!"&$K$23),Model!B124+1)) -> 0.0018 | P124: =IF(D124="","",IF(RANDBETWEEN(0, 10000)/10000>O124, "No", "Yes")) -> No | Q124: 97 | R124: 48 | S124: 1192226.137 | T124: 1000000 | U124: -135 | V124: -354.2226137 | W124: 0 | X124: =IF($D124="","",IFERROR(MIN(MAX(-(Y123+J124+I124+W124+V124)/(AO123-Y123),0),1),0)) -> 0 | Y124: =IF($D124="", "", MAX($Y123 + $I124 + $J124 + $W124+ $V124, 0)) -> 17416.76854 | Z124: 15209.15822 | AA124: 15599.82613 | AB124: 14946.27109 | AC124: 15859.48683 | AD124: 16706.45356 | AE124: 16514.31723 | AF124: 16538.73357 | AG124: 16567.39658 | AH124: 16561.32862 | AI124: 16439.46369 | AJ124: =IF($D124="", "", MAX(AJ123*(1-$X124),0)) -> 15512.71025 | AK124: 192226.1369 | AL124: 0 | AM124: 2000 | AN124: -354.2226137 | AO124: 193871.9143 | AP124: 0
B125: =IF(D125="","",B124) -> 9 | C125: 48 | D125: 98 | E125: Feb | F125: 0.01721438659 | G125: -0.02037236445 | H125: 0 | I125: =IF(D125="", "", IF(D125>=$N$25,0, H125*AVERAGE(Z113:Z124))) -> 0 | J125: 2000 | K125: -10 | L125: -100 | M125: -100 | N125: -19.38719143 | O125: =IF(D125="","",VLOOKUP($H$25,INDIRECT("'"&$J$25&"'!"&$K$23),Model!B125+1)) -> 0.0018 | Q125: 98 | R125: 48 | S125: 1193871.914 | T125: 1000000 | U125: -135 | V125: -354.3871914 | W125: 0 | X125: =IF($D125="","",IFERROR(MIN(MAX(-(Z124+J125+I125+W125+V125)/(AO124-Z124),0),1),0)) -> 0 | Y125: =IF($D125="", "", MAX(Y124*(1-$X125),0)) -> 17416.76854 | Z125: =IF($D125="", "", MAX(Z124 + $I125 + $J125 + $W125 +$V125, 0)) -> 16854.77103 | AA125: 15599.82613 | AB125: 14946.27109 | AC125: 15859.48683 | AD125: 16706.45356 | AE125: 16514.31723 | AF125: 16538.73357 | AG125: 16567.39658 | AH125: 16561.32862 | AI125: 16439.46369 | AJ125: 15512.71025 | AK125: 193871.9143 | AL125: 0 | AM125: 2000 | AN125: -354.3871914 | AO125: 195517.5271 | AP125: 0
B126: 9 | C126: 48 | D126: 99 | E126: Mar | F126: 0.06646689896 | G126: 0.01864038547 | H126: 0.01864038547 | I126: =IF(D126="", "", IF(D126>=$N$25,0, H126*AVERAGE(AA114:AA125))) -> 290.7867723 | J126: 2000 | K126: -10 | L126: -100 | M126: -100 | N126: -19.58083139 | O126: =IF(D126="","",VLOOKUP($H$25,INDIRECT("'"&$J$25&"'!"&$K$23),Model!B126+1)) -> 0.0018 | Q126: 99 | R126: 48 | S126: 1195517.527 | T126: 1000000 | U126: -135 | V126: -354.5808314 | W126: 0 | X126: =IF($D126="","",IFERROR(MIN(MAX(-(AA125+J126+I126+W126+V126)/(AO125-AA125),0),1),0)) -> 0 | Y126: 17416.76854 | Z126: =IF($D126="", "", MAX(Z125*(1-$X126),0)) -> 16854.77103 | AA126: =IF($D126="", "", MAX(AA125 + $I126 + $J126 + $W126+$V126, 0)) -> 17536.03207 | AB126: 14946.27109 | AC126: 15859.48683 | AD126: 16706.45356 | AE126: 16514.31723 | AF126: 16538.73357 | AG126: 16567.39658 | AH126: 16561.32862 | AI126: 16439.46369 | AJ126: 15512.71025 | AK126: 195517.5271 | AL126: 290.7867723 | AM126: 2000 | AN126: -354.5808314 | AO126: 197453.7331 | AP126: 0
B127: 9 | C127: 48 | D127: 100 | E127: Apr | F127: 0.08438170282 | G127: 0.07752147174 | H127: 0.07752147174 | I127: =IF(D127="", "", IF(D127>=$N$25,0, H127*AVERAGE(AB115:AB126))) -> 1158.656932 | J127: 2000 | K127: -10 | L127: -100 | M127: -100 | N127: -19.861239 | O127: =IF(D127="","",VLOOKUP($H$25,INDIRECT("'"&$J$25&"'!"&$K$23),Model!B127+1)) -> 0.0018 | Q127: 100 | R127: 48 | S127: 1197453.733 | T127: 1000000 | U127: -135 | V127: -354.861239 | W127: 0 | X127: =IF($D127="","",IFERROR(MIN(MAX(-(AB126+J127+I127+W127+V127)/(AO126-AB126),0),1),0)) -> 0 | Y127: 17416.76854 | Z127: 16854.77103 | AA127: =IF($D127="", "", MAX(AA126*(1-$X127),0)) -> 17536.03207 | AB127: =IF($D127="", "", MAX(AB126 + $I127 + $J127 + $W127+$V127, 0)) -> 17750.06678 | AC127: 15859.48683 | AD127: 16706.45356 | AE127: 16514.31723 | AF127: 16538.73357 | AG127: 16567.39658 | AH127: 16561.32862 | AI127: 16439.46369 | AJ127: 15512.71025 | AK127: 197453.7331 | AL127: 1158.656932 | AM127: 2000 | AN127: -354.861239 | AO127: 200257.5288 | AP127: 0
B128: 9 | C128: 48 | D128: 101 | E128: May | F128: -0.01171793138 | G128: 0.07375551492 | H128: 0.07375551492 | I128: =IF(D128="", "", IF(D128>=$N$25,0, H128*AVERAGE(AC116:AC127))) -> 1169.724618 | J128: 2000 | K128: -10 | L128: -100 | M128: -100 | N128: -20.14272534 | O128: =IF(D128="","",VLOOKUP($H$25,INDIRECT("'"&$J$25&"'!"&$K$23),Model!B128+1)) -> 0.0018 | Q128: 101 | R128: 48 | S128: 1200257.529 | T128: 1000000 | U128: -135 | V128: -355.1427253 | W128: 0 | X128: =IF($D128="","",IFERROR(MIN(MAX(-(AC127+J128+I128+W128+V128)/(AO127-AC127),0),1),0)) -> 0 | Y128: 17416.76854 | Z128: 16854.77103 | AA128: 17536.03207 | AB128: =IF($D128="", "", MAX(AB127*(1-$X128),0)) -> 17750.06678 | AC128: =IF($D128="", "", MAX(AC127 + $I128 + $J128 +$W128+$V128, 0)) -> 18674.06872 | AD128: 16706.45356 | AE128: 16514.31723 | AF128: 16538.73357 | AG128: 16567.39658 | AH128: 16561.32862 | AI128: 16439.46369 | AJ128: 15512.71025 | AK128: 200257.5288 | AL128: 1169.724618 | AM128: 2000 | AN128: -355.1427253 | AO128: 203072.1106 | AP128: 0
B129: 9 | C129: 48 | D129: 102 | E129: Jun | F129: -0.08949703549 | G129: 0.04796608866 | H129: 0.04796608866 | I129: =IF(D129="", "", IF(D129>=$N$25,0, H129*AVERAGE(AD117:AD128))) -> 801.3432326 | J129: 2000 | K129: -10 | L129: -100 | M129: -100 | N129: -20.38734539 | O129: =IF(D129="","",VLOOKUP($H$25,INDIRECT("'"&$J$25&"'!"&$K$23),Model!B129+1)) -> 0.0018 | Q129: 102 | R129: 48 | S129: 1203072.111 | T129: 1000000 | U129: -135 | V129: -355.3873454 | W129: 0 | X129: =IF($D129="","",IFERROR(MIN(MAX(-(AD128+J129+I129+W129+V129)/(AO128-AD128),0),1),0)) -> 0 | Y129: 17416.76854 | Z129: 16854.77103 | AA129: 17536.03207 | AB129: 17750.06678 | AC129: =IF($D129="", "", MAX(AC128*(1-$X129),0)) -> 18674.06872 | AD129: =IF($D129="", "", MAX(AD128+ $I129 + $J129 + $W129 +$V129, 0)) -> 19152.40945 | AE129: 16514.31723 | AF129: 16538.73357 | AG129: 16567.39658 | AH129: 16561.32862 | AI129: 16439.46369 | AJ129: 15512.71025 | AK129: 203072.1106 | AL129: 801.3432326 | AM129: 2000 | AN129: -355.3873454 | AO129: 205518.0665 | AP129: 0
B130: 9 | C130: 48 | D130: 103 | E130: Jul | F130: 0.04512403475 | G130: -0.03916177404 | H130: 0 | I130: =IF(D130="", "", IF(D130>=$N$25,0, H130*AVERAGE(AE118:AE129))) -> 0 | J130: 2000 | K130: -10 | L130: -100 | M130: -100 | N130: -20.55180665 | O130: =IF(D130="","",VLOOKUP($H$25,INDIRECT("'"&$J$25&"'!"&$K$23),Model!B130+1)) -> 0.0018 | Q130: 103 | R130: 48 | S130: 1205518.067 | T130: 1000000 | U130: -135 | V130: -355.5518067 | W130: 0 | X130: =IF($D130="","",IFERROR(MIN(MAX(-(AE129+J130+I130+W130+V130)/(AO129-AE129),0),1),0)) -> 0 | Y130: 17416.76854 | Z130: 16854.77103 | AA130: 17536.03207 | AB130: 17750.06678 | AC130: 18674.06872 | AD130: =IF($D130="", "", MAX(AD129*(1-$X130),0)) -> 19152.40945 | AE130: =IF($D130="", "", MAX(AE129 + $I130 + $J130 + $W130+$V130, 0)) -> 18158.76543 | AF130: 16538.73357 | AG130: 16567.39658 | AH130: 16561.32862 | AI130: 16439.46369 | AJ130: 15512.71025 | AK130: 205518.0665 | AL130: 0 | AM130: 2000 | AN130: -355.5518067 | AO130: 207162.5147 | AP130: 0
B131: 9 | C131: 48 | D131: 104 | E131: Aug | F131: 0.04016581961 | G131: 0.04990186939 | H131: 0.04990186939 | I131: =IF(D131="", "", IF(D131>=$N$25,0, H131*AVERAGE(AF119:AF130))) -> 825.3137227 | J131: 2000 | K131: -10 | L131: -100 | M131: -100 | N131: -20.79878285 | O131: =IF(D131="","",VLOOKUP($H$25,INDIRECT("'"&$J$25&"'!"&$K$23),Model!B131+1)) -> 0.0018 | Q131: 104 | R131: 48 | S131: 1207162.515 | T131: 1000000 | U131: -135 | V131: -355.7987828 | W131: 0 | X131: =IF($D131="","",IFERROR(MIN(MAX(-(AF130+J131+I131+W131+V131)/(AO130-AF130),0),1),0)) -> 0 | Y131: 17416.76854 | Z131: 16854.77103 | AA131: 17536.03207 | AB131: 17750.06678 | AC131: 18674.06872 | AD131: 19152.40945 | AE131: =IF($D131="", "", MAX(AE130*(1-$X131),0)) -> 18158.76543 | AF131: =IF($D131="", "", MAX(AF130 + $I131 + $J131 + $W131 +$V131, 0)) -> 19008.24851 | AG131: 16567.39658 | AH131: 16561.32862 | AI131: 16439.46369 | AJ131: 15512.71025 | AK131: 207162.5147 | AL131: 825.3137227 | AM131: 2000 | AN131: -355.7987828 | AO131: 209632.0297 | AP131: 0
B132: 9 | C132: 48 | D132: 105 | E132: Sep | F132: 0.002480643881 | G132: 0.02647096798 | H132: 0.02647096798 | I132: =IF(D132="", "", IF(D132>=$N$25,0, H132*AVERAGE(AG120:AG131))) -> 438.5550243 | J132: 2000 | K132: -10 | L132: -100 | M132: -100 | N132: -21.00705847 | O132: =IF(D132="","",VLOOKUP($H$25,INDIRECT("'"&$J$25&"'!"&$K$23),Model!B132+1)) -> 0.0018 | Q132: 105 | R132: 48 | S132: 1209632.03 | T132: 1000000 | U132: -135 | V132: -356.0070585 | W132: 0 | X132: =IF($D132="","",IFERROR(MIN(MAX(-(AG131+J132+I132+W132+V132)/(AO131-AG131),0),1),0)) -> 0 | Y132: 17416.76854 | Z132: 16854.77103 | AA132: 17536.03207 | AB132: 17750.06678 | AC132: 18674.06872 | AD132: 19152.40945 | AE132: 18158.76543 | AF132: =IF($D132="", "", MAX(AF131*(1-$X132),0)) -> 19008.24851 | AG132: =IF($D132="", "", MAX(AG131 + $I132 + $J132 + $W132+$V132, 0)) -> 18649.94454 | AH132: 16561.32862 | AI132: 16439.46369 | AJ132: 15512.71025 | AK132: 209632.0297 | AL132: 438.5550243 | AM132: 2000 | AN132: -356.0070585 | AO132: 211714.5776 | AP132: 0
B133: 9 | C133: 48 | D133: 106 | E133: Oct | F133: 0.06884635954 | G133: 0.00507224494 | H133: 0.00507224494 | I133: =IF(D133="", "", IF(D133>=$N$25,0, H133*AVERAGE(AH121:AH132))) -> 84.00311527 | J133: 2000 | K133: -10 | L133: -100 | M133: -100 | N133: -21.17985807 | O133: =IF(D133="","",VLOOKUP($H$25,INDIRECT("'"&$J$25&"'!"&$K$23),Model!B133+1)) -> 0.0018 | Q133: 106 | R133: 48 | S133: 1211714.578 | T133: 1000000 | U133: -135 | V133: -356.1798581 | W133: 0 | X133: =IF($D133="","",IFERROR(MIN(MAX(-(AH132+J133+I133+W133+V133)/(AO132-AH132),0),1),0)) -> 0 | Y133: 17416.76854 | Z133: 16854.77103 | AA133: 17536.03207 | AB133: 17750.06678 | AC133: 18674.06872 | AD133: 19152.40945 | AE133: 18158.76543 | AF133: 19008.24851 | AG133: =IF($D133="", "", MAX(AG132*(1-$X133),0)) -> 18649.94454 | AH133: =IF($D133="", "", MAX(AH132 + $I133 + $J133 + $W133+$V133, 0)) -> 18289.15187 | AI133: 16439.46369 | AJ133: 15512.71025 | AK133: 211714.5776 | AL133: 84.00311527 | AM133: 2000 | AN133: -356.1798581 | AO133: 213442.4009 | AP133: 2.910383046e-11
B134: 9 | C134: 48 | D134: 107 | E134: Nov | F134: 0.04118678712 | G134: 0.1848603246 | H134: 0.13 | I134: =IF(D134="", "", IF(D134>=$N$25,0, H134*AVERAGE(AI122:AI133))) -> 2137.13028 | J134: 2000 | K134: -10 | L134: -100 | M134: -100 | N134: -21.55795312 | O134: =IF(D134="","",VLOOKUP($H$25,INDIRECT("'"&$J$25&"'!"&$K$23),Model!B134+1)) -> 0.0018 | Q134: 107 | R134: 48 | S134: 1213442.401 | T134: 1000000 | U134: -135 | V134: -356.5579531 | W134: 0 | X134: =IF($D134="","",IFERROR(MIN(MAX(-(AI133+J134+I134+W134+V134)/(AO133-AI133),0),1),0)) -> 0 | Y134: 17416.76854 | Z134: 16854.77103 | AA134: 17536.03207 | AB134: 17750.06678 | AC134: 18674.06872 | AD134: 19152.40945 | AE134: 18158.76543 | AF134: 19008.24851 | AG134: 18649.94454 | AH134: =IF($D134="", "", MAX(AH133*(1-$X134),0)) -> 18289.15187 | AI134: =IF($D134="", "", MAX(AI133 + $I134 + $J134 + $W134 +$V134, 0)) -> 20220.03602 | AJ134: 15512.71025 | AK134: 213442.4009 | AL134: 2137.13028 | AM134: 2000 | AN134: -356.5579531 | AO134: 217222.9732 | AP134: 2.910383046e-11
B135: 9 | C135: 48 | D135: 108 | E135: Dec | F135: -0.02520137572 | G135: 0.2691644927 | H135: 0.13 | I135: =IF(D135="", "", IF(D135>=$N$25,0, H135*AVERAGE(AJ123:AJ134))) -> 2016.652332 | J135: 2000 | K135: -10 | L135: -100 | M135: -100 | N135: -21.92396255 | O135: =IF(D135="","",VLOOKUP($H$25,INDIRECT("'"&$J$25&"'!"&$K$23),Model!B135+1)) -> 0.0018 | Q135: 108 | R135: 48 | S135: 1217222.973 | T135: 1000000 | U135: -135 | V135: -356.9239626 | W135: 0 | X135: =IF($D135="","",IFERROR(MIN(MAX(-(AJ134+J135+I135+W135+V135)/(AO134-AJ134),0),1),0)) -> 0 | Y135: 17416.76854 | Z135: 16854.77103 | AA135: 17536.03207 | AB135: 17750.06678 | AC135: 18674.06872 | AD135: 19152.40945 | AE135: 18158.76543 | AF135: 19008.24851 | AG135: 18649.94454 | AH135: 18289.15187 | AI135: =IF($D135="", "", MAX(AI134*(1-$X135),0)) -> 20220.03602 | AJ135: =IF($D135="", "", MAX(AJ134 + $I135 + $J135 + $W135+$V135, 0)) -> 19172.43861 | AK135: 217222.9732 | AL135: 2016.652332 | AM135: 2000 | AN135: -356.9239626 | AO135: 220882.7016 | AP135: 2.910383046e-11
B136: =IF(D136="","", B135+1) -> 10 | C136: 49 | D136: 109 | E136: Jan | F136: -0.02638328174 | G136: 0.2903374765 | H136: 0.13 | I136: =IF(D136="", "", IF(D136>=$N$25,0, H136*AVERAGE(Y124:Y135))) -> 2264.179911 | J136: 2000 | K136: -10 | L136: -100 | M136: -100 | N136: -22.31468815 | O136: =IF(D136="","",VLOOKUP($H$25,INDIRECT("'"&$J$25&"'!"&$K$23),Model!B136+1)) -> 0.00197 | P136: =IF(D136="","",IF(RANDBETWEEN(0, 10000)/10000>O136, "No", "Yes")) -> No | Q136: 109 | R136: 49 | S136: 1220882.702 | T136: 1000000 | U136: -147.75 | V136: -370.0646881 | W136: 0 | X136: =IF($D136="","",IFERROR(MIN(MAX(-(Y135+J136+I136+W136+V136)/(AO135-Y135),0),1),0)) -> 0 | Y136: =IF($D136="", "", MAX($Y135 + $I136 + $J136 + $W136+ $V136, 0)) -> 21310.88377 | Z136: 16854.77103 | AA136: 17536.03207 | AB136: 17750.06678 | AC136: 18674.06872 | AD136: 19152.40945 | AE136: 18158.76543 | AF136: 19008.24851 | AG136: 18649.94454 | AH136: 18289.15187 | AI136: 20220.03602 | AJ136: =IF($D136="", "", MAX(AJ135*(1-$X136),0)) -> 19172.43861 | AK136: 220882.7016 | AL136: 2264.179911 | AM136: 2000 | AN136: -370.0646881 | AO136: 224776.8168 | AP136: 0
B137: =IF(D137="","",B136) -> 10 | C137: 49 | D137: 110 | E137: Feb | F137: -0.007238603461 | G137: 0.2184216449 | H137: 0.13 | I137: =IF(D137="", "", IF(D137>=$N$25,0, H137*AVERAGE(Z125:Z136))) -> 2191.120234 | J137: 2000 | K137: -10 | L137: -100 | M137: -100 | N137: -22.6967937 | O137: =IF(D137="","",VLOOKUP($H$25,INDIRECT("'"&$J$25&"'!"&$K$23),Model!B137+1)) -> 0.00197 | Q137: 110 | R137: 49 | S137: 1224776.817 | T137: 1000000 | U137: -147.75 | V137: -370.4467937 | W137: 0 | X137: =IF($D137="","",IFERROR(MIN(MAX(-(Z136+J137+I137+W137+V137)/(AO136-Z136),0),1),0)) -> 0 | Y137: =IF($D137="", "", MAX(Y136*(1-$X137),0)) -> 21310.88377 | Z137: =IF($D137="", "", MAX(Z136 + $I137 + $J137 + $W137 +$V137, 0)) -> 20675.44447 | AA137: 17536.03207 | AB137: 17750.06678 | AC137: 18674.06872 | AD137: 19152.40945 | AE137: 18158.76543 | AF137: 19008.24851 | AG137: 18649.94454 | AH137: 18289.15187 | AI137: 20220.03602 | AJ137: 19172.43861 | AK137: 224776.8168 | AL137: 2191.120234 | AM137: 2000 | AN137: -370.4467937 | AO137: 228597.4902 | AP137: 2.910383046e-11
B138: 10 | C138: 49 | D138: 111 | E138: Mar | F138: 0.0337980088 | G138: 0.1891317993 | H138: 0.13 | I138: =IF(D138="", "", IF(D138>=$N$25,0, H138*AVERAGE(AA126:AA137))) -> 2279.684169 | J138: 2000 | K138: -10 | L138: -100 | M138: -100 | N138: -23.08771744 | O138: =IF(D138="","",VLOOKUP($H$25,INDIRECT("'"&$J$25&"'!"&$K$23),Model!B138+1)) -> 0.00197 | Q138: 111 | R138: 49 | S138: 1228597.49 | T138: 1000000 | U138: -147.75 | V138: -370.8377174 | W138: 0 | X138: =IF($D138="","",IFERROR(MIN(MAX(-(AA137+J138+I138+W138+V138)/(AO137-AA137),0),1),0)) -> 0 | Y138: 21310.88377 | Z138: =IF($D138="", "", MAX(Z137*(1-$X138),0)) -> 20675.44447 | AA138: =IF($D138="", "", MAX(AA137 + $I138 + $J138 + $W138+$V138, 0)) -> 21444.87852 | AB138: 17750.06678 | AC138: 18674.06872 | AD138: 19152.40945 | AE138: 18158.76543 | AF138: 19008.24851 | AG138: 18649.94454 | AH138: 18289.15187 | AI138: 20220.03602 | AJ138: 19172.43861 | AK138: 228597.4902 | AL138: 2279.684169 | AM138: 2000 | AN138: -370.8377174 | AO138: 232506.3367 | AP138: 0
B139: 10 | C139: 49 | D139: 112 | E139: Apr | F139: 0.008570640496 | G139: 0.1527053371 | H139: 0.13 | I139: =IF(D139="", "", IF(D139>=$N$25,0, H139*AVERAGE(AB127:AB138))) -> 2307.508682 | J139: 2000 | K139: -10 | L139: -100 | M139: -100 | N139: -23.48138454 | O139: =IF(D139="","",VLOOKUP($H$25,INDIRECT("'"&$J$25&"'!"&$K$23),Model!B139+1)) -> 0.00197 | Q139: 112 | R139: 49 | S139: 1232506.337 | T139: 1000000 | U139: -147.75 | V139: -371.2313845 | W139: 0 | X139: =IF($D139="","",IFERROR(MIN(MAX(-(AB138+J139+I139+W139+V139)/(AO138-AB138),0),1),0)) -> 0 | Y139: 21310.88377 | Z139: 20675.44447 | AA139: =IF($D139="", "", MAX(AA138*(1-$X139),0)) -> 21444.87852 | AB139: =IF($D139="", "", MAX(AB138 + $I139 + $J139 + $W139+$V139, 0)) -> 21686.34408 | AC139: 18674.06872 | AD139: 19152.40945 | AE139: 18158.76543 | AF139: 19008.24851 | AG139: 18649.94454 | AH139: 18289.15187 | AI139: 20220.03602 | AJ139: 19172.43861 | AK139: 232506.3367 | AL139: 2307.508682 | AM139: 2000 | AN139: -371.2313845 | AO139: 236442.614 | AP139: 0
B140: 10 | C140: 49 | D140: 113 | E140: May | F140: 0.06258772571 | G140: 0.07211764746 | H140: 0.07211764746 | I140: =IF(D140="", "", IF(D140>=$N$25,0, H140*AVERAGE(AC128:AC139))) -> 1346.729905 | J140: 2000 | K140: -10 | L140: -100 | M140: -100 | N140: -23.77893439 | O140: =IF(D140="","",VLOOKUP($H$25,INDIRECT("'"&$J$25&"'!"&$K$23),Model!B140+1)) -> 0.00197 | Q140: 113 | R140: 49 | S140: 1236442.614 | T140: 1000000 | U140: -147.75 | V140: -371.5289344 | W140: 0 | X140: =IF($D140="","",IFERROR(MIN(MAX(-(AC139+J140+I140+W140+V140)/(AO139-AC139),0),1),0)) -> 0 | Y140: 21310.88377 | Z140: 20675.44447 | AA140: 21444.87852 | AB140: =IF($D140="", "", MAX(AB139*(1-$X140),0)) -> 21686.34408 | AC140: =IF($D140="", "", MAX(AC139 + $I140 + $J140 +$W140+$V140, 0)) -> 21649.26969 | AD140: 19152.40945 | AE140: 18158.76543 | AF140: 19008.24851 | AG140: 18649.94454 | AH140: 18289.15187 | AI140: 20220.03602 | AJ140: 19172.43861 | AK140: 236442.614 | AL140: 1346.729905 | AM140: 2000 | AN140: -371.5289344 | AO140: 239417.815 | AP140: -2.910383046e-11
B141: 10 | C141: 49 | D141: 114 | E141: Jun | F141: -0.0204748759 | G141: 0.1527266242 | H141: 0.13 | I141: =IF(D141="", "", IF(D141>=$N$25,0, H141*AVERAGE(AD129:AD140))) -> 2489.813228 | J141: 2000 | K141: -10 | L141: -100 | M141: -100 | N141: -24.19076282 | O141: =IF(D141="","",VLOOKUP($H$25,INDIRECT("'"&$J$25&"'!"&$K$23),Model!B141+1)) -> 0.00197 | Q141: 114 | R141: 49 | S141: 1239417.815 | T141: 1000000 | U141: -147.75 | V141: -371.9407628 | W141: 0 | X141: =IF($D141="","",IFERROR(MIN(MAX(-(AD140+J141+I141+W141+V141)/(AO140-AD140),0),1),0)) -> 0 | Y141: 21310.88377 | Z141: 20675.44447 | AA141: 21444.87852 | AB141: 21686.34408 | AC141: =IF($D141="", "", MAX(AC140*(1-$X141),0)) -> 21649.26969 | AD141: =IF($D141="", "", MAX(AD140+ $I141 + $J141 + $W141 +$V141, 0)) -> 23270.28191 | AE141: 18158.76543 | AF141: 19008.24851 | AG141: 18649.94454 | AH141: 18289.15187 | AI141: 20220.03602 | AJ141: 19172.43861 | AK141: 239417.815 | AL141: 2489.813228 | AM141: 2000 | AN141: -371.9407628 | AO141: 243535.6874 | AP141: 2.910383046e-11
B142: 10 | C142: 49 | D142: 115 | E142: Jul | F142: 0.02674372275 | G142: 0.2401109427 | H142: 0.13 | I142: =IF(D142="", "", IF(D142>=$N$25,0, H142*AVERAGE(AE130:AE141))) -> 2360.639505 | J142: 2000 | K142: -10 | L142: -100 | M142: -100 | N142: -24.58963269 | O142: =IF(D142="","",VLOOKUP($H$25,INDIRECT("'"&$J$25&"'!"&$K$23),Model!B142+1)) -> 0.00197 | Q142: 115 | R142: 49 | S142: 1243535.687 | T142: 1000000 | U142: -147.75 | V142: -372.3396327 | W142: 0 | X142: =IF($D142="","",IFERROR(MIN(MAX(-(AE141+J142+I142+W142+V142)/(AO141-AE141),0),1),0)) -> 0 | Y142: 21310.88377 | Z142: 20675.44447 | AA142: 21444.87852 | AB142: 21686.34408 | AC142: 21649.26969 | AD142: =IF($D142="", "", MAX(AD141*(1-$X142),0)) -> 23270.28191 | AE142: =IF($D142="", "", MAX(AE141 + $I142 + $J142 + $W142+$V142, 0)) -> 22147.0653 | AF142: 19008.24851 | AG142: 18649.94454 | AH142: 18289.15187 | AI142: 20220.03602 | AJ142: 19172.43861 | AK142: 243535.6874 | AL142: 2360.639505 | AM142: 2000 | AN142: -372.3396327 | AO142: 247523.9873 | AP142: -5.820766091e-11
B143: 10 | C143: 49 | D143: 116 | E143: Aug | F143: -0.03141074346 | G143: 0.218301449 | H143: 0.13 | I143: =IF(D143="", "", IF(D143>=$N$25,0, H143*AVERAGE(AF131:AF142))) -> 2471.072307 | J143: 2000 | K143: -10 | L143: -100 | M143: -100 | N143: -24.99950596 | O143: =IF(D143="","",VLOOKUP($H$25,INDIRECT("'"&$J$25&"'!"&$K$23),Model!B143+1)) -> 0.00197 | Q143: 116 | R143: 49 | S143: 1247523.987 | T143: 1000000 | U143: -147.75 | V143: -372.749506 | W143: 0 | X143: =IF($D143="","",IFERROR(MIN(MAX(-(AF142+J143+I143+W143+V143)/(AO142-AF142),0),1),0)) -> 0 | Y143: 21310.88377 | Z143: 20675.44447 | AA143: 21444.87852 | AB143: 21686.34408 | AC143: 21649.26969 | AD143: 23270.28191 | AE143: =IF($D143="", "", MAX(AE142*(1-$X143),0)) -> 22147.0653 | AF143: =IF($D143="", "", MAX(AF142 + $I143 + $J143 + $W143 +$V143, 0)) -> 23106.57132 | AG143: 18649.94454 | AH143: 18289.15187 | AI143: 20220.03602 | AJ143: 19172.43861 | AK143: 247523.9873 | AL143: 2471.072307 | AM143: 2000 | AN143: -372.749506 | AO143: 251622.3101 | AP143: 2.910383046e-11
B144: 10 | C144: 49 | D144: 117 | E144: Sep | F144: 0.03881474313 | G144: 0.1344669018 | H144: 0.13 | I144: =IF(D144="", "", IF(D144>=$N$25,0, H144*AVERAGE(AG132:AG143))) -> 2424.492791 | J144: 2000 | K144: -10 | L144: -100 | M144: -100 | N144: -25.40468029 | O144: =IF(D144="","",VLOOKUP($H$25,INDIRECT("'"&$J$25&"'!"&$K$23),Model!B144+1)) -> 0.00197 | Q144: 117 | R144: 49 | S144: 1251622.31 | T144: 1000000 | U144: -147.75 | V144: -373.1546803 | W144: 0 | X144: =IF($D144="","",IFERROR(MIN(MAX(-(AG143+J144+I144+W144+V144)/(AO143-AG143),0),1),0)) -> 0 | Y144: 21310.88377 | Z144: 20675.44447 | AA144: 21444.87852 | AB144: 21686.34408 | AC144: 21649.26969 | AD144: 23270.28191 | AE144: 22147.0653 | AF144: =IF($D144="", "", MAX(AF143*(1-$X144),0)) -> 23106.57132 | AG144: =IF($D144="", "", MAX(AG143 + $I144 + $J144 + $W144+$V144, 0)) -> 22701.28265 | AH144: 18289.15187 | AI144: 20220.03602 | AJ144: 19172.43861 | AK144: 251622.3101 | AL144: 2424.492791 | AM144: 2000 | AN144: -373.1546803 | AO144: 255673.6482 | AP144: 0
B145: 10 | C145: 49 | D145: 118 | E145: Oct | F145: 0.06864183463 | G145: 0.1755847361 | H145: 0.13 | I145: =IF(D145="", "", IF(D145>=$N$25,0, H145*AVERAGE(AH133:AH144))) -> 2377.589743 | J145: 2000 | K145: -10 | L145: -100 | M145: -100 | N145: -25.8051238 | O145: =IF(D145="","",VLOOKUP($H$25,INDIRECT("'"&$J$25&"'!"&$K$23),Model!B145+1)) -> 0.00197 | Q145: 118 | R145: 49 | S145: 1255673.648 | T145: 1000000 | U145: -147.75 | V145: -373.5551238 | W145: 0 | X145: =IF($D145="","",IFERROR(MIN(MAX(-(AH144+J145+I145+W145+V145)/(AO144-AH144),0),1),0)) -> 0 | Y145: 21310.88377 | Z145: 20675.44447 | AA145: 21444.87852 | AB145: 21686.34408 | AC145: 21649.26969 | AD145: 23270.28191 | AE145: 22147.0653 | AF145: 23106.57132 | AG145: =IF($D145="", "", MAX(AG144*(1-$X145),0)) -> 22701.28265 | AH145: =IF($D145="", "", MAX(AH144 + $I145 + $J145 + $W145+$V145, 0)) -> 22293.18649 | AI145: 20220.03602 | AJ145: 19172.43861 | AK145: 255673.6482 | AL145: 2377.589743 | AM145: 2000 | AN145: -373.5551238 | AO145: 259677.6828 | AP145: -2.910383046e-11
B146: 10 | C146: 49 | D146: 119 | E146: Nov | F146: 0.0500994294 | G146: 0.1753597867 | H146: 0.13 | I146: =IF(D146="", "", IF(D146>=$N$25,0, H146*AVERAGE(AI134:AI145))) -> 2628.604682 | J146: 2000 | K146: -10 | L146: -100 | M146: -100 | N146: -26.23062875 | O146: =IF(D146="","",VLOOKUP($H$25,INDIRECT("'"&$J$25&"'!"&$K$23),Model!B146+1)) -> 0.00197 | Q146: 119 | R146: 49 | S146: 1259677.683 | T146: 1000000 | U146: -147.75 | V146: -373.9806288 | W146: 0 | X146: =IF($D146="","",IFERROR(MIN(MAX(-(AI145+J146+I146+W146+V146)/(AO145-AI145),0),1),0)) -> 0 | Y146: 21310.88377 | Z146: 20675.44447 | AA146: 21444.87852 | AB146: 21686.34408 | AC146: 21649.26969 | AD146: 23270.28191 | AE146: 22147.0653 | AF146: 23106.57132 | AG146: 22701.28265 | AH146: =IF($D146="", "", MAX(AH145*(1-$X146),0)) -> 22293.18649 | AI146: =IF($D146="", "", MAX(AI145 + $I146 + $J146 + $W146 +$V146, 0)) -> 24474.66007 | AJ146: 19172.43861 | AK146: 259677.6828 | AL146: 2628.604682 | AM146: 2000 | AN146: -373.9806288 | AO146: 263932.3069 | AP146: -5.820766091e-11
B147: 10 | C147: 49 | D147: 120 | E147: Dec | F147: 0.02552128204 | G147: 0.1854209606 | H147: 0.13 | I147: =IF(D147="", "", IF(D147>=$N$25,0, H147*AVERAGE(AJ135:AJ146))) -> 2492.41702 | J147: 2000 | K147: -10 | L147: -100 | M147: -100 | N147: -26.64247239 | O147: =IF(D147="","",VLOOKUP($H$25,INDIRECT("'"&$J$25&"'!"&$K$23),Model!B147+1)) -> 0.00197 | Q147: 120 | R147: 49 | S147: 1263932.307 | T147: 1000000 | U147: -147.75 | V147: -374.3924724 | W147: 0 | X147: =IF($D147="","",IFERROR(MIN(MAX(-(AJ146+J147+I147+W147+V147)/(AO146-AJ146),0),1),0)) -> 0 | Y147: 21310.88377 | Z147: 20675.44447 | AA147: 21444.87852 | AB147: 21686.34408 | AC147: 21649.26969 | AD147: 23270.28191 | AE147: 22147.0653 | AF147: 23106.57132 | AG147: 22701.28265 | AH147: 22293.18649 | AI147: =IF($D147="", "", MAX(AI146*(1-$X147),0)) -> 24474.66007 | AJ147: =IF($D147="", "", MAX(AJ146 + $I147 + $J147 + $W147+$V147, 0)) -> 23290.46316 | AK147: 263932.3069 | AL147: 2492.41702 | AM147: 2000 | AN147: -374.3924724 | AO147: 268050.3314 | AP147: 0
B148: =IF(D148="","", B147+1) -> 11 | C148: 50 | D148: 121 | E148: Jan | F148: 0.02374376221 | G148: 0.247103138 | H148: 0.13 | I148: =IF(D148="", "", IF(D148>=$N$25,0, H148*AVERAGE(Y136:Y147))) -> 2770.41489 | J148: 2000 | K148: -10 | L148: -100 | M148: -100 | N148: -27.08207463 | O148: =IF(D148="","",VLOOKUP($H$25,INDIRECT("'"&$J$25&"'!"&$K$23),Model!B148+1)) -> 0.00217 | P148: =IF(D148="","",IF(RANDBETWEEN(0, 10000)/10000>O148, "No", "Yes")) -> No | Q148: 121 | R148: 50 | S148: 1268050.331 | T148: 1000000 | U148: -162.75 | V148: -389.8320746 | W148: 0 | X148: =IF($D148="","",IFERROR(MIN(MAX(-(Y147+J148+I148+W148+V148)/(AO147-Y147),0),1),0)) -> 0 | Y148: =IF($D148="", "", MAX($Y147 + $I148 + $J148 + $W148+ $V148, 0)) -> 25691.46658 | Z148: 20675.44447 | AA148: 21444.87852 | AB148: 21686.34408 | AC148: 21649.26969 | AD148: 23270.28191 | AE148: 22147.0653 | AF148: 23106.57132 | AG148: 22701.28265 | AH148: 22293.18649 | AI148: 24474.66007 | AJ148: =IF($D148="", "", MAX(AJ147*(1-$X148),0)) -> 23290.46316 | AK148: 268050.3314 | AL148: 2770.41489 | AM148: 2000 | AN148: -389.8320746 | AO148: 272430.9143 | AP148: 0
B149: =IF(D149="","",B148) -> 11 | C149: 50 | D149: 122 | E149: Feb | F149: 0.02585738663 | G149: 0.311310739 | H149: 0.13 | I149: =IF(D149="", "", IF(D149>=$N$25,0, H149*AVERAGE(Z137:Z148))) -> 2687.807781 | J149: 2000 | K149: -10 | L149: -100 | M149: -100 | N149: -27.5118722 | O149: =IF(D149="","",VLOOKUP($H$25,INDIRECT("'"&$J$25&"'!"&$K$23),Model!B149+1)) -> 0.00217 | Q149: 122 | R149: 50 | S149: 1272430.914 | T149: 1000000 | U149: -162.75 | V149: -390.2618722 | W149: 0 | X149: =IF($D149="","",IFERROR(MIN(MAX(-(Z148+J149+I149+W149+V149)/(AO148-Z148),0),1),0)) -> 0 | Y149: =IF($D149="", "", MAX(Y148*(1-$X149),0)) -> 25691.46658 | Z149: =IF($D149="", "", MAX(Z148 + $I149 + $J149 + $W149 +$V149, 0)) -> 24972.99038 | AA149: 21444.87852 | AB149: 21686.34408 | AC149: 21649.26969 | AD149: 23270.28191 | AE149: 22147.0653 | AF149: 23106.57132 | AG149: 22701.28265 | AH149: 22293.18649 | AI149: 24474.66007 | AJ149: 23290.46316 | AK149: 272430.9143 | AL149: 2687.807781 | AM149: 2000 | AN149: -390.2618722 | AO149: 276728.4602 | AP149: 5.820766091e-11
B150: 11 | C150: 50 | D150: 123 | E150: Mar | F150: 0.02022221265 | G150: 0.3550263059 | H150: 0.13 | I150: =IF(D150="", "", IF(D150>=$N$25,0, H150*AVERAGE(AA138:AA149))) -> 2787.834208 | J150: 2000 | K150: -10 | L150: -100 | M150: -100 | N150: -27.95162944 | O150: =IF(D150="","",VLOOKUP($H$25,INDIRECT("'"&$J$25&"'!"&$K$23),Model!B150+1)) -> 0.00217 | Q150: 123 | R150: 50 | S150: 1276728.46 | T150: 1000000 | U150: -162.75 | V150: -390.7016294 | W150: 0 | X150: =IF($D150="","",IFERROR(MIN(MAX(-(AA149+J150+I150+W150+V150)/(AO149-AA149),0),1),0)) -> 0 | Y150: 25691.46658 | Z150: =IF($D150="", "", MAX(Z149*(1-$X150),0)) -> 24972.99038 | AA150: =IF($D150="", "", MAX(AA149 + $I150 + $J150 + $W150+$V150, 0)) -> 25842.0111 | AB150: 21686.34408 | AC150: 21649.26969 | AD150: 23270.28191 | AE150: 22147.0653 | AF150: 23106.57132 | AG150: 22701.28265 | AH150: 22293.18649 | AI150: 24474.66007 | AJ150: 23290.46316 | AK150: 276728.4602 | AL150: 2787.834208 | AM150: 2000 | AN150: -390.7016294 | AO150: 281125.5927 | AP150: -5.820766091e-11
B151: 11 | C151: 50 | D151: 124 | E151: Apr | F151: -0.003722942675 | G151: 0.337232152 | H151: 0.13 | I151: =IF(D151="", "", IF(D151>=$N$25,0, H151*AVERAGE(AB139:AB150))) -> 2819.22473 | J151: 2000 | K151: -10 | L151: -100 | M151: -100 | N151: -28.39448175 | O151: =IF(D151="","",VLOOKUP($H$25,INDIRECT("'"&$J$25&"'!"&$K$23),Model!B151+1)) -> 0.00217 | Q151: 124 | R151: 50 | S151: 1281125.593 | T151: 1000000 | U151: -162.75 | V151: -391.1444817 | W151: 0 | X151: =IF($D151="","",IFERROR(MIN(MAX(-(AB150+J151+I151+W151+V151)/(AO150-AB150),0),1),0)) -> 0 | Y151: 25691.46658 | Z151: 24972.99038 | AA151: =IF($D151="", "", MAX(AA150*(1-$X151),0)) -> 25842.0111 | AB151: =IF($D151="", "", MAX(AB150 + $I151 + $J151 + $W151+$V151, 0)) -> 26114.42433 | AC151: 21649.26969 | AD151: 23270.28191 | AE151: 22147.0653 | AF151: 23106.57132 | AG151: 22701.28265 | AH151: 22293.18649 | AI151: 24474.66007 | AJ151: 23290.46316 | AK151: 281125.5927 | AL151: 2819.22473 | AM151: 2000 | AN151: -391.1444817 | AO151: 285553.673 | AP151: 0
B152: 11 | C152: 50 | D152: 125 | E152: May | F152: 0.03741046254 | G152: 0.3209324759 | H152: 0.13 | I152: =IF(D152="", "", IF(D152>=$N$25,0, H152*AVERAGE(AC140:AC151))) -> 2814.40506 | J152: 2000 | K152: -10 | L152: -100 | M152: -100 | N152: -28.83680781 | O152: =IF(D152="","",VLOOKUP($H$25,INDIRECT("'"&$J$25&"'!"&$K$23),Model!B152+1)) -> 0.00217 | Q152: 125 | R152: 50 | S152: 1285553.673 | T152: 1000000 | U152: -162.75 | V152: -391.5868078 | W152: 0 | X152: =IF($D152="","",IFERROR(MIN(MAX(-(AC151+J152+I152+W152+V152)/(AO151-AC151),0),1),0)) -> 0 | Y152: 25691.46658 | Z152: 24972.99038 | AA152: 25842.0111 | AB152: =IF($D152="", "", MAX(AB151*(1-$X152),0)) -> 26114.42433 | AC152: =IF($D152="", "", MAX(AC151 + $I152 + $J152 +$W152+$V152, 0)) -> 26072.08795 | AD152: 23270.28191 | AE152: 22147.0653 | AF152: 23106.57132 | AG152: 22701.28265 | AH152: 22293.18649 | AI152: 24474.66007 | AJ152: 23290.46316 | AK152: 285553.673 | AL152: 2814.40506 | AM152: 2000 | AN152: -391.5868078 | AO152: 289976.4912 | AP152: 0
B153: 11 | C153: 50 | D153: 126 | E153: Jun | F153: -0.01629091306 | G153: 0.289633917 | H153: 0.13 | I153: =IF(D153="", "", IF(D153>=$N$25,0, H153*AVERAGE(AD141:AD152))) -> 3025.136649 | J153: 2000 | K153: -10 | L153: -100 | M153: -100 | N153: -29.30016279 | O153: =IF(D153="","",VLOOKUP($H$25,INDIRECT("'"&$J$25&"'!"&$K$23),Model!B153+1)) -> 0.00217 | Q153: 126 | R153: 50 | S153: 1289976.491 | T153: 1000000 | U153: -162.75 | V153: -392.0501628 | W153: 0 | X153: =IF($D153="","",IFERROR(MIN(MAX(-(AD152+J153+I153+W153+V153)/(AO152-AD152),0),1),0)) -> 0 | Y153: 25691.46658 | Z153: 24972.99038 | AA153: 25842.0111 | AB153: 26114.42433 | AC153: =IF($D153="", "", MAX(AC152*(1-$X153),0)) -> 26072.08795 | AD153: =IF($D153="", "", MAX(AD152+ $I153 + $J153 + $W153 +$V153, 0)) -> 27903.3684 | AE153: 22147.0653 | AF153: 23106.57132 | AG153: 22701.28265 | AH153: 22293.18649 | AI153: 24474.66007 | AJ153: 23290.46316 | AK153: 289976.4912 | AL153: 3025.136649 | AM153: 2000 | AN153: -392.0501628 | AO153: 294609.5777 | AP153: 0
B154: 11 | C154: 50 | D154: 127 | E154: Jul | F154: 0.01898939544 | G154: 0.2951424846 | H154: 0.13 | I154: =IF(D154="", "", IF(D154>=$N$25,0, H154*AVERAGE(AE142:AE153))) -> 2879.118489 | J154: 2000 | K154: -10 | L154: -100 | M154: -100 | N154: -29.74886962 | O154: =IF(D154="","",VLOOKUP($H$25,INDIRECT("'"&$J$25&"'!"&$K$23),Model!B154+1)) -> 0.00217 | Q154: 127 | R154: 50 | S154: 1294609.578 | T154: 1000000 | U154: -162.75 | V154: -392.4988696 | W154: 0 | X154: =IF($D154="","",IFERROR(MIN(MAX(-(AE153+J154+I154+W154+V154)/(AO153-AE153),0),1),0)) -> 0 | Y154: 25691.46658 | Z154: 24972.99038 | AA154: 25842.0111 | AB154: 26114.42433 | AC154: 26072.08795 | AD154: =IF($D154="", "", MAX(AD153*(1-$X154),0)) -> 27903.3684 | AE154: =IF($D154="", "", MAX(AE153 + $I154 + $J154 + $W154+$V154, 0)) -> 26633.68492 | AF154: 23106.57132 | AG154: 22701.28265 | AH154: 22293.18649 | AI154: 24474.66007 | AJ154: 23290.46316 | AK154: 294609.5777 | AL154: 2879.118489 | AM154: 2000 | AN154: -392.4988696 | AO154: 299096.1973 | AP154: 0
B155: 11 | C155: 50 | D155: 128 | E155: Aug | F155: -0.01983955605 | G155: 0.2853611161 | H155: 0.13 | I155: =IF(D155="", "", IF(D155>=$N$25,0, H155*AVERAGE(AF143:AF154))) -> 3003.854271 | J155: 2000 | K155: -10 | L155: -100 | M155: -100 | N155: -30.21000516 | O155: =IF(D155="","",VLOOKUP($H$25,INDIRECT("'"&$J$25&"'!"&$K$23),Model!B155+1)) -> 0.00217 | Q155: 128 | R155: 50 | S155: 1299096.197 | T155: 1000000 | U155: -162.75 | V155: -392.9600052 | W155: 0 | X155: =IF($D155="","",IFERROR(MIN(MAX(-(AF154+J155+I155+W155+V155)/(AO154-AF154),0),1),0)) -> 0 | Y155: 25691.46658 | Z155: 24972.99038 | AA155: 25842.0111 | AB155: 26114.42433 | AC155: 26072.08795 | AD155: 27903.3684 | AE155: =IF($D155="", "", MAX(AE154*(1-$X155),0)) -> 26633.68492 | AF155: =IF($D155="", "", MAX(AF154 + $I155 + $J155 + $W155 +$V155, 0)) -> 27717.46558 | AG155: 22701.28265 | AH155: 22293.18649 | AI155: 24474.66007 | AJ155: 23290.46316 | AK155: 299096.1973 | AL155: 3003.854271 | AM155: 2000 | AN155: -392.9600052 | AO155: 303707.0916 | AP155: 0
B156: 11 | C156: 50 | D156: 129 | E156: Sep | F156: 0.105506698 | G156: 0.3007165975 | H156: 0.13 | I156: =IF(D156="", "", IF(D156>=$N$25,0, H156*AVERAGE(AG144:AG155))) -> 2951.166745 | J156: 2000 | K156: =IF(D156="","",IF(D156>=$N$25, 0,-$J$20)) -> -10 | L156: =IF(D156="","",IF(D156>=$N$25, 0,-$I$20*J156)) -> -100 | M156: -100 | N156: =IF(D156="","",IF(D156>=$N$25, 0,-$L$20*(AK156+AL156))) -> -30.66582584 | O156: =IF(D156="","",VLOOKUP($H$25,INDIRECT("'"&$J$25&"'!"&$K$23),Model!B156+1)) -> 0.00217 | Q156: =D156 -> 129 | R156: =C156 -> 50 | S156: =IF(D156="","",IF(D156>$N$25, 0,$H$20+AK156)) -> 1303707.092 | T156: =IF(D156="","",IF(D156>$N$25, 0,$H$20)) -> 1000000 | U156: =IF(D156="","",IF(D156>=$N$25, 0,-$M$20*O156*T156/12)) -> -162.75 | V156: =IF(D156="","",IF(D156>=$N$25, 0,SUM(L156:N156)+U156)) -> -393.4158258 | W156: 0 | X156: =IF($D156="","",IFERROR(MIN(MAX(-(AG155+J156+I156+W156+V156)/(AO155-AG155),0),1),0)) -> 0 | Y156: 25691.46658 | Z156: 24972.99038 | AA156: 25842.0111 | AB156: 26114.42433 | AC156: 26072.08795 | AD156: 27903.3684 | AE156: 26633.68492 | AF156: =IF($D156="", "", MAX(AF155*(1-$X156),0)) -> 27717.46558 | AG156: =IF($D156="", "", MAX(AG155 + $I156 + $J156 + $W156+$V156, 0)) -> 27259.03357 | AH156: 22293.18649 | AI156: 24474.66007 | AJ156: 23290.46316 | AK156: 303707.0916 | AL156: =I156 -> 2951.166745 | AM156: 2000 | AN156: =V156 -> -393.4158258 | AO156: 308264.8425 | AP156: =IF(D156="","",IF(D156=$N$25,AO156-SUM(AK156:AN156)-$H$20,AO156-SUM(AK156:AN156))) -> 0
B157: 11 | C157: 50 | D157: 130 | E157: Oct | F157: =IF($D157 = "", "",IF(D157>=$N$25, 0,_xlfn.NORM.INV(RAND(), $G$5,$H$5))) -> -0.06871248361 | G157: 0.3842226636 | H157: 0.13 | I157: =IF(D157="", "", IF(D157>=$N$25,0, H157*AVERAGE(AH145:AH156))) -> 2898.114244 | J157: 2000 | K157: -10 | L157: -100 | M157: -100 | N157: -31.11629568 | O157: =IF(D157="","",VLOOKUP($H$25,INDIRECT("'"&$J$25&"'!"&$K$23),Model!B157+1)) -> 0.00217 | Q157: 130 | R157: 50 | S157: 1308264.843 | T157: 1000000 | U157: -162.75 | V157: -393.8662957 | W157: 0 | X157: =IF($D157="","",IFERROR(MIN(MAX(-(AH156+J157+I157+W157+V157)/(AO156-AH156),0),1),0)) -> 0 | Y157: 25691.46658 | Z157: 24972.99038 | AA157: 25842.0111 | AB157: 26114.42433 | AC157: 26072.08795 | AD157: 27903.3684 | AE157: 26633.68492 | AF157: 27717.46558 | AG157: =IF($D157="", "", MAX(AG156*(1-$X157),0)) -> 27259.03357 | AH157: =IF($D157="", "", MAX(AH156 + $I157 + $J157 + $W157+$V157, 0)) -> 26797.43444 | AI157: 24474.66007 | AJ157: 23290.46316 | AK157: 308264.8425 | AL157: 2898.114244 | AM157: =IF($D157="","",IF(D157=$N$25,$J157+$W157-$AO157-$H$20,$J157+$W157)) -> 2000 | AN157: -393.8662957 | AO157: =IF(D157 = "", "", SUM(Y157:AJ157)) -> 312769.0905 | AP157: 0
B158: 11 | C158: 50 | D158: =IF($C158="", "", $D157+1) -> 131 | E158: Nov | F158: 0.02138795437 | G158: 0.2063062148 | H158: 0.13 | I158: =IF(D158="", "", IF(D158>=$N$25,0, H158*AVERAGE(AI146:AI157))) -> 3181.705809 | J158: 2000 | K158: -10 | L158: -100 | M158: -100 | N158: -31.59507963 | O158: =IF(D158="","",VLOOKUP($H$25,INDIRECT("'"&$J$25&"'!"&$K$23),Model!B158+1)) -> 0.00217 | Q158: 131 | R158: 50 | S158: 1312769.09 | T158: 1000000 | U158: -162.75 | V158: -394.3450796 | W158: 0 | X158: =IF($D158="","",IFERROR(MIN(MAX(-(AI157+J158+I158+W158+V158)/(AO157-AI157),0),1),0)) -> 0 | Y158: 25691.46658 | Z158: 24972.99038 | AA158: 25842.0111 | AB158: 26114.42433 | AC158: 26072.08795 | AD158: 27903.3684 | AE158: 26633.68492 | AF158: 27717.46558 | AG158: 27259.03357 | AH158: =IF($D158="", "", MAX(AH157*(1-$X158),0)) -> 26797.43444 | AI158: =IF($D158="", "", MAX(AI157 + $I158 + $J158 + $W158 +$V158, 0)) -> 29262.0208 | AJ158: 23290.46316 | AK158: 312769.0905 | AL158: 3181.705809 | AM158: 2000 | AN158: -394.3450796 | AO158: 317556.4512 | AP158: 5.820766091e-11
B159: 11 | C159: 50 | D159: 132 | E159: Dec | F159: -0.03415610717 | G159: 0.173323785 | H159: 0.13 | I159: =IF(D159="", "", IF(D159>=$N$25,0, H159*AVERAGE(AJ147:AJ158))) -> 3027.760211 | J159: 2000 | K159: -10 | L159: -100 | M159: -100 | N159: -32.05842114 | O159: =IF(D159="","",VLOOKUP($H$25,INDIRECT("'"&$J$25&"'!"&$K$23),Model!B159+1)) -> 0.00217 | Q159: 132 | R159: 50 | S159: 1317556.451 | T159: 1000000 | U159: -162.75 | V159: -394.8084211 | W159: 0 | X159: =IF($D159="","",IFERROR(MIN(MAX(-(AJ158+J159+I159+W159+V159)/(AO158-AJ158),0),1),0)) -> 0 | Y159: 25691.46658 | Z159: 24972.99038 | AA159: 25842.0111 | AB159: 26114.42433 | AC159: 26072.08795 | AD159: 27903.3684 | AE159: 26633.68492 | AF159: 27717.46558 | AG159: 27259.03357 | AH159: 26797.43444 | AI159: =IF($D159="", "", MAX(AI158*(1-$X159),0)) -> 29262.0208 | AJ159: =IF($D159="", "", MAX(AJ158 + $I159 + $J159 + $W159+$V159, 0)) -> 27923.41495 | AK159: 317556.4512 | AL159: 3027.760211 | AM159: 2000 | AN159: -394.8084211 | AO159: 322189.403 | AP159: 0
B160: =IF(D160="","", B159+1) -> 12 | C160: 51 | D160: 133 | E160: Jan | F160: -0.0907161677 | G160: 0.1050454358 | H160: 0.1050454358 | I160: =IF(D160="", "", IF(D160>=$N$25,0, H160*AVERAGE(Y148:Y159))) -> 2698.771303 | J160: 2000 | K160: -10 | L160: -100 | M160: -100 | N160: -32.48881743 | O160: =IF(D160="","",VLOOKUP($H$25,INDIRECT("'"&$J$25&"'!"&$K$23),Model!B160+1)) -> 0.00242 | P160: =IF(D160="","",IF(RANDBETWEEN(0, 10000)/10000>O160, "No", "Yes")) -> No | Q160: 133 | R160: 51 | S160: 1322189.403 | T160: 1000000 | U160: -181.5 | V160: -413.9888174 | W160: 0 | X160: =IF($D160="","",IFERROR(MIN(MAX(-(Y159+J160+I160+W160+V160)/(AO159-Y159),0),1),0)) -> 0 | Y160: =IF($D160="", "", MAX($Y159 + $I160 + $J160 + $W160+ $V160, 0)) -> 29976.24907 | Z160: 24972.99038 | AA160: 25842.0111 | AB160: 26114.42433 | AC160: 26072.08795 | AD160: 27903.3684 | AE160: 26633.68492 | AF160: 27717.46558 | AG160: 27259.03357 | AH160: 26797.43444 | AI160: 29262.0208 | AJ160: =IF($D160="", "", MAX(AJ159*(1-$X160),0)) -> 27923.41495 | AK160: 322189.403 | AL160: 2698.771303 | AM160: 2000 | AN160: -413.9888174 | AO160: 326474.1855 | AP160: 5.820766091e-11
B161: =IF(D161="","",B160) -> 12 | C161: 51 | D161: 134 | E161: Feb | F161: 0.03873229157 | G161: -0.01850444827 | H161: 0 | I161: =IF(D161="", "", IF(D161>=$N$25,0, H161*AVERAGE(Z149:Z160))) -> 0 | J161: 2000 | K161: -10 | L161: -100 | M161: -100 | N161: -32.64741855 | O161: =IF(D161="","",VLOOKUP($H$25,INDIRECT("'"&$J$25&"'!"&$K$23),Model!B161+1)) -> 0.00242 | Q161: 134 | R161: 51 | S161: 1326474.185 | T161: 1000000 | U161: -181.5 | V161: -414.1474185 | W161: 0 | X161: =IF($D161="","",IFERROR(MIN(MAX(-(Z160+J161+I161+W161+V161)/(AO160-Z160),0),1),0)) -> 0 | Y161: =IF($D161="", "", MAX(Y160*(1-$X161),0)) -> 29976.24907 | Z161: =IF($D161="", "", MAX(Z160 + $I161 + $J161 + $W161 +$V161, 0)) -> 26558.84296 | AA161: 25842.0111 | AB161: 26114.42433 | AC161: 26072.08795 | AD161: 27903.3684 | AE161: 26633.68492 | AF161: 27717.46558 | AG161: 27259.03357 | AH161: 26797.43444 | AI161: 29262.0208 | AJ161: 27923.41495 | AK161: 326474.1855 | AL161: 0 | AM161: 2000 | AN161: -414.1474185 | AO161: 328060.0381 | AP161: 0
B162: 12 | C162: 51 | D162: 135 | E162: Mar | F162: 0.02947769308 | G162: -0.006186301421 | H162: 0 | I162: =IF(D162="", "", IF(D162>=$N$25,0, H162*AVERAGE(AA150:AA161))) -> 0 | J162: 2000 | K162: -10 | L162: -100 | M162: -100 | N162: -32.80600381 | O162: =IF(D162="","",VLOOKUP($H$25,INDIRECT("'"&$J$25&"'!"&$K$23),Model!B162+1)) -> 0.00242 | Q162: 135 | R162: 51 | S162: 1328060.038 | T162: 1000000 | U162: -181.5 | V162: -414.3060038 | W162: 0 | X162: =IF($D162="","",IFERROR(MIN(MAX(-(AA161+J162+I162+W162+V162)/(AO161-AA161),0),1),0)) -> 0 | Y162: 29976.24907 | Z162: =IF($D162="", "", MAX(Z161*(1-$X162),0)) -> 26558.84296 | AA162: =IF($D162="", "", MAX(AA161 + $I162 + $J162 + $W162+$V162, 0)) -> 27427.7051 | AB162: 26114.42433 | AC162: 26072.08795 | AD162: 27903.3684 | AE162: 26633.68492 | AF162: 27717.46558 | AG162: 27259.03357 | AH162: 26797.43444 | AI162: 29262.0208 | AJ162: 27923.41495 | AK162: 328060.0381 | AL162: 0 | AM162: 2000 | AN162: -414.3060038 | AO162: 329645.7321 | AP162: 0
B163: 12 | C163: 51 | D163: 136 | E163: Apr | F163: 0.01368502147 | G163: 0.00282960033 | H163: 0.00282960033 | I163: =IF(D163="", "", IF(D163>=$N$25,0, H163*AVERAGE(AB151:AB162))) -> 73.8933837 | J163: 2000 | K163: -10 | L163: -100 | M163: -100 | N163: -32.97196254 | O163: =IF(D163="","",VLOOKUP($H$25,INDIRECT("'"&$J$25&"'!"&$K$23),Model!B163+1)) -> 0.00242 | Q163: 136 | R163: 51 | S163: 1329645.732 | T163: 1000000 | U163: -181.5 | V163: -414.4719625 | W163: 0 | X163: =IF($D163="","",IFERROR(MIN(MAX(-(AB162+J163+I163+W163+V163)/(AO162-AB162),0),1),0)) -> 0 | Y163: 29976.24907 | Z163: 26558.84296 | AA163: =IF($D163="", "", MAX(AA162*(1-$X163),0)) -> 27427.7051 | AB163: =IF($D163="", "", MAX(AB162 + $I163 + $J163 + $W163+$V163, 0)) -> 27773.84575 | AC163: 26072.08795 | AD163: 27903.3684 | AE163: 26633.68492 | AF163: 27717.46558 | AG163: 27259.03357 | AH163: 26797.43444 | AI163: 29262.0208 | AJ163: 27923.41495 | AK163: 329645.7321 | AL163: 73.8933837 | AM163: 2000 | AN163: -414.4719625 | AO163: 331305.1535 | AP163: 0
B164: 12 | C164: 51 | D164: 137 | E164: May | F164: 0.009089318221 | G164: 0.02035205716 | H164: 0.02035205716 | I164: =IF(D164="", "", IF(D164>=$N$25,0, H164*AVERAGE(AC152:AC163))) -> 530.6206241 | J164: 2000 | K164: -10 | L164: -100 | M164: -100 | N164: -33.18357741 | O164: =IF(D164="","",VLOOKUP($H$25,INDIRECT("'"&$J$25&"'!"&$K$23),Model!B164+1)) -> 0.00242 | Q164: 137 | R164: 51 | S164: 1331305.153 | T164: 1000000 | U164: -181.5 | V164: -414.6835774 | W164: 0 | X164: =IF($D164="","",IFERROR(MIN(MAX(-(AC163+J164+I164+W164+V164)/(AO163-AC163),0),1),0)) -> 0 | Y164: 29976.24907 | Z164: 26558.84296 | AA164: 27427.7051 | AB164: =IF($D164="", "", MAX(AB163*(1-$X164),0)) -> 27773.84575 | AC164: =IF($D164="", "", MAX(AC163 + $I164 + $J164 +$W164+$V164, 0)) -> 28188.02499 | AD164: 27903.3684 | AE164: 26633.68492 | AF164: 27717.46558 | AG164: 27259.03357 | AH164: 26797.43444 | AI164: 29262.0208 | AJ164: 27923.41495 | AK164: 331305.1535 | AL164: 530.6206241 | AM164: 2000 | AN164: -414.6835774 | AO164: 333421.0905 | AP164: 0
B165: 12 | C165: 51 | D165: 138 | E165: Jun | F165: 0.02707854108 | G165: -0.007503395344 | H165: 0 | I165: =IF(D165="", "", IF(D165>=$N$25,0, H165*AVERAGE(AD153:AD164))) -> 0 | J165: 2000 | K165: -10 | L165: -100 | M165: -100 | N165: -33.34210905 | O165: =IF(D165="","",VLOOKUP($H$25,INDIRECT("'"&$J$25&"'!"&$K$23),Model!B165+1)) -> 0.00242 | Q165: 138 | R165: 51 | S165: 1333421.091 | T165: 1000000 | U165: -181.5 | V165: -414.8421091 | W165: 0 | X165: =IF($D165="","",IFERROR(MIN(MAX(-(AD164+J165+I165+W165+V165)/(AO164-AD164),0),1),0)) -> 0 | Y165: 29976.24907 | Z165: 26558.84296 | AA165: 27427.7051 | AB165: 27773.84575 | AC165: =IF($D165="", "", MAX(AC164*(1-$X165),0)) -> 28188.02499 | AD165: =IF($D165="", "", MAX(AD164+ $I165 + $J165 + $W165 +$V165, 0)) -> 29488.52629 | AE165: 26633.68492 | AF165: 27717.46558 | AG165: 27259.03357 | AH165: 26797.43444 | AI165: 29262.0208 | AJ165: 27923.41495 | AK165: 333421.0905 | AL165: 0 | AM165: 2000 | AN165: -414.8421091 | AO165: 335006.2484 | AP165: 0
B166: 12 | C166: 51 | D166: 139 | E166: Jul | F166: 0.04955129547 | G166: 0.03625348009 | H166: 0.03625348009 | I166: =IF(D166="", "", IF(D166>=$N$25,0, H166*AVERAGE(AE154:AE165))) -> 965.5637659 | J166: 2000 | K166: -10 | L166: -100 | M166: -100 | N166: -33.59718122 | O166: =IF(D166="","",VLOOKUP($H$25,INDIRECT("'"&$J$25&"'!"&$K$23),Model!B166+1)) -> 0.00242 | Q166: 139 | R166: 51 | S166: 1335006.248 | T166: 1000000 | U166: -181.5 | V166: -415.0971812 | W166: 0 | X166: =IF($D166="","",IFERROR(MIN(MAX(-(AE165+J166+I166+W166+V166)/(AO165-AE165),0),1),0)) -> 0 | Y166: 29976.24907 | Z166: 26558.84296 | AA166: 27427.7051 | AB166: 27773.84575 | AC166: 28188.02499 | AD166: =IF($D166="", "", MAX(AD165*(1-$X166),0)) -> 29488.52629 | AE166: =IF($D166="", "", MAX(AE165 + $I166 + $J166 + $W166+$V166, 0)) -> 29184.1515 | AF166: 27717.46558 | AG166: 27259.03357 | AH166: 26797.43444 | AI166: 29262.0208 | AJ166: 27923.41495 | AK166: 335006.2484 | AL166: 965.5637659 | AM166: 2000 | AN166: -415.0971812 | AO166: 337556.715 | AP166: -5.820766091e-11
B167: 12 | C167: 51 | D167: 140 | E167: Aug | F167: -0.0468076892 | G167: 0.06733317082 | H167: 0.06733317082 | I167: =IF(D167="", "", IF(D167>=$N$25,0, H167*AVERAGE(AF155:AF166))) -> 1866.304845 | J167: 2000 | K167: -10 | L167: -100 | M167: -100 | N167: -33.94230199 | O167: =IF(D167="","",VLOOKUP($H$25,INDIRECT("'"&$J$25&"'!"&$K$23),Model!B167+1)) -> 0.00242 | Q167: 140 | R167: 51 | S167: 1337556.715 | T167: 1000000 | U167: -181.5 | V167: -415.442302 | W167: 0 | X167: =IF($D167="","",IFERROR(MIN(MAX(-(AF166+J167+I167+W167+V167)/(AO166-AF166),0),1),0)) -> 0 | Y167: 29976.24907 | Z167: 26558.84296 | AA167: 27427.7051 | AB167: 27773.84575 | AC167: 28188.02499 | AD167: 29488.52629 | AE167: =IF($D167="", "", MAX(AE166*(1-$X167),0)) -> 29184.1515 | AF167: =IF($D167="", "", MAX(AF166 + $I167 + $J167 + $W167 +$V167, 0)) -> 31168.32812 | AG167: 27259.03357 | AH167: 26797.43444 | AI167: 29262.0208 | AJ167: 27923.41495 | AK167: 337556.715 | AL167: 1866.304845 | AM167: 2000 | AN167: -415.442302 | AO167: 341007.5775 | AP167: 5.820766091e-11
B168: 12 | C168: 51 | D168: 141 | E168: Sep | F168: -0.03560777484 | G168: 0.03796656737 | H168: =IF($D168 = "", "", IF(D168>=$N$25, 0,IF(G168<$G$20, IF(G168>$F$20, G168, $F$20), $G$20))) -> 0.03796656737 | I168: =IF(D168="", "", IF(D168>=$N$25,0, H168*AVERAGE(AG156:AG167))) -> 1034.931935 | J168: 2000 | K168: -10 | L168: -100 | M168: =IF(D168="","",IF(D168>=$N$25, 0,-$K$20)) -> -100 | N168: -34.20425095 | O168: =IF(D168="","",VLOOKUP($H$25,INDIRECT("'"&$J$25&"'!"&$K$23),Model!B168+1)) -> 0.00242 | Q168: 141 | R168: 51 | S168: 1341007.578 | T168: 1000000 | U168: -181.5 | V168: -415.7042509 | W168: 0 | X168: =IF($D168="","",IFERROR(MIN(MAX(-(AG167+J168+I168+W168+V168)/(AO167-AG167),0),1),0)) -> 0 | Y168: 29976.24907 | Z168: 26558.84296 | AA168: 27427.7051 | AB168: 27773.84575 | AC168: 28188.02499 | AD168: 29488.52629 | AE168: 29184.1515 | AF168: =IF($D168="", "", MAX(AF167*(1-$X168),0)) -> 31168.32812 | AG168: =IF($D168="", "", MAX(AG167 + $I168 + $J168 + $W168+$V168, 0)) -> 29878.26126 | AH168: 26797.43444 | AI168: 29262.0208 | AJ168: 27923.41495 | AK168: =IF(D168 = "", "",Y167 + Z167+AA167 + AB167+ AC167+AD167+AE167+AF167+AG167+AH167 + AI167+AJ167) -> 341007.5775 | AL168: 1034.931935 | AM168: 2000 | AN168: -415.7042509 | AO168: 343626.8052 | AP168: 0
B169: 12 | C169: =IF(C168="","",IF(C157+1<=120, C157 + 1, "")) -> 51 | D169: 142 | E169: =IF($D169 = "", "",E157) -> Oct | F169: -0.07233677358 | G169: =IF($D169 = "", "",IF(D169>=$N$25, 0,((1+F157)*(1+F158)*(1+F159)*(1+F160)*(1+F161)*(1+F162)*(1+F163)*(1+F164)*(1+F165)*(1+F166)*(1+F167)*(1+F168))-1)) -> -0.09452661898 | H169: 0 | I169: =IF(D169="", "", IF(D169>=$N$25,0, H169*AVERAGE(AH157:AH168))) -> 0 | J169: =IF(D169="","",IF(D169>=$N$25, 0, IF($L$5="Single Premium",0,IF(C169<$N$5,$M$5,0)))) -> 2000 | K169: -10 | L169: -100 | M169: -100 | N169: -34.36268052 | O169: =IF(D169="","",VLOOKUP($H$25,INDIRECT("'"&$J$25&"'!"&$K$23),Model!B169+1)) -> 0.00242 | Q169: 142 | R169: 51 | S169: 1343626.805 | T169: 1000000 | U169: -181.5 | V169: -415.8626805 | W169: 0 | X169: =IF($D169="","",IFERROR(MIN(MAX(-(AH168+J169+I169+W169+V169)/(AO168-AH168),0),1),0)) -> 0 | Y169: 29976.24907 | Z169: 26558.84296 | AA169: 27427.7051 | AB169: 27773.84575 | AC169: 28188.02499 | AD169: 29488.52629 | AE169: 29184.1515 | AF169: 31168.32812 | AG169: =IF($D169="", "", MAX(AG168*(1-$X169),0)) -> 29878.26126 | AH169: =IF($D169="", "", MAX(AH168 + $I169 + $J169 + $W169+$V169, 0)) -> 28381.57176 | AI169: 29262.0208 | AJ169: 27923.41495 | AK169: 343626.8052 | AL169: 0 | AM169: 2000 | AN169: -415.8626805 | AO169: 345210.9426 | AP169: 0
B170: 12 | C170: 51 | D170: 143 | E170: Nov | F170: -0.005011275978 | G170: -0.09805044812 | H170: 0 | I170: =IF(D170="", "", IF(D170>=$N$25,0, H170*AVERAGE(AI158:AI169))) -> 0 | J170: 2000 | K170: -10 | L170: -100 | M170: -100 | N170: -34.52109426 | O170: =IF(D170="","",VLOOKUP($H$25,INDIRECT("'"&$J$25&"'!"&$K$23),Model!B170+1)) -> 0.00242 | Q170: 143 | R170: 51 | S170: 1345210.943 | T170: 1000000 | U170: -181.5 | V170: -416.0210943 | W170: 0 | X170: =IF($D170="","",IFERROR(MIN(MAX(-(AI169+J170+I170+W170+V170)/(AO169-AI169),0),1),0)) -> 0 | Y170: 29976.24907 | Z170: 26558.84296 | AA170: 27427.7051 | AB170: 27773.84575 | AC170: 28188.02499 | AD170: 29488.52629 | AE170: 29184.1515 | AF170: 31168.32812 | AG170: 29878.26126 | AH170: =IF($D170="", "", MAX(AH169*(1-$X170),0)) -> 28381.57176 | AI170: =IF($D170="", "", MAX(AI169 + $I170 + $J170 + $W170 +$V170, 0)) -> 30845.99971 | AJ170: 27923.41495 | AK170: 345210.9426 | AL170: 0 | AM170: 2000 | AN170: -416.0210943 | AO170: 346794.9215 | AP170: 0
B171: 12 | C171: 51 | D171: 144 | E171: Dec | F171: -0.01447743061 | G171: -0.1213626224 | H171: 0 | I171: =IF(D171="", "", IF(D171>=$N$25,0, H171*AVERAGE(AJ159:AJ170))) -> 0 | J171: 2000 | K171: -10 | L171: -100 | M171: -100 | N171: -34.67949215 | O171: =IF(D171="","",VLOOKUP($H$25,INDIRECT("'"&$J$25&"'!"&$K$23),Model!B171+1)) -> 0.00242 | Q171: 144 | R171: 51 | S171: 1346794.921 | T171: 1000000 | U171: -181.5 | V171: -416.1794921 | W171: 0 | X171: =IF($D171="","",IFERROR(MIN(MAX(-(AJ170+J171+I171+W171+V171)/(AO170-AJ170),0),1),0)) -> 0 | Y171: 29976.24907 | Z171: 26558.84296 | AA171: 27427.7051 | AB171: 27773.84575 | AC171: 28188.02499 | AD171: 29488.52629 | AE171: 29184.1515 | AF171: 31168.32812 | AG171: 29878.26126 | AH171: 28381.57176 | AI171: =IF($D171="", "", MAX(AI170*(1-$X171),0)) -> 30845.99971 | AJ171: =IF($D171="", "", MAX(AJ170 + $I171 + $J171 + $W171+$V171, 0)) -> 29507.23546 | AK171: 346794.9215 | AL171: 0 | AM171: 2000 | AN171: -416.1794921 | AO171: 348378.742 | AP171: 0
B172: =IF(D172="","", B171+1) -> 13 | C172: 52 | D172: 145 | E172: Jan | F172: -0.02184440221 | G172: -0.1034607431 | H172: 0 | I172: =IF(D172="", "", IF(D172>=$N$25,0, H172*AVERAGE(Y160:Y171))) -> 0 | J172: 2000 | K172: -10 | L172: -100 | M172: -100 | N172: -34.8378742 | O172: =IF(D172="","",VLOOKUP($H$25,INDIRECT("'"&$J$25&"'!"&$K$23),Model!B172+1)) -> 0.0027 | P172: =IF(D172="","",IF(RANDBETWEEN(0, 10000)/10000>O172, "No", "Yes")) -> No | Q172: 145 | R172: 52 | S172: 1348378.742 | T172: 1000000 | U172: -202.5 | V172: -437.3378742 | W172: 0 | X172: =IF($D172="","",IFERROR(MIN(MAX(-(Y171+J172+I172+W172+V172)/(AO171-Y171),0),1),0)) -> 0 | Y172: =IF($D172="", "", MAX($Y171 + $I172 + $J172 + $W172+ $V172, 0)) -> 31538.91119 | Z172: 26558.84296 | AA172: 27427.7051 | AB172: 27773.84575 | AC172: 28188.02499 | AD172: 29488.52629 | AE172: 29184.1515 | AF172: 31168.32812 | AG172: 29878.26126 | AH172: 28381.57176 | AI172: 30845.99971 | AJ172: =IF($D172="", "", MAX(AJ171*(1-$X172),0)) -> 29507.23546 | AK172: 348378.742 | AL172: 0 | AM172: 2000 | AN172: -437.3378742 | AO172: 349941.4041 | AP172: 0
B173: =IF(D173="","",B172) -> 13 | C173: 52 | D173: 146 | E173: Feb | F173: 0.007261486567 | G173: -0.03555428831 | H173: 0 | I173: =IF(D173="", "", IF(D173>=$N$25,0, H173*AVERAGE(Z161:Z172))) -> 0 | J173: 2000 | K173: -10 | L173: -100 | M173: -100 | N173: -34.99414041 | O173: =IF(D173="","",VLOOKUP($H$25,INDIRECT("'"&$J$25&"'!"&$K$23),Model!B173+1)) -> 0.0027 | Q173: 146 | R173: 52 | S173: 1349941.404 | T173: 1000000 | U173: -202.5 | V173: -437.4941404 | W173: 0 | X173: =IF($D173="","",IFERROR(MIN(MAX(-(Z172+J173+I173+W173+V173)/(AO172-Z172),0),1),0)) -> 0 | Y173: =IF($D173="", "", MAX(Y172*(1-$X173),0)) -> 31538.91119 | Z173: =IF($D173="", "", MAX(Z172 + $I173 + $J173 + $W173 +$V173, 0)) -> 28121.34882 | AA173: 27427.7051 | AB173: 27773.84575 | AC173: 28188.02499 | AD173: 29488.52629 | AE173: 29184.1515 | AF173: 31168.32812 | AG173: 29878.26126 | AH173: 28381.57176 | AI173: 30845.99971 | AJ173: 29507.23546 | AK173: 349941.4041 | AL173: 0 | AM173: 2000 | AN173: -437.4941404 | AO173: 351503.91 | AP173: 5.820766091e-11
B174: 13 | C174: 52 | D174: 147 | E174: Mar | F174: 0.02364975199 | G174: -0.06477440901 | H174: 0 | I174: =IF(D174="", "", IF(D174>=$N$25,0, H174*AVERAGE(AA162:AA173))) -> 0 | J174: 2000 | K174: -10 | L174: -100 | M174: -100 | N174: -35.150391 | O174: =IF(D174="","",VLOOKUP($H$25,INDIRECT("'"&$J$25&"'!"&$K$23),Model!B174+1)) -> 0.0027 | Q174: 147 | R174: 52 | S174: 1351503.91 | T174: 1000000 | U174: -202.5 | V174: -437.650391 | W174: 0 | X174: =IF($D174="","",IFERROR(MIN(MAX(-(AA173+J174+I174+W174+V174)/(AO173-AA173),0),1),0)) -> 0 | Y174: 31538.91119 | Z174: =IF($D174="", "", MAX(Z173*(1-$X174),0)) -> 28121.34882 | AA174: =IF($D174="", "", MAX(AA173 + $I174 + $J174 + $W174+$V174, 0)) -> 28990.05471 | AB174: 27773.84575 | AC174: 28188.02499 | AD174: 29488.52629 | AE174: 29184.1515 | AF174: 31168.32812 | AG174: 29878.26126 | AH174: 28381.57176 | AI174: 30845.99971 | AJ174: 29507.23546 | AK174: 351503.91 | AL174: 0 | AM174: 2000 | AN174: -437.650391 | AO174: 353066.2596 | AP174: 0
B175: 13 | C175: 52 | D175: 148 | E175: Apr | F175: -0.01080670007 | G175: -0.07006878274 | H175: 0 | I175: =IF(D175="", "", IF(D175>=$N$25,0, H175*AVERAGE(AB163:AB174))) -> 0 | J175: 2000 | K175: -10 | L175: -100 | M175: -100 | N175: -35.30662596 | O175: =IF(D175="","",VLOOKUP($H$25,INDIRECT("'"&$J$25&"'!"&$K$23),Model!B175+1)) -> 0.0027 | Q175: 148 | R175: 52 | S175: 1353066.26 | T175: 1000000 | U175: -202.5 | V175: -437.806626 | W175: 0 | X175: =IF($D175="","",IFERROR(MIN(MAX(-(AB174+J175+I175+W175+V175)/(AO174-AB174),0),1),0)) -> 0 | Y175: 31538.91119 | Z175: 28121.34882 | AA175: =IF($D175="", "", MAX(AA174*(1-$X175),0)) -> 28990.05471 | AB175: =IF($D175="", "", MAX(AB174 + $I175 + $J175 + $W175+$V175, 0)) -> 29336.03912 | AC175: 28188.02499 | AD175: 29488.52629 | AE175: 29184.1515 | AF175: 31168.32812 | AG175: 29878.26126 | AH175: 28381.57176 | AI175: 30845.99971 | AJ175: 29507.23546 | AK175: 353066.2596 | AL175: 0 | AM175: 2000 | AN175: -437.806626 | AO175: 354628.4529 | AP175: 0
B176: 13 | C176: 52 | D176: 149 | E176: May | F176: -0.03145614566 | G176: -0.09253692219 | H176: 0 | I176: =IF(D176="", "", IF(D176>=$N$25,0, H176*AVERAGE(AC164:AC175))) -> 0 | J176: 2000 | K176: -10 | L176: -100 | M176: -100 | N176: -35.46284529 | O176: =IF(D176="","",VLOOKUP($H$25,INDIRECT("'"&$J$25&"'!"&$K$23),Model!B176+1)) -> 0.0027 | Q176: 149 | R176: 52 | S176: 1354628.453 | T176: 1000000 | U176: -202.5 | V176: -437.9628453 | W176: =IF(D176="","",IF(D176=$N$25,-(AK176+AL176+J176+V176),IF(OR(C176<$N$5,C176>=$N$5+$O$5),0,MIN(0,MIN(0,-1/(VLOOKUP($N$5+$O$5,$C$28:$D$1479,2,FALSE)-D176+120))*(AK176+AL176+V176-$O$20))))) -> 0 | X176: =IF($D176="","",IFERROR(MIN(MAX(-(AC175+J176+I176+W176+V176)/(AO175-AC175),0),1),0)) -> 0 | Y176: 31538.91119 | Z176: 28121.34882 | AA176: 28990.05471 | AB176: =IF($D176="", "", MAX(AB175*(1-$X176),0)) -> 29336.03912 | AC176: =IF($D176="", "", MAX(AC175 + $I176 + $J176 +$W176+$V176, 0)) -> 29750.06215 | AD176: 29488.52629 | AE176: 29184.1515 | AF176: 31168.32812 | AG176: 29878.26126 | AH176: 28381.57176 | AI176: 30845.99971 | AJ176: 29507.23546 | AK176: 354628.4529 | AL176: 0 | AM176: 2000 | AN176: -437.9628453 | AO176: 356190.4901 | AP176: 0
B177: 13 | C177: 52 | D177: 150 | E177: Jun | F177: -0.044228808 | G177: -0.128999018 | H177: 0 | I177: =IF(D177="", "", IF(D177>=$N$25,0, H177*AVERAGE(AD165:AD176))) -> 0 | J177: 2000 | K177: -10 | L177: -100 | M177: -100 | N177: -35.61904901 | O177: =IF(D177="","",VLOOKUP($H$25,INDIRECT("'"&$J$25&"'!"&$K$23),Model!B177+1)) -> 0.0027 | Q177: 150 | R177: 52 | S177: 1356190.49 | T177: 1000000 | U177: -202.5 | V177: -438.119049 | W177: 0 | X177: =IF($D177="","",IFERROR(MIN(MAX(-(AD176+J177+I177+W177+V177)/(AO176-AD176),0),1),0)) -> 0 | Y177: 31538.91119 | Z177: 28121.34882 | AA177: 28990.05471 | AB177: 29336.03912 | AC177: =IF($D177="", "", MAX(AC176*(1-$X177),0)) -> 29750.06215 | AD177: =IF($D177="", "", MAX(AD176+ $I177 + $J177 + $W177 +$V177, 0)) -> 31050.40724 | AE177: 29184.1515 | AF177: 31168.32812 | AG177: 29878.26126 | AH177: 28381.57176 | AI177: 30845.99971 | AJ177: 29507.23546 | AK177: 356190.4901 | AL177: 0 | AM177: 2000 | AN177: -438.119049 | AO177: 357752.371 | AP177: 0
B178: 13 | C178: 52 | D178: 151 | E178: Jul | F178: 0.04816021813 | G178: -0.1894703146 | H178: 0 | I178: =IF(D178="", "", IF(D178>=$N$25,0, H178*AVERAGE(AE166:AE177))) -> 0 | J178: 2000 | K178: -10 | L178: -100 | M178: -100 | N178: -35.7752371 | O178: =IF(D178="","",VLOOKUP($H$25,INDIRECT("'"&$J$25&"'!"&$K$23),Model!B178+1)) -> 0.0027 | Q178: 151 | R178: 52 | S178: 1357752.371 | T178: 1000000 | U178: -202.5 | V178: -438.2752371 | W178: 0 | X178: =IF($D178="","",IFERROR(MIN(MAX(-(AE177+J178+I178+W178+V178)/(AO177-AE177),0),1),0)) -> 0 | Y178: 31538.91119 | Z178: 28121.34882 | AA178: 28990.05471 | AB178: 29336.03912 | AC178: 29750.06215 | AD178: =IF($D178="", "", MAX(AD177*(1-$X178),0)) -> 31050.40724 | AE178: =IF($D178="", "", MAX(AE177 + $I178 + $J178 + $W178+$V178, 0)) -> 30745.87627 | AF178: 31168.32812 | AG178: 29878.26126 | AH178: 28381.57176 | AI178: 30845.99971 | AJ178: 29507.23546 | AK178: 357752.371 | AL178: 0 | AM178: 2000 | AN178: -438.2752371 | AO178: 359314.0958 | AP178: 0
B179: 13 | C179: 52 | D179: 152 | E179: Aug | F179: 0.05867332939 | G179: -0.1905445923 | H179: 0 | I179: =IF(D179="", "", IF(D179>=$N$25,0, H179*AVERAGE(AF167:AF178))) -> 0 | J179: 2000 | K179: -10 | L179: -100 | M179: -100 | N179: -35.93140958 | O179: =IF(D179="","",VLOOKUP($H$25,INDIRECT("'"&$J$25&"'!"&$K$23),Model!B179+1)) -> 0.0027 | Q179: 152 | R179: 52 | S179: 1359314.096 | T179: 1000000 | U179: -202.5 | V179: -438.4314096 | W179: 0 | X179: =IF($D179="","",IFERROR(MIN(MAX(-(AF178+J179+I179+W179+V179)/(AO178-AF178),0),1),0)) -> 0 | Y179: 31538.91119 | Z179: 28121.34882 | AA179: 28990.05471 | AB179: 29336.03912 | AC179: 29750.06215 | AD179: 31050.40724 | AE179: =IF($D179="", "", MAX(AE178*(1-$X179),0)) -> 30745.87627 | AF179: =IF($D179="", "", MAX(AF178 + $I179 + $J179 + $W179 +$V179, 0)) -> 32729.89671 | AG179: 29878.26126 | AH179: 28381.57176 | AI179: 30845.99971 | AJ179: 29507.23546 | AK179: 359314.0958 | AL179: 0 | AM179: 2000 | AN179: -438.4314096 | AO179: 360875.6644 | AP179: -5.820766091e-11
B180: 13 | C180: 52 | D180: 153 | E180: Sep | F180: 0.03572270001 | G180: -0.1009696136 | H180: 0 | I180: =IF(D180="", "", IF(D180>=$N$25,0, H180*AVERAGE(AG168:AG179))) -> 0 | J180: 2000 | K180: -10 | L180: -100 | M180: -100 | N180: -36.08756644 | O180: =IF(D180="","",VLOOKUP($H$25,INDIRECT("'"&$J$25&"'!"&$K$23),Model!B180+1)) -> 0.0027 | Q180: 153 | R180: 52 | S180: 1360875.664 | T180: 1000000 | U180: -202.5 | V180: -438.5875664 | W180: 0 | X180: =IF($D180="","",IFERROR(MIN(MAX(-(AG179+J180+I180+W180+V180)/(AO179-AG179),0),1),0)) -> 0 | Y180: 31538.91119 | Z180: 28121.34882 | AA180: 28990.05471 | AB180: 29336.03912 | AC180: 29750.06215 | AD180: 31050.40724 | AE180: 30745.87627 | AF180: =IF($D180="", "", MAX(AF179*(1-$X180),0)) -> 32729.89671 | AG180: =IF($D180="", "", MAX(AG179 + $I180 + $J180 + $W180+$V180, 0)) -> 31439.67369 | AH180: 28381.57176 | AI180: 30845.99971 | AJ180: 29507.23546 | AK180: 360875.6644 | AL180: 0 | AM180: 2000 | AN180: -438.5875664 | AO180: 362437.0768 | AP180: 0
B181: =IF(D181="","",B180) -> 13 | C181: 52 | D181: 154 | E181: Oct | F181: 0.03453471832 | G181: -0.03447357318 | H181: 0 | I181: =IF(D181="", "", IF(D181>=$N$25,0, H181*AVERAGE(AH169:AH180))) -> 0 | J181: 2000 | K181: -10 | L181: -100 | M181: -100 | N181: -36.24370768 | O181: =IF(D181="","",VLOOKUP($H$25,INDIRECT("'"&$J$25&"'!"&$K$23),Model!B181+1)) -> 0.0027 | Q181: 154 | R181: 52 | S181: 1362437.077 | T181: 1000000 | U181: -202.5 | V181: -438.7437077 | W181: 0 | X181: =IF($D181="","",IFERROR(MIN(MAX(-(AH180+J181+I181+W181+V181)/(AO180-AH180),0),1),0)) -> 0 | Y181: 31538.91119 | Z181: 28121.34882 | AA181: 28990.05471 | AB181: 29336.03912 | AC181: 29750.06215 | AD181: 31050.40724 | AE181: 30745.87627 | AF181: 32729.89671 | AG181: =IF($D181="", "", MAX(AG180*(1-$X181),0)) -> 31439.67369 | AH181: =IF($D181="", "", MAX(AH180 + $I181 + $J181 + $W181+$V181, 0)) -> 29942.82805 | AI181: 30845.99971 | AJ181: 29507.23546 | AK181: 362437.0768 | AL181: 0 | AM181: 2000 | AN181: -438.7437077 | AO181: 363998.3331 | AP181: 0
B182: 13 | C182: 52 | D182: 155 | E182: Nov | F182: -0.042484856 | G182: 0.07675995076 | H182: 0.07675995076 | I182: =IF(D182="", "", IF(D182>=$N$25,0, H182*AVERAGE(AI170:AI181))) -> 2367.737419 | J182: 2000 | K182: -10 | L182: -100 | M182: -100 | N182: -36.63660705 | O182: =IF(D182="","",VLOOKUP($H$25,INDIRECT("'"&$J$25&"'!"&$K$23),Model!B182+1)) -> 0.0027 | Q182: 155 | R182: 52 | S182: 1363998.333 | T182: 1000000 | U182: -202.5 | V182: -439.1366071 | W182: 0 | X182: =IF($D182="","",IFERROR(MIN(MAX(-(AI181+J182+I182+W182+V182)/(AO181-AI181),0),1),0)) -> 0 | Y182: 31538.91119 | Z182: 28121.34882 | AA182: 28990.05471 | AB182: 29336.03912 | AC182: 29750.06215 | AD182: 31050.40724 | AE182: 30745.87627 | AF182: 32729.89671 | AG182: 31439.67369 | AH182: =IF($D182="", "", MAX(AH181*(1-$X182),0)) -> 29942.82805 | AI182: =IF($D182="", "", MAX(AI181 + $I182 + $J182 + $W182 +$V182, 0)) -> 34774.60052 | AJ182: 29507.23546 | AK182: 363998.3331 | AL182: 2367.737419 | AM182: 2000 | AN182: -439.1366071 | AO182: 367926.9339 | AP182: -5.820766091e-11
B183: 13 | C183: 52 | D183: 156 | E183: Dec | F183: 0.02743639235 | G183: 0.03620667694 | H183: 0.03620667694 | I183: =IF(D183="", "", IF(D183>=$N$25,0, H183*AVERAGE(AJ171:AJ182))) -> 1068.358942 | J183: 2000 | K183: -10 | L183: -100 | M183: -100 | N183: -36.89952929 | O183: =IF(D183="","",VLOOKUP($H$25,INDIRECT("'"&$J$25&"'!"&$K$23),Model!B183+1)) -> 0.0027 | Q183: 156 | R183: 52 | S183: 1367926.934 | T183: 1000000 | U183: -202.5 | V183: -439.3995293 | W183: 0 | X183: =IF($D183="","",IFERROR(MIN(MAX(-(AJ182+J183+I183+W183+V183)/(AO182-AJ182),0),1),0)) -> 0 | Y183: 31538.91119 | Z183: 28121.34882 | AA183: 28990.05471 | AB183: 29336.03912 | AC183: 29750.06215 | AD183: 31050.40724 | AE183: 30745.87627 | AF183: 32729.89671 | AG183: 31439.67369 | AH183: 29942.82805 | AI183: =IF($D183="", "", MAX(AI182*(1-$X183),0)) -> 34774.60052 | AJ183: =IF($D183="", "", MAX(AJ182 + $I183 + $J183 + $W183+$V183, 0)) -> 32136.19487 | AK183: 367926.9339 | AL183: 1068.358942 | AM183: 2000 | AN183: -439.3995293 | AO183: 370555.8933 | AP183: -5.820766091e-11
B184: =IF(D184="","", B183+1) -> 14 | C184: 53 | D184: 157 | E184: Jan | F184: 0.04112649424 | G184: 0.08027607175 | H184: 0.08027607175 | I184: =IF(D184="", "", IF(D184>=$N$25,0, H184*AVERAGE(Y172:Y183))) -> 2531.819898 | J184: 2000 | K184: -10 | L184: -100 | M184: -100 | N184: -37.30877132 | O184: =IF(D184="","",VLOOKUP($H$25,INDIRECT("'"&$J$25&"'!"&$K$23),Model!B184+1)) -> 0.00301 | P184: =IF(D184="","",IF(RANDBETWEEN(0, 10000)/10000>O184, "No", "Yes")) -> No | Q184: 157 | R184: 53 | S184: 1370555.893 | T184: 1000000 | U184: -225.75 | V184: -463.0587713 | W184: 0 | X184: =IF($D184="","",IFERROR(MIN(MAX(-(Y183+J184+I184+W184+V184)/(AO183-Y183),0),1),0)) -> 0 | Y184: =IF($D184="", "", MAX($Y183 + $I184 + $J184 + $W184+ $V184, 0)) -> 35607.67232 | Z184: 28121.34882 | AA184: 28990.05471 | AB184: 29336.03912 | AC184: 29750.06215 | AD184: 31050.40724 | AE184: 30745.87627 | AF184: 32729.89671 | AG184: 31439.67369 | AH184: 29942.82805 | AI184: 34774.60052 | AJ184: =IF($D184="", "", MAX(AJ183*(1-$X184),0)) -> 32136.19487 | AK184: 370555.8933 | AL184: 2531.819898 | AM184: 2000 | AN184: -463.0587713 | AO184: 374624.6545 | AP184: 5.820766091e-11
B185: =IF(D185="","",B184) -> 14 | C185: 53 | D185: 158 | E185: Feb | F185: 0.02106520409 | G185: 0.1498211961 | H185: 0.13 | I185: =IF(D185="", "", IF(D185>=$N$25,0, H185*AVERAGE(Z173:Z184))) -> 3655.775347 | J185: 2000 | K185: -10 | L185: -100 | M185: -100 | N185: -37.82804298 | O185: =IF(D185="","",VLOOKUP($H$25,INDIRECT("'"&$J$25&"'!"&$K$23),Model!B185+1)) -> 0.00301 | Q185: 158 | R185: 53 | S185: 1374624.654 | T185: 1000000 | U185: -225.75 | V185: -463.578043 | W185: 0 | X185: =IF($D185="","",IFERROR(MIN(MAX(-(Z184+J185+I185+W185+V185)/(AO184-Z184),0),1),0)) -> 0 | Y185: =IF($D185="", "", MAX(Y184*(1-$X185),0)) -> 35607.67232 | Z185: =IF($D185="", "", MAX(Z184 + $I185 + $J185 + $W185 +$V185, 0)) -> 33313.54612 | AA185: 28990.05471 | AB185: 29336.03912 | AC185: 29750.06215 | AD185: 31050.40724 | AE185: 30745.87627 | AF185: 32729.89671 | AG185: 31439.67369 | AH185: 29942.82805 | AI185: 34774.60052 | AJ185: 32136.19487 | AK185: 374624.6545 | AL185: 3655.775347 | AM185: 2000 | AN185: -463.578043 | AO185: 379816.8518 | AP185: -5.820766091e-11
B186: 14 | C186: 53 | D186: 159 | E186: Mar | F186: 0.04312820954 | G186: 0.165578581 | H186: 0.13 | I186: =IF(D186="", "", IF(D186>=$N$25,0, H186*AVERAGE(AA174:AA185))) -> 3768.707112 | J186: 2000 | K186: -10 | L186: -100 | M186: -100 | N186: -38.35855589 | O186: =IF(D186="","",VLOOKUP($H$25,INDIRECT("'"&$J$25&"'!"&$K$23),Model!B186+1)) -> 0.00301 | Q186: 159 | R186: 53 | S186: 1379816.852 | T186: 1000000 | U186: -225.75 | V186: -464.1085559 | W186: 0 | X186: =IF($D186="","",IFERROR(MIN(MAX(-(AA185+J186+I186+W186+V186)/(AO185-AA185),0),1),0)) -> 0 | Y186: 35607.67232 | Z186: =IF($D186="", "", MAX(Z185*(1-$X186),0)) -> 33313.54612 | AA186: =IF($D186="", "", MAX(AA185 + $I186 + $J186 + $W186+$V186, 0)) -> 34294.65326 | AB186: 29336.03912 | AC186: 29750.06215 | AD186: 31050.40724 | AE186: 30745.87627 | AF186: 32729.89671 | AG186: 31439.67369 | AH186: 29942.82805 | AI186: 34774.60052 | AJ186: 32136.19487 | AK186: 379816.8518 | AL186: 3768.707112 | AM186: 2000 | AN186: -464.1085559 | AO186: 385121.4503 | AP186: 5.820766091e-11
B187: 14 | C187: 53 | D187: 160 | E187: Apr | F187: 0.04695824257 | G187: 0.1877577227 | H187: 0.13 | I187: =IF(D187="", "", IF(D187>=$N$25,0, H187*AVERAGE(AB175:AB186))) -> 3813.685086 | J187: 2000 | K187: -10 | L187: -100 | M187: -100 | N187: -38.89351354 | O187: =IF(D187="","",VLOOKUP($H$25,INDIRECT("'"&$J$25&"'!"&$K$23),Model!B187+1)) -> 0.00301 | Q187: 160 | R187: 53 | S187: 1385121.45 | T187: 1000000 | U187: -225.75 | V187: -464.6435135 | W187: 0 | X187: =IF($D187="","",IFERROR(MIN(MAX(-(AB186+J187+I187+W187+V187)/(AO186-AB186),0),1),0)) -> 0 | Y187: 35607.67232 | Z187: 33313.54612 | AA187: =IF($D187="", "", MAX(AA186*(1-$X187),0)) -> 34294.65326 | AB187: =IF($D187="", "", MAX(AB186 + $I187 + $J187 + $W187+$V187, 0)) -> 34685.0807 | AC187: 29750.06215 | AD187: 31050.40724 | AE187: 30745.87627 | AF187: 32729.89671 | AG187: 31439.67369 | AH187: 29942.82805 | AI187: 34774.60052 | AJ187: 32136.19487 | AK187: 385121.4503 | AL187: 3813.685086 | AM187: 2000 | AN187: -464.6435135 | AO187: 390470.4919 | AP187: 5.820766091e-11
B188: 14 | C188: 53 | D188: 161 | E188: May | F188: -0.003580556533 | G188: 0.2571180356 | H188: 0.13 | I188: =IF(D188="", "", IF(D188>=$N$25,0, H188*AVERAGE(AC176:AC187))) -> 3867.508079 | J188: 2000 | K188: -10 | L188: -100 | M188: -100 | N188: -39.4338 | O188: =IF(D188="","",VLOOKUP($H$25,INDIRECT("'"&$J$25&"'!"&$K$23),Model!B188+1)) -> 0.00301 | Q188: 161 | R188: 53 | S188: 1390470.492 | T188: 1000000 | U188: -225.75 | V188: -465.1838 | W188: 0 | X188: =IF($D188="","",IFERROR(MIN(MAX(-(AC187+J188+I188+W188+V188)/(AO187-AC187),0),1),0)) -> 0 | Y188: 35607.67232 | Z188: 33313.54612 | AA188: 34294.65326 | AB188: =IF($D188="", "", MAX(AB187*(1-$X188),0)) -> 34685.0807 | AC188: =IF($D188="", "", MAX(AC187 + $I188 + $J188 +$W188+$V188, 0)) -> 35152.38643 | AD188: 31050.40724 | AE188: 30745.87627 | AF188: 32729.89671 | AG188: 31439.67369 | AH188: 29942.82805 | AI188: 34774.60052 | AJ188: 32136.19487 | AK188: 390470.4919 | AL188: 3867.508079 | AM188: 2000 | AN188: -465.1838 | AO188: 395872.8162 | AP188: 0
B189: 14 | C189: 53 | D189: 162 | E189: Jun | F189: -0.04531142156 | G189: 0.2932990569 | H189: 0.13 | I189: =IF(D189="", "", IF(D189>=$N$25,0, H189*AVERAGE(AD177:AD188))) -> 4036.552941 | J189: 2000 | K189: -10 | L189: -100 | M189: -100 | N189: -39.99093691 | O189: =IF(D189="","",VLOOKUP($H$25,INDIRECT("'"&$J$25&"'!"&$K$23),Model!B189+1)) -> 0.00301 | Q189: 162 | R189: 53 | S189: 1395872.816 | T189: 1000000 | U189: -225.75 | V189: -465.7409369 | W189: 0 | X189: =IF($D189="","",IFERROR(MIN(MAX(-(AD188+J189+I189+W189+V189)/(AO188-AD188),0),1),0)) -> 0 | Y189: 35607.67232 | Z189: 33313.54612 | AA189: 34294.65326 | AB189: 34685.0807 | AC189: =IF($D189="", "", MAX(AC188*(1-$X189),0)) -> 35152.38643 | AD189: =IF($D189="", "", MAX(AD188+ $I189 + $J189 + $W189 +$V189, 0)) -> 36621.21925 | AE189: 30745.87627 | AF189: 32729.89671 | AG189: 31439.67369 | AH189: 29942.82805 | AI189: 34774.60052 | AJ189: 32136.19487 | AK189: 395872.8162 | AL189: 4036.552941 | AM189: 2000 | AN189: -465.7409369 | AO189: 401443.6282 | AP189: 0
B190: 14 | C190: 53 | D190: 163 | E190: Jul | F190: 0.07736586588 | G190: 0.2918341214 | H190: 0.13 | I190: =IF(D190="", "", IF(D190>=$N$25,0, H190*AVERAGE(AE178:AE189))) -> 3996.963914 | J190: 2000 | K190: -10 | L190: -100 | M190: -100 | N190: -40.54405921 | O190: =IF(D190="","",VLOOKUP($H$25,INDIRECT("'"&$J$25&"'!"&$K$23),Model!B190+1)) -> 0.00301 | Q190: 163 | R190: 53 | S190: 1401443.628 | T190: 1000000 | U190: -225.75 | V190: -466.2940592 | W190: 0 | X190: =IF($D190="","",IFERROR(MIN(MAX(-(AE189+J190+I190+W190+V190)/(AO189-AE189),0),1),0)) -> 0 | Y190: 35607.67232 | Z190: 33313.54612 | AA190: 34294.65326 | AB190: 34685.0807 | AC190: 35152.38643 | AD190: =IF($D190="", "", MAX(AD189*(1-$X190),0)) -> 36621.21925 | AE190: =IF($D190="", "", MAX(AE189 + $I190 + $J190 + $W190+$V190, 0)) -> 36276.54612 | AF190: 32729.89671 | AG190: 31439.67369 | AH190: 29942.82805 | AI190: 34774.60052 | AJ190: 32136.19487 | AK190: 401443.6282 | AL190: 3996.963914 | AM190: 2000 | AN190: -466.2940592 | AO190: 406974.298 | AP190: 0
B191: 14 | C191: 53 | D191: 164 | E191: Aug | F191: -0.07491828218 | G191: 0.3278294317 | H191: 0.13 | I191: =IF(D191="", "", IF(D191>=$N$25,0, H191*AVERAGE(AF179:AF190))) -> 4254.886573 | J191: 2000 | K191: -10 | L191: -100 | M191: -100 | N191: -41.12291846 | O191: =IF(D191="","",VLOOKUP($H$25,INDIRECT("'"&$J$25&"'!"&$K$23),Model!B191+1)) -> 0.00301 | Q191: 164 | R191: 53 | S191: 1406974.298 | T191: 1000000 | U191: -225.75 | V191: -466.8729185 | W191: 0 | X191: =IF($D191="","",IFERROR(MIN(MAX(-(AF190+J191+I191+W191+V191)/(AO190-AF190),0),1),0)) -> 0 | Y191: 35607.67232 | Z191: 33313.54612 | AA191: 34294.65326 | AB191: 34685.0807 | AC191: 35152.38643 | AD191: 36621.21925 | AE191: =IF($D191="", "", MAX(AE190*(1-$X191),0)) -> 36276.54612 | AF191: =IF($D191="", "", MAX(AF190 + $I191 + $J191 + $W191 +$V191, 0)) -> 38517.91037 | AG191: 31439.67369 | AH191: 29942.82805 | AI191: 34774.60052 | AJ191: 32136.19487 | AK191: 406974.298 | AL191: 4254.886573 | AM191: 2000 | AN191: -466.8729185 | AO191: 412762.3117 | AP191: -5.820766091e-11
B192: 14 | C192: 53 | D192: 165 | E192: Sep | F192: -0.02131976466 | G192: 0.1602736157 | H192: 0.13 | I192: =IF(D192="", "", IF(D192>=$N$25,0, H192*AVERAGE(AG180:AG191))) -> 4087.15758 | J192: 2000 | K192: -10 | L192: -100 | M192: -100 | N192: -41.68494693 | O192: =IF(D192="","",VLOOKUP($H$25,INDIRECT("'"&$J$25&"'!"&$K$23),Model!B192+1)) -> 0.00301 | Q192: 165 | R192: 53 | S192: 1412762.312 | T192: 1000000 | U192: -225.75 | V192: -467.4349469 | W192: 0 | X192: =IF($D192="","",IFERROR(MIN(MAX(-(AG191+J192+I192+W192+V192)/(AO191-AG191),0),1),0)) -> 0 | Y192: 35607.67232 | Z192: 33313.54612 | AA192: 34294.65326 | AB192: 34685.0807 | AC192: 35152.38643 | AD192: 36621.21925 | AE192: 36276.54612 | AF192: =IF($D192="", "", MAX(AF191*(1-$X192),0)) -> 38517.91037 | AG192: =IF($D192="", "", MAX(AG191 + $I192 + $J192 + $W192+$V192, 0)) -> 37059.39632 | AH192: 29942.82805 | AI192: 34774.60052 | AJ192: 32136.19487 | AK192: 412762.3117 | AL192: 4087.15758 | AM192: 2000 | AN192: -467.4349469 | AO192: 418382.0343 | AP192: 0
B193: 14 | C193: 53 | D193: 166 | E193: Oct | F193: 0.05041580926 | G193: 0.09637150487 | H193: 0.09637150487 | I193: =IF(D193="", "", IF(D193>=$N$25,0, H193*AVERAGE(AH181:AH192))) -> 2885.635399 | J193: 2000 | K193: -10 | L193: -100 | M193: -100 | N193: -42.12676697 | O193: =IF(D193="","",VLOOKUP($H$25,INDIRECT("'"&$J$25&"'!"&$K$23),Model!B193+1)) -> 0.00301 | Q193: 166 | R193: 53 | S193: 1418382.034 | T193: 1000000 | U193: -225.75 | V193: -467.876767 | W193: 0 | X193: =IF($D193="","",IFERROR(MIN(MAX(-(AH192+J193+I193+W193+V193)/(AO192-AH192),0),1),0)) -> 0 | Y193: 35607.67232 | Z193: 33313.54612 | AA193: 34294.65326 | AB193: 34685.0807 | AC193: 35152.38643 | AD193: 36621.21925 | AE193: 36276.54612 | AF193: 38517.91037 | AG193: =IF($D193="", "", MAX(AG192*(1-$X193),0)) -> 37059.39632 | AH193: =IF($D193="", "", MAX(AH192 + $I193 + $J193 + $W193+$V193, 0)) -> 34360.58669 | AI193: 34774.60052 | AJ193: 32136.19487 | AK193: 418382.0343 | AL193: 2885.635399 | AM193: 2000 | AN193: -467.876767 | AO193: 422799.793 | AP193: 0
B194: 14 | C194: 53 | D194: 167 | E194: Nov | F194: 0.1272391999 | G194: 0.1132018492 | H194: 0.1132018492 | I194: =IF(D194="", "", IF(D194>=$N$25,0, H194*AVERAGE(AI182:AI193))) -> 3936.549085 | J194: 2000 | K194: -10 | L194: -100 | M194: -100 | N194: -42.6736342 | O194: =IF(D194="","",VLOOKUP($H$25,INDIRECT("'"&$J$25&"'!"&$K$23),Model!B194+1)) -> 0.00301 | Q194: 167 | R194: 53 | S194: 1422799.793 | T194: 1000000 | U194: -225.75 | V194: -468.4236342 | W194: 0 | X194: =IF($D194="","",IFERROR(MIN(MAX(-(AI193+J194+I194+W194+V194)/(AO193-AI193),0),1),0)) -> 0 | Y194: 35607.67232 | Z194: 33313.54612 | AA194: 34294.65326 | AB194: 34685.0807 | AC194: 35152.38643 | AD194: 36621.21925 | AE194: 36276.54612 | AF194: 38517.91037 | AG194: 37059.39632 | AH194: =IF($D194="", "", MAX(AH193*(1-$X194),0)) -> 34360.58669 | AI194: =IF($D194="", "", MAX(AI193 + $I194 + $J194 + $W194 +$V194, 0)) -> 40242.72597 | AJ194: 32136.19487 | AK194: 422799.793 | AL194: 3936.549085 | AM194: 2000 | AN194: -468.4236342 | AO194: 428267.9184 | AP194: 0
B195: 14 | C195: 53 | D195: 168 | E195: Dec | F195: -0.05808057946 | G195: 0.3105221048 | H195: 0.13 | I195: =IF(D195="", "", IF(D195>=$N$25,0, H195*AVERAGE(AJ183:AJ194))) -> 4177.705333 | J195: 2000 | K195: -10 | L195: -100 | M195: -100 | N195: -43.24456237 | O195: =IF(D195="","",VLOOKUP($H$25,INDIRECT("'"&$J$25&"'!"&$K$23),Model!B195+1)) -> 0.00301 | Q195: 168 | R195: 53 | S195: 1428267.918 | T195: 1000000 | U195: -225.75 | V195: -468.9945624 | W195: 0 | X195: =IF($D195="","",IFERROR(MIN(MAX(-(AJ194+J195+I195+W195+V195)/(AO194-AJ194),0),1),0)) -> 0 | Y195: 35607.67232 | Z195: 33313.54612 | AA195: 34294.65326 | AB195: 34685.0807 | AC195: 35152.38643 | AD195: 36621.21925 | AE195: 36276.54612 | AF195: 38517.91037 | AG195: 37059.39632 | AH195: 34360.58669 | AI195: =IF($D195="", "", MAX(AI194*(1-$X195),0)) -> 40242.72597 | AJ195: =IF($D195="", "", MAX(AJ194 + $I195 + $J195 + $W195+$V195, 0)) -> 37844.90564 | AK195: 428267.9184 | AL195: 4177.705333 | AM195: 2000 | AN195: -468.9945624 | AO195: 433976.6292 | AP195: 0
B196: =IF(D196="","", B195+1) -> 15 | C196: 54 | D196: 169 | E196: Jan | F196: 0.006545274718 | G196: 0.2014429611 | H196: 0.13 | I196: =IF(D196="", "", IF(D196>=$N$25,0, H196*AVERAGE(Y184:Y195))) -> 4628.997401 | J196: 2000 | K196: -10 | L196: -100 | M196: -100 | N196: -43.86056266 | O196: =IF(D196="","",VLOOKUP($H$25,INDIRECT("'"&$J$25&"'!"&$K$23),Model!B196+1)) -> 0.00335 | P196: =IF(D196="","",IF(RANDBETWEEN(0, 10000)/10000>O196, "No", "Yes")) -> No | Q196: 169 | R196: 54 | S196: 1433976.629 | T196: 1000000 | U196: -251.25 | V196: -495.1105627 | W196: 0 | X196: =IF($D196="","",IFERROR(MIN(MAX(-(Y195+J196+I196+W196+V196)/(AO195-Y195),0),1),0)) -> 0 | Y196: =IF($D196="", "", MAX($Y195 + $I196 + $J196 + $W196+ $V196, 0)) -> 41741.55916 | Z196: 33313.54612 | AA196: 34294.65326 | AB196: 34685.0807 | AC196: 35152.38643 | AD196: 36621.21925 | AE196: 36276.54612 | AF196: 38517.91037 | AG196: 37059.39632 | AH196: 34360.58669 | AI196: 40242.72597 | AJ196: =IF($D196="", "", MAX(AJ195*(1-$X196),0)) -> 37844.90564 | AK196: 433976.6292 | AL196: 4628.997401 | AM196: 2000 | AN196: -495.1105627 | AO196: 440110.516 | AP196: 5.820766091e-11
B197: =IF(D197="","",B196) -> 15 | C197: 54 | D197: 170 | E197: Feb | F197: 0.0467675874 | G197: 0.1615367989 | H197: 0.13 | I197: =IF(D197="", "", IF(D197>=$N$25,0, H197*AVERAGE(Z185:Z196))) -> 4330.760996 | J197: 2000 | K197: -10 | L197: -100 | M197: -100 | N197: -44.4441277 | O197: =IF(D197="","",VLOOKUP($H$25,INDIRECT("'"&$J$25&"'!"&$K$23),Model!B197+1)) -> 0.00335 | Q197: 170 | R197: 54 | S197: 1440110.516 | T197: 1000000 | U197: -251.25 | V197: -495.6941277 | W197: 0 | X197: =IF($D197="","",IFERROR(MIN(MAX(-(Z196+J197+I197+W197+V197)/(AO196-Z196),0),1),0)) -> 0 | Y197: =IF($D197="", "", MAX(Y196*(1-$X197),0)) -> 41741.55916 | Z197: =IF($D197="", "", MAX(Z196 + $I197 + $J197 + $W197 +$V197, 0)) -> 39148.61299 | AA197: 34294.65326 | AB197: 34685.0807 | AC197: 35152.38643 | AD197: 36621.21925 | AE197: 36276.54612 | AF197: 38517.91037 | AG197: 37059.39632 | AH197: 34360.58669 | AI197: 40242.72597 | AJ197: 37844.90564 | AK197: 440110.516 | AL197: 4330.760996 | AM197: 2000 | AN197: -495.6941277 | AO197: 445945.5829 | AP197: 0
B198: 15 | C198: 54 | D198: 171 | E198: Mar | F198: -0.02748972336 | G198: 0.190775151 | H198: 0.13 | I198: =IF(D198="", "", IF(D198>=$N$25,0, H198*AVERAGE(AA186:AA197))) -> 4458.304924 | J198: 2000 | K198: -10 | L198: -100 | M198: -100 | N198: -45.04038878 | O198: =IF(D198="","",VLOOKUP($H$25,INDIRECT("'"&$J$25&"'!"&$K$23),Model!B198+1)) -> 0.00335 | Q198: 171 | R198: 54 | S198: 1445945.583 | T198: 1000000 | U198: -251.25 | V198: -496.2903888 | W198: 0 | X198: =IF($D198="","",IFERROR(MIN(MAX(-(AA197+J198+I198+W198+V198)/(AO197-AA197),0),1),0)) -> 0 | Y198: 41741.55916 | Z198: =IF($D198="", "", MAX(Z197*(1-$X198),0)) -> 39148.61299 | AA198: =IF($D198="", "", MAX(AA197 + $I198 + $J198 + $W198+$V198, 0)) -> 40256.6678 | AB198: 34685.0807 | AC198: 35152.38643 | AD198: 36621.21925 | AE198: 36276.54612 | AF198: 38517.91037 | AG198: 37059.39632 | AH198: 34360.58669 | AI198: 40242.72597 | AJ198: 37844.90564 | AK198: 445945.5829 | AL198: 4458.304924 | AM198: 2000 | AN198: -496.2903888 | AO198: 451907.5974 | AP198: 0
B199: 15 | C199: 54 | D199: 172 | E199: Apr | F199: -0.07328671607 | G199: 0.1101617816 | H199: 0.1101617816 | I199: =IF(D199="", "", IF(D199>=$N$25,0, H199*AVERAGE(AB187:AB198))) -> 3820.970285 | J199: 2000 | K199: -10 | L199: -100 | M199: -100 | N199: -45.57285677 | O199: =IF(D199="","",VLOOKUP($H$25,INDIRECT("'"&$J$25&"'!"&$K$23),Model!B199+1)) -> 0.00335 | Q199: 172 | R199: 54 | S199: 1451907.597 | T199: 1000000 | U199: -251.25 | V199: -496.8228568 | W199: 0 | X199: =IF($D199="","",IFERROR(MIN(MAX(-(AB198+J199+I199+W199+V199)/(AO198-AB198),0),1),0)) -> 0 | Y199: 41741.55916 | Z199: 39148.61299 | AA199: =IF($D199="", "", MAX(AA198*(1-$X199),0)) -> 40256.6678 | AB199: =IF($D199="", "", MAX(AB198 + $I199 + $J199 + $W199+$V199, 0)) -> 40009.22813 | AC199: 35152.38643 | AD199: 36621.21925 | AE199: 36276.54612 | AF199: 38517.91037 | AG199: 37059.39632 | AH199: 34360.58669 | AI199: 40242.72597 | AJ199: 37844.90564 | AK199: 451907.5974 | AL199: 3820.970285 | AM199: 2000 | AN199: -496.8228568 | AO199: 457231.7449 | AP199: 0
B200: 15 | C200: 54 | D200: 173 | E200: May | F200: 0.01354732988 | G200: -0.01734221241 | H200: 0 | I200: =IF(D200="", "", IF(D200>=$N$25,0, H200*AVERAGE(AC188:AC199))) -> 0 | J200: 2000 | K200: -10 | L200: -100 | M200: -100 | N200: -45.72317449 | O200: =IF(D200="","",VLOOKUP($H$25,INDIRECT("'"&$J$25&"'!"&$K$23),Model!B200+1)) -> 0.00335 | Q200: 173 | R200: 54 | S200: 1457231.745 | T200: 1000000 | U200: -251.25 | V200: -496.9731745 | W200: 0 | X200: =IF($D200="","",IFERROR(MIN(MAX(-(AC199+J200+I200+W200+V200)/(AO199-AC199),0),1),0)) -> 0 | Y200: 41741.55916 | Z200: 39148.61299 | AA200: 40256.6678 | AB200: =IF($D200="", "", MAX(AB199*(1-$X200),0)) -> 40009.22813 | AC200: =IF($D200="", "", MAX(AC199 + $I200 + $J200 +$W200+$V200, 0)) -> 36655.41325 | AD200: 36621.21925 | AE200: 36276.54612 | AF200: 38517.91037 | AG200: 37059.39632 | AH200: 34360.58669 | AI200: 40242.72597 | AJ200: 37844.90564 | AK200: 457231.7449 | AL200: 0 | AM200: 2000 | AN200: -496.9731745 | AO200: 458734.7717 | AP200: 0
B201: 15 | C201: 54 | D201: 174 | E201: Jun | F201: -0.009643138183 | G201: -0.000450881075 | H201: 0 | I201: =IF(D201="", "", IF(D201>=$N$25,0, H201*AVERAGE(AD189:AD200))) -> 0 | J201: 2000 | K201: -10 | L201: -100 | M201: -100 | N201: -45.87347717 | O201: =IF(D201="","",VLOOKUP($H$25,INDIRECT("'"&$J$25&"'!"&$K$23),Model!B201+1)) -> 0.00335 | Q201: 174 | R201: 54 | S201: 1458734.772 | T201: 1000000 | U201: -251.25 | V201: -497.1234772 | W201: 0 | X201: =IF($D201="","",IFERROR(MIN(MAX(-(AD200+J201+I201+W201+V201)/(AO200-AD200),0),1),0)) -> 0 | Y201: 41741.55916 | Z201: 39148.61299 | AA201: 40256.6678 | AB201: 40009.22813 | AC201: =IF($D201="", "", MAX(AC200*(1-$X201),0)) -> 36655.41325 | AD201: =IF($D201="", "", MAX(AD200+ $I201 + $J201 + $W201 +$V201, 0)) -> 38124.09577 | AE201: 36276.54612 | AF201: 38517.91037 | AG201: 37059.39632 | AH201: 34360.58669 | AI201: 40242.72597 | AJ201: 37844.90564 | AK201: 458734.7717 | AL201: 0 | AM201: 2000 | AN201: -497.1234772 | AO201: 460237.6482 | AP201: 0
B202: 15 | C202: 54 | D202: 175 | E202: Jul | F202: 0.01277909438 | G202: 0.03689344463 | H202: 0.03689344463 | I202: =IF(D202="", "", IF(D202>=$N$25,0, H202*AVERAGE(AE190:AE201))) -> 1338.366746 | J202: 2000 | K202: -10 | L202: -100 | M202: -100 | N202: -46.15760149 | O202: =IF(D202="","",VLOOKUP($H$25,INDIRECT("'"&$J$25&"'!"&$K$23),Model!B202+1)) -> 0.00335 | Q202: 175 | R202: 54 | S202: 1460237.648 | T202: 1000000 | U202: -251.25 | V202: -497.4076015 | W202: 0 | X202: =IF($D202="","",IFERROR(MIN(MAX(-(AE201+J202+I202+W202+V202)/(AO201-AE201),0),1),0)) -> 0 | Y202: 41741.55916 | Z202: 39148.61299 | AA202: 40256.6678 | AB202: 40009.22813 | AC202: 36655.41325 | AD202: =IF($D202="", "", MAX(AD201*(1-$X202),0)) -> 38124.09577 | AE202: =IF($D202="", "", MAX(AE201 + $I202 + $J202 + $W202+$V202, 0)) -> 39117.50526 | AF202: 38517.91037 | AG202: 37059.39632 | AH202: 34360.58669 | AI202: 40242.72597 | AJ202: 37844.90564 | AK202: 460237.6482 | AL202: 1338.366746 | AM202: 2000 | AN202: -497.4076015 | AO202: 463078.6073 | AP202: 0
... 1277 more rows

Sheet Output
B1: Iteration # | C1: Annual IRR | D1: Bins
B2: 1 | C2: 0.06231993083 | D2: 0.0025
B3: 2 | C3: 0.06870674559 | D3: 0.005
B4: 3 | C4: 0.04838059482 | D4: 0.0075
B5: 4 | C5: 0.0346514466 | D5: 0.01
B6: 5 | C6: 0.04346155792 | D6: 0.0125
B7: 6 | C7: 0.05543150402 | D7: 0.015
B8: 7 | C8: 0.03009808955 | D8: 0.0175
B9: 8 | C9: 0.04980110971 | D9: 0.02
B10: 9 | C10: 0.06856673786 | D10: 0.0225
B11: 10 | C11: 0.0733447212 | D11: 0.025
B12: 11 | C12: 0.0576117521 | D12: 0.0275
B13: 12 | C13: 0.1047572822 | D13: 0.03
B14: 13 | C14: 0.06131707526 | D14: 0.0325
B15: 14 | C15: 0.3141511284 | D15: 0.035
B16: 15 | C16: 0.05451519679 | D16: 0.0375
B17: 16 | C17: 0.04913837974 | D17: 0.04
B18: 17 | C18: 0.05886388584 | D18: 0.0425
B19: 18 | C19: 0.0553304931 | D19: 0.045
B20: 19 | C20: 0.04308529514 | D20: 0.0475
B21: 20 | C21: 0.04751526514 | D21: 0.05
B22: 21 | C22: 0.05893027586 | D22: 0.0525
B23: 22 | C23: 0.04992711525 | D23: 0.055
B24: 23 | C24: 0.04553218225 | D24: 0.0575
B25: 24 | C25: 0.03997986519 | D25: 0.06
B26: 25 | C26: 0.06953838274 | D26: 0.0625
B27: 26 | C27: 0.06461272768 | D27: 0.065
B28: 27 | C28: 0.04885287616 | D28: 0.0675
B29: 28 | C29: 0.06381087175 | D29: 0.07
B30: 29 | C30: 0.02644423569 | D30: 0.0725
B31: 30 | C31: 0.03642408173 | D31: 0.075
B32: 31 | C32: 0.1008883148 | D32: 0.0775
B33: 32 | C33: 0.5 | D33: 0.08
B34: 33 | C34: 0.04787012229 | D34: 0.0825
B35: 34 | C35: 0.08811466793 | D35: 0.085
B36: 35 | C36: 0.05736267316 | D36: 0.0875
B37: 36 | C37: 0.03677427962 | D37: 0.09
B38: 37 | C38: 0.05839696162 | D38: 0.0925
B39: 38 | C39: 0.04279273452 | D39: 0.095
B40: 39 | C40: 0.03492794493 | D40: 0.0975
B41: 40 | C41: 0.04852429084 | D41: 0.1
B42: 41 | C42: 0.03523242874 | D42: 0.1025
B43: 42 | C43: 0.07016009495 | D43: 0.105
B44: 43 | C44: 0.05312014577 | D44: 0.1075
B45: 44 | C45: 0.06984716647 | D45: 0.11
B46: 45 | C46: 0.06012688321 | D46: 0.1125
B47: 46 | C47: 0.07080930807 | D47: 0.115
B48: 47 | C48: 0.05331417443 | D48: 0.1175
B49: 48 | C49: 0.06527527934 | D49: 0.12
B50: 49 | C50: 0.05628563976 | D50: 0.1225
B51: 50 | C51: 0.05659123411 | D51: 0.125
B52: 51 | C52: 0.1056130316 | D52: 0.1275
B53: 52 | C53: 0.07554662507 | D53: 0.13
B54: 53 | C54: 0.04177963413 | D54: 0.1325
B55: 54 | C55: 0.08083989365 | D55: 0.135
B56: 55 | C56: 0.04146980467 | D56: 0.1375
B57: 56 | C57: 0.0380868318 | D57: 0.14
B58: 57 | C58: 0.05881706349 | D58: 0.1425
B59: 58 | C59: 0.07204523473 | D59: 0.145
B60: 59 | C60: 0.05218393966 | D60: 0.1475
B61: 60 | C61: 0.0918912302 | D61: 0.15
B62: 61 | C62: 0.09530550222 | D62: 0.1525
B63: 62 | C63: 0.05006562388 | D63: 0.155
B64: 63 | C64: 0.05711084438 | D64: 0.1575
B65: 64 | C65: 0.06549030555 | D65: 0.16
B66: 65 | C66: 0.06272139171 | D66: 0.1625
B67: 66 | C67: 0.04718925332 | D67: 0.165
B68: 67 | C68: 0.05485300299 | D68: 0.1675
B69: 68 | C69: 0.07745657448 | D69: 0.17
B70: 69 | C70: 0.06490414432 | D70: 0.1725
B71: 70 | C71: 0.06833581574 | D71: 0.175
B72: 71 | C72: 0.03099421078 | D72: 0.1775
B73: 72 | C73: 0.06278833829 | D73: 0.18
B74: 73 | C74: 0.03990780899 | D74: 0.1825
B75: 74 | C75: 0.03962130398 | D75: 0.185
B76: 75 | C76: 0.0646216433 | D76: 0.1875
B77: 76 | C77: 0.2097013811 | D77: 0.19
B78: 77 | C78: 0.03687082011 | D78: 0.1925
B79: 78 | C79: 0.05872131254 | D79: 0.195
B80: 79 | C80: 0.04101633099 | D80: 0.1975
B81: 80 | C81: 0.05086287427 | D81: 0.2
B82: 81 | C82: 0.05137653788 | D82: 0.2025
B83: 82 | C83: 0.07522917103 | D83: 0.205
B84: 83 | C84: 0.05111823454 | D84: 0.2075
B85: 84 | C85: 0.05790217606 | D85: 0.21
B86: 85 | C86: 0.08461224773 | D86: 0.2125
B87: 86 | C87: 0.1521208787 | D87: 0.215
B88: 87 | C88: 0.0473093275 | D88: 0.2175
B89: 88 | C89: 0.06860589047 | D89: 0.22
B90: 89 | C90: 0.05530201044 | D90: 0.2225
B91: 90 | C91: 0.03344396825 | D91: 0.225
B92: 91 | C92: 0.05326562476 | D92: 0.2275
B93: 92 | C93: 0.05214444434 | D93: 0.23
B94: 93 | C94: 0.07758297347 | D94: 0.2325
B95: 94 | C95: 0.07015805493 | D95: 0.235
B96: 95 | C96: 0.06700653282 | D96: 0.2375
B97: 96 | C97: 0.2352783577 | D97: 0.24
B98: 97 | C98: 0.01597682928 | D98: 0.2425
B99: 98 | C99: 0.03566615335 | D99: 0.245
B100: 99 | C100: 0.06882349607 | D100: 0.2475
B101: 100 | C101: 0.03739847995 | D101: 0.25
D102: 0.2525
D103: 0.255
D104: 0.2575
D105: 0.26
D106: 0.2625
D107: 0.265
D108: 0.2675
D109: 0.27
D110: 0.2725
D111: 0.275
D112: 0.2775
D113: 0.28
D114: 0.2825
D115: 0.285
D116: 0.2875
D117: 0.29
D118: 0.2925
D119: 0.295
D120: 0.2975
D121: 0.3
D122: 0.3025
D123: 0.305
D124: 0.3075
D125: 0.31
D126: 0.3125
D127: 0.315
D128: 0.3175
D129: 0.32
D130: 0.3225
D131: 0.325
D132: 0.3275
D133: 0.33
D134: 0.3325
D135: 0.335
D136: 0.3375
D137: 0.34
D138: 0.3425
D139: 0.345
D140: 0.3475
D141: 0.35
D142: 0.3525
D143: 0.355
D144: 0.3575
D145: 0.36
D146: 0.3625
D147: 0.365
D148: 0.3675
D149: 0.37
D150: 0.3725
D151: 0.375
D152: 0.3775
D153: 0.38
D154: 0.3825
D155: 0.385
D156: 0.3875
D157: 0.39
D158: 0.3925
D159: 0.395
D160: 0.3975
D161: 0.4
D162: 0.4025
D163: 0.405
D164: 0.4075
D165: 0.41
D166: 0.4125
D167: 0.415
D168: 0.4175
D169: 0.42
D170: 0.4225
D171: 0.425
D172: 0.4275
D173: 0.43
D174: 0.4325
D175: 0.435
D176: 0.4375
D177: 0.44
D178: 0.4425
D179: 0.445
D180: 0.4475
D181: 0.45
D182: 0.4525
D183: 0.455
D184: 0.4575
D185: 0.46
D186: 0.4625
D187: 0.465
D188: 0.4675
D189: 0.47
D190: 0.4725
D191: 0.475
D192: 0.4775
D193: 0.48
D194: 0.4825
D195: 0.485
D196: 0.4875
D197: 0.49
D198: 0.4925
D199: 0.495
D200: 0.4975
... 1 more rows

Sheet Histogram
B4: Bins | C4: Frequency
B5: 0 | C5: 0
B6: 0.0025 | C6: 0
B7: 0.005 | C7: 0
B8: 0.0075 | C8: 0
B9: 0.01 | C9: 0
B10: 0.0125 | C10: 0
B11: 0.015 | C11: 1
B12: 0.0175 | C12: 0
B13: 0.02 | C13: 0
B14: 0.0225 | C14: 0
B15: 0.025 | C15: 1
B16: 0.0275 | C16: 0
B17: 0.03 | C17: 2
B18: 0.0325 | C18: 3
B19: 0.035 | C19: 6
B20: 0.0375 | C20: 4
B21: 0.04 | C21: 3
B22: 0.0425 | C22: 3
B23: 0.045 | C23: 3
B24: 0.0475 | C24: 8
B25: 0.05 | C25: 6
B26: 0.0525 | C26: 5
B27: 0.055 | C27: 7
B28: 0.0575 | C28: 7
B29: 0.06 | C29: 3
B30: 0.0625 | C30: 6
B31: 0.065 | C31: 3
B32: 0.0675 | C32: 7
B33: 0.07 | C33: 4
B34: 0.0725 | C34: 1
B35: 0.075 | C35: 3
B36: 0.0775 | C36: 1
B37: 0.08 | C37: 1
B38: 0.0825 | C38: 1
B39: 0.085 | C39: 0
B40: 0.0875 | C40: 1
B41: 0.09 | C41: 1
B42: 0.0925 | C42: 0
B43: 0.095 | C43: 1
B44: 0.0975 | C44: 0
B45: 0.1 | C45: 1
B46: 0.1025 | C46: 1
B47: 0.105 | C47: 1
B48: 0.1075 | C48: 0
B49: 0.11 | C49: 0
B50: 0.1125 | C50: 0
B51: 0.115 | C51: 0
B52: 0.1175 | C52: 0
B53: 0.12 | C53: 0
B54: 0.1225 | C54: 0
B55: 0.125 | C55: 0
B56: 0.1275 | C56: 0
B57: 0.13 | C57: 0
B58: 0.1325 | C58: 0
B59: 0.135 | C59: 0
B60: 0.1375 | C60: 0
B61: 0.14 | C61: 0
B62: 0.1425 | C62: 0
B63: 0.145 | C63: 0
B64: 0.1475 | C64: 0
B65: 0.15 | C65: 1
B66: 0.1525 | C66: 0
B67: 0.155 | C67: 0
B68: 0.1575 | C68: 0
B69: 0.16 | C69: 0
B70: 0.1625 | C70: 0
B71: 0.165 | C71: 0
B72: 0.1675 | C72: 0
B73: 0.17 | C73: 0
B74: 0.1725 | C74: 0
B75: 0.175 | C75: 0
B76: 0.1775 | C76: 0
B77: 0.18 | C77: 0
B78: 0.1825 | C78: 0
B79: 0.185 | C79: 0
B80: 0.1875 | C80: 0
B81: 0.19 | C81: 0
B82: 0.1925 | C82: 0
B83: 0.195 | C83: 0
B84: 0.1975 | C84: 0
B85: 0.2 | C85: 0
B86: 0.2025 | C86: 0
B87: 0.205 | C87: 0
B88: 0.2075 | C88: 1
B89: 0.21 | C89: 0
B90: 0.2125 | C90: 0
B91: 0.215 | C91: 0
B92: 0.2175 | C92: 0
B93: 0.22 | C93: 0
B94: 0.2225 | C94: 0
B95: 0.225 | C95: 0
B96: 0.2275 | C96: 0
B97: 0.23 | C97: 0
B98: 0.2325 | C98: 0
B99: 0.235 | C99: 1
B100: 0.2375 | C100: 0
B101: 0.24 | C101: 0
B102: 0.2425 | C102: 0
B103: 0.245 | C103: 0
B104: 0.2475 | C104: 0
B105: 0.25 | C105: 0
B106: 0.2525 | C106: 0
B107: 0.255 | C107: 0
B108: 0.2575 | C108: 0
B109: 0.26 | C109: 0
B110: 0.2625 | C110: 0
B111: 0.265 | C111: 0
B112: 0.2675 | C112: 0
B113: 0.27 | C113: 0
B114: 0.2725 | C114: 0
B115: 0.275 | C115: 0
B116: 0.2775 | C116: 0
B117: 0.28 | C117: 0
B118: 0.2825 | C118: 0
B119: 0.285 | C119: 0
B120: 0.2875 | C120: 0
B121: 0.29 | C121: 0
B122: 0.2925 | C122: 0
B123: 0.295 | C123: 0
B124: 0.2975 | C124: 0
B125: 0.3 | C125: 0
B126: 0.3025 | C126: 0
B127: 0.305 | C127: 0
B128: 0.3075 | C128: 0
B129: 0.31 | C129: 0
B130: 0.3125 | C130: 1
B131: 0.315 | C131: 0
B132: 0.3175 | C132: 0
B133: 0.32 | C133: 0
B134: 0.3225 | C134: 0
B135: 0.325 | C135: 0
B136: 0.3275 | C136: 0
B137: 0.33 | C137: 0
B138: 0.3325 | C138: 0
B139: 0.335 | C139: 0
B140: 0.3375 | C140: 0
B141: 0.34 | C141: 0
B142: 0.3425 | C142: 0
B143: 0.345 | C143: 0
B144: 0.3475 | C144: 0
B145: 0.35 | C145: 0
B146: 0.3525 | C146: 0
B147: 0.355 | C147: 0
B148: 0.3575 | C148: 0
B149: 0.36 | C149: 0
B150: 0.3625 | C150: 0
B151: 0.365 | C151: 0
B152: 0.3675 | C152: 0
B153: 0.37 | C153: 0
B154: 0.3725 | C154: 0
B155: 0.375 | C155: 0
B156: 0.3775 | C156: 0
B157: 0.38 | C157: 0
B158: 0.3825 | C158: 0
B159: 0.385 | C159: 0
B160: 0.3875 | C160: 0
B161: 0.39 | C161: 0
B162: 0.3925 | C162: 0
B163: 0.395 | C163: 0
B164: 0.3975 | C164: 0
B165: 0.4 | C165: 0
B166: 0.4025 | C166: 0
B167: 0.405 | C167: 0
B168: 0.4075 | C168: 0
B169: 0.41 | C169: 0
B170: 0.4125 | C170: 0
B171: 0.415 | C171: 0
B172: 0.4175 | C172: 0
B173: 0.42 | C173: 0
B174: 0.4225 | C174: 0
B175: 0.425 | C175: 0
B176: 0.4275 | C176: 0
B177: 0.43 | C177: 0
B178: 0.4325 | C178: 0
B179: 0.435 | C179: 0
B180: 0.4375 | C180: 0
B181: 0.44 | C181: 0
B182: 0.4425 | C182: 0
B183: 0.445 | C183: 0
B184: 0.4475 | C184: 0
B185: 0.45 | C185: 0
B186: 0.4525 | C186: 0
B187: 0.455 | C187: 0
B188: 0.4575 | C188: 0
B189: 0.46 | C189: 0
B190: 0.4625 | C190: 0
B191: 0.465 | C191: 0
B192: 0.4675 | C192: 0
B193: 0.47 | C193: 0
B194: 0.4725 | C194: 0
B195: 0.475 | C195: 0
B196: 0.4775 | C196: 0
B197: 0.48 | C197: 0
B198: 0.4825 | C198: 0
B199: 0.485 | C199: 0
B200: 0.4875 | C200: 0
B201: 0.49 | C201: 0
B202: 0.4925 | C202: 0
B203: 0.495 | C203: 0
... 1 more rows

Sheet P(x)
B4: Bins | C4: Frequency | D4: P(x)
B5: 0 | C5: 0 | D5: 0
B6: 0.0025 | C6: 0 | D6: 0
B7: 0.005 | C7: 0 | D7: 0
B8: 0.0075 | C8: 0 | D8: 0
B9: 0.01 | C9: 0 | D9: 0
B10: 0.0125 | C10: 0 | D10: 0
B11: 0.015 | C11: 1 | D11: 0.01
B12: 0.0175 | C12: 0 | D12: 0
B13: 0.02 | C13: 0 | D13: 0
B14: 0.0225 | C14: 0 | D14: 0
B15: 0.025 | C15: 1 | D15: 0.01
B16: 0.0275 | C16: 0 | D16: 0
B17: 0.03 | C17: 2 | D17: 0.02
B18: 0.0325 | C18: 3 | D18: 0.03
B19: 0.035 | C19: 6 | D19: 0.06
B20: 0.0375 | C20: 4 | D20: 0.04
B21: 0.04 | C21: 3 | D21: 0.03
B22: 0.0425 | C22: 3 | D22: 0.03
B23: 0.045 | C23: 3 | D23: 0.03
B24: 0.0475 | C24: 8 | D24: 0.08
B25: 0.05 | C25: 6 | D25: 0.06
B26: 0.0525 | C26: 5 | D26: 0.05
B27: 0.055 | C27: 7 | D27: 0.07
B28: 0.0575 | C28: 7 | D28: 0.07
B29: 0.06 | C29: 3 | D29: 0.03
B30: 0.0625 | C30: 6 | D30: 0.06
B31: 0.065 | C31: 3 | D31: 0.03
B32: 0.0675 | C32: 7 | D32: 0.07
B33: 0.07 | C33: 4 | D33: 0.04
B34: 0.0725 | C34: 1 | D34: 0.01
B35: 0.075 | C35: 3 | D35: 0.03
B36: 0.0775 | C36: 1 | D36: 0.01
B37: 0.08 | C37: 1 | D37: 0.01
B38: 0.0825 | C38: 1 | D38: 0.01
B39: 0.085 | C39: 0 | D39: 0
B40: 0.0875 | C40: 1 | D40: 0.01
B41: 0.09 | C41: 1 | D41: 0.01
B42: 0.0925 | C42: 0 | D42: 0
B43: 0.095 | C43: 1 | D43: 0.01
B44: 0.0975 | C44: 0 | D44: 0
B45: 0.1 | C45: 1 | D45: 0.01
B46: 0.1025 | C46: 1 | D46: 0.01
B47: 0.105 | C47: 1 | D47: 0.01
B48: 0.1075 | C48: 0 | D48: 0
B49: 0.11 | C49: 0 | D49: 0
B50: 0.1125 | C50: 0 | D50: 0
B51: 0.115 | C51: 0 | D51: 0
B52: 0.1175 | C52: 0 | D52: 0
B53: 0.12 | C53: 0 | D53: 0
B54: 0.1225 | C54: 0 | D54: 0
B55: 0.125 | C55: 0 | D55: 0
B56: 0.1275 | C56: 0 | D56: 0
B57: 0.13 | C57: 0 | D57: 0
B58: 0.1325 | C58: 0 | D58: 0
B59: 0.135 | C59: 0 | D59: 0
B60: 0.1375 | C60: 0 | D60: 0
B61: 0.14 | C61: 0 | D61: 0
B62: 0.1425 | C62: 0 | D62: 0
B63: 0.145 | C63: 0 | D63: 0
B64: 0.1475 | C64: 0 | D64: 0
B65: 0.15 | C65: 1 | D65: 0.01
B66: 0.1525 | C66: 0 | D66: 0
B67: 0.155 | C67: 0 | D67: 0
B68: 0.1575 | C68: 0 | D68: 0
B69: 0.16 | C69: 0 | D69: 0
B70: 0.1625 | C70: 0 | D70: 0
B71: 0.165 | C71: 0 | D71: 0
B72: 0.1675 | C72: 0 | D72: 0
B73: 0.17 | C73: 0 | D73: 0
B74: 0.1725 | C74: 0 | D74: 0
B75: 0.175 | C75: 0 | D75: 0
B76: 0.1775 | C76: 0 | D76: 0
B77: 0.18 | C77: 0 | D77: 0
B78: 0.1825 | C78: 0 | D78: 0
B79: 0.185 | C79: 0 | D79: 0
B80: 0.1875 | C80: 0 | D80: 0
B81: 0.19 | C81: 0 | D81: 0
B82: 0.1925 | C82: 0 | D82: 0
B83: 0.195 | C83: 0 | D83: 0
B84: 0.1975 | C84: 0 | D84: 0
B85: 0.2 | C85: 0 | D85: 0
B86: 0.2025 | C86: 0 | D86: 0
B87: 0.205 | C87: 0 | D87: 0
B88: 0.2075 | C88: 1 | D88: 0.01
B89: 0.21 | C89: 0 | D89: 0
B90: 0.2125 | C90: 0 | D90: 0
B91: 0.215 | C91: 0 | D91: 0
B92: 0.2175 | C92: 0 | D92: 0
B93: 0.22 | C93: 0 | D93: 0
B94: 0.2225 | C94: 0 | D94: 0
B95: 0.225 | C95: 0 | D95: 0
B96: 0.2275 | C96: 0 | D96: 0
B97: 0.23 | C97: 0 | D97: 0
B98: 0.2325 | C98: 0 | D98: 0
B99: 0.235 | C99: 1 | D99: 0.01
B100: 0.2375 | C100: 0 | D100: 0
B101: 0.24 | C101: 0 | D101: 0
B102: 0.2425 | C102: 0 | D102: 0
B103: 0.245 | C103: 0 | D103: 0
B104: 0.2475 | C104: 0 | D104: 0
B105: 0.25 | C105: 0 | D105: 0
B106: 0.2525 | C106: 0 | D106: 0
B107: 0.255 | C107: 0 | D107: 0
B108: 0.2575 | C108: 0 | D108: 0
B109: 0.26 | C109: 0 | D109: 0
B110: 0.2625 | C110: 0 | D110: 0
B111: 0.265 | C111: 0 | D111: 0
B112: 0.2675 | C112: 0 | D112: 0
B113: 0.27 | C113: 0 | D113: 0
B114: 0.2725 | C114: 0 | D114: 0
B115: 0.275 | C115: 0 | D115: 0
B116: 0.2775 | C116: 0 | D116: 0
B117: 0.28 | C117: 0 | D117: 0
B118: 0.2825 | C118: 0 | D118: 0
B119: 0.285 | C119: 0 | D119: 0
B120: 0.2875 | C120: 0 | D120: 0
B121: 0.29 | C121: 0 | D121: 0
B122: 0.2925 | C122: 0 | D122: 0
B123: 0.295 | C123: 0 | D123: 0
B124: 0.2975 | C124: 0 | D124: 0
B125: 0.3 | C125: 0 | D125: 0
B126: 0.3025 | C126: 0 | D126: 0
B127: 0.305 | C127: 0 | D127: 0
B128: 0.3075 | C128: 0 | D128: 0
B129: 0.31 | C129: 0 | D129: 0
B130: 0.3125 | C130: 1 | D130: 0.01
B131: 0.315 | C131: 0 | D131: 0
B132: 0.3175 | C132: 0 | D132: 0
B133: 0.32 | C133: 0 | D133: 0
B134: 0.3225 | C134: 0 | D134: 0
B135: 0.325 | C135: 0 | D135: 0
B136: 0.3275 | C136: 0 | D136: 0
B137: 0.33 | C137: 0 | D137: 0
B138: 0.3325 | C138: 0 | D138: 0
B139: 0.335 | C139: 0 | D139: 0
B140: 0.3375 | C140: 0 | D140: 0
B141: 0.34 | C141: 0 | D141: 0
B142: 0.3425 | C142: 0 | D142: 0
B143: 0.345 | C143: 0 | D143: 0
B144: 0.3475 | C144: 0 | D144: 0
B145: 0.35 | C145: 0 | D145: 0
B146: 0.3525 | C146: 0 | D146: 0
B147: 0.355 | C147: 0 | D147: 0
B148: 0.3575 | C148: 0 | D148: 0
B149: 0.36 | C149: 0 | D149: 0
B150: 0.3625 | C150: 0 | D150: 0
B151: 0.365 | C151: 0 | D151: 0
B152: 0.3675 | C152: 0 | D152: 0
B153: 0.37 | C153: 0 | D153: 0
B154: 0.3725 | C154: 0 | D154: 0
B155: 0.375 | C155: 0 | D155: 0
B156: 0.3775 | C156: 0 | D156: 0
B157: 0.38 | C157: 0 | D157: 0
B158: 0.3825 | C158: 0 | D158: 0
B159: 0.385 | C159: 0 | D159: 0
B160: 0.3875 | C160: 0 | D160: 0
B161: 0.39 | C161: 0 | D161: 0
B162: 0.3925 | C162: 0 | D162: 0
B163: 0.395 | C163: 0 | D163: 0
B164: 0.3975 | C164: 0 | D164: 0
B165: 0.4 | C165: 0 | D165: 0
B166: 0.4025 | C166: 0 | D166: 0
B167: 0.405 | C167: 0 | D167: 0
B168: 0.4075 | C168: 0 | D168: 0
B169: 0.41 | C169: 0 | D169: 0
B170: 0.4125 | C170: 0 | D170: 0
B171: 0.415 | C171: 0 | D171: 0
B172: 0.4175 | C172: 0 | D172: 0
B173: 0.42 | C173: 0 | D173: 0
B174: 0.4225 | C174: 0 | D174: 0
B175: 0.425 | C175: 0 | D175: 0
B176: 0.4275 | C176: 0 | D176: 0
B177: 0.43 | C177: 0 | D177: 0
B178: 0.4325 | C178: 0 | D178: 0
B179: 0.435 | C179: 0 | D179: 0
B180: 0.4375 | C180: 0 | D180: 0
B181: 0.44 | C181: 0 | D181: 0
B182: 0.4425 | C182: 0 | D182: 0
B183: 0.445 | C183: 0 | D183: 0
B184: 0.4475 | C184: 0 | D184: 0
B185: 0.45 | C185: 0 | D185: 0
B186: 0.4525 | C186: 0 | D186: 0
B187: 0.455 | C187: 0 | D187: 0
B188: 0.4575 | C188: 0 | D188: 0
B189: 0.46 | C189: 0 | D189: 0
B190: 0.4625 | C190: 0 | D190: 0
B191: 0.465 | C191: 0 | D191: 0
B192: 0.4675 | C192: 0 | D192: 0
B193: 0.47 | C193: 0 | D193: 0
B194: 0.4725 | C194: 0 | D194: 0
B195: 0.475 | C195: 0 | D195: 0
B196: 0.4775 | C196: 0 | D196: 0
B197: 0.48 | C197: 0 | D197: 0
B198: 0.4825 | C198: 0 | D198: 0
B199: 0.485 | C199: 0 | D199: 0
B200: 0.4875 | C200: 0 | D200: 0
B201: 0.49 | C201: 0 | D201: 0
B202: 0.4925 | C202: 0 | D202: 0
B203: 0.495 | C203: 0 | D203: 0
... 1 more rows

Sheet F(x)
B4: Bins | C4: Frequency | D4: P(x) | E4: F(x)
B5: 0 | C5: 0 | D5: 0 | E5: 0
B6: 0.0025 | C6: 0 | D6: 0 | E6: 0
B7: 0.005 | C7: 0 | D7: 0 | E7: 0
B8: 0.0075 | C8: 0 | D8: 0 | E8: 0
B9: 0.01 | C9: 0 | D9: 0 | E9: 0
B10: 0.0125 | C10: 0 | D10: 0 | E10: 0
B11: 0.015 | C11: 1 | D11: 0.01 | E11: 0.01
B12: 0.0175 | C12: 0 | D12: 0 | E12: 0.01
B13: 0.02 | C13: 0 | D13: 0 | E13: 0.01
B14: 0.0225 | C14: 0 | D14: 0 | E14: 0.01
B15: 0.025 | C15: 1 | D15: 0.01 | E15: 0.02
B16: 0.0275 | C16: 0 | D16: 0 | E16: 0.02
B17: 0.03 | C17: 2 | D17: 0.02 | E17: 0.04
B18: 0.0325 | C18: 3 | D18: 0.03 | E18: 0.07
B19: 0.035 | C19: 6 | D19: 0.06 | E19: 0.13
B20: 0.0375 | C20: 4 | D20: 0.04 | E20: 0.17
B21: 0.04 | C21: 3 | D21: 0.03 | E21: 0.2
B22: 0.0425 | C22: 3 | D22: 0.03 | E22: 0.23
B23: 0.045 | C23: 3 | D23: 0.03 | E23: 0.26
B24: 0.0475 | C24: 8 | D24: 0.08 | E24: 0.34
B25: 0.05 | C25: 6 | D25: 0.06 | E25: 0.4
B26: 0.0525 | C26: 5 | D26: 0.05 | E26: 0.45
B27: 0.055 | C27: 7 | D27: 0.07 | E27: 0.52
B28: 0.0575 | C28: 7 | D28: 0.07 | E28: 0.59
B29: 0.06 | C29: 3 | D29: 0.03 | E29: 0.62
B30: 0.0625 | C30: 6 | D30: 0.06 | E30: 0.68
B31: 0.065 | C31: 3 | D31: 0.03 | E31: 0.71
B32: 0.0675 | C32: 7 | D32: 0.07 | E32: 0.78
B33: 0.07 | C33: 4 | D33: 0.04 | E33: 0.82
B34: 0.0725 | C34: 1 | D34: 0.01 | E34: 0.83
B35: 0.075 | C35: 3 | D35: 0.03 | E35: 0.86
B36: 0.0775 | C36: 1 | D36: 0.01 | E36: 0.87
B37: 0.08 | C37: 1 | D37: 0.01 | E37: 0.88
B38: 0.0825 | C38: 1 | D38: 0.01 | E38: 0.89
B39: 0.085 | C39: 0 | D39: 0 | E39: 0.89
B40: 0.0875 | C40: 1 | D40: 0.01 | E40: 0.9
B41: 0.09 | C41: 1 | D41: 0.01 | E41: 0.91
B42: 0.0925 | C42: 0 | D42: 0 | E42: 0.91
B43: 0.095 | C43: 1 | D43: 0.01 | E43: 0.92
B44: 0.0975 | C44: 0 | D44: 0 | E44: 0.92
B45: 0.1 | C45: 1 | D45: 0.01 | E45: 0.93
B46: 0.1025 | C46: 1 | D46: 0.01 | E46: 0.94
B47: 0.105 | C47: 1 | D47: 0.01 | E47: 0.95
B48: 0.1075 | C48: 0 | D48: 0 | E48: 0.95
B49: 0.11 | C49: 0 | D49: 0 | E49: 0.95
B50: 0.1125 | C50: 0 | D50: 0 | E50: 0.95
B51: 0.115 | C51: 0 | D51: 0 | E51: 0.95
B52: 0.1175 | C52: 0 | D52: 0 | E52: 0.95
B53: 0.12 | C53: 0 | D53: 0 | E53: 0.95
B54: 0.1225 | C54: 0 | D54: 0 | E54: 0.95
B55: 0.125 | C55: 0 | D55: 0 | E55: 0.95
B56: 0.1275 | C56: 0 | D56: 0 | E56: 0.95
B57: 0.13 | C57: 0 | D57: 0 | E57: 0.95
B58: 0.1325 | C58: 0 | D58: 0 | E58: 0.95
B59: 0.135 | C59: 0 | D59: 0 | E59: 0.95
B60: 0.1375 | C60: 0 | D60: 0 | E60: 0.95
B61: 0.14 | C61: 0 | D61: 0 | E61: 0.95
B62: 0.1425 | C62: 0 | D62: 0 | E62: 0.95
B63: 0.145 | C63: 0 | D63: 0 | E63: 0.95
B64: 0.1475 | C64: 0 | D64: 0 | E64: 0.95
B65: 0.15 | C65: 1 | D65: 0.01 | E65: 0.96
B66: 0.1525 | C66: 0 | D66: 0 | E66: 0.96
B67: 0.155 | C67: 0 | D67: 0 | E67: 0.96
B68: 0.1575 | C68: 0 | D68: 0 | E68: 0.96
B69: 0.16 | C69: 0 | D69: 0 | E69: 0.96
B70: 0.1625 | C70: 0 | D70: 0 | E70: 0.96
B71: 0.165 | C71: 0 | D71: 0 | E71: 0.96
B72: 0.1675 | C72: 0 | D72: 0 | E72: 0.96
B73: 0.17 | C73: 0 | D73: 0 | E73: 0.96
B74: 0.1725 | C74: 0 | D74: 0 | E74: 0.96
B75: 0.175 | C75: 0 | D75: 0 | E75: 0.96
B76: 0.1775 | C76: 0 | D76: 0 | E76: 0.96
B77: 0.18 | C77: 0 | D77: 0 | E77: 0.96
B78: 0.1825 | C78: 0 | D78: 0 | E78: 0.96
B79: 0.185 | C79: 0 | D79: 0 | E79: 0.96
B80: 0.1875 | C80: 0 | D80: 0 | E80: 0.96
B81: 0.19 | C81: 0 | D81: 0 | E81: 0.96
B82: 0.1925 | C82: 0 | D82: 0 | E82: 0.96
B83: 0.195 | C83: 0 | D83: 0 | E83: 0.96
B84: 0.1975 | C84: 0 | D84: 0 | E84: 0.96
B85: 0.2 | C85: 0 | D85: 0 | E85: 0.96
B86: 0.2025 | C86: 0 | D86: 0 | E86: 0.96
B87: 0.205 | C87: 0 | D87: 0 | E87: 0.96
B88: 0.2075 | C88: 1 | D88: 0.01 | E88: 0.97
B89: 0.21 | C89: 0 | D89: 0 | E89: 0.97
B90: 0.2125 | C90: 0 | D90: 0 | E90: 0.97
B91: 0.215 | C91: 0 | D91: 0 | E91: 0.97
B92: 0.2175 | C92: 0 | D92: 0 | E92: 0.97
B93: 0.22 | C93: 0 | D93: 0 | E93: 0.97
B94: 0.2225 | C94: 0 | D94: 0 | E94: 0.97
B95: 0.225 | C95: 0 | D95: 0 | E95: 0.97
B96: 0.2275 | C96: 0 | D96: 0 | E96: 0.97
B97: 0.23 | C97: 0 | D97: 0 | E97: 0.97
B98: 0.2325 | C98: 0 | D98: 0 | E98: 0.97
B99: 0.235 | C99: 1 | D99: 0.01 | E99: 0.98
B100: 0.2375 | C100: 0 | D100: 0 | E100: 0.98
B101: 0.24 | C101: 0 | D101: 0 | E101: 0.98
B102: 0.2425 | C102: 0 | D102: 0 | E102: 0.98
B103: 0.245 | C103: 0 | D103: 0 | E103: 0.98
B104: 0.2475 | C104: 0 | D104: 0 | E104: 0.98
B105: 0.25 | C105: 0 | D105: 0 | E105: 0.98
B106: 0.2525 | C106: 0 | D106: 0 | E106: 0.98
B107: 0.255 | C107: 0 | D107: 0 | E107: 0.98
B108: 0.2575 | C108: 0 | D108: 0 | E108: 0.98
B109: 0.26 | C109: 0 | D109: 0 | E109: 0.98
B110: 0.2625 | C110: 0 | D110: 0 | E110: 0.98
B111: 0.265 | C111: 0 | D111: 0 | E111: 0.98
B112: 0.2675 | C112: 0 | D112: 0 | E112: 0.98
B113: 0.27 | C113: 0 | D113: 0 | E113: 0.98
B114: 0.2725 | C114: 0 | D114: 0 | E114: 0.98
B115: 0.275 | C115: 0 | D115: 0 | E115: 0.98
B116: 0.2775 | C116: 0 | D116: 0 | E116: 0.98
B117: 0.28 | C117: 0 | D117: 0 | E117: 0.98
B118: 0.2825 | C118: 0 | D118: 0 | E118: 0.98
B119: 0.285 | C119: 0 | D119: 0 | E119: 0.98
B120: 0.2875 | C120: 0 | D120: 0 | E120: 0.98
B121: 0.29 | C121: 0 | D121: 0 | E121: 0.98
B122: 0.2925 | C122: 0 | D122: 0 | E122: 0.98
B123: 0.295 | C123: 0 | D123: 0 | E123: 0.98
B124: 0.2975 | C124: 0 | D124: 0 | E124: 0.98
B125: 0.3 | C125: 0 | D125: 0 | E125: 0.98
B126: 0.3025 | C126: 0 | D126: 0 | E126: 0.98
B127: 0.305 | C127: 0 | D127: 0 | E127: 0.98
B128: 0.3075 | C128: 0 | D128: 0 | E128: 0.98
B129: 0.31 | C129: 0 | D129: 0 | E129: 0.98
B130: 0.3125 | C130: 1 | D130: 0.01 | E130: 0.99
B131: 0.315 | C131: 0 | D131: 0 | E131: 0.99
B132: 0.3175 | C132: 0 | D132: 0 | E132: 0.99
B133: 0.32 | C133: 0 | D133: 0 | E133: 0.99
B134: 0.3225 | C134: 0 | D134: 0 | E134: 0.99
B135: 0.325 | C135: 0 | D135: 0 | E135: 0.99
B136: 0.3275 | C136: 0 | D136: 0 | E136: 0.99
B137: 0.33 | C137: 0 | D137: 0 | E137: 0.99
B138: 0.3325 | C138: 0 | D138: 0 | E138: 0.99
B139: 0.335 | C139: 0 | D139: 0 | E139: 0.99
B140: 0.3375 | C140: 0 | D140: 0 | E140: 0.99
B141: 0.34 | C141: 0 | D141: 0 | E141: 0.99
B142: 0.3425 | C142: 0 | D142: 0 | E142: 0.99
B143: 0.345 | C143: 0 | D143: 0 | E143: 0.99
B144: 0.3475 | C144: 0 | D144: 0 | E144: 0.99
B145: 0.35 | C145: 0 | D145: 0 | E145: 0.99
B146: 0.3525 | C146: 0 | D146: 0 | E146: 0.99
B147: 0.355 | C147: 0 | D147: 0 | E147: 0.99
B148: 0.3575 | C148: 0 | D148: 0 | E148: 0.99
B149: 0.36 | C149: 0 | D149: 0 | E149: 0.99
B150: 0.3625 | C150: 0 | D150: 0 | E150: 0.99
B151: 0.365 | C151: 0 | D151: 0 | E151: 0.99
B152: 0.3675 | C152: 0 | D152: 0 | E152: 0.99
B153: 0.37 | C153: 0 | D153: 0 | E153: 0.99
B154: 0.3725 | C154: 0 | D154: 0 | E154: 0.99
B155: 0.375 | C155: 0 | D155: 0 | E155: 0.99
B156: 0.3775 | C156: 0 | D156: 0 | E156: 0.99
B157: 0.38 | C157: 0 | D157: 0 | E157: 0.99
B158: 0.3825 | C158: 0 | D158: 0 | E158: 0.99
B159: 0.385 | C159: 0 | D159: 0 | E159: 0.99
B160: 0.3875 | C160: 0 | D160: 0 | E160: 0.99
B161: 0.39 | C161: 0 | D161: 0 | E161: 0.99
B162: 0.3925 | C162: 0 | D162: 0 | E162: 0.99
B163: 0.395 | C163: 0 | D163: 0 | E163: 0.99
B164: 0.3975 | C164: 0 | D164: 0 | E164: 0.99
B165: 0.4 | C165: 0 | D165: 0 | E165: 0.99
B166: 0.4025 | C166: 0 | D166: 0 | E166: 0.99
B167: 0.405 | C167: 0 | D167: 0 | E167: 0.99
B168: 0.4075 | C168: 0 | D168: 0 | E168: 0.99
B169: 0.41 | C169: 0 | D169: 0 | E169: 0.99
B170: 0.4125 | C170: 0 | D170: 0 | E170: 0.99
B171: 0.415 | C171: 0 | D171: 0 | E171: 0.99
B172: 0.4175 | C172: 0 | D172: 0 | E172: 0.99
B173: 0.42 | C173: 0 | D173: 0 | E173: 0.99
B174: 0.4225 | C174: 0 | D174: 0 | E174: 0.99
B175: 0.425 | C175: 0 | D175: 0 | E175: 0.99
B176: 0.4275 | C176: 0 | D176: 0 | E176: 0.99
B177: 0.43 | C177: 0 | D177: 0 | E177: 0.99
B178: 0.4325 | C178: 0 | D178: 0 | E178: 0.99
B179: 0.435 | C179: 0 | D179: 0 | E179: 0.99
B180: 0.4375 | C180: 0 | D180: 0 | E180: 0.99
B181: 0.44 | C181: 0 | D181: 0 | E181: 0.99
B182: 0.4425 | C182: 0 | D182: 0 | E182: 0.99
B183: 0.445 | C183: 0 | D183: 0 | E183: 0.99
B184: 0.4475 | C184: 0 | D184: 0 | E184: 0.99
B185: 0.45 | C185: 0 | D185: 0 | E185: 0.99
B186: 0.4525 | C186: 0 | D186: 0 | E186: 0.99
B187: 0.455 | C187: 0 | D187: 0 | E187: 0.99
B188: 0.4575 | C188: 0 | D188: 0 | E188: 0.99
B189: 0.46 | C189: 0 | D189: 0 | E189: 0.99
B190: 0.4625 | C190: 0 | D190: 0 | E190: 0.99
B191: 0.465 | C191: 0 | D191: 0 | E191: 0.99
B192: 0.4675 | C192: 0 | D192: 0 | E192: 0.99
B193: 0.47 | C193: 0 | D193: 0 | E193: 0.99
B194: 0.4725 | C194: 0 | D194: 0 | E194: 0.99
B195: 0.475 | C195: 0 | D195: 0 | E195: 0.99
B196: 0.4775 | C196: 0 | D196: 0 | E196: 0.99
B197: 0.48 | C197: 0 | D197: 0 | E197: 0.99
B198: 0.4825 | C198: 0 | D198: 0 | E198: 0.99
B199: 0.485 | C199: 0 | D199: 0 | E199: 0.99
B200: 0.4875 | C200: 0 | D200: 0 | E200: 0.99
B201: 0.49 | C201: 0 | D201: 0 | E201: 0.99
B202: 0.4925 | C202: 0 | D202: 0 | E202: 0.99
B203: 0.495 | C203: 0 | D203: 0 | E203: 0.99
... 1 more rows

Sheet Stock Performance Data
A1: Stock Market Performance | B1: Mean | C1: Volatility | F1: S&P500 Historical Monthly Performance | G1: Date | H1: Open | I1: High | J1: Low | K1: Close | L1: Volume | M1: Adj Close | O1: monthly return | Q1: Poor (2000-2009) | R1: Average (1961 - 2010) | S1: Great (1990-1999)
A2: Poor | B2: -0.001082066925 | C2: 0.04621982366 | G2: 2013-01-02 | H2: 1426.19 | I2: 1485.98 | J2: 1426.19 | K2: 1485.98 | L2: 3867746100 | M2: 1485.98 | O2: =M2/M3-1 -> 0.04192288545 | P2: Mean monthly return | Q2: =AVERAGE(O38:O157) -> -0.001082066925 | R2: =AVERAGE(O26:O625) -> 0.0060258124 | S2: =AVERAGE(O158:O277) -> 0.01284284049
A3: Average | B3: 0.0060258124 | C3: 0.04343240566 | G3: 2012-12-03 | H3: 1416.34 | I3: 1448 | J3: 1398.11 | K3: 1426.19 | L3: 3479625500 | M3: 1426.19 | O3: =M3/M4-1 -> 0.007068310525 | P3: Standard Deviation | Q3: =_xlfn.STDEV.P(O38:O157) -> 0.04621982366 | R3: =_xlfn.STDEV.P(O26:O625) -> 0.04343240566 | S3: =_xlfn.STDEV.P(O158:O277) -> 0.03828644954
A4: Great | B4: 0.01284284049 | C4: 0.03828644954 | G4: 2012-11-01 | H4: 1412.2 | I4: 1434.27 | J4: 1343.35 | K4: 1416.18 | L4: 3593110000 | M4: 1416.18 | O4: 0.002846702923
G5: 2012-10-01 | H5: 1440.9 | I5: 1470.96 | J5: 1403.28 | K5: 1412.16 | L5: 3587115700 | M5: 1412.16 | O5: -0.01978940354
G6: 2012-09-04 | H6: 1406.54 | I6: 1474.51 | J6: 1396.56 | K6: 1440.67 | L6: 3857553100 | M6: 1440.67 | O6: 0.02423609038
G7: 2012-08-01 | H7: 1379.32 | I7: 1426.68 | J7: 1354.65 | K7: 1406.58 | L7: 3183567800 | M7: 1406.58 | O7: 0.01976336166
G8: 2012-07-02 | H8: 1362.33 | I8: 1391.74 | J8: 1325.41 | K8: 1379.32 | L8: 3663113300 | M8: 1379.32 | O8: 0.01259763904
G9: 2012-06-01 | H9: 1309.87 | I9: 1363.46 | J9: 1266.74 | K9: 1362.16 | L9: 4103472300 | M9: 1362.16 | O9: 0.03955492128
G10: 2012-05-01 | H10: 1397.86 | I10: 1415.32 | J10: 1291.98 | K10: 1310.33 | L10: 4158095900 | M10: 1310.33 | O10: -0.06265067136
G11: 2012-04-02 | H11: 1408.47 | I11: 1422.38 | J11: 1357.38 | K11: 1397.91 | L11: 3916786000 | M11: 1397.91 | O11: -0.007497497284
G12: 2012-03-01 | H12: 1365.9 | I12: 1419.15 | J12: 1340.03 | K12: 1408.47 | L12: 3980752200 | M12: 1408.47 | O12: 0.03133237655
G13: 2012-02-01 | H13: 1312.45 | I13: 1378.04 | J13: 1312.45 | K13: 1365.68 | L13: 4143404000 | M13: 1365.68 | O13: 0.04058944994
G14: 2012-01-03 | H14: 1258.86 | I14: 1333.47 | J14: 1258.86 | K14: 1312.41 | L14: 4190155500 | M14: 1312.41 | O14: 0.04358301527
G15: 2011-12-01 | H15: 1246.91 | I15: 1269.37 | J15: 1202.37 | K15: 1257.6 | L15: 3667346600 | M15: 1257.6 | O15: 0.008532751652
G16: 2011-11-01 | H16: 1251 | I16: 1277.55 | J16: 1158.66 | K16: 1246.96 | L16: 4288791900 | M16: 1246.96 | O16: -0.005058645177
G17: 2011-10-03 | H17: 1131.21 | I17: 1292.66 | J17: 1074.77 | K17: 1253.3 | L17: 4874946600 | M17: 1253.3 | O17: 0.1077230383
G18: 2011-09-01 | H18: 1219.12 | I18: 1229.29 | J18: 1114.22 | K18: 1131.42 | L18: 5104933800 | M18: 1131.42 | O18: -0.07176201298
G19: 2011-08-01 | H19: 1292.59 | I19: 1307.38 | J19: 1101.54 | K19: 1218.89 | L19: 4942913400 | M19: 1218.89 | O19: -0.0567910979
G20: 2011-07-01 | H20: 1320.64 | I20: 1356.48 | J20: 1282.86 | K20: 1292.28 | L20: 4308168000 | M20: 1292.28 | O20: -0.02147443664
G21: 2011-06-01 | H21: 1345.2 | I21: 1345.2 | J21: 1258.07 | K21: 1320.64 | L21: 4105601300 | M21: 1320.64 | O21: -0.01825750818
G22: 2011-05-02 | H22: 1365.21 | I22: 1370.58 | J22: 1311.8 | K22: 1345.2 | L22: 4114534200 | M22: 1345.2 | O22: -0.01350092768
G23: 2011-04-01 | H23: 1329.48 | I23: 1364.56 | J23: 1294.7 | K23: 1363.61 | L23: 4042194000 | M23: 1363.61 | O23: 0.02849535763
G24: 2011-03-01 | H24: 1328.64 | I24: 1332.28 | J24: 1249.05 | K24: 1325.83 | L24: 4046691700 | M24: 1325.83 | O24: -0.001047301879
G25: 2011-02-01 | H25: 1289.14 | I25: 1344.07 | J25: 1289.14 | K25: 1327.22 | L25: 3225297300 | M25: 1327.22 | O25: 0.03195658259
G26: 2011-01-03 | H26: 1257.62 | I26: 1302.67 | J26: 1257.62 | K26: 1286.12 | L26: 4816605000 | M26: 1286.12 | O26: 0.02264559015
G27: 2010-12-01 | H27: 1186.6 | I27: 1262.6 | J27: 1186.6 | K27: 1257.64 | L27: 3762922700 | M27: 1257.64 | O27: 0.065300072
G28: 2010-11-01 | H28: 1185.71 | I28: 1227.08 | J28: 1173 | K28: 1180.55 | L28: 4354084200 | M28: 1180.55 | O28: -0.002290282778
G29: 2010-10-01 | H29: 1143.49 | I29: 1196.14 | J29: 1131.87 | K29: 1183.26 | L29: 4432102300 | M29: 1183.26 | O29: 0.03685594111
G30: 2010-09-01 | H30: 1049.72 | I30: 1157.16 | J30: 1049.72 | K30: 1141.2 | L30: 3993981400 | M30: 1141.2 | O30: 0.08755110404
G31: 2010-08-02 | H31: 1107.53 | I31: 1129.24 | J31: 1039.7 | K31: 1049.33 | L31: 4044967700 | M31: 1049.33 | O31: -0.04744916485
G32: 2010-07-01 | H32: 1031.1 | I32: 1120.95 | J32: 1010.91 | K32: 1101.6 | L32: 4704026600 | M32: 1101.6 | O32: 0.06877783276
G33: 2010-06-01 | H33: 1087.3 | I33: 1131.23 | J33: 1028.33 | K33: 1030.71 | L33: 5235174000 | M33: 1030.71 | O33: -0.0538823767
G34: 2010-05-03 | H34: 1188.58 | I34: 1205.13 | J34: 1040.78 | K34: 1089.41 | L34: 6626699400 | M34: 1089.41 | O34: -0.0819759162
G35: 2010-04-01 | H35: 1171.23 | I35: 1219.8 | J35: 1170.69 | K35: 1186.69 | L35: 5847150900 | M35: 1186.69 | O35: 0.01475932719
G36: 2010-03-01 | H36: 1105.36 | I36: 1180.69 | J36: 1105.36 | K36: 1169.43 | L36: 4702951700 | M36: 1169.43 | O36: 0.05879636755
G37: 2010-02-01 | H37: 1073.89 | I37: 1112.42 | J37: 1044.5 | K37: 1104.49 | L37: 4658238400 | M37: 1104.49 | O37: 0.02851369346
G38: 2010-01-04 | H38: 1116.56 | I38: 1150.45 | J38: 1071.59 | K38: 1073.87 | L38: 5071601500 | M38: 1073.87 | O38: -0.0369742624
G39: 2009-12-01 | H39: 1098.89 | I39: 1130.38 | J39: 1085.89 | K39: 1115.1 | L39: 4163287200 | M39: 1115.1 | O39: 0.01777059774
G40: 2009-11-02 | H40: 1036.18 | I40: 1113.69 | J40: 1029.38 | K40: 1095.63 | L40: 4443852500 | M40: 1095.63 | O40: 0.05736399695
G41: 2009-10-01 | H41: 1054.91 | I41: 1101.36 | J41: 1019.95 | K41: 1036.19 | L41: 5451064000 | M41: 1036.19 | O41: -0.01976198585
G42: 2009-09-01 | H42: 1019.52 | I42: 1080.15 | J42: 991.97 | K42: 1057.08 | L42: 5633064200 | M42: 1057.08 | O42: 0.03572338383
G43: 2009-08-03 | H43: 990.22 | I43: 1039.47 | J43: 978.51 | K43: 1020.62 | L43: 5764944200 | M43: 1020.62 | O43: 0.03356017337
G44: 2009-07-01 | H44: 920.82 | I44: 996.68 | J44: 869.32 | K44: 987.48 | L44: 5080675400 | M44: 987.48 | O44: 0.07414175695
G45: 2009-06-01 | H45: 923.26 | I45: 956.23 | J45: 888.86 | K45: 919.32 | L45: 5330941800 | M45: 919.32 | O45: 0.0001958352373
G46: 2009-05-01 | H46: 872.74 | I46: 930.17 | J46: 866.1 | K46: 919.14 | L46: 6883268000 | M46: 919.14 | O46: 0.05308142666
G47: 2009-04-01 | H47: 793.59 | I47: 888.7 | J47: 783.32 | K47: 872.81 | L47: 6938945600 | M47: 872.81 | O47: 0.09392507551
G48: 2009-03-02 | H48: 729.57 | I48: 832.98 | J48: 666.79 | K48: 797.87 | L48: 7633306300 | M48: 797.87 | O48: 0.08540450829
G49: 2009-02-02 | H49: 823.09 | I49: 875.01 | J49: 734.52 | K49: 735.09 | L49: 7022036200 | M49: 735.09 | O49: -0.1099312249
G50: 2009-01-02 | H50: 902.99 | I50: 943.85 | J50: 804.3 | K50: 825.88 | L50: 5844561500 | M50: 825.88 | O50: -0.08565734846
G51: 2008-12-01 | H51: 888.61 | I51: 918.85 | J51: 815.69 | K51: 903.25 | L51: 5320791300 | M51: 903.25 | O51: 0.007821565652
G52: 2008-11-03 | H52: 968.67 | I52: 1007.51 | J52: 741.02 | K52: 896.24 | L52: 6231635200 | M52: 896.24 | O52: -0.07484903226
G53: 2008-10-01 | H53: 1164.17 | I53: 1167.03 | J53: 839.8 | K53: 968.75 | L53: 7226593900 | M53: 968.75 | O53: -0.1694245344
G54: 2008-09-02 | H54: 1287.83 | I54: 1303.04 | J54: 1106.42 | K54: 1166.36 | L54: 6900428500 | M54: 1166.36 | O54: -0.09079145327
G55: 2008-08-01 | H55: 1269.42 | I55: 1313.15 | J55: 1247.45 | K55: 1282.83 | L55: 4264482300 | M55: 1282.83 | O55: 0.01219050324
G56: 2008-07-01 | H56: 1276.69 | I56: 1292.17 | J56: 1200.44 | K56: 1267.38 | L56: 5923937200 | M56: 1267.38 | O56: -0.009859375
G57: 2008-06-02 | H57: 1399.62 | I57: 1404.05 | J57: 1272 | K57: 1280 | L57: 4840303300 | M57: 1280 | O57: -0.08596238164
G58: 2008-05-01 | H58: 1385.97 | I58: 1440.24 | J58: 1373.07 | K58: 1400.38 | L58: 4039814700 | M58: 1400.38 | O58: 0.01067415325
G59: 2008-04-01 | H59: 1326.41 | I59: 1404.57 | J59: 1324.35 | K59: 1385.59 | L59: 4113069000 | M59: 1385.59 | O59: 0.04754668481
G60: 2008-03-03 | H60: 1330.45 | I60: 1359.68 | J60: 1256.98 | K60: 1322.7 | L60: 4661172000 | M60: 1322.7 | O60: -0.005959583055
G61: 2008-02-01 | H61: 1378.6 | I61: 1396.02 | J61: 1316.75 | K61: 1330.63 | L61: 4148143000 | M61: 1330.63 | O61: -0.03476116209
G62: 2008-01-02 | H62: 1467.97 | I62: 1471.77 | J62: 1270.05 | K62: 1378.55 | L62: 4925982300 | M62: 1378.55 | O62: -0.0611634749
G63: 2007-12-03 | H63: 1479.63 | I63: 1523.57 | J63: 1435.65 | K63: 1468.36 | L63: 3363127500 | M63: 1468.36 | O63: -0.008628488867
G64: 2007-11-01 | H64: 1545.79 | I64: 1545.79 | J64: 1406.1 | K64: 1481.14 | L64: 4317578500 | M64: 1481.14 | O64: -0.04404342382
G65: 2007-10-01 | H65: 1527.29 | I65: 1576.09 | J65: 1489.56 | K65: 1549.38 | L65: 3477202100 | M65: 1549.38 | O65: 0.01482233503
G66: 2007-09-04 | H66: 1473.96 | I66: 1538.74 | J66: 1439.29 | K66: 1526.75 | L66: 3196581500 | M66: 1526.75 | O66: 0.03579400132
G67: 2007-08-01 | H67: 1455.18 | I67: 1503.89 | J67: 1370.6 | K67: 1473.99 | L67: 4091885600 | M67: 1473.99 | O67: =M67/M68-1 -> 0.01286359232
G68: 2007-07-02 | H68: 1504.66 | I68: 1555.9 | J68: 1454.25 | K68: 1455.27 | L68: 3564664200 | M68: 1455.27 | O68: -0.03198190707
G69: 2007-06-01 | H69: 1530.62 | I69: 1540.56 | J69: 1484.18 | K69: 1503.35 | L69: 3261343300 | M69: 1503.35 | O69: -0.01781630973
G70: 2007-05-01 | H70: 1482.37 | I70: 1535.56 | J70: 1476.7 | K70: 1530.62 | L70: 3104253600 | M70: 1530.62 | O70: 0.0325492286
G71: 2007-04-02 | H71: 1420.83 | I71: 1498.02 | J71: 1416.37 | K71: 1482.37 | L71: 3006294500 | M71: 1482.37 | O71: 0.04329068311
G72: 2007-03-01 | H72: 1406.8 | I72: 1438.89 | J72: 1363.98 | K72: 1420.86 | L72: 3205736800 | M72: 1420.86 | O72: 0.009979954792
G73: 2007-02-01 | H73: 1437.9 | I73: 1461.57 | J73: 1389.42 | K73: 1406.82 | L73: 2935275700 | M73: 1406.82 | O73: -0.02184614529
G74: 2007-01-03 | H74: 1418.03 | I74: 1441.61 | J74: 1403.97 | K74: 1438.24 | L74: 2983144500 | M74: 1438.24 | O74: 0.01405908482
G75: 2006-12-01 | H75: 1400.63 | I75: 1431.81 | J75: 1385.93 | K75: 1418.3 | L75: 2462849000 | M75: 1418.3 | O75: 0.01261575148
G76: 2006-11-01 | H76: 1377.76 | I76: 1407.89 | J76: 1360.98 | K76: 1400.63 | L76: 2826198000 | M76: 1400.63 | O76: 0.01646660958
G77: 2006-10-02 | H77: 1335.82 | I77: 1389.45 | J77: 1327.1 | K77: 1377.94 | L77: 2708938600 | M77: 1377.94 | O77: 0.0315080286
G78: 2006-09-01 | H78: 1303.8 | I78: 1340.28 | J78: 1290.93 | K78: 1335.85 | L78: 2563743500 | M78: 1335.85 | O78: 0.02456627449
G79: 2006-08-01 | H79: 1278.53 | I79: 1306.74 | J79: 1261.3 | K79: 1303.82 | L79: 2280876500 | M79: 1303.82 | O79: 0.02127426253
G80: 2006-07-03 | H80: 1270.06 | I80: 1280.42 | J80: 1224.54 | K80: 1276.66 | L80: 2440476000 | M80: 1276.66 | O80: 0.005085813258
G81: 2006-06-01 | H81: 1270.05 | I81: 1290.68 | J81: 1219.29 | K81: 1270.2 | L81: 2632855400 | M81: 1270.2 | O81: 8.660803565e-05
G82: 2006-05-01 | H82: 1310.61 | I82: 1326.7 | J82: 1245.34 | K82: 1270.09 | L82: 2591135900 | M82: 1270.09 | O82: -0.03091690129
G83: 2006-04-03 | H83: 1302.88 | I83: 1318.16 | J83: 1280.74 | K83: 1310.61 | L83: 2406755200 | M83: 1310.61 | O83: 0.01215566041
G84: 2006-03-01 | H84: 1280.66 | I84: 1310.88 | J84: 1268.42 | K84: 1294.87 | L84: 2310510800 | M84: 1294.87 | O84: 0.01109584121
G85: 2006-02-01 | H85: 1280.08 | I85: 1297.57 | J85: 1253.61 | K85: 1280.66 | L85: 2380568400 | M85: 1280.66 | O85: 0.0004530966815
G86: 2006-01-03 | H86: 1248.29 | I86: 1294.9 | J86: 1245.74 | K86: 1280.08 | L86: 2595998000 | M86: 1280.08 | O86: 0.02546683864
G87: 2005-12-01 | H87: 1249.48 | I87: 1275.8 | J87: 1246.59 | K87: 1248.29 | L87: 2057125200 | M87: 1248.29 | O87: -0.0009523961968
G88: 2005-11-01 | H88: 1207.01 | I88: 1270.64 | J88: 1201.07 | K88: 1249.48 | L88: 2260836100 | M88: 1249.48 | O88: 0.03518612108
G89: 2005-10-03 | H89: 1228.81 | I89: 1233.34 | J89: 1168.2 | K89: 1207.01 | L89: 2493393300 | M89: 1207.01 | O89: -0.01774074104
G90: 2005-09-01 | H90: 1220.33 | I90: 1243.13 | J90: 1205.35 | K90: 1228.81 | L90: 2232144200 | M90: 1228.81 | O90: 0.006948940041
G91: 2005-08-01 | H91: 1234.18 | I91: 1245.86 | J91: 1201.07 | K91: 1220.33 | L91: 1930243400 | M91: 1220.33 | O91: -0.01122202596
G92: 2005-07-01 | H92: 1191.33 | I92: 1245.15 | J92: 1183.55 | K92: 1234.18 | L92: 1962713500 | M92: 1234.18 | O92: 0.0359682036
G93: 2005-06-01 | H93: 1191.5 | I93: 1219.59 | J93: 1188.3 | K93: 1191.33 | L93: 1929251300 | M93: 1191.33 | O93: -0.0001426772975
G94: 2005-05-02 | H94: 1156.85 | I94: 1199.56 | J94: 1146.18 | K94: 1191.5 | L94: 1960127100 | M94: 1191.5 | O94: 0.0299520249
G95: 2005-04-01 | H95: 1180.59 | I95: 1191.88 | J95: 1136.15 | K95: 1156.85 | L95: 2180315700 | M95: 1156.85 | O95: -0.02010858977
G96: 2005-03-01 | H96: 1203.6 | I96: 1229.11 | J96: 1163.69 | K96: 1180.59 | L96: 1874017200 | M96: 1180.59 | O96: -0.01911764706
G97: 2005-02-01 | H97: 1181.27 | I97: 1212.44 | J97: 1180.95 | K97: 1203.6 | L97: 1636467800 | M97: 1203.6 | O97: 0.01890338365
G98: 2005-01-03 | H98: 1211.92 | I98: 1217.8 | J98: 1163.75 | K98: 1181.27 | L98: 1658930000 | M98: 1181.27 | O98: -0.02529044821
G99: 2004-12-01 | H99: 1173.78 | I99: 1217.33 | J99: 1173.78 | K99: 1211.92 | L99: 1449518100 | M99: 1211.92 | O99: 0.03245812816
G100: 2004-11-01 | H100: 1130.2 | I100: 1188.46 | J100: 1127.6 | K100: 1173.82 | L100: 1524465700 | M100: 1173.82 | O100: 0.03859493895
G101: 2004-10-01 | H101: 1114.58 | I101: 1142.05 | J101: 1090.29 | K101: 1130.2 | L101: 1571990400 | M101: 1130.2 | O101: 0.01401424752
G102: 2004-09-01 | H102: 1104.24 | I102: 1131.54 | J102: 1099.18 | K102: 1114.58 | L102: 1360850900 | M102: 1114.58 | O102: 0.009363906397
G103: 2004-08-02 | H103: 1101.72 | I103: 1109.68 | J103: 1060.72 | K103: 1104.24 | L103: 1260227200 | M103: 1104.24 | O103: 0.002287332535
G104: 2004-07-01 | H104: 1140.84 | I104: 1140.84 | J104: 1078.78 | K104: 1101.72 | L104: 1456371400 | M104: 1101.72 | O104: -0.03429052277
G105: 2004-06-01 | H105: 1120.68 | I105: 1146.34 | J105: 1113.32 | K105: 1140.84 | L105: 1381109500 | M105: 1140.84 | O105: 0.01798907806
G106: 2004-05-03 | H106: 1107.3 | I106: 1127.74 | J106: 1076.32 | K106: 1120.68 | L106: 1524950000 | M106: 1120.68 | O106: 0.01208344622
G107: 2004-04-01 | H107: 1126.21 | I107: 1150.57 | J107: 1107.23 | K107: 1107.3 | L107: 1583171400 | M107: 1107.3 | O107: -0.01679082942
G108: 2004-03-01 | H108: 1144.94 | I108: 1163.23 | J108: 1087.16 | K108: 1126.21 | L108: 1528634700 | M108: 1126.21 | O108: -0.01635893584
G109: 2004-02-02 | H109: 1131.13 | I109: 1158.98 | J109: 1124.44 | K109: 1144.94 | L109: 1554000000 | M109: 1144.94 | O109: 0.01220902991
G110: 2004-01-02 | H110: 1111.92 | I110: 1155.38 | J110: 1105.08 | K110: 1131.13 | L110: 1722750000 | M110: 1131.13 | O110: 0.01727642276
G111: 2003-12-01 | H111: 1058.2 | I111: 1112.56 | J111: 1053.41 | K111: 1111.92 | L111: 1312119500 | M111: 1111.92 | O111: 0.05076545077
G112: 2003-11-03 | H112: 1050.71 | I112: 1063.65 | J112: 1031.2 | K112: 1058.2 | L112: 1313181000 | M112: 1058.2 | O112: 0.007128513101
G113: 2003-10-01 | H113: 995.97 | I113: 1053.79 | J113: 995.97 | K113: 1050.71 | L113: 1469452100 | M113: 1050.71 | O113: 0.05496149482
G114: 2003-09-02 | H114: 1008.01 | I114: 1040.29 | J114: 990.36 | K114: 995.97 | L114: 1501457600 | M114: 995.97 | O114: -0.01194432595
G115: 2003-08-01 | H115: 990.31 | I115: 1011.01 | J115: 960.84 | K115: 1008.01 | L115: 1229836600 | M115: 1008.01 | O115: 0.01787319122
G116: 2003-07-01 | H116: 974.5 | I116: 1015.41 | J116: 962.1 | K116: 990.31 | L116: 1507327200 | M116: 990.31 | O116: 0.01622370446
G117: 2003-06-02 | H117: 963.59 | I117: 1015.33 | J117: 963.59 | K117: 974.5 | L117: 1562219000 | M117: 974.5 | O117: 0.01132224286
G118: 2003-05-01 | H118: 916.92 | I118: 965.38 | J118: 902.83 | K118: 963.59 | L118: 1554328500 | M118: 963.59 | O118: 0.05089866073
G119: 2003-04-01 | H119: 848.18 | I119: 924.24 | J119: 847.85 | K119: 916.92 | L119: 1498005700 | M119: 916.92 | O119: 0.08104411799
G120: 2003-03-03 | H120: 841.15 | I120: 895.9 | J120: 788.9 | K120: 848.18 | L120: 1503596600 | M120: 848.18 | O120: 0.008357605659
G121: 2003-02-03 | H121: 855.7 | I121: 864.64 | J121: 806.29 | K121: 841.15 | L121: 1400452600 | M121: 841.15 | O121: -0.01700362276
G122: 2003-01-02 | H122: 879.82 | I122: 935.05 | J122: 840.34 | K122: 855.7 | L122: 1539433800 | M122: 855.7 | O122: -0.02741469846
G123: 2002-12-02 | H123: 936.31 | I123: 954.28 | J123: 869.45 | K123: 879.82 | L123: 1289625700 | M123: 879.82 | O123: -0.06033258216
G124: 2002-11-01 | H124: 885.76 | I124: 941.82 | J124: 872.05 | K124: 936.31 | L124: 1492221000 | M124: 936.31 | O124: 0.05706963512
G125: 2002-10-01 | H125: 815.28 | I125: 907.44 | J125: 768.63 | K125: 885.76 | L125: 1717287300 | M125: 885.76 | O125: 0.0864488274
G126: 2002-09-03 | H126: 916.07 | I126: 924.02 | J126: 800.2 | K126: 815.28 | L126: 1472279000 | M126: 815.28 | O126: -0.1100243431
G127: 2002-08-01 | H127: 911.62 | I127: 965 | J127: 833.44 | K127: 916.07 | L127: 1374013600 | M127: 916.07 | O127: 0.00488141989
G128: 2002-07-01 | H128: 989.82 | I128: 994.46 | J128: 775.68 | K128: 911.62 | L128: 2012640000 | M128: 911.62 | O128: -0.0790042634
G129: 2002-06-03 | H129: 1067.14 | I129: 1070.74 | J129: 952.92 | K129: 989.82 | L129: 1604925500 | M129: 989.82 | O129: -0.07245534794
G130: 2002-05-01 | H130: 1076.92 | I130: 1106.59 | J130: 1048.96 | K130: 1067.14 | L130: 1281036300 | M130: 1067.14 | O130: -0.009081454518
G131: 2002-04-01 | H131: 1147.39 | I131: 1147.84 | J131: 1063.46 | K131: 1076.92 | L131: 1372613600 | M131: 1076.92 | O131: =M131/M132-1 -> -0.06141765224
G132: 2002-03-01 | H132: 1106.73 | I132: 1173.94 | J132: 1106.73 | K132: 1147.39 | L132: 1385540000 | M132: 1147.39 | O132: 0.03673886133
G133: 2002-02-01 | H133: 1130.2 | I133: 1130.2 | J133: 1074.36 | K133: 1106.73 | L133: 1444200000 | M133: 1106.73 | O133: -0.02076623606
G134: 2002-01-02 | H134: 1148.08 | I134: 1176.97 | J134: 1081.66 | K134: 1130.2 | L134: 1490628500 | M134: 1130.2 | O134: -0.01557382761
G135: 2001-12-03 | H135: 1139.45 | I135: 1173.62 | J135: 1114.53 | K135: 1148.08 | L135: 1303608500 | M135: 1148.08 | O135: 0.007573829479
G136: 2001-11-01 | H136: 1059.78 | I136: 1163.38 | J136: 1054.31 | K136: 1139.45 | L136: 1317790400 | M136: 1139.45 | O136: 0.07517597992
G137: 2001-10-01 | H137: 1040.94 | I137: 1110.61 | J137: 1026.76 | K137: 1059.78 | L137: 1361033900 | M137: 1059.78 | O137: 0.01809902588
G138: 2001-09-04 | H138: 1133.58 | I138: 1155.4 | J138: 944.75 | K138: 1040.94 | L138: 1777119300 | M138: 1040.94 | O138: -0.08172338962
G139: 2001-08-01 | H139: 1211.23 | I139: 1226.27 | J139: 1124.87 | K139: 1133.58 | L139: 1055621700 | M139: 1133.58 | O139: -0.06410838569
G140: 2001-07-02 | H140: 1224.42 | I140: 1239.78 | J140: 1165.54 | K140: 1211.23 | L140: 1186805200 | M140: 1211.23 | O140: -0.0107401297
G141: 2001-06-01 | H141: 1255.82 | I141: 1286.62 | J141: 1203.03 | K141: 1224.38 | L141: 1265732800 | M141: 1224.38 | O141: -0.02503543501
G142: 2001-05-01 | H142: 1249.46 | I142: 1315.93 | J142: 1232 | K142: 1255.82 | L142: 1170568100 | M142: 1255.82 | O142: 0.005090198966
G143: 2001-04-02 | H143: 1160.33 | I143: 1269.3 | J143: 1091.99 | K143: 1249.46 | L143: 1333839500 | M143: 1249.46 | O143: 0.07681435454
G144: 2001-03-01 | H144: 1239.94 | I144: 1267.42 | J144: 1081.19 | K144: 1160.33 | L144: 1322155000 | M144: 1160.33 | O144: -0.06420471958
G145: 2001-02-01 | H145: 1366.01 | I145: 1376.38 | J145: 1215.44 | K145: 1239.94 | L145: 1203668400 | M145: 1239.94 | O145: -0.09229068601
G146: 2001-01-02 | H146: 1320.28 | I146: 1383.37 | J146: 1274.62 | K146: 1366.01 | L146: 1386909500 | M146: 1366.01 | O146: 0.03463659224
G147: 2000-12-01 | H147: 1314.95 | I147: 1389.05 | J147: 1254.07 | K147: 1320.28 | L147: 1232315000 | M147: 1320.28 | O147: 0.00405338606
G148: 2000-11-01 | H148: 1429.4 | I148: 1438.46 | J148: 1294.9 | K148: 1314.95 | L148: 1034230000 | M148: 1314.95 | O148: -0.08006856024
G149: 2000-10-02 | H149: 1436.52 | I149: 1454.82 | J149: 1305.79 | K149: 1429.4 | L149: 1241718100 | M149: 1429.4 | O149: -0.004949495653
G150: 2000-09-01 | H150: 1517.68 | I150: 1530.09 | J150: 1419.44 | K150: 1436.51 | L150: 1101770000 | M150: 1436.51 | O150: -0.05348294766
G151: 2000-08-01 | H151: 1430.83 | I151: 1525.21 | J151: 1425.43 | K151: 1517.68 | L151: 931317300 | M151: 1517.68 | O151: 0.06069903483
G152: 2000-07-03 | H152: 1454.6 | I152: 1517.32 | J152: 1413.89 | K152: 1430.83 | L152: 1002085000 | M152: 1430.83 | O152: -0.0163412622
G153: 2000-06-01 | H153: 1420.6 | I153: 1488.93 | J153: 1420.6 | K153: 1454.6 | L153: 1054454500 | M153: 1454.6 | O153: 0.0239335492
G154: 2000-05-01 | H154: 1452.43 | I154: 1481.51 | J154: 1361.09 | K154: 1420.6 | L154: 948127200 | M154: 1420.6 | O154: -0.02191499762
G155: 2000-04-03 | H155: 1498.58 | I155: 1527.19 | J155: 1339.4 | K155: 1452.43 | L155: 1110055700 | M155: 1452.43 | O155: -0.03079582004
G156: 2000-03-01 | H156: 1366.42 | I156: 1552.87 | J156: 1346.62 | K156: 1498.58 | L156: 1190591300 | M156: 1498.58 | O156: 0.09671989579
G157: 2000-02-01 | H157: 1394.46 | I157: 1444.55 | J157: 1325.07 | K157: 1366.42 | L157: 1105815000 | M157: 1366.42 | O157: -0.02010814222
G158: 2000-01-03 | H158: 1469.25 | I158: 1478 | J158: 1350.14 | K158: 1394.46 | L158: 1124410000 | M158: 1394.46 | O158: -0.05090352221
G159: 1999-12-01 | H159: 1388.91 | I159: 1473.1 | J159: 1387.38 | K159: 1469.25 | L159: 909760900 | M159: 1469.25 | O159: 0.05784392077
G160: 1999-11-01 | H160: 1362.93 | I160: 1425.31 | J160: 1346.41 | K160: 1388.91 | L160: 920777100 | M160: 1388.91 | O160: 0.01906187405
G161: 1999-10-01 | H161: 1282.71 | I161: 1373.17 | J161: 1233.7 | K161: 1362.93 | L161: 950119000 | M161: 1362.93 | O161: 0.06253946722
G162: 1999-09-01 | H162: 1320.41 | I162: 1361.39 | J162: 1256.26 | K162: 1282.71 | L162: 831252300 | M162: 1282.71 | O162: -0.02855173772
G163: 1999-08-02 | H163: 1328.72 | I163: 1382.84 | J163: 1267.73 | K163: 1320.41 | L163: 758193100 | M163: 1320.41 | O163: -0.006254139322
G164: 1999-07-01 | H164: 1372.71 | I164: 1420.33 | J164: 1328.49 | K164: 1328.72 | L164: 765225200 | M164: 1328.72 | O164: -0.03204609859
G165: 1999-06-01 | H165: 1301.84 | I165: 1372.93 | J165: 1277.47 | K165: 1372.71 | L165: 781644000 | M165: 1372.71 | O165: 0.05443833344
G166: 1999-05-03 | H166: 1335.18 | I166: 1375.98 | J166: 1277.31 | K166: 1301.84 | L166: 826511000 | M166: 1301.84 | O166: -0.02497041597
G167: 1999-04-01 | H167: 1286.37 | I167: 1371.56 | J167: 1282.56 | K167: 1335.18 | L167: 926652300 | M167: 1335.18 | O167: 0.0379439819
G168: 1999-03-01 | H168: 1238.33 | I168: 1323.82 | J168: 1216.03 | K168: 1286.37 | L168: 822904300 | M168: 1286.37 | O168: 0.03879418249
G169: 1999-02-01 | H169: 1279.64 | I169: 1283.84 | J169: 1211.89 | K169: 1238.33 | L169: 807392600 | M169: 1238.33 | O169: -0.03228251696
G170: 1999-01-04 | H170: 1229.23 | I170: 1280.37 | J170: 1205.46 | K170: 1279.64 | L170: 901605200 | M170: 1279.64 | O170: 0.0410094124
G171: 1998-12-01 | H171: 1163.63 | I171: 1244.93 | J171: 1136.89 | K171: 1229.23 | L171: 722756800 | M171: 1229.23 | O171: 0.0563753083
G172: 1998-11-02 | H172: 1098.67 | I172: 1192.97 | J172: 1098.67 | K172: 1163.63 | L172: 706959000 | M172: 1163.63 | O172: 0.0591260342
G173: 1998-10-01 | H173: 1017.01 | I173: 1103.78 | J173: 923.32 | K173: 1098.67 | L173: 853938600 | M173: 1098.67 | O173: 0.08029419573
G174: 1998-09-01 | H174: 957.28 | I174: 1066.11 | J174: 939.98 | K174: 1017.01 | L174: 834008500 | M174: 1017.01 | O174: 0.06239553736
G175: 1998-08-03 | H175: 1120.67 | I175: 1121.79 | J175: 957.28 | K175: 957.28 | L175: 761383300 | M175: 957.28 | O175: -0.1457967109
G176: 1998-07-01 | H176: 1133.84 | I176: 1190.58 | J176: 1114.3 | K176: 1120.67 | L176: 674577700 | M176: 1120.67 | O176: -0.01161539547
G177: 1998-06-01 | H177: 1090.82 | I177: 1145.15 | J177: 1074.67 | K177: 1133.84 | L177: 650416800 | M177: 1133.84 | O177: 0.03943822079
G178: 1998-05-01 | H178: 1111.75 | I178: 1130.52 | J178: 1074.39 | K178: 1090.82 | L178: 601696000 | M178: 1090.82 | O178: -0.01882617495
G179: 1998-04-01 | H179: 1101.75 | I179: 1132.98 | J179: 1076.7 | K179: 1111.75 | L179: 683412300 | M179: 1111.75 | O179: 0.009076469253
G180: 1998-03-02 | H180: 1049.34 | I180: 1113.07 | J180: 1030.87 | K180: 1101.75 | L180: 654296300 | M180: 1101.75 | O180: 0.04994568014
G181: 1998-02-02 | H181: 980.28 | I181: 1051.66 | J181: 980.28 | K181: 1049.34 | L181: 643738400 | M181: 1049.34 | O181: 0.0704492594
G182: 1998-01-02 | H182: 970.43 | I182: 992.65 | J182: 912.83 | K182: 980.28 | L182: 667360500 | M182: 980.28 | O182: 0.01015013963
G183: 1997-12-01 | H183: 955.4 | I183: 986.25 | J183: 924.92 | K183: 970.43 | L183: 564825400 | M183: 970.43 | O183: 0.01573163073
G184: 1997-11-03 | H184: 914.62 | I184: 964.55 | J184: 900.61 | K184: 955.4 | L184: 545404700 | M184: 955.4 | O184: 0.04458682294
G185: 1997-10-01 | H185: 947.28 | I185: 983.12 | J185: 855.27 | K185: 914.62 | L185: 637188200 | M185: 914.62 | O185: -0.03447766236
G186: 1997-09-02 | H186: 899.47 | I186: 960.59 | J186: 899.47 | K186: 947.28 | L186: 570023800 | M186: 947.28 | O186: 0.05315352374
G187: 1997-08-01 | H187: 954.29 | I187: 964.17 | J187: 893.34 | K187: 899.47 | L187: 524762300 | M187: 899.47 | O187: -0.05746560342
G188: 1997-07-01 | H188: 885.14 | I188: 957.73 | J188: 884.54 | K188: 954.31 | L188: 568452200 | M188: 954.31 | O188: 0.07814583004
G189: 1997-06-02 | H189: 848.28 | I189: 902.09 | J189: 838.82 | K189: 885.14 | L189: 543785200 | M189: 885.14 | O189: 0.04345263356
G190: 1997-05-01 | H190: 801.34 | I190: 851.87 | J190: 793.21 | K190: 848.28 | L190: 506850000 | M190: 848.28 | O190: 0.05857688372
G191: 1997-04-01 | H191: 757.12 | I191: 804.13 | J191: 733.54 | K191: 801.34 | L191: 500497700 | M191: 801.34 | O191: 0.05840553677
G192: 1997-03-03 | H192: 790.82 | I192: 814.9 | J192: 756.13 | K192: 757.12 | L192: 533832000 | M192: 757.12 | O192: -0.0426139956
G193: 1997-02-03 | H193: 786.16 | I193: 817.68 | J193: 773.43 | K193: 790.82 | L193: 538116300 | M193: 790.82 | O193: 0.005927546555
G194: 1997-01-02 | H194: 740.74 | I194: 794.67 | J194: 729.55 | K194: 786.16 | L194: 555199000 | M194: 786.16 | O194: 0.06131706132
G195: 1996-12-02 | H195: 757.02 | I195: 761.75 | J195: 716.69 | K195: 740.74 | L195: 451853800 | M195: 740.74 | O195: =M195/M196-1 -> -0.02150537634
G196: 1996-11-01 | H196: 705.27 | I196: 762.12 | J196: 701.3 | K196: 757.02 | L196: 438942000 | M196: 757.02 | O196: 0.07337615381
G197: 1996-10-01 | H197: 687.31 | I197: 714.1 | J197: 684.44 | K197: 705.27 | L197: 442891700 | M197: 705.27 | O197: 0.02610099952
G198: 1996-09-03 | H198: 651.99 | I198: 690.88 | J198: 643.97 | K198: 687.33 | L198: 422632000 | M198: 687.33 | O198: 0.05420328533
G199: 1996-08-01 | H199: 639.95 | I199: 670.68 | J199: 639.49 | K199: 651.99 | L199: 347213600 | M199: 651.99 | O199: 0.01881396984
G200: 1996-07-01 | H200: 670.63 | I200: 675.88 | J200: 605.88 | K200: 639.95 | L200: 420610000 | M200: 639.95 | O200: -0.04574802797
... 558 more rows

Sheet 2001 CSO S&U ANB Male NS
A1: 2001 CSO Preferred Class Structure Mortality Table
A2: 2001 CSO Preferred Select & Ultimate ANB - Male Nonsmoker
AA3: Ultimate
A4: Issue Age | B4: Duration
B5: 1 | C5: 2 | D5: 3 | E5: 4 | F5: 5 | G5: 6 | H5: 7 | I5: 8 | J5: 9 | K5: 10 | L5: 11 | M5: 12 | N5: 13 | O5: 14 | P5: 15 | Q5: 16 | R5: 17 | S5: 18 | T5: 19 | U5: 20 | V5: 21 | W5: 22 | X5: 23 | Y5: 24 | Z5: 25 | AA5: 26 | AB5: 27 | AC5: 28 | AD5: 29 | AE5: 30 | AF5: 31 | AG5: 32 | AH5: 33 | AI5: 34 | AJ5: 35 | AK5: 36 | AL5: 37 | AM5: 38 | AN5: 39 | AO5: 40 | AP5: 41 | AQ5: 42 | AR5: 43 | AS5: 44 | AT5: 45 | AU5: 46 | AV5: 47 | AW5: 48 | AX5: 49 | AY5: 50 | AZ5: 51 | BA5: 52 | BB5: 53 | BC5: 54 | BD5: 55 | BE5: 56 | BF5: 57 | BG5: 58 | BH5: 59 | BI5: 60 | BJ5: 61 | BK5: 62 | BL5: 63 | BM5: 64 | BN5: 65 | BO5: 66 | BP5: 67 | BQ5: 68 | BR5: 69 | BS5: 70 | BT5: 71 | BU5: 72 | BV5: 73 | BW5: 74 | BX5: 75 | BY5: 76 | BZ5: 77 | CA5: 78 | CB5: 79 | CC5: 80 | CD5: 81 | CE5: 82 | CF5: 83 | CG5: 84 | CH5: 85 | CI5: 86 | CJ5: 87 | CK5: 88 | CL5: 89 | CM5: 90 | CN5: 91 | CO5: 92 | CP5: 93 | CQ5: 94 | CR5: 95 | CS5: 96 | CT5: 97 | CU5: 98 | CV5: 99 | CW5: 100 | CX5: 101 | CY5: 102 | CZ5: 103 | DA5: 104 | DB5: 105 | DC5: 106 | DD5: 107 | DE5: 108 | DF5: 109 | DG5: 110 | DH5: 111 | DI5: 112 | DJ5: 113 | DK5: 114 | DL5: 115 | DM5: 116 | DN5: 117 | DO5: 118 | DP5: 119 | DQ5: 120 | DR5: 121
A6: 0 | B6: 0 | C6: 0 | D6: 0 | E6: 0 | F6: 0 | G6: 0 | H6: 0 | I6: 0 | J6: 0 | K6: 0 | L6: 0 | M6: 0 | N6: 0 | O6: 0 | P6: 0 | Q6: 0 | R6: 0.00054 | S6: 0.00062 | T6: 0.00066 | U6: 0.00069 | V6: 0.00069 | W6: 0.0007 | X6: 0.0007 | Y6: 0.00071 | Z6: 0.00071 | AA6: 0.00072 | AB6: 0.00074 | AC6: 0.00078 | AD6: 0.00078 | AE6: 0.00077 | AF6: 0.00076 | AG6: 0.00076 | AH6: 0.00076 | AI6: 0.00078 | AJ6: 0.0008 | AK6: 0.00082 | AL6: 0.00087 | AM6: 0.00091 | AN6: 0.00097 | AO6: 0.00103 | AP6: 0.0011 | AQ6: 0.00119 | AR6: 0.0013 | AS6: 0.00142 | AT6: 0.00157 | AU6: 0.00174 | AV6: 0.0019 | AW6: 0.00207 | AX6: 0.00218 | AY6: 0.00233 | AZ6: 0.00251 | BA6: 0.00273 | BB6: 0.00304 | BC6: 0.00338 | BD6: 0.0038 | BE6: 0.00433 | BF6: 0.00488 | BG6: 0.00548 | BH6: 0.00601 | BI6: 0.00664 | BJ6: 0.0073 | BK6: 0.00811 | BL6: 0.0091 | BM6: 0.01021 | BN6: 0.01137 | BO6: 0.0126 | BP6: 0.01385 | BQ6: 0.01511 | BR6: 0.01648 | BS6: 0.01789 | BT6: 0.0196 | BU6: 0.02151 | BV6: 0.02402 | BW6: 0.02667 | BX6: 0.02946 | BY6: 0.03251 | BZ6: 0.03623 | CA6: 0.04059 | CB6: 0.0457 | CC6: 0.05163 | CD6: 0.0582 | CE6: 0.06574 | CF6: 0.07371 | CG6: 0.08242 | CH6: 0.09217 | CI6: 0.10314 | CJ6: 0.11544 | CK6: 0.12901 | CL6: 0.14375 | CM6: 0.15951 | CN6: 0.1762 | CO6: 0.19228 | CP6: 0.20929 | CQ6: 0.2274 | CR6: 0.24672 | CS6: 0.26719 | CT6: 0.28379 | CU6: 0.30149 | CV6: 0.32038 | CW6: 0.34054 | CX6: 0.3621 | CY6: 0.37921 | CZ6: 0.39744 | DA6: 0.41684 | DB6: 0.43748 | DC6: 0.45913 | DD6: 0.48215 | DE6: 0.50662 | DF6: 0.53263 | DG6: 0.56026 | DH6: 0.58959 | DI6: 0.62074 | DJ6: 0.6538 | DK6: 0.68891 | DL6: 0.72615 | DM6: 0.76567 | DN6: 0.80759 | DO6: 0.85205 | DP6: 0.89922 | DQ6: 0.94922 | DR6: 1
A7: 1 | B7: 0 | C7: 0 | D7: 0 | E7: 0 | F7: 0 | G7: 0 | H7: 0 | I7: 0 | J7: 0 | K7: 0 | L7: 0 | M7: 0 | N7: 0 | O7: 0 | P7: 0 | Q7: 0.00052 | R7: 0.00059 | S7: 0.00065 | T7: 0.00068 | U7: 0.00069 | V7: 0.0007 | W7: 0.0007 | X7: 0.00071 | Y7: 0.00071 | Z7: 0.00072 | AA7: 0.00074 | AB7: 0.00078 | AC7: 0.00078 | AD7: 0.00077 | AE7: 0.00076 | AF7: 0.00076 | AG7: 0.00076 | AH7: 0.00078 | AI7: 0.0008 | AJ7: 0.00082 | AK7: 0.00087 | AL7: 0.00091 | AM7: 0.00097 | AN7: 0.00103 | AO7: 0.0011 | AP7: 0.00119 | AQ7: 0.0013 | AR7: 0.00142 | AS7: 0.00157 | AT7: 0.00174 | AU7: 0.0019 | AV7: 0.00207 | AW7: 0.00218 | AX7: 0.00233 | AY7: 0.00251 | AZ7: 0.00273 | BA7: 0.00304 | BB7: 0.00338 | BC7: 0.0038 | BD7: 0.00433 | BE7: 0.00488 | BF7: 0.00548 | BG7: 0.00601 | BH7: 0.00664 | BI7: 0.0073 | BJ7: 0.00811 | BK7: 0.0091 | BL7: 0.01021 | BM7: 0.01137 | BN7: 0.0126 | BO7: 0.01385 | BP7: 0.01511 | BQ7: 0.01648 | BR7: 0.01789 | BS7: 0.0196 | BT7: 0.02151 | BU7: 0.02402 | BV7: 0.02667 | BW7: 0.02946 | BX7: 0.03251 | BY7: 0.03623 | BZ7: 0.04059 | CA7: 0.0457 | CB7: 0.05163 | CC7: 0.0582 | CD7: 0.06574 | CE7: 0.07371 | CF7: 0.08242 | CG7: 0.09217 | CH7: 0.10314 | CI7: 0.11544 | CJ7: 0.12901 | CK7: 0.14375 | CL7: 0.15951 | CM7: 0.1762 | CN7: 0.19228 | CO7: 0.20929 | CP7: 0.2274 | CQ7: 0.24672 | CR7: 0.26719 | CS7: 0.28379 | CT7: 0.30149 | CU7: 0.32038 | CV7: 0.34054 | CW7: 0.3621 | CX7: 0.37921 | CY7: 0.39744 | CZ7: 0.41684 | DA7: 0.43748 | DB7: 0.45913 | DC7: 0.48215 | DD7: 0.50662 | DE7: 0.53263 | DF7: 0.56026 | DG7: 0.58959 | DH7: 0.62074 | DI7: 0.6538 | DJ7: 0.68891 | DK7: 0.72615 | DL7: 0.76567 | DM7: 0.80759 | DN7: 0.85205 | DO7: 0.89922 | DP7: 0.94922 | DQ7: 1
A8: 2 | B8: 0 | C8: 0 | D8: 0 | E8: 0 | F8: 0 | G8: 0 | H8: 0 | I8: 0 | J8: 0 | K8: 0 | L8: 0 | M8: 0 | N8: 0 | O8: 0 | P8: 0.0005 | Q8: 0.00057 | R8: 0.00063 | S8: 0.00067 | T8: 0.00068 | U8: 0.0007 | V8: 0.0007 | W8: 0.00071 | X8: 0.00071 | Y8: 0.00072 | Z8: 0.00074 | AA8: 0.00078 | AB8: 0.00078 | AC8: 0.00077 | AD8: 0.00076 | AE8: 0.00076 | AF8: 0.00076 | AG8: 0.00078 | AH8: 0.0008 | AI8: 0.00082 | AJ8: 0.00087 | AK8: 0.00091 | AL8: 0.00097 | AM8: 0.00103 | AN8: 0.0011 | AO8: 0.00119 | AP8: 0.0013 | AQ8: 0.00142 | AR8: 0.00157 | AS8: 0.00174 | AT8: 0.0019 | AU8: 0.00207 | AV8: 0.00218 | AW8: 0.00233 | AX8: 0.00251 | AY8: 0.00273 | AZ8: 0.00304 | BA8: 0.00338 | BB8: 0.0038 | BC8: 0.00433 | BD8: 0.00488 | BE8: 0.00548 | BF8: 0.00601 | BG8: 0.00664 | BH8: 0.0073 | BI8: 0.00811 | BJ8: 0.0091 | BK8: 0.01021 | BL8: 0.01137 | BM8: 0.0126 | BN8: 0.01385 | BO8: 0.01511 | BP8: 0.01648 | BQ8: 0.01789 | BR8: 0.0196 | BS8: 0.02151 | BT8: 0.02402 | BU8: 0.02667 | BV8: 0.02946 | BW8: 0.03251 | BX8: 0.03623 | BY8: 0.04059 | BZ8: 0.0457 | CA8: 0.05163 | CB8: 0.0582 | CC8: 0.06574 | CD8: 0.07371 | CE8: 0.08242 | CF8: 0.09217 | CG8: 0.10314 | CH8: 0.11544 | CI8: 0.12901 | CJ8: 0.14375 | CK8: 0.15951 | CL8: 0.1762 | CM8: 0.19228 | CN8: 0.20929 | CO8: 0.2274 | CP8: 0.24672 | CQ8: 0.26719 | CR8: 0.28379 | CS8: 0.30149 | CT8: 0.32038 | CU8: 0.34054 | CV8: 0.3621 | CW8: 0.37921 | CX8: 0.39744 | CY8: 0.41684 | CZ8: 0.43748 | DA8: 0.45913 | DB8: 0.48215 | DC8: 0.50662 | DD8: 0.53263 | DE8: 0.56026 | DF8: 0.58959 | DG8: 0.62074 | DH8: 0.6538 | DI8: 0.68891 | DJ8: 0.72615 | DK8: 0.76567 | DL8: 0.80759 | DM8: 0.85205 | DN8: 0.89922 | DO8: 0.94922 | DP8: 1
A9: 3 | B9: 0 | C9: 0 | D9: 0 | E9: 0 | F9: 0 | G9: 0 | H9: 0 | I9: 0 | J9: 0 | K9: 0 | L9: 0 | M9: 0 | N9: 0 | O9: 0.00049 | P9: 0.00056 | Q9: 0.00061 | R9: 0.00066 | S9: 0.00068 | T9: 0.0007 | U9: 0.0007 | V9: 0.00071 | W9: 0.00071 | X9: 0.00072 | Y9: 0.00073 | Z9: 0.00076 | AA9: 0.00078 | AB9: 0.00077 | AC9: 0.00076 | AD9: 0.00076 | AE9: 0.00076 | AF9: 0.00078 | AG9: 0.0008 | AH9: 0.00082 | AI9: 0.00087 | AJ9: 0.00091 | AK9: 0.00097 | AL9: 0.00103 | AM9: 0.0011 | AN9: 0.00119 | AO9: 0.0013 | AP9: 0.00142 | AQ9: 0.00157 | AR9: 0.00174 | AS9: 0.0019 | AT9: 0.00207 | AU9: 0.00218 | AV9: 0.00233 | AW9: 0.00251 | AX9: 0.00273 | AY9: 0.00304 | AZ9: 0.00338 | BA9: 0.0038 | BB9: 0.00433 | BC9: 0.00488 | BD9: 0.00548 | BE9: 0.00601 | BF9: 0.00664 | BG9: 0.0073 | BH9: 0.00811 | BI9: 0.0091 | BJ9: 0.01021 | BK9: 0.01137 | BL9: 0.0126 | BM9: 0.01385 | BN9: 0.01511 | BO9: 0.01648 | BP9: 0.01789 | BQ9: 0.0196 | BR9: 0.02151 | BS9: 0.02402 | BT9: 0.02667 | BU9: 0.02946 | BV9: 0.03251 | BW9: 0.03623 | BX9: 0.04059 | BY9: 0.0457 | BZ9: 0.05163 | CA9: 0.0582 | CB9: 0.06574 | CC9: 0.07371 | CD9: 0.08242 | CE9: 0.09217 | CF9: 0.10314 | CG9: 0.11544 | CH9: 0.12901 | CI9: 0.14375 | CJ9: 0.15951 | CK9: 0.1762 | CL9: 0.19228 | CM9: 0.20929 | CN9: 0.2274 | CO9: 0.24672 | CP9: 0.26719 | CQ9: 0.28379 | CR9: 0.30149 | CS9: 0.32038 | CT9: 0.34054 | CU9: 0.3621 | CV9: 0.37921 | CW9: 0.39744 | CX9: 0.41684 | CY9: 0.43748 | CZ9: 0.45913 | DA9: 0.48215 | DB9: 0.50662 | DC9: 0.53263 | DD9: 0.56026 | DE9: 0.58959 | DF9: 0.62074 | DG9: 0.6538 | DH9: 0.68891 | DI9: 0.72615 | DJ9: 0.76567 | DK9: 0.80759 | DL9: 0.85205 | DM9: 0.89922 | DN9: 0.94922 | DO9: 1
A10: 4 | B10: 0 | C10: 0 | D10: 0 | E10: 0 | F10: 0 | G10: 0 | H10: 0 | I10: 0 | J10: 0 | K10: 0 | L10: 0 | M10: 0 | N10: 0.00049 | O10: 0.00056 | P10: 0.00061 | Q10: 0.00066 | R10: 0.00068 | S10: 0.0007 | T10: 0.0007 | U10: 0.00071 | V10: 0.00071 | W10: 0.00072 | X10: 0.00073 | Y10: 0.00075 | Z10: 0.00076 | AA10: 0.00077 | AB10: 0.00076 | AC10: 0.00076 | AD10: 0.00076 | AE10: 0.00078 | AF10: 0.0008 | AG10: 0.00082 | AH10: 0.00087 | AI10: 0.00091 | AJ10: 0.00097 | AK10: 0.00103 | AL10: 0.0011 | AM10: 0.00119 | AN10: 0.0013 | AO10: 0.00142 | AP10: 0.00157 | AQ10: 0.00174 | AR10: 0.0019 | AS10: 0.00207 | AT10: 0.00218 | AU10: 0.00233 | AV10: 0.00251 | AW10: 0.00273 | AX10: 0.00304 | AY10: 0.00338 | AZ10: 0.0038 | BA10: 0.00433 | BB10: 0.00488 | BC10: 0.00548 | BD10: 0.00601 | BE10: 0.00664 | BF10: 0.0073 | BG10: 0.00811 | BH10: 0.0091 | BI10: 0.01021 | BJ10: 0.01137 | BK10: 0.0126 | BL10: 0.01385 | BM10: 0.01511 | BN10: 0.01648 | BO10: 0.01789 | BP10: 0.0196 | BQ10: 0.02151 | BR10: 0.02402 | BS10: 0.02667 | BT10: 0.02946 | BU10: 0.03251 | BV10: 0.03623 | BW10: 0.04059 | BX10: 0.0457 | BY10: 0.05163 | BZ10: 0.0582 | CA10: 0.06574 | CB10: 0.07371 | CC10: 0.08242 | CD10: 0.09217 | CE10: 0.10314 | CF10: 0.11544 | CG10: 0.12901 | CH10: 0.14375 | CI10: 0.15951 | CJ10: 0.1762 | CK10: 0.19228 | CL10: 0.20929 | CM10: 0.2274 | CN10: 0.24672 | CO10: 0.26719 | CP10: 0.28379 | CQ10: 0.30149 | CR10: 0.32038 | CS10: 0.34054 | CT10: 0.3621 | CU10: 0.37921 | CV10: 0.39744 | CW10: 0.41684 | CX10: 0.43748 | CY10: 0.45913 | CZ10: 0.48215 | DA10: 0.50662 | DB10: 0.53263 | DC10: 0.56026 | DD10: 0.58959 | DE10: 0.62074 | DF10: 0.6538 | DG10: 0.68891 | DH10: 0.72615 | DI10: 0.76567 | DJ10: 0.80759 | DK10: 0.85205 | DL10: 0.89922 | DM10: 0.94922 | DN10: 1
A11: 5 | B11: 0 | C11: 0 | D11: 0 | E11: 0 | F11: 0 | G11: 0 | H11: 0 | I11: 0 | J11: 0 | K11: 0 | L11: 0 | M11: 0.00048 | N11: 0.00056 | O11: 0.00061 | P11: 0.00066 | Q11: 0.00068 | R11: 0.0007 | S11: 0.0007 | T11: 0.00071 | U11: 0.00071 | V11: 0.00072 | W11: 0.00072 | X11: 0.00073 | Y11: 0.00074 | Z11: 0.00075 | AA11: 0.00076 | AB11: 0.00076 | AC11: 0.00076 | AD11: 0.00078 | AE11: 0.0008 | AF11: 0.00082 | AG11: 0.00087 | AH11: 0.00091 | AI11: 0.00097 | AJ11: 0.00103 | AK11: 0.0011 | AL11: 0.00119 | AM11: 0.0013 | AN11: 0.00142 | AO11: 0.00157 | AP11: 0.00174 | AQ11: 0.0019 | AR11: 0.00207 | AS11: 0.00218 | AT11: 0.00233 | AU11: 0.00251 | AV11: 0.00273 | AW11: 0.00304 | AX11: 0.00338 | AY11: 0.0038 | AZ11: 0.00433 | BA11: 0.00488 | BB11: 0.00548 | BC11: 0.00601 | BD11: 0.00664 | BE11: 0.0073 | BF11: 0.00811 | BG11: 0.0091 | BH11: 0.01021 | BI11: 0.01137 | BJ11: 0.0126 | BK11: 0.01385 | BL11: 0.01511 | BM11: 0.01648 | BN11: 0.01789 | BO11: 0.0196 | BP11: 0.02151 | BQ11: 0.02402 | BR11: 0.02667 | BS11: 0.02946 | BT11: 0.03251 | BU11: 0.03623 | BV11: 0.04059 | BW11: 0.0457 | BX11: 0.05163 | BY11: 0.0582 | BZ11: 0.06574 | CA11: 0.07371 | CB11: 0.08242 | CC11: 0.09217 | CD11: 0.10314 | CE11: 0.11544 | CF11: 0.12901 | CG11: 0.14375 | CH11: 0.15951 | CI11: 0.1762 | CJ11: 0.19228 | CK11: 0.20929 | CL11: 0.2274 | CM11: 0.24672 | CN11: 0.26719 | CO11: 0.28379 | CP11: 0.30149 | CQ11: 0.32038 | CR11: 0.34054 | CS11: 0.3621 | CT11: 0.37921 | CU11: 0.39744 | CV11: 0.41684 | CW11: 0.43748 | CX11: 0.45913 | CY11: 0.48215 | CZ11: 0.50662 | DA11: 0.53263 | DB11: 0.56026 | DC11: 0.58959 | DD11: 0.62074 | DE11: 0.6538 | DF11: 0.68891 | DG11: 0.72615 | DH11: 0.76567 | DI11: 0.80759 | DJ11: 0.85205 | DK11: 0.89922 | DL11: 0.94922 | DM11: 1
A12: 6 | B12: 0 | C12: 0 | D12: 0 | E12: 0 | F12: 0 | G12: 0 | H12: 0 | I12: 0 | J12: 0 | K12: 0 | L12: 0.00048 | M12: 0.00056 | N12: 0.00061 | O12: 0.00066 | P12: 0.00068 | Q12: 0.00069 | R12: 0.00069 | S12: 0.0007 | T12: 0.0007 | U12: 0.00071 | V12: 0.00071 | W12: 0.00072 | X12: 0.00073 | Y12: 0.00074 | Z12: 0.00075 | AA12: 0.00076 | AB12: 0.00076 | AC12: 0.00078 | AD12: 0.0008 | AE12: 0.00082 | AF12: 0.00087 | AG12: 0.00091 | AH12: 0.00097 | AI12: 0.00103 | AJ12: 0.0011 | AK12: 0.00119 | AL12: 0.0013 | AM12: 0.00142 | AN12: 0.00157 | AO12: 0.00174 | AP12: 0.0019 | AQ12: 0.00207 | AR12: 0.00218 | AS12: 0.00233 | AT12: 0.00251 | AU12: 0.00273 | AV12: 0.00304 | AW12: 0.00338 | AX12: 0.0038 | AY12: 0.00433 | AZ12: 0.00488 | BA12: 0.00548 | BB12: 0.00601 | BC12: 0.00664 | BD12: 0.0073 | BE12: 0.00811 | BF12: 0.0091 | BG12: 0.01021 | BH12: 0.01137 | BI12: 0.0126 | BJ12: 0.01385 | BK12: 0.01511 | BL12: 0.01648 | BM12: 0.01789 | BN12: 0.0196 | BO12: 0.02151 | BP12: 0.02402 | BQ12: 0.02667 | BR12: 0.02946 | BS12: 0.03251 | BT12: 0.03623 | BU12: 0.04059 | BV12: 0.0457 | BW12: 0.05163 | BX12: 0.0582 | BY12: 0.06574 | BZ12: 0.07371 | CA12: 0.08242 | CB12: 0.09217 | CC12: 0.10314 | CD12: 0.11544 | CE12: 0.12901 | CF12: 0.14375 | CG12: 0.15951 | CH12: 0.1762 | CI12: 0.19228 | CJ12: 0.20929 | CK12: 0.2274 | CL12: 0.24672 | CM12: 0.26719 | CN12: 0.28379 | CO12: 0.30149 | CP12: 0.32038 | CQ12: 0.34054 | CR12: 0.3621 | CS12: 0.37921 | CT12: 0.39744 | CU12: 0.41684 | CV12: 0.43748 | CW12: 0.45913 | CX12: 0.48215 | CY12: 0.50662 | CZ12: 0.53263 | DA12: 0.56026 | DB12: 0.58959 | DC12: 0.62074 | DD12: 0.6538 | DE12: 0.68891 | DF12: 0.72615 | DG12: 0.76567 | DH12: 0.80759 | DI12: 0.85205 | DJ12: 0.89922 | DK12: 0.94922 | DL12: 1
A13: 7 | B13: 0 | C13: 0 | D13: 0 | E13: 0 | F13: 0 | G13: 0 | H13: 0 | I13: 0 | J13: 0 | K13: 0.00048 | L13: 0.00056 | M13: 0.00061 | N13: 0.00066 | O13: 0.00067 | P13: 0.00068 | Q13: 0.00068 | R13: 0.00069 | S13: 0.00069 | T13: 0.0007 | U13: 0.0007 | V13: 0.00071 | W13: 0.00072 | X13: 0.00073 | Y13: 0.00074 | Z13: 0.00075 | AA13: 0.00076 | AB13: 0.00078 | AC13: 0.0008 | AD13: 0.00082 | AE13: 0.00087 | AF13: 0.00091 | AG13: 0.00097 | AH13: 0.00103 | AI13: 0.0011 | AJ13: 0.00119 | AK13: 0.0013 | AL13: 0.00142 | AM13: 0.00157 | AN13: 0.00174 | AO13: 0.0019 | AP13: 0.00207 | AQ13: 0.00218 | AR13: 0.00233 | AS13: 0.00251 | AT13: 0.00273 | AU13: 0.00304 | AV13: 0.00338 | AW13: 0.0038 | AX13: 0.00433 | AY13: 0.00488 | AZ13: 0.00548 | BA13: 0.00601 | BB13: 0.00664 | BC13: 0.0073 | BD13: 0.00811 | BE13: 0.0091 | BF13: 0.01021 | BG13: 0.01137 | BH13: 0.0126 | BI13: 0.01385 | BJ13: 0.01511 | BK13: 0.01648 | BL13: 0.01789 | BM13: 0.0196 | BN13: 0.02151 | BO13: 0.02402 | BP13: 0.02667 | BQ13: 0.02946 | BR13: 0.03251 | BS13: 0.03623 | BT13: 0.04059 | BU13: 0.0457 | BV13: 0.05163 | BW13: 0.0582 | BX13: 0.06574 | BY13: 0.07371 | BZ13: 0.08242 | CA13: 0.09217 | CB13: 0.10314 | CC13: 0.11544 | CD13: 0.12901 | CE13: 0.14375 | CF13: 0.15951 | CG13: 0.1762 | CH13: 0.19228 | CI13: 0.20929 | CJ13: 0.2274 | CK13: 0.24672 | CL13: 0.26719 | CM13: 0.28379 | CN13: 0.30149 | CO13: 0.32038 | CP13: 0.34054 | CQ13: 0.3621 | CR13: 0.37921 | CS13: 0.39744 | CT13: 0.41684 | CU13: 0.43748 | CV13: 0.45913 | CW13: 0.48215 | CX13: 0.50662 | CY13: 0.53263 | CZ13: 0.56026 | DA13: 0.58959 | DB13: 0.62074 | DC13: 0.6538 | DD13: 0.68891 | DE13: 0.72615 | DF13: 0.76567 | DG13: 0.80759 | DH13: 0.85205 | DI13: 0.89922 | DJ13: 0.94922 | DK13: 1
A14: 8 | B14: 0 | C14: 0 | D14: 0 | E14: 0 | F14: 0 | G14: 0 | H14: 0 | I14: 0 | J14: 0.00047 | K14: 0.00056 | L14: 0.00061 | M14: 0.00066 | N14: 0.00066 | O14: 0.00067 | P14: 0.00067 | Q14: 0.00068 | R14: 0.00069 | S14: 0.0007 | T14: 0.0007 | U14: 0.00071 | V14: 0.00072 | W14: 0.00073 | X14: 0.00074 | Y14: 0.00075 | Z14: 0.00076 | AA14: 0.00078 | AB14: 0.0008 | AC14: 0.00082 | AD14: 0.00087 | AE14: 0.00091 | AF14: 0.00097 | AG14: 0.00103 | AH14: 0.0011 | AI14: 0.00119 | AJ14: 0.0013 | AK14: 0.00142 | AL14: 0.00157 | AM14: 0.00174 | AN14: 0.0019 | AO14: 0.00207 | AP14: 0.00218 | AQ14: 0.00233 | AR14: 0.00251 | AS14: 0.00273 | AT14: 0.00304 | AU14: 0.00338 | AV14: 0.0038 | AW14: 0.00433 | AX14: 0.00488 | AY14: 0.00548 | AZ14: 0.00601 | BA14: 0.00664 | BB14: 0.0073 | BC14: 0.00811 | BD14: 0.0091 | BE14: 0.01021 | BF14: 0.01137 | BG14: 0.0126 | BH14: 0.01385 | BI14: 0.01511 | BJ14: 0.01648 | BK14: 0.01789 | BL14: 0.0196 | BM14: 0.02151 | BN14: 0.02402 | BO14: 0.02667 | BP14: 0.02946 | BQ14: 0.03251 | BR14: 0.03623 | BS14: 0.04059 | BT14: 0.0457 | BU14: 0.05163 | BV14: 0.0582 | BW14: 0.06574 | BX14: 0.07371 | BY14: 0.08242 | BZ14: 0.09217 | CA14: 0.10314 | CB14: 0.11544 | CC14: 0.12901 | CD14: 0.14375 | CE14: 0.15951 | CF14: 0.1762 | CG14: 0.19228 | CH14: 0.20929 | CI14: 0.2274 | CJ14: 0.24672 | CK14: 0.26719 | CL14: 0.28379 | CM14: 0.30149 | CN14: 0.32038 | CO14: 0.34054 | CP14: 0.3621 | CQ14: 0.37921 | CR14: 0.39744 | CS14: 0.41684 | CT14: 0.43748 | CU14: 0.45913 | CV14: 0.48215 | CW14: 0.50662 | CX14: 0.53263 | CY14: 0.56026 | CZ14: 0.58959 | DA14: 0.62074 | DB14: 0.6538 | DC14: 0.68891 | DD14: 0.72615 | DE14: 0.76567 | DF14: 0.80759 | DG14: 0.85205 | DH14: 0.89922 | DI14: 0.94922 | DJ14: 1
A15: 9 | B15: 0 | C15: 0 | D15: 0 | E15: 0 | F15: 0 | G15: 0 | H15: 0 | I15: 0.00047 | J15: 0.00056 | K15: 0.00061 | L15: 0.00066 | M15: 0.00066 | N15: 0.00067 | O15: 0.00067 | P15: 0.00068 | Q15: 0.00068 | R15: 0.0007 | S15: 0.0007 | T15: 0.00071 | U15: 0.00072 | V15: 0.00073 | W15: 0.00074 | X15: 0.00075 | Y15: 0.00076 | Z15: 0.00078 | AA15: 0.0008 | AB15: 0.00082 | AC15: 0.00087 | AD15: 0.00091 | AE15: 0.00097 | AF15: 0.00103 | AG15: 0.0011 | AH15: 0.00119 | AI15: 0.0013 | AJ15: 0.00142 | AK15: 0.00157 | AL15: 0.00174 | AM15: 0.0019 | AN15: 0.00207 | AO15: 0.00218 | AP15: 0.00233 | AQ15: 0.00251 | AR15: 0.00273 | AS15: 0.00304 | AT15: 0.00338 | AU15: 0.0038 | AV15: 0.00433 | AW15: 0.00488 | AX15: 0.00548 | AY15: 0.00601 | AZ15: 0.00664 | BA15: 0.0073 | BB15: 0.00811 | BC15: 0.0091 | BD15: 0.01021 | BE15: 0.01137 | BF15: 0.0126 | BG15: 0.01385 | BH15: 0.01511 | BI15: 0.01648 | BJ15: 0.01789 | BK15: 0.0196 | BL15: 0.02151 | BM15: 0.02402 | BN15: 0.02667 | BO15: 0.02946 | BP15: 0.03251 | BQ15: 0.03623 | BR15: 0.04059 | BS15: 0.0457 | BT15: 0.05163 | BU15: 0.0582 | BV15: 0.06574 | BW15: 0.07371 | BX15: 0.08242 | BY15: 0.09217 | BZ15: 0.10314 | CA15: 0.11544 | CB15: 0.12901 | CC15: 0.14375 | CD15: 0.15951 | CE15: 0.1762 | CF15: 0.19228 | CG15: 0.20929 | CH15: 0.2274 | CI15: 0.24672 | CJ15: 0.26719 | CK15: 0.28379 | CL15: 0.30149 | CM15: 0.32038 | CN15: 0.34054 | CO15: 0.3621 | CP15: 0.37921 | CQ15: 0.39744 | CR15: 0.41684 | CS15: 0.43748 | CT15: 0.45913 | CU15: 0.48215 | CV15: 0.50662 | CW15: 0.53263 | CX15: 0.56026 | CY15: 0.58959 | CZ15: 0.62074 | DA15: 0.6538 | DB15: 0.68891 | DC15: 0.72615 | DD15: 0.76567 | DE15: 0.80759 | DF15: 0.85205 | DG15: 0.89922 | DH15: 0.94922 | DI15: 1
A16: 10 | B16: 0 | C16: 0 | D16: 0 | E16: 0 | F16: 0 | G16: 0 | H16: 0.00047 | I16: 0.00055 | J16: 0.00061 | K16: 0.00065 | L16: 0.00065 | M16: 0.00066 | N16: 0.00066 | O16: 0.00067 | P16: 0.00068 | Q16: 0.00069 | R16: 0.0007 | S16: 0.00071 | T16: 0.00072 | U16: 0.00073 | V16: 0.00074 | W16: 0.00075 | X16: 0.00076 | Y16: 0.00078 | Z16: 0.0008 | AA16: 0.00082 | AB16: 0.00087 | AC16: 0.00091 | AD16: 0.00097 | AE16: 0.00103 | AF16: 0.0011 | AG16: 0.00119 | AH16: 0.0013 | AI16: 0.00142 | AJ16: 0.00157 | AK16: 0.00174 | AL16: 0.0019 | AM16: 0.00207 | AN16: 0.00218 | AO16: 0.00233 | AP16: 0.00251 | AQ16: 0.00273 | AR16: 0.00304 | AS16: 0.00338 | AT16: 0.0038 | AU16: 0.00433 | AV16: 0.00488 | AW16: 0.00548 | AX16: 0.00601 | AY16: 0.00664 | AZ16: 0.0073 | BA16: 0.00811 | BB16: 0.0091 | BC16: 0.01021 | BD16: 0.01137 | BE16: 0.0126 | BF16: 0.01385 | BG16: 0.01511 | BH16: 0.01648 | BI16: 0.01789 | BJ16: 0.0196 | BK16: 0.02151 | BL16: 0.02402 | BM16: 0.02667 | BN16: 0.02946 | BO16: 0.03251 | BP16: 0.03623 | BQ16: 0.04059 | BR16: 0.0457 | BS16: 0.05163 | BT16: 0.0582 | BU16: 0.06574 | BV16: 0.07371 | BW16: 0.08242 | BX16: 0.09217 | BY16: 0.10314 | BZ16: 0.11544 | CA16: 0.12901 | CB16: 0.14375 | CC16: 0.15951 | CD16: 0.1762 | CE16: 0.19228 | CF16: 0.20929 | CG16: 0.2274 | CH16: 0.24672 | CI16: 0.26719 | CJ16: 0.28379 | CK16: 0.30149 | CL16: 0.32038 | CM16: 0.34054 | CN16: 0.3621 | CO16: 0.37921 | CP16: 0.39744 | CQ16: 0.41684 | CR16: 0.43748 | CS16: 0.45913 | CT16: 0.48215 | CU16: 0.50662 | CV16: 0.53263 | CW16: 0.56026 | CX16: 0.58959 | CY16: 0.62074 | CZ16: 0.6538 | DA16: 0.68891 | DB16: 0.72615 | DC16: 0.76567 | DD16: 0.80759 | DE16: 0.85205 | DF16: 0.89922 | DG16: 0.94922 | DH16: 1
A17: 11 | B17: 0 | C17: 0 | D17: 0 | E17: 0 | F17: 0 | G17: 0.00047 | H17: 0.00055 | I17: 0.00061 | J17: 0.00064 | K17: 0.00064 | L17: 0.00065 | M17: 0.00065 | N17: 0.00066 | O17: 0.00067 | P17: 0.00069 | Q17: 0.0007 | R17: 0.00071 | S17: 0.00072 | T17: 0.00073 | U17: 0.00074 | V17: 0.00075 | W17: 0.00076 | X17: 0.00078 | Y17: 0.0008 | Z17: 0.00082 | AA17: 0.00087 | AB17: 0.00091 | AC17: 0.00097 | AD17: 0.00103 | AE17: 0.0011 | AF17: 0.00119 | AG17: 0.0013 | AH17: 0.00142 | AI17: 0.00157 | AJ17: 0.00174 | AK17: 0.0019 | AL17: 0.00207 | AM17: 0.00218 | AN17: 0.00233 | AO17: 0.00251 | AP17: 0.00273 | AQ17: 0.00304 | AR17: 0.00338 | AS17: 0.0038 | AT17: 0.00433 | AU17: 0.00488 | AV17: 0.00548 | AW17: 0.00601 | AX17: 0.00664 | AY17: 0.0073 | AZ17: 0.00811 | BA17: 0.0091 | BB17: 0.01021 | BC17: 0.01137 | BD17: 0.0126 | BE17: 0.01385 | BF17: 0.01511 | BG17: 0.01648 | BH17: 0.01789 | BI17: 0.0196 | BJ17: 0.02151 | BK17: 0.02402 | BL17: 0.02667 | BM17: 0.02946 | BN17: 0.03251 | BO17: 0.03623 | BP17: 0.04059 | BQ17: 0.0457 | BR17: 0.05163 | BS17: 0.0582 | BT17: 0.06574 | BU17: 0.07371 | BV17: 0.08242 | BW17: 0.09217 | BX17: 0.10314 | BY17: 0.11544 | BZ17: 0.12901 | CA17: 0.14375 | CB17: 0.15951 | CC17: 0.1762 | CD17: 0.19228 | CE17: 0.20929 | CF17: 0.2274 | CG17: 0.24672 | CH17: 0.26719 | CI17: 0.28379 | CJ17: 0.30149 | CK17: 0.32038 | CL17: 0.34054 | CM17: 0.3621 | CN17: 0.37921 | CO17: 0.39744 | CP17: 0.41684 | CQ17: 0.43748 | CR17: 0.45913 | CS17: 0.48215 | CT17: 0.50662 | CU17: 0.53263 | CV17: 0.56026 | CW17: 0.58959 | CX17: 0.62074 | CY17: 0.6538 | CZ17: 0.68891 | DA17: 0.72615 | DB17: 0.76567 | DC17: 0.80759 | DD17: 0.85205 | DE17: 0.89922 | DF17: 0.94922 | DG17: 1
A18: 12 | B18: 0 | C18: 0 | D18: 0 | E18: 0 | F18: 0.00047 | G18: 0.00055 | H18: 0.00061 | I18: 0.00064 | J18: 0.00064 | K18: 0.00065 | L18: 0.00065 | M18: 0.00066 | N18: 0.00066 | O18: 0.00069 | P18: 0.0007 | Q18: 0.00071 | R18: 0.00072 | S18: 0.00073 | T18: 0.00074 | U18: 0.00075 | V18: 0.00076 | W18: 0.00078 | X18: 0.0008 | Y18: 0.00082 | Z18: 0.00087 | AA18: 0.00091 | AB18: 0.00097 | AC18: 0.00103 | AD18: 0.0011 | AE18: 0.00119 | AF18: 0.0013 | AG18: 0.00142 | AH18: 0.00157 | AI18: 0.00174 | AJ18: 0.0019 | AK18: 0.00207 | AL18: 0.00218 | AM18: 0.00233 | AN18: 0.00251 | AO18: 0.00273 | AP18: 0.00304 | AQ18: 0.00338 | AR18: 0.0038 | AS18: 0.00433 | AT18: 0.00488 | AU18: 0.00548 | AV18: 0.00601 | AW18: 0.00664 | AX18: 0.0073 | AY18: 0.00811 | AZ18: 0.0091 | BA18: 0.01021 | BB18: 0.01137 | BC18: 0.0126 | BD18: 0.01385 | BE18: 0.01511 | BF18: 0.01648 | BG18: 0.01789 | BH18: 0.0196 | BI18: 0.02151 | BJ18: 0.02402 | BK18: 0.02667 | BL18: 0.02946 | BM18: 0.03251 | BN18: 0.03623 | BO18: 0.04059 | BP18: 0.0457 | BQ18: 0.05163 | BR18: 0.0582 | BS18: 0.06574 | BT18: 0.07371 | BU18: 0.08242 | BV18: 0.09217 | BW18: 0.10314 | BX18: 0.11544 | BY18: 0.12901 | BZ18: 0.14375 | CA18: 0.15951 | CB18: 0.1762 | CC18: 0.19228 | CD18: 0.20929 | CE18: 0.2274 | CF18: 0.24672 | CG18: 0.26719 | CH18: 0.28379 | CI18: 0.30149 | CJ18: 0.32038 | CK18: 0.34054 | CL18: 0.3621 | CM18: 0.37921 | CN18: 0.39744 | CO18: 0.41684 | CP18: 0.43748 | CQ18: 0.45913 | CR18: 0.48215 | CS18: 0.50662 | CT18: 0.53263 | CU18: 0.56026 | CV18: 0.58959 | CW18: 0.62074 | CX18: 0.6538 | CY18: 0.68891 | CZ18: 0.72615 | DA18: 0.76567 | DB18: 0.80759 | DC18: 0.85205 | DD18: 0.89922 | DE18: 0.94922 | DF18: 1
A19: 13 | B19: 0 | C19: 0 | D19: 0 | E19: 0.00047 | F19: 0.00055 | G19: 0.00061 | H19: 0.00063 | I19: 0.00063 | J19: 0.00064 | K19: 0.00064 | L19: 0.00065 | M19: 0.00066 | N19: 0.00068 | O19: 0.0007 | P19: 0.00071 | Q19: 0.00072 | R19: 0.00073 | S19: 0.00074 | T19: 0.00075 | U19: 0.00076 | V19: 0.00078 | W19: 0.0008 | X19: 0.00082 | Y19: 0.00087 | Z19: 0.00091 | AA19: 0.00097 | AB19: 0.00103 | AC19: 0.0011 | AD19: 0.00119 | AE19: 0.0013 | AF19: 0.00142 | AG19: 0.00157 | AH19: 0.00174 | AI19: 0.0019 | AJ19: 0.00207 | AK19: 0.00218 | AL19: 0.00233 | AM19: 0.00251 | AN19: 0.00273 | AO19: 0.00304 | AP19: 0.00338 | AQ19: 0.0038 | AR19: 0.00433 | AS19: 0.00488 | AT19: 0.00548 | AU19: 0.00601 | AV19: 0.00664 | AW19: 0.0073 | AX19: 0.00811 | AY19: 0.0091 | AZ19: 0.01021 | BA19: 0.01137 | BB19: 0.0126 | BC19: 0.01385 | BD19: 0.01511 | BE19: 0.01648 | BF19: 0.01789 | BG19: 0.0196 | BH19: 0.02151 | BI19: 0.02402 | BJ19: 0.02667 | BK19: 0.02946 | BL19: 0.03251 | BM19: 0.03623 | BN19: 0.04059 | BO19: 0.0457 | BP19: 0.05163 | BQ19: 0.0582 | BR19: 0.06574 | BS19: 0.07371 | BT19: 0.08242 | BU19: 0.09217 | BV19: 0.10314 | BW19: 0.11544 | BX19: 0.12901 | BY19: 0.14375 | BZ19: 0.15951 | CA19: 0.1762 | CB19: 0.19228 | CC19: 0.20929 | CD19: 0.2274 | CE19: 0.24672 | CF19: 0.26719 | CG19: 0.28379 | CH19: 0.30149 | CI19: 0.32038 | CJ19: 0.34054 | CK19: 0.3621 | CL19: 0.37921 | CM19: 0.39744 | CN19: 0.41684 | CO19: 0.43748 | CP19: 0.45913 | CQ19: 0.48215 | CR19: 0.50662 | CS19: 0.53263 | CT19: 0.56026 | CU19: 0.58959 | CV19: 0.62074 | CW19: 0.6538 | CX19: 0.68891 | CY19: 0.72615 | CZ19: 0.76567 | DA19: 0.80759 | DB19: 0.85205 | DC19: 0.89922 | DD19: 0.94922 | DE19: 1
A20: 14 | B20: 0 | C20: 0 | D20: 0.00047 | E20: 0.00055 | F20: 0.00061 | G20: 0.00063 | H20: 0.00063 | I20: 0.00064 | J20: 0.00064 | K20: 0.00065 | L20: 0.00065 | M20: 0.00067 | N20: 0.00069 | O20: 0.00071 | P20: 0.00072 | Q20: 0.00073 | R20: 0.00074 | S20: 0.00075 | T20: 0.00076 | U20: 0.00078 | V20: 0.0008 | W20: 0.00082 | X20: 0.00087 | Y20: 0.00091 | Z20: 0.00097 | AA20: 0.00103 | AB20: 0.0011 | AC20: 0.00119 | AD20: 0.0013 | AE20: 0.00142 | AF20: 0.00157 | AG20: 0.00174 | AH20: 0.0019 | AI20: 0.00207 | AJ20: 0.00218 | AK20: 0.00233 | AL20: 0.00251 | AM20: 0.00273 | AN20: 0.00304 | AO20: 0.00338 | AP20: 0.0038 | AQ20: 0.00433 | AR20: 0.00488 | AS20: 0.00548 | AT20: 0.00601 | AU20: 0.00664 | AV20: 0.0073 | AW20: 0.00811 | AX20: 0.0091 | AY20: 0.01021 | AZ20: 0.01137 | BA20: 0.0126 | BB20: 0.01385 | BC20: 0.01511 | BD20: 0.01648 | BE20: 0.01789 | BF20: 0.0196 | BG20: 0.02151 | BH20: 0.02402 | BI20: 0.02667 | BJ20: 0.02946 | BK20: 0.03251 | BL20: 0.03623 | BM20: 0.04059 | BN20: 0.0457 | BO20: 0.05163 | BP20: 0.0582 | BQ20: 0.06574 | BR20: 0.07371 | BS20: 0.08242 | BT20: 0.09217 | BU20: 0.10314 | BV20: 0.11544 | BW20: 0.12901 | BX20: 0.14375 | BY20: 0.15951 | BZ20: 0.1762 | CA20: 0.19228 | CB20: 0.20929 | CC20: 0.2274 | CD20: 0.24672 | CE20: 0.26719 | CF20: 0.28379 | CG20: 0.30149 | CH20: 0.32038 | CI20: 0.34054 | CJ20: 0.3621 | CK20: 0.37921 | CL20: 0.39744 | CM20: 0.41684 | CN20: 0.43748 | CO20: 0.45913 | CP20: 0.48215 | CQ20: 0.50662 | CR20: 0.53263 | CS20: 0.56026 | CT20: 0.58959 | CU20: 0.62074 | CV20: 0.6538 | CW20: 0.68891 | CX20: 0.72615 | CY20: 0.76567 | CZ20: 0.80759 | DA20: 0.85205 | DB20: 0.89922 | DC20: 0.94922 | DD20: 1
A21: 15 | B21: 0 | C21: 0.00047 | D21: 0.00055 | E21: 0.00061 | F21: 0.00062 | G21: 0.00062 | H21: 0.00063 | I21: 0.00063 | J21: 0.00064 | K21: 0.00064 | L21: 0.00067 | M21: 0.00068 | N21: 0.00071 | O21: 0.00072 | P21: 0.00073 | Q21: 0.00074 | R21: 0.00075 | S21: 0.00076 | T21: 0.00078 | U21: 0.0008 | V21: 0.00082 | W21: 0.00087 | X21: 0.00091 | Y21: 0.00097 | Z21: 0.00103 | AA21: 0.0011 | AB21: 0.00119 | AC21: 0.0013 | AD21: 0.00142 | AE21: 0.00157 | AF21: 0.00174 | AG21: 0.0019 | AH21: 0.00207 | AI21: 0.00218 | AJ21: 0.00233 | AK21: 0.00251 | AL21: 0.00273 | AM21: 0.00304 | AN21: 0.00338 | AO21: 0.0038 | AP21: 0.00433 | AQ21: 0.00488 | AR21: 0.00548 | AS21: 0.00601 | AT21: 0.00664 | AU21: 0.0073 | AV21: 0.00811 | AW21: 0.0091 | AX21: 0.01021 | AY21: 0.01137 | AZ21: 0.0126 | BA21: 0.01385 | BB21: 0.01511 | BC21: 0.01648 | BD21: 0.01789 | BE21: 0.0196 | BF21: 0.02151 | BG21: 0.02402 | BH21: 0.02667 | BI21: 0.02946 | BJ21: 0.03251 | BK21: 0.03623 | BL21: 0.04059 | BM21: 0.0457 | BN21: 0.05163 | BO21: 0.0582 | BP21: 0.06574 | BQ21: 0.07371 | BR21: 0.08242 | BS21: 0.09217 | BT21: 0.10314 | BU21: 0.11544 | BV21: 0.12901 | BW21: 0.14375 | BX21: 0.15951 | BY21: 0.1762 | BZ21: 0.19228 | CA21: 0.20929 | CB21: 0.2274 | CC21: 0.24672 | CD21: 0.26719 | CE21: 0.28379 | CF21: 0.30149 | CG21: 0.32038 | CH21: 0.34054 | CI21: 0.3621 | CJ21: 0.37921 | CK21: 0.39744 | CL21: 0.41684 | CM21: 0.43748 | CN21: 0.45913 | CO21: 0.48215 | CP21: 0.50662 | CQ21: 0.53263 | CR21: 0.56026 | CS21: 0.58959 | CT21: 0.62074 | CU21: 0.6538 | CV21: 0.68891 | CW21: 0.72615 | CX21: 0.76567 | CY21: 0.80759 | CZ21: 0.85205 | DA21: 0.89922 | DB21: 0.94922 | DC21: 1
A22: 16 | B22: 0.00047 | C22: 0.00055 | D22: 0.00061 | E22: 0.00062 | F22: 0.00062 | G22: 0.00063 | H22: 0.00063 | I22: 0.00064 | J22: 0.00064 | K22: 0.00065 | L22: 0.00067 | M22: 0.0007 | N22: 0.00071 | O22: 0.00073 | P22: 0.00074 | Q22: 0.00075 | R22: 0.00076 | S22: 0.00078 | T22: 0.0008 | U22: 0.00082 | V22: 0.00087 | W22: 0.00091 | X22: 0.00097 | Y22: 0.00103 | Z22: 0.0011 | AA22: 0.00119 | AB22: 0.0013 | AC22: 0.00142 | AD22: 0.00157 | AE22: 0.00174 | AF22: 0.0019 | AG22: 0.00207 | AH22: 0.00218 | AI22: 0.00233 | AJ22: 0.00251 | AK22: 0.00273 | AL22: 0.00304 | AM22: 0.00338 | AN22: 0.0038 | AO22: 0.00433 | AP22: 0.00488 | AQ22: 0.00548 | AR22: 0.00601 | AS22: 0.00664 | AT22: 0.0073 | AU22: 0.00811 | AV22: 0.0091 | AW22: 0.01021 | AX22: 0.01137 | AY22: 0.0126 | AZ22: 0.01385 | BA22: 0.01511 | BB22: 0.01648 | BC22: 0.01789 | BD22: 0.0196 | BE22: 0.02151 | BF22: 0.02402 | BG22: 0.02667 | BH22: 0.02946 | BI22: 0.03251 | BJ22: 0.03623 | BK22: 0.04059 | BL22: 0.0457 | BM22: 0.05163 | BN22: 0.0582 | BO22: 0.06574 | BP22: 0.07371 | BQ22: 0.08242 | BR22: 0.09217 | BS22: 0.10314 | BT22: 0.11544 | BU22: 0.12901 | BV22: 0.14375 | BW22: 0.15951 | BX22: 0.1762 | BY22: 0.19228 | BZ22: 0.20929 | CA22: 0.2274 | CB22: 0.24672 | CC22: 0.26719 | CD22: 0.28379 | CE22: 0.30149 | CF22: 0.32038 | CG22: 0.34054 | CH22: 0.3621 | CI22: 0.37921 | CJ22: 0.39744 | CK22: 0.41684 | CL22: 0.43748 | CM22: 0.45913 | CN22: 0.48215 | CO22: 0.50662 | CP22: 0.53263 | CQ22: 0.56026 | CR22: 0.58959 | CS22: 0.62074 | CT22: 0.6538 | CU22: 0.68891 | CV22: 0.72615 | CW22: 0.76567 | CX22: 0.80759 | CY22: 0.85205 | CZ22: 0.89922 | DA22: 0.94922 | DB22: 1
A23: 17 | B23: 0.00055 | C23: 0.0006 | D23: 0.00061 | E23: 0.00061 | F23: 0.00062 | G23: 0.00062 | H23: 0.00063 | I23: 0.00063 | J23: 0.00065 | K23: 0.00066 | L23: 0.00068 | M23: 0.0007 | N23: 0.00071 | O23: 0.00072 | P23: 0.00073 | Q23: 0.00074 | R23: 0.00078 | S23: 0.0008 | T23: 0.00082 | U23: 0.00087 | V23: 0.00091 | W23: 0.00097 | X23: 0.00103 | Y23: 0.0011 | Z23: 0.00119 | AA23: 0.0013 | AB23: 0.00142 | AC23: 0.00157 | AD23: 0.00174 | AE23: 0.0019 | AF23: 0.00207 | AG23: 0.00218 | AH23: 0.00233 | AI23: 0.00251 | AJ23: 0.00273 | AK23: 0.00304 | AL23: 0.00338 | AM23: 0.0038 | AN23: 0.00433 | AO23: 0.00488 | AP23: 0.00548 | AQ23: 0.00601 | AR23: 0.00664 | AS23: 0.0073 | AT23: 0.00811 | AU23: 0.0091 | AV23: 0.01021 | AW23: 0.01137 | AX23: 0.0126 | AY23: 0.01385 | AZ23: 0.01511 | BA23: 0.01648 | BB23: 0.01789 | BC23: 0.0196 | BD23: 0.02151 | BE23: 0.02402 | BF23: 0.02667 | BG23: 0.02946 | BH23: 0.03251 | BI23: 0.03623 | BJ23: 0.04059 | BK23: 0.0457 | BL23: 0.05163 | BM23: 0.0582 | BN23: 0.06574 | BO23: 0.07371 | BP23: 0.08242 | BQ23: 0.09217 | BR23: 0.10314 | BS23: 0.11544 | BT23: 0.12901 | BU23: 0.14375 | BV23: 0.15951 | BW23: 0.1762 | BX23: 0.19228 | BY23: 0.20929 | BZ23: 0.2274 | CA23: 0.24672 | CB23: 0.26719 | CC23: 0.28379 | CD23: 0.30149 | CE23: 0.32038 | CF23: 0.34054 | CG23: 0.3621 | CH23: 0.37921 | CI23: 0.39744 | CJ23: 0.41684 | CK23: 0.43748 | CL23: 0.45913 | CM23: 0.48215 | CN23: 0.50662 | CO23: 0.53263 | CP23: 0.56026 | CQ23: 0.58959 | CR23: 0.62074 | CS23: 0.6538 | CT23: 0.68891 | CU23: 0.72615 | CV23: 0.76567 | CW23: 0.80759 | CX23: 0.85205 | CY23: 0.89922 | CZ23: 0.94922 | DA23: 1
A24: 18 | B24: 0.00059 | C24: 0.0006 | D24: 0.0006 | E24: 0.00061 | F24: 0.00061 | G24: 0.00062 | H24: 0.00062 | I24: 0.00063 | J24: 0.00065 | K24: 0.00066 | L24: 0.00067 | M24: 0.00069 | N24: 0.0007 | O24: 0.00072 | P24: 0.00074 | Q24: 0.00075 | R24: 0.0008 | S24: 0.00081 | T24: 0.00087 | U24: 0.00091 | V24: 0.00097 | W24: 0.00103 | X24: 0.0011 | Y24: 0.00119 | Z24: 0.0013 | AA24: 0.00142 | AB24: 0.00157 | AC24: 0.00174 | AD24: 0.0019 | AE24: 0.00207 | AF24: 0.00218 | AG24: 0.00233 | AH24: 0.00251 | AI24: 0.00273 | AJ24: 0.00304 | AK24: 0.00338 | AL24: 0.0038 | AM24: 0.00433 | AN24: 0.00488 | AO24: 0.00548 | AP24: 0.00601 | AQ24: 0.00664 | AR24: 0.0073 | AS24: 0.00811 | AT24: 0.0091 | AU24: 0.01021 | AV24: 0.01137 | AW24: 0.0126 | AX24: 0.01385 | AY24: 0.01511 | AZ24: 0.01648 | BA24: 0.01789 | BB24: 0.0196 | BC24: 0.02151 | BD24: 0.02402 | BE24: 0.02667 | BF24: 0.02946 | BG24: 0.03251 | BH24: 0.03623 | BI24: 0.04059 | BJ24: 0.0457 | BK24: 0.05163 | BL24: 0.0582 | BM24: 0.06574 | BN24: 0.07371 | BO24: 0.08242 | BP24: 0.09217 | BQ24: 0.10314 | BR24: 0.11544 | BS24: 0.12901 | BT24: 0.14375 | BU24: 0.15951 | BV24: 0.1762 | BW24: 0.19228 | BX24: 0.20929 | BY24: 0.2274 | BZ24: 0.24672 | CA24: 0.26719 | CB24: 0.28379 | CC24: 0.30149 | CD24: 0.32038 | CE24: 0.34054 | CF24: 0.3621 | CG24: 0.37921 | CH24: 0.39744 | CI24: 0.41684 | CJ24: 0.43748 | CK24: 0.45913 | CL24: 0.48215 | CM24: 0.50662 | CN24: 0.53263 | CO24: 0.56026 | CP24: 0.58959 | CQ24: 0.62074 | CR24: 0.6538 | CS24: 0.68891 | CT24: 0.72615 | CU24: 0.76567 | CV24: 0.80759 | CW24: 0.85205 | CX24: 0.89922 | CY24: 0.94922 | CZ24: 1
A25: 19 | B25: 0.00058 | C25: 0.00058 | D25: 0.00059 | E25: 0.00059 | F25: 0.0006 | G25: 0.0006 | H25: 0.00061 | I25: 0.00062 | J25: 0.00063 | K25: 0.00064 | L25: 0.00066 | M25: 0.00067 | N25: 0.00069 | O25: 0.00072 | P25: 0.00075 | Q25: 0.00077 | R25: 0.00081 | S25: 0.00087 | T25: 0.00091 | U25: 0.00097 | V25: 0.00103 | W25: 0.0011 | X25: 0.00119 | Y25: 0.0013 | Z25: 0.00142 | AA25: 0.00157 | AB25: 0.00174 | AC25: 0.0019 | AD25: 0.00207 | AE25: 0.00218 | AF25: 0.00233 | AG25: 0.00251 | AH25: 0.00273 | AI25: 0.00304 | AJ25: 0.00338 | AK25: 0.0038 | AL25: 0.00433 | AM25: 0.00488 | AN25: 0.00548 | AO25: 0.00601 | AP25: 0.00664 | AQ25: 0.0073 | AR25: 0.00811 | AS25: 0.0091 | AT25: 0.01021 | AU25: 0.01137 | AV25: 0.0126 | AW25: 0.01385 | AX25: 0.01511 | AY25: 0.01648 | AZ25: 0.01789 | BA25: 0.0196 | BB25: 0.02151 | BC25: 0.02402 | BD25: 0.02667 | BE25: 0.02946 | BF25: 0.03251 | BG25: 0.03623 | BH25: 0.04059 | BI25: 0.0457 | BJ25: 0.05163 | BK25: 0.0582 | BL25: 0.06574 | BM25: 0.07371 | BN25: 0.08242 | BO25: 0.09217 | BP25: 0.10314 | BQ25: 0.11544 | BR25: 0.12901 | BS25: 0.14375 | BT25: 0.15951 | BU25: 0.1762 | BV25: 0.19228 | BW25: 0.20929 | BX25: 0.2274 | BY25: 0.24672 | BZ25: 0.26719 | CA25: 0.28379 | CB25: 0.30149 | CC25: 0.32038 | CD25: 0.34054 | CE25: 0.3621 | CF25: 0.37921 | CG25: 0.39744 | CH25: 0.41684 | CI25: 0.43748 | CJ25: 0.45913 | CK25: 0.48215 | CL25: 0.50662 | CM25: 0.53263 | CN25: 0.56026 | CO25: 0.58959 | CP25: 0.62074 | CQ25: 0.6538 | CR25: 0.68891 | CS25: 0.72615 | CT25: 0.76567 | CU25: 0.80759 | CV25: 0.85205 | CW25: 0.89922 | CX25: 0.94922 | CY25: 1
A26: 20 | B26: 0.00055 | C26: 0.00056 | D26: 0.00056 | E26: 0.00057 | F26: 0.00057 | G26: 0.00059 | H26: 0.00059 | I26: 0.00061 | J26: 0.00062 | K26: 0.00063 | L26: 0.00064 | M26: 0.00066 | N26: 0.00068 | O26: 0.00072 | P26: 0.00077 | Q26: 0.00081 | R26: 0.00086 | S26: 0.00091 | T26: 0.00097 | U26: 0.00103 | V26: 0.0011 | W26: 0.00119 | X26: 0.0013 | Y26: 0.00142 | Z26: 0.00157 | AA26: 0.00174 | AB26: 0.0019 | AC26: 0.00207 | AD26: 0.00218 | AE26: 0.00233 | AF26: 0.00251 | AG26: 0.00273 | AH26: 0.00304 | AI26: 0.00338 | AJ26: 0.0038 | AK26: 0.00433 | AL26: 0.00488 | AM26: 0.00548 | AN26: 0.00601 | AO26: 0.00664 | AP26: 0.0073 | AQ26: 0.00811 | AR26: 0.0091 | AS26: 0.01021 | AT26: 0.01137 | AU26: 0.0126 | AV26: 0.01385 | AW26: 0.01511 | AX26: 0.01648 | AY26: 0.01789 | AZ26: 0.0196 | BA26: 0.02151 | BB26: 0.02402 | BC26: 0.02667 | BD26: 0.02946 | BE26: 0.03251 | BF26: 0.03623 | BG26: 0.04059 | BH26: 0.0457 | BI26: 0.05163 | BJ26: 0.0582 | BK26: 0.06574 | BL26: 0.07371 | BM26: 0.08242 | BN26: 0.09217 | BO26: 0.10314 | BP26: 0.11544 | BQ26: 0.12901 | BR26: 0.14375 | BS26: 0.15951 | BT26: 0.1762 | BU26: 0.19228 | BV26: 0.20929 | BW26: 0.2274 | BX26: 0.24672 | BY26: 0.26719 | BZ26: 0.28379 | CA26: 0.30149 | CB26: 0.32038 | CC26: 0.34054 | CD26: 0.3621 | CE26: 0.37921 | CF26: 0.39744 | CG26: 0.41684 | CH26: 0.43748 | CI26: 0.45913 | CJ26: 0.48215 | CK26: 0.50662 | CL26: 0.53263 | CM26: 0.56026 | CN26: 0.58959 | CO26: 0.62074 | CP26: 0.6538 | CQ26: 0.68891 | CR26: 0.72615 | CS26: 0.76567 | CT26: 0.80759 | CU26: 0.85205 | CV26: 0.89922 | CW26: 0.94922 | CX26: 1
A27: 21 | B27: 0.00052 | C27: 0.00052 | D27: 0.00053 | E27: 0.00053 | F27: 0.00055 | G27: 0.00055 | H27: 0.00057 | I27: 0.00058 | J27: 0.0006 | K27: 0.00062 | L27: 0.00063 | M27: 0.00066 | N27: 0.00069 | O27: 0.00074 | P27: 0.0008 | Q27: 0.00086 | R27: 0.00091 | S27: 0.00097 | T27: 0.00103 | U27: 0.0011 | V27: 0.00119 | W27: 0.0013 | X27: 0.00142 | Y27: 0.00157 | Z27: 0.00174 | AA27: 0.0019 | AB27: 0.00207 | AC27: 0.00218 | AD27: 0.00233 | AE27: 0.00251 | AF27: 0.00273 | AG27: 0.00304 | AH27: 0.00338 | AI27: 0.0038 | AJ27: 0.00433 | AK27: 0.00488 | AL27: 0.00548 | AM27: 0.00601 | AN27: 0.00664 | AO27: 0.0073 | AP27: 0.00811 | AQ27: 0.0091 | AR27: 0.01021 | AS27: 0.01137 | AT27: 0.0126 | AU27: 0.01385 | AV27: 0.01511 | AW27: 0.01648 | AX27: 0.01789 | AY27: 0.0196 | AZ27: 0.02151 | BA27: 0.02402 | BB27: 0.02667 | BC27: 0.02946 | BD27: 0.03251 | BE27: 0.03623 | BF27: 0.04059 | BG27: 0.0457 | BH27: 0.05163 | BI27: 0.0582 | BJ27: 0.06574 | BK27: 0.07371 | BL27: 0.08242 | BM27: 0.09217 | BN27: 0.10314 | BO27: 0.11544 | BP27: 0.12901 | BQ27: 0.14375 | BR27: 0.15951 | BS27: 0.1762 | BT27: 0.19228 | BU27: 0.20929 | BV27: 0.2274 | BW27: 0.24672 | BX27: 0.26719 | BY27: 0.28379 | BZ27: 0.30149 | CA27: 0.32038 | CB27: 0.34054 | CC27: 0.3621 | CD27: 0.37921 | CE27: 0.39744 | CF27: 0.41684 | CG27: 0.43748 | CH27: 0.45913 | CI27: 0.48215 | CJ27: 0.50662 | CK27: 0.53263 | CL27: 0.56026 | CM27: 0.58959 | CN27: 0.62074 | CO27: 0.6538 | CP27: 0.68891 | CQ27: 0.72615 | CR27: 0.76567 | CS27: 0.80759 | CT27: 0.85205 | CU27: 0.89922 | CV27: 0.94922 | CW27: 1
A28: 22 | B28: 0.00049 | C28: 0.0005 | D28: 0.0005 | E28: 0.00051 | F28: 0.00053 | G28: 0.00054 | H28: 0.00055 | I28: 0.00057 | J28: 0.00058 | K28: 0.00061 | L28: 0.00064 | M28: 0.00067 | N28: 0.0007 | O28: 0.00076 | P28: 0.00084 | Q28: 0.00091 | R28: 0.00097 | S28: 0.00103 | T28: 0.0011 | U28: 0.00119 | V28: 0.0013 | W28: 0.00142 | X28: 0.00157 | Y28: 0.00174 | Z28: 0.0019 | AA28: 0.00207 | AB28: 0.00218 | AC28: 0.00233 | AD28: 0.00251 | AE28: 0.00273 | AF28: 0.00304 | AG28: 0.00338 | AH28: 0.0038 | AI28: 0.00433 | AJ28: 0.00488 | AK28: 0.00548 | AL28: 0.00601 | AM28: 0.00664 | AN28: 0.0073 | AO28: 0.00811 | AP28: 0.0091 | AQ28: 0.01021 | AR28: 0.01137 | AS28: 0.0126 | AT28: 0.01385 | AU28: 0.01511 | AV28: 0.01648 | AW28: 0.01789 | AX28: 0.0196 | AY28: 0.02151 | AZ28: 0.02402 | BA28: 0.02667 | BB28: 0.02946 | BC28: 0.03251 | BD28: 0.03623 | BE28: 0.04059 | BF28: 0.0457 | BG28: 0.05163 | BH28: 0.0582 | BI28: 0.06574 | BJ28: 0.07371 | BK28: 0.08242 | BL28: 0.09217 | BM28: 0.10314 | BN28: 0.11544 | BO28: 0.12901 | BP28: 0.14375 | BQ28: 0.15951 | BR28: 0.1762 | BS28: 0.19228 | BT28: 0.20929 | BU28: 0.2274 | BV28: 0.24672 | BW28: 0.26719 | BX28: 0.28379 | BY28: 0.30149 | BZ28: 0.32038 | CA28: 0.34054 | CB28: 0.3621 | CC28: 0.37921 | CD28: 0.39744 | CE28: 0.41684 | CF28: 0.43748 | CG28: 0.45913 | CH28: 0.48215 | CI28: 0.50662 | CJ28: 0.53263 | CK28: 0.56026 | CL28: 0.58959 | CM28: 0.62074 | CN28: 0.6538 | CO28: 0.68891 | CP28: 0.72615 | CQ28: 0.76567 | CR28: 0.80759 | CS28: 0.85205 | CT28: 0.89922 | CU28: 0.94922 | CV28: 1
A29: 23 | B29: 0.00045 | C29: 0.00045 | D29: 0.00048 | E29: 0.00049 | F29: 0.00052 | G29: 0.00053 | H29: 0.00055 | I29: 0.00057 | J29: 0.00058 | K29: 0.00061 | L29: 0.00065 | M29: 0.00068 | N29: 0.00073 | O29: 0.0008 | P29: 0.00088 | Q29: 0.00097 | R29: 0.00103 | S29: 0.0011 | T29: 0.00119 | U29: 0.0013 | V29: 0.00142 | W29: 0.00157 | X29: 0.00174 | Y29: 0.0019 | Z29: 0.00207 | AA29: 0.00218 | AB29: 0.00233 | AC29: 0.00251 | AD29: 0.00273 | AE29: 0.00304 | AF29: 0.00338 | AG29: 0.0038 | AH29: 0.00433 | AI29: 0.00488 | AJ29: 0.00548 | AK29: 0.00601 | AL29: 0.00664 | AM29: 0.0073 | AN29: 0.00811 | AO29: 0.0091 | AP29: 0.01021 | AQ29: 0.01137 | AR29: 0.0126 | AS29: 0.01385 | AT29: 0.01511 | AU29: 0.01648 | AV29: 0.01789 | AW29: 0.0196 | AX29: 0.02151 | AY29: 0.02402 | AZ29: 0.02667 | BA29: 0.02946 | BB29: 0.03251 | BC29: 0.03623 | BD29: 0.04059 | BE29: 0.0457 | BF29: 0.05163 | BG29: 0.0582 | BH29: 0.06574 | BI29: 0.07371 | BJ29: 0.08242 | BK29: 0.09217 | BL29: 0.10314 | BM29: 0.11544 | BN29: 0.12901 | BO29: 0.14375 | BP29: 0.15951 | BQ29: 0.1762 | BR29: 0.19228 | BS29: 0.20929 | BT29: 0.2274 | BU29: 0.24672 | BV29: 0.26719 | BW29: 0.28379 | BX29: 0.30149 | BY29: 0.32038 | BZ29: 0.34054 | CA29: 0.3621 | CB29: 0.37921 | CC29: 0.39744 | CD29: 0.41684 | CE29: 0.43748 | CF29: 0.45913 | CG29: 0.48215 | CH29: 0.50662 | CI29: 0.53263 | CJ29: 0.56026 | CK29: 0.58959 | CL29: 0.62074 | CM29: 0.6538 | CN29: 0.68891 | CO29: 0.72615 | CP29: 0.76567 | CQ29: 0.80759 | CR29: 0.85205 | CS29: 0.89922 | CT29: 0.94922 | CU29: 1
A30: 24 | B30: 0.00041 | C30: 0.00043 | D30: 0.00046 | E30: 0.00049 | F30: 0.00052 | G30: 0.00054 | H30: 0.00055 | I30: 0.00058 | J30: 0.0006 | K30: 0.00063 | L30: 0.00067 | M30: 0.00071 | N30: 0.00077 | O30: 0.00084 | P30: 0.00094 | Q30: 0.00102 | R30: 0.0011 | S30: 0.00119 | T30: 0.0013 | U30: 0.00142 | V30: 0.00157 | W30: 0.00174 | X30: 0.0019 | Y30: 0.00206 | Z30: 0.00218 | AA30: 0.00233 | AB30: 0.00251 | AC30: 0.00273 | AD30: 0.00304 | AE30: 0.00338 | AF30: 0.0038 | AG30: 0.00433 | AH30: 0.00488 | AI30: 0.00548 | AJ30: 0.00601 | AK30: 0.00664 | AL30: 0.0073 | AM30: 0.00811 | AN30: 0.0091 | AO30: 0.01021 | AP30: 0.01137 | AQ30: 0.0126 | AR30: 0.01385 | AS30: 0.01511 | AT30: 0.01648 | AU30: 0.01789 | AV30: 0.0196 | AW30: 0.02151 | AX30: 0.02402 | AY30: 0.02667 | AZ30: 0.02946 | BA30: 0.03251 | BB30: 0.03623 | BC30: 0.04059 | BD30: 0.0457 | BE30: 0.05163 | BF30: 0.0582 | BG30: 0.06574 | BH30: 0.07371 | BI30: 0.08242 | BJ30: 0.09217 | BK30: 0.10314 | BL30: 0.11544 | BM30: 0.12901 | BN30: 0.14375 | BO30: 0.15951 | BP30: 0.1762 | BQ30: 0.19228 | BR30: 0.20929 | BS30: 0.2274 | BT30: 0.24672 | BU30: 0.26719 | BV30: 0.28379 | BW30: 0.30149 | BX30: 0.32038 | BY30: 0.34054 | BZ30: 0.3621 | CA30: 0.37921 | CB30: 0.39744 | CC30: 0.41684 | CD30: 0.43748 | CE30: 0.45913 | CF30: 0.48215 | CG30: 0.50662 | CH30: 0.53263 | CI30: 0.56026 | CJ30: 0.58959 | CK30: 0.62074 | CL30: 0.6538 | CM30: 0.68891 | CN30: 0.72615 | CO30: 0.76567 | CP30: 0.80759 | CQ30: 0.85205 | CR30: 0.89922 | CS30: 0.94922 | CT30: 1
A31: 25 | B31: 0.00037 | C31: 0.0004 | D31: 0.00045 | E31: 0.0005 | F31: 0.00052 | G31: 0.00055 | H31: 0.00057 | I31: 0.00059 | J31: 0.00063 | K31: 0.00066 | L31: 0.0007 | M31: 0.00076 | N31: 0.00082 | O31: 0.0009 | P31: 0.00099 | Q31: 0.0011 | R31: 0.00119 | S31: 0.0013 | T31: 0.00142 | U31: 0.00157 | V31: 0.00174 | W31: 0.0019 | X31: 0.00206 | Y31: 0.00218 | Z31: 0.00233 | AA31: 0.00251 | AB31: 0.00273 | AC31: 0.00304 | AD31: 0.00338 | AE31: 0.0038 | AF31: 0.00433 | AG31: 0.00488 | AH31: 0.00548 | AI31: 0.00601 | AJ31: 0.00664 | AK31: 0.0073 | AL31: 0.00811 | AM31: 0.0091 | AN31: 0.01021 | AO31: 0.01137 | AP31: 0.0126 | AQ31: 0.01385 | AR31: 0.01511 | AS31: 0.01648 | AT31: 0.01789 | AU31: 0.0196 | AV31: 0.02151 | AW31: 0.02402 | AX31: 0.02667 | AY31: 0.02946 | AZ31: 0.03251 | BA31: 0.03623 | BB31: 0.04059 | BC31: 0.0457 | BD31: 0.05163 | BE31: 0.0582 | BF31: 0.06574 | BG31: 0.07371 | BH31: 0.08242 | BI31: 0.09217 | BJ31: 0.10314 | BK31: 0.11544 | BL31: 0.12901 | BM31: 0.14375 | BN31: 0.15951 | BO31: 0.1762 | BP31: 0.19228 | BQ31: 0.20929 | BR31: 0.2274 | BS31: 0.24672 | BT31: 0.26719 | BU31: 0.28379 | BV31: 0.30149 | BW31: 0.32038 | BX31: 0.34054 | BY31: 0.3621 | BZ31: 0.37921 | CA31: 0.39744 | CB31: 0.41684 | CC31: 0.43748 | CD31: 0.45913 | CE31: 0.48215 | CF31: 0.50662 | CG31: 0.53263 | CH31: 0.56026 | CI31: 0.58959 | CJ31: 0.62074 | CK31: 0.6538 | CL31: 0.68891 | CM31: 0.72615 | CN31: 0.76567 | CO31: 0.80759 | CP31: 0.85205 | CQ31: 0.89922 | CR31: 0.94922 | CS31: 1
A32: 26 | B32: 0.00034 | C32: 0.0004 | D32: 0.00046 | E32: 0.00051 | F32: 0.00054 | G32: 0.00056 | H32: 0.00058 | I32: 0.00062 | J32: 0.00065 | K32: 0.00069 | L32: 0.00075 | M32: 0.0008 | N32: 0.00088 | O32: 0.00096 | P32: 0.00107 | Q32: 0.00119 | R32: 0.0013 | S32: 0.00142 | T32: 0.00157 | U32: 0.00174 | V32: 0.0019 | W32: 0.00206 | X32: 0.00218 | Y32: 0.00233 | Z32: 0.00251 | AA32: 0.00273 | AB32: 0.00304 | AC32: 0.00338 | AD32: 0.0038 | AE32: 0.00433 | AF32: 0.00488 | AG32: 0.00548 | AH32: 0.00601 | AI32: 0.00664 | AJ32: 0.0073 | AK32: 0.00811 | AL32: 0.0091 | AM32: 0.01021 | AN32: 0.01137 | AO32: 0.0126 | AP32: 0.01385 | AQ32: 0.01511 | AR32: 0.01648 | AS32: 0.01789 | AT32: 0.0196 | AU32: 0.02151 | AV32: 0.02402 | AW32: 0.02667 | AX32: 0.02946 | AY32: 0.03251 | AZ32: 0.03623 | BA32: 0.04059 | BB32: 0.0457 | BC32: 0.05163 | BD32: 0.0582 | BE32: 0.06574 | BF32: 0.07371 | BG32: 0.08242 | BH32: 0.09217 | BI32: 0.10314 | BJ32: 0.11544 | BK32: 0.12901 | BL32: 0.14375 | BM32: 0.15951 | BN32: 0.1762 | BO32: 0.19228 | BP32: 0.20929 | BQ32: 0.2274 | BR32: 0.24672 | BS32: 0.26719 | BT32: 0.28379 | BU32: 0.30149 | BV32: 0.32038 | BW32: 0.34054 | BX32: 0.3621 | BY32: 0.37921 | BZ32: 0.39744 | CA32: 0.41684 | CB32: 0.43748 | CC32: 0.45913 | CD32: 0.48215 | CE32: 0.50662 | CF32: 0.53263 | CG32: 0.56026 | CH32: 0.58959 | CI32: 0.62074 | CJ32: 0.6538 | CK32: 0.68891 | CL32: 0.72615 | CM32: 0.76567 | CN32: 0.80759 | CO32: 0.85205 | CP32: 0.89922 | CQ32: 0.94922 | CR32: 1
A33: 27 | B33: 0.00034 | C33: 0.00041 | D33: 0.00047 | E33: 0.00053 | F33: 0.00056 | G33: 0.00058 | H33: 0.00062 | I33: 0.00065 | J33: 0.00069 | K33: 0.00075 | L33: 0.0008 | M33: 0.00087 | N33: 0.00094 | O33: 0.00105 | P33: 0.00116 | Q33: 0.0013 | R33: 0.00142 | S33: 0.00157 | T33: 0.00174 | U33: 0.0019 | V33: 0.00205 | W33: 0.00218 | X33: 0.00233 | Y33: 0.00251 | Z33: 0.00273 | AA33: 0.00304 | AB33: 0.00338 | AC33: 0.0038 | AD33: 0.00433 | AE33: 0.00488 | AF33: 0.00548 | AG33: 0.00601 | AH33: 0.00664 | AI33: 0.0073 | AJ33: 0.00811 | AK33: 0.0091 | AL33: 0.01021 | AM33: 0.01137 | AN33: 0.0126 | AO33: 0.01385 | AP33: 0.01511 | AQ33: 0.01648 | AR33: 0.01789 | AS33: 0.0196 | AT33: 0.02151 | AU33: 0.02402 | AV33: 0.02667 | AW33: 0.02946 | AX33: 0.03251 | AY33: 0.03623 | AZ33: 0.04059 | BA33: 0.0457 | BB33: 0.05163 | BC33: 0.0582 | BD33: 0.06574 | BE33: 0.07371 | BF33: 0.08242 | BG33: 0.09217 | BH33: 0.10314 | BI33: 0.11544 | BJ33: 0.12901 | BK33: 0.14375 | BL33: 0.15951 | BM33: 0.1762 | BN33: 0.19228 | BO33: 0.20929 | BP33: 0.2274 | BQ33: 0.24672 | BR33: 0.26719 | BS33: 0.28379 | BT33: 0.30149 | BU33: 0.32038 | BV33: 0.34054 | BW33: 0.3621 | BX33: 0.37921 | BY33: 0.39744 | BZ33: 0.41684 | CA33: 0.43748 | CB33: 0.45913 | CC33: 0.48215 | CD33: 0.50662 | CE33: 0.53263 | CF33: 0.56026 | CG33: 0.58959 | CH33: 0.62074 | CI33: 0.6538 | CJ33: 0.68891 | CK33: 0.72615 | CL33: 0.76567 | CM33: 0.80759 | CN33: 0.85205 | CO33: 0.89922 | CP33: 0.94922 | CQ33: 1
A34: 28 | B34: 0.00035 | C34: 0.00042 | D34: 0.00049 | E34: 0.00054 | F34: 0.00058 | G34: 0.00061 | H34: 0.00064 | I34: 0.00069 | J34: 0.00074 | K34: 0.00079 | L34: 0.00087 | M34: 0.00094 | N34: 0.00103 | O34: 0.00115 | P34: 0.00127 | Q34: 0.00142 | R34: 0.00156 | S34: 0.00173 | T34: 0.0019 | U34: 0.00204 | V34: 0.00218 | W34: 0.00233 | X34: 0.00251 | Y34: 0.00273 | Z34: 0.00304 | AA34: 0.00338 | AB34: 0.0038 | AC34: 0.00433 | AD34: 0.00488 | AE34: 0.00548 | AF34: 0.00601 | AG34: 0.00664 | AH34: 0.0073 | AI34: 0.00811 | AJ34: 0.0091 | AK34: 0.01021 | AL34: 0.01137 | AM34: 0.0126 | AN34: 0.01385 | AO34: 0.01511 | AP34: 0.01648 | AQ34: 0.01789 | AR34: 0.0196 | AS34: 0.02151 | AT34: 0.02402 | AU34: 0.02667 | AV34: 0.02946 | AW34: 0.03251 | AX34: 0.03623 | AY34: 0.04059 | AZ34: 0.0457 | BA34: 0.05163 | BB34: 0.0582 | BC34: 0.06574 | BD34: 0.07371 | BE34: 0.08242 | BF34: 0.09217 | BG34: 0.10314 | BH34: 0.11544 | BI34: 0.12901 | BJ34: 0.14375 | BK34: 0.15951 | BL34: 0.1762 | BM34: 0.19228 | BN34: 0.20929 | BO34: 0.2274 | BP34: 0.24672 | BQ34: 0.26719 | BR34: 0.28379 | BS34: 0.30149 | BT34: 0.32038 | BU34: 0.34054 | BV34: 0.3621 | BW34: 0.37921 | BX34: 0.39744 | BY34: 0.41684 | BZ34: 0.43748 | CA34: 0.45913 | CB34: 0.48215 | CC34: 0.50662 | CD34: 0.53263 | CE34: 0.56026 | CF34: 0.58959 | CG34: 0.62074 | CH34: 0.6538 | CI34: 0.68891 | CJ34: 0.72615 | CK34: 0.76567 | CL34: 0.80759 | CM34: 0.85205 | CN34: 0.89922 | CO34: 0.94922 | CP34: 1
A35: 29 | B35: 0.00035 | C35: 0.00043 | D35: 0.00051 | E35: 0.00056 | F35: 0.00061 | G35: 0.00064 | H35: 0.00069 | I35: 0.00074 | J35: 0.00079 | K35: 0.00087 | L35: 0.00094 | M35: 0.00103 | N35: 0.00113 | O35: 0.00124 | P35: 0.00139 | Q35: 0.00155 | R35: 0.00172 | S35: 0.0019 | T35: 0.00204 | U35: 0.00218 | V35: 0.00233 | W35: 0.00251 | X35: 0.00273 | Y35: 0.00304 | Z35: 0.00338 | AA35: 0.0038 | AB35: 0.00433 | AC35: 0.00488 | AD35: 0.00548 | AE35: 0.00601 | AF35: 0.00664 | AG35: 0.0073 | AH35: 0.00811 | AI35: 0.0091 | AJ35: 0.01021 | AK35: 0.01137 | AL35: 0.0126 | AM35: 0.01385 | AN35: 0.01511 | AO35: 0.01648 | AP35: 0.01789 | AQ35: 0.0196 | AR35: 0.02151 | AS35: 0.02402 | AT35: 0.02667 | AU35: 0.02946 | AV35: 0.03251 | AW35: 0.03623 | AX35: 0.04059 | AY35: 0.0457 | AZ35: 0.05163 | BA35: 0.0582 | BB35: 0.06574 | BC35: 0.07371 | BD35: 0.08242 | BE35: 0.09217 | BF35: 0.10314 | BG35: 0.11544 | BH35: 0.12901 | BI35: 0.14375 | BJ35: 0.15951 | BK35: 0.1762 | BL35: 0.19228 | BM35: 0.20929 | BN35: 0.2274 | BO35: 0.24672 | BP35: 0.26719 | BQ35: 0.28379 | BR35: 0.30149 | BS35: 0.32038 | BT35: 0.34054 | BU35: 0.3621 | BV35: 0.37921 | BW35: 0.39744 | BX35: 0.41684 | BY35: 0.43748 | BZ35: 0.45913 | CA35: 0.48215 | CB35: 0.50662 | CC35: 0.53263 | CD35: 0.56026 | CE35: 0.58959 | CF35: 0.62074 | CG35: 0.6538 | CH35: 0.68891 | CI35: 0.72615 | CJ35: 0.76567 | CK35: 0.80759 | CL35: 0.85205 | CM35: 0.89922 | CN35: 0.94922 | CO35: 1
A36: 30 | B36: 0.00036 | C36: 0.00044 | D36: 0.00051 | E36: 0.00058 | F36: 0.00063 | G36: 0.00069 | H36: 0.00074 | I36: 0.00079 | J36: 0.00086 | K36: 0.00094 | L36: 0.00102 | M36: 0.00111 | N36: 0.00121 | O36: 0.00134 | P36: 0.0015 | Q36: 0.00169 | R36: 0.00186 | S36: 0.00201 | T36: 0.00218 | U36: 0.00233 | V36: 0.00251 | W36: 0.00273 | X36: 0.00302 | Y36: 0.00338 | Z36: 0.00376 | AA36: 0.00433 | AB36: 0.00488 | AC36: 0.00548 | AD36: 0.00601 | AE36: 0.00664 | AF36: 0.0073 | AG36: 0.00811 | AH36: 0.0091 | AI36: 0.01021 | AJ36: 0.01137 | AK36: 0.0126 | AL36: 0.01385 | AM36: 0.01511 | AN36: 0.01648 | AO36: 0.01789 | AP36: 0.0196 | AQ36: 0.02151 | AR36: 0.02402 | AS36: 0.02667 | AT36: 0.02946 | AU36: 0.03251 | AV36: 0.03623 | AW36: 0.04059 | AX36: 0.0457 | AY36: 0.05163 | AZ36: 0.0582 | BA36: 0.06574 | BB36: 0.07371 | BC36: 0.08242 | BD36: 0.09217 | BE36: 0.10314 | BF36: 0.11544 | BG36: 0.12901 | BH36: 0.14375 | BI36: 0.15951 | BJ36: 0.1762 | BK36: 0.19228 | BL36: 0.20929 | BM36: 0.2274 | BN36: 0.24672 | BO36: 0.26719 | BP36: 0.28379 | BQ36: 0.30149 | BR36: 0.32038 | BS36: 0.34054 | BT36: 0.3621 | BU36: 0.37921 | BV36: 0.39744 | BW36: 0.41684 | BX36: 0.43748 | BY36: 0.45913 | BZ36: 0.48215 | CA36: 0.50662 | CB36: 0.53263 | CC36: 0.56026 | CD36: 0.58959 | CE36: 0.62074 | CF36: 0.6538 | CG36: 0.68891 | CH36: 0.72615 | CI36: 0.76567 | CJ36: 0.80759 | CK36: 0.85205 | CL36: 0.89922 | CM36: 0.94922 | CN36: 1
A37: 31 | B37: 0.00036 | C37: 0.00045 | D37: 0.00052 | E37: 0.00059 | F37: 0.00065 | G37: 0.00073 | H37: 0.00079 | I37: 0.00085 | J37: 0.00091 | K37: 0.00098 | L37: 0.00107 | M37: 0.00118 | N37: 0.00132 | O37: 0.00147 | P37: 0.00166 | Q37: 0.00184 | R37: 0.00199 | S37: 0.00216 | T37: 0.00231 | U37: 0.00248 | V37: 0.00267 | W37: 0.00299 | X37: 0.00335 | Y37: 0.00376 | Z37: 0.00423 | AA37: 0.00488 | AB37: 0.00548 | AC37: 0.00601 | AD37: 0.00664 | AE37: 0.0073 | AF37: 0.00811 | AG37: 0.0091 | AH37: 0.01021 | AI37: 0.01137 | AJ37: 0.0126 | AK37: 0.01385 | AL37: 0.01511 | AM37: 0.01648 | AN37: 0.01789 | AO37: 0.0196 | AP37: 0.02151 | AQ37: 0.02402 | AR37: 0.02667 | AS37: 0.02946 | AT37: 0.03251 | AU37: 0.03623 | AV37: 0.04059 | AW37: 0.0457 | AX37: 0.05163 | AY37: 0.0582 | AZ37: 0.06574 | BA37: 0.07371 | BB37: 0.08242 | BC37: 0.09217 | BD37: 0.10314 | BE37: 0.11544 | BF37: 0.12901 | BG37: 0.14375 | BH37: 0.15951 | BI37: 0.1762 | BJ37: 0.19228 | BK37: 0.20929 | BL37: 0.2274 | BM37: 0.24672 | BN37: 0.26719 | BO37: 0.28379 | BP37: 0.30149 | BQ37: 0.32038 | BR37: 0.34054 | BS37: 0.3621 | BT37: 0.37921 | BU37: 0.39744 | BV37: 0.41684 | BW37: 0.43748 | BX37: 0.45913 | BY37: 0.48215 | BZ37: 0.50662 | CA37: 0.53263 | CB37: 0.56026 | CC37: 0.58959 | CD37: 0.62074 | CE37: 0.6538 | CF37: 0.68891 | CG37: 0.72615 | CH37: 0.76567 | CI37: 0.80759 | CJ37: 0.85205 | CK37: 0.89922 | CL37: 0.94922 | CM37: 1
A38: 32 | B38: 0.00036 | C38: 0.00044 | D38: 0.00053 | E38: 0.0006 | F38: 0.00068 | G38: 0.00074 | H38: 0.00082 | I38: 0.00088 | J38: 0.00095 | K38: 0.00102 | L38: 0.00113 | M38: 0.00127 | N38: 0.00144 | O38: 0.00163 | P38: 0.00182 | Q38: 0.00198 | R38: 0.00215 | S38: 0.00231 | T38: 0.00248 | U38: 0.00267 | V38: 0.00297 | W38: 0.00335 | X38: 0.00373 | Y38: 0.00418 | Z38: 0.00473 | AA38: 0.00548 | AB38: 0.00601 | AC38: 0.00664 | AD38: 0.0073 | AE38: 0.00811 | AF38: 0.0091 | AG38: 0.01021 | AH38: 0.01137 | AI38: 0.0126 | AJ38: 0.01385 | AK38: 0.01511 | AL38: 0.01648 | AM38: 0.01789 | AN38: 0.0196 | AO38: 0.02151 | AP38: 0.02402 | AQ38: 0.02667 | AR38: 0.02946 | AS38: 0.03251 | AT38: 0.03623 | AU38: 0.04059 | AV38: 0.0457 | AW38: 0.05163 | AX38: 0.0582 | AY38: 0.06574 | AZ38: 0.07371 | BA38: 0.08242 | BB38: 0.09217 | BC38: 0.10314 | BD38: 0.11544 | BE38: 0.12901 | BF38: 0.14375 | BG38: 0.15951 | BH38: 0.1762 | BI38: 0.19228 | BJ38: 0.20929 | BK38: 0.2274 | BL38: 0.24672 | BM38: 0.26719 | BN38: 0.28379 | BO38: 0.30149 | BP38: 0.32038 | BQ38: 0.34054 | BR38: 0.3621 | BS38: 0.37921 | BT38: 0.39744 | BU38: 0.41684 | BV38: 0.43748 | BW38: 0.45913 | BX38: 0.48215 | BY38: 0.50662 | BZ38: 0.53263 | CA38: 0.56026 | CB38: 0.58959 | CC38: 0.62074 | CD38: 0.6538 | CE38: 0.68891 | CF38: 0.72615 | CG38: 0.76567 | CH38: 0.80759 | CI38: 0.85205 | CJ38: 0.89922 | CK38: 0.94922 | CL38: 1
A39: 33 | B39: 0.00038 | C39: 0.00047 | D39: 0.00055 | E39: 0.00064 | F39: 0.00071 | G39: 0.00079 | H39: 0.00087 | I39: 0.00093 | J39: 0.001 | K39: 0.00108 | L39: 0.0012 | M39: 0.00136 | N39: 0.00158 | O39: 0.00177 | P39: 0.00195 | Q39: 0.00212 | R39: 0.0023 | S39: 0.00248 | T39: 0.00267 | U39: 0.00294 | V39: 0.00332 | W39: 0.00369 | X39: 0.00413 | Y39: 0.00465 | Z39: 0.00524 | AA39: 0.00601 | AB39: 0.00664 | AC39: 0.0073 | AD39: 0.00811 | AE39: 0.0091 | AF39: 0.01021 | AG39: 0.01137 | AH39: 0.0126 | AI39: 0.01385 | AJ39: 0.01511 | AK39: 0.01648 | AL39: 0.01789 | AM39: 0.0196 | AN39: 0.02151 | AO39: 0.02402 | AP39: 0.02667 | AQ39: 0.02946 | AR39: 0.03251 | AS39: 0.03623 | AT39: 0.04059 | AU39: 0.0457 | AV39: 0.05163 | AW39: 0.0582 | AX39: 0.06574 | AY39: 0.07371 | AZ39: 0.08242 | BA39: 0.09217 | BB39: 0.10314 | BC39: 0.11544 | BD39: 0.12901 | BE39: 0.14375 | BF39: 0.15951 | BG39: 0.1762 | BH39: 0.19228 | BI39: 0.20929 | BJ39: 0.2274 | BK39: 0.24672 | BL39: 0.26719 | BM39: 0.28379 | BN39: 0.30149 | BO39: 0.32038 | BP39: 0.34054 | BQ39: 0.3621 | BR39: 0.37921 | BS39: 0.39744 | BT39: 0.41684 | BU39: 0.43748 | BV39: 0.45913 | BW39: 0.48215 | BX39: 0.50662 | BY39: 0.53263 | BZ39: 0.56026 | CA39: 0.58959 | CB39: 0.62074 | CC39: 0.6538 | CD39: 0.68891 | CE39: 0.72615 | CF39: 0.76567 | CG39: 0.80759 | CH39: 0.85205 | CI39: 0.89922 | CJ39: 0.94922 | CK39: 1
A40: 34 | B40: 0.0004 | C40: 0.00048 | D40: 0.00058 | E40: 0.00066 | F40: 0.00076 | G40: 0.00083 | H40: 0.00092 | I40: 0.00099 | J40: 0.00107 | K40: 0.00116 | L40: 0.00131 | M40: 0.0015 | N40: 0.00171 | O40: 0.00191 | P40: 0.0021 | Q40: 0.00227 | R40: 0.00248 | S40: 0.00267 | T40: 0.00294 | U40: 0.00322 | V40: 0.00363 | W40: 0.00406 | X40: 0.00458 | Y40: 0.00514 | Z40: 0.00575 | AA40: 0.00664 | AB40: 0.0073 | AC40: 0.00811 | AD40: 0.0091 | AE40: 0.01021 | AF40: 0.01137 | AG40: 0.0126 | AH40: 0.01385 | AI40: 0.01511 | AJ40: 0.01648 | AK40: 0.01789 | AL40: 0.0196 | AM40: 0.02151 | AN40: 0.02402 | AO40: 0.02667 | AP40: 0.02946 | AQ40: 0.03251 | AR40: 0.03623 | AS40: 0.04059 | AT40: 0.0457 | AU40: 0.05163 | AV40: 0.0582 | AW40: 0.06574 | AX40: 0.07371 | AY40: 0.08242 | AZ40: 0.09217 | BA40: 0.10314 | BB40: 0.11544 | BC40: 0.12901 | BD40: 0.14375 | BE40: 0.15951 | BF40: 0.1762 | BG40: 0.19228 | BH40: 0.20929 | BI40: 0.2274 | BJ40: 0.24672 | BK40: 0.26719 | BL40: 0.28379 | BM40: 0.30149 | BN40: 0.32038 | BO40: 0.34054 | BP40: 0.3621 | BQ40: 0.37921 | BR40: 0.39744 | BS40: 0.41684 | BT40: 0.43748 | BU40: 0.45913 | BV40: 0.48215 | BW40: 0.50662 | BX40: 0.53263 | BY40: 0.56026 | BZ40: 0.58959 | CA40: 0.62074 | CB40: 0.6538 | CC40: 0.68891 | CD40: 0.72615 | CE40: 0.76567 | CF40: 0.80759 | CG40: 0.85205 | CH40: 0.89922 | CI40: 0.94922 | CJ40: 1
A41: 35 | B41: 0.00043 | C41: 0.00051 | D41: 0.0006 | E41: 0.00069 | F41: 0.00078 | G41: 0.00088 | H41: 0.00097 | I41: 0.00106 | J41: 0.00116 | K41: 0.00128 | L41: 0.00144 | M41: 0.00163 | N41: 0.00184 | O41: 0.00205 | P41: 0.00226 | Q41: 0.00244 | R41: 0.00267 | S41: 0.00294 | T41: 0.00322 | U41: 0.00356 | V41: 0.00398 | W41: 0.00447 | X41: 0.005 | Y41: 0.0056 | Z41: 0.00616 | AA41: 0.0073 | AB41: 0.00811 | AC41: 0.0091 | AD41: 0.01021 | AE41: 0.01137 | AF41: 0.0126 | AG41: 0.01385 | AH41: 0.01511 | AI41: 0.01648 | AJ41: 0.01789 | AK41: 0.0196 | AL41: 0.02151 | AM41: 0.02402 | AN41: 0.02667 | AO41: 0.02946 | AP41: 0.03251 | AQ41: 0.03623 | AR41: 0.04059 | AS41: 0.0457 | AT41: 0.05163 | AU41: 0.0582 | AV41: 0.06574 | AW41: 0.07371 | AX41: 0.08242 | AY41: 0.09217 | AZ41: 0.10314 | BA41: 0.11544 | BB41: 0.12901 | BC41: 0.14375 | BD41: 0.15951 | BE41: 0.1762 | BF41: 0.19228 | BG41: 0.20929 | BH41: 0.2274 | BI41: 0.24672 | BJ41: 0.26719 | BK41: 0.28379 | BL41: 0.30149 | BM41: 0.32038 | BN41: 0.34054 | BO41: 0.3621 | BP41: 0.37921 | BQ41: 0.39744 | BR41: 0.41684 | BS41: 0.43748 | BT41: 0.45913 | BU41: 0.48215 | BV41: 0.50662 | BW41: 0.53263 | BX41: 0.56026 | BY41: 0.58959 | BZ41: 0.62074 | CA41: 0.6538 | CB41: 0.68891 | CC41: 0.72615 | CD41: 0.76567 | CE41: 0.80759 | CF41: 0.85205 | CG41: 0.89922 | CH41: 0.94922 | CI41: 1
A42: 36 | B42: 0.00044 | C42: 0.00054 | D42: 0.00063 | E42: 0.00073 | F42: 0.00083 | G42: 0.00092 | H42: 0.00102 | I42: 0.00115 | J42: 0.00127 | K42: 0.00143 | L42: 0.00158 | M42: 0.00177 | N42: 0.00199 | O42: 0.00222 | P42: 0.00243 | Q42: 0.00267 | R42: 0.00294 | S42: 0.00318 | T42: 0.00352 | U42: 0.00389 | V42: 0.00437 | W42: 0.00489 | X42: 0.00546 | Y42: 0.00611 | Z42: 0.00656 | AA42: 0.00811 | AB42: 0.0091 | AC42: 0.01021 | AD42: 0.01137 | AE42: 0.0126 | AF42: 0.01385 | AG42: 0.01511 | AH42: 0.01648 | AI42: 0.01789 | AJ42: 0.0196 | AK42: 0.02151 | AL42: 0.02402 | AM42: 0.02667 | AN42: 0.02946 | AO42: 0.03251 | AP42: 0.03623 | AQ42: 0.04059 | AR42: 0.0457 | AS42: 0.05163 | AT42: 0.0582 | AU42: 0.06574 | AV42: 0.07371 | AW42: 0.08242 | AX42: 0.09217 | AY42: 0.10314 | AZ42: 0.11544 | BA42: 0.12901 | BB42: 0.14375 | BC42: 0.15951 | BD42: 0.1762 | BE42: 0.19228 | BF42: 0.20929 | BG42: 0.2274 | BH42: 0.24672 | BI42: 0.26719 | BJ42: 0.28379 | BK42: 0.30149 | BL42: 0.32038 | BM42: 0.34054 | BN42: 0.3621 | BO42: 0.37921 | BP42: 0.39744 | BQ42: 0.41684 | BR42: 0.43748 | BS42: 0.45913 | BT42: 0.48215 | BU42: 0.50662 | BV42: 0.53263 | BW42: 0.56026 | BX42: 0.58959 | BY42: 0.62074 | BZ42: 0.6538 | CA42: 0.68891 | CB42: 0.72615 | CC42: 0.76567 | CD42: 0.80759 | CE42: 0.85205 | CF42: 0.89922 | CG42: 0.94922 | CH42: 1
A43: 37 | B43: 0.00048 | C43: 0.00056 | D43: 0.00066 | E43: 0.00076 | F43: 0.00086 | G43: 0.00097 | H43: 0.0011 | I43: 0.00125 | J43: 0.00142 | K43: 0.00156 | L43: 0.00172 | M43: 0.0019 | N43: 0.00214 | O43: 0.00239 | P43: 0.00264 | Q43: 0.00294 | R43: 0.00316 | S43: 0.00348 | T43: 0.00385 | U43: 0.00427 | V43: 0.00478 | W43: 0.00533 | X43: 0.00595 | Y43: 0.00654 | Z43: 0.00741 | AA43: 0.0091 | AB43: 0.01021 | AC43: 0.01137 | AD43: 0.0126 | AE43: 0.01385 | AF43: 0.01511 | AG43: 0.01648 | AH43: 0.01789 | AI43: 0.0196 | AJ43: 0.02151 | AK43: 0.02402 | AL43: 0.02667 | AM43: 0.02946 | AN43: 0.03251 | AO43: 0.03623 | AP43: 0.04059 | AQ43: 0.0457 | AR43: 0.05163 | AS43: 0.0582 | AT43: 0.06574 | AU43: 0.07371 | AV43: 0.08242 | AW43: 0.09217 | AX43: 0.10314 | AY43: 0.11544 | AZ43: 0.12901 | BA43: 0.14375 | BB43: 0.15951 | BC43: 0.1762 | BD43: 0.19228 | BE43: 0.20929 | BF43: 0.2274 | BG43: 0.24672 | BH43: 0.26719 | BI43: 0.28379 | BJ43: 0.30149 | BK43: 0.32038 | BL43: 0.34054 | BM43: 0.3621 | BN43: 0.37921 | BO43: 0.39744 | BP43: 0.41684 | BQ43: 0.43748 | BR43: 0.45913 | BS43: 0.48215 | BT43: 0.50662 | BU43: 0.53263 | BV43: 0.56026 | BW43: 0.58959 | BX43: 0.62074 | BY43: 0.6538 | BZ43: 0.68891 | CA43: 0.72615 | CB43: 0.76567 | CC43: 0.80759 | CD43: 0.85205 | CE43: 0.89922 | CF43: 0.94922 | CG43: 1
